Workbook

Sheet Instructions
B2: Air Emissions Associated with Decommissioning Operations for
B3: Pacific Outer Continental Shelf (OCS) Oil and Gas Platforms
B4: Instructions
B6: Study concept, oversight, and funding were provided by the US Department of the Interior, Bureau of Ocean Energy Management (BOEM), Environmental Studies Program, Washington, DC, under Contract Number 140M0118P0009. This report has been technically reviewed by BOEM, and it has been approved for publication. The views and conclusions contained in this document are those of the authors and should not be interpreted as representing the opinions or policies of the US Government, nor does mention of trade names or commercial products constitute endorsement or recommendation for use.
B7: This spreadsheet tool is used to estimate the air pollutant emissions from the decommissioning of platforms located in the Pacific OCS. It was developed as part of a project with BOEM.
B8: Navigation is based on a HOME screen with various hyperlinks to different locations in the spreadsheet, and "return to home" hyperlinks which brings the user back to the home screen.
B9: Emissions are generated for a defined area, such as within 25 miles of the platform, as per 40 CFR part 55, or within specific air districts. These emissions include those at the Platform(s) and only those emissions from vessels while traveling within the defined area. These emissions are also tabulated in the Emission Summary screens.
B10: For emission factors, there are generally 3 emissions factor types: - default values, - a value as entered by the user or - one of the applicable engine Tier standards. The default value is generally the EPA AP-42 value, except for crew and supply boats and platform cranes, which utilize the values specified in the respective air permits.
B11: When the user wants to input their own emission factor, this is accomplished through one of the hyperlink screens which leads to changing the equipment parameters.
B12: Generally, only the values in the hyperlinked locations should be changed. The user should use only the hyerlinks as opposd to navigating with teh tabs. All other tabs either provide calculations or databases and should not be modified unless the user is familiar with Excel and is providing additional information or correcting inefficiencies. Many of the input values are drop down menus to allow for consistency with the calculations. Cells which should not be changed are protected. Cells that are highlighted in blue are allowed to be changed by the user and are not protected.
B13: Emissions from all activities are also generated in the Emissions Summary area.
B15: General Use Procedures
B16: In general, a user should start by selecting the Platform of interest from the drop-down menu in order to change any parameters associated with that Platform and to estimate the emissions associated with that Platform. The parameters and options link can then be selected to select the various Platform decommissioning options, such as partial removal of the jacket, if shell mounds will be removed, if emissions only within a sub-area (called the "defined area") should be selected, etc. If default parameters, such as equipment listings or Platform arrangements, need to be changed, then the "Change Default Equipment and Construction Parameters" link can be selected. None of these parameters need to be modified in order to estimate the emissions as the tool is populated with a range of default parameters based on past studies and Platform information obtained from BOEM and other agencies. Finally, the user can select the Emission Summaries link to view the emissions estimates for the defined area, by equipment and for groups of Platforms.
B18: Home Screen Discussion
B19: The Home Screen provides a location to navigate the different screens. It allows for input/changing of the parameters and queries, changing the default parameters and viewing the emissions summary sheets.
B20: The Platform(s) drop-down menu lists all of the OCS platforms and provides input to the calculations for each individual Platform which also allows for a lookup into the Platforms database to retrieve information on Platform characteristics.
B22: Parameters Discussion
B23: The Parameters Screen contains a range of inputs to the air emissions spreadsheets and are applied to all Platform emissions estimates. Each of these is discussed below.
B24: Input values are located to the right of each of the items. Many of the input cells are drop-down menus. These are denoted by an underline. Cells in blue can be modified. Cells in grey are protected and should not be modified.
B25: General Items
B26: The Year of Decommissioning drop-down allows the selection of what year the decommissioning would occur and provides input to the shell mounds removal option defining the amount of shell mounds to be removed. Shell mounds increase in volume over time. This is the only item that is changed by modifying the year value.
B27: The emissions breakdown by Defined area allows for calculations of emissions within 25 miles of the Platform (Total), or within each of the 3 respective air districts.
B28: The demobilization port for the jackets and topsides for is also selected on this screen.
B30: Jacket Removal Options
B31: The Removal Option for the jacket is a drop-down menu and can be done as any of the following: - Full removal, where all of the jacket and piles are removed (destination port selected above). - Partial Laydown, where the jacket is cut and then pulled with tugs to be dropped to the ocean floor at the Platform location. - Partial Disposal Offshore, where the topmost 85' portion of the jacket is removed and then transported to an offshore disposal site. - Partial Disposal Onshore, where the topmost portion of the jacket is removed and then transported to the POLA/LB.
B33: Pipelines
B34: There are three drop-down OCS Pipeline Removal Options: - All, which removes all OCS pipelines, - None, which abandons in place all OCS pipelines, or - Shallow Only, which only removes the pipelines shallower than 200 feet and not between platforms.
B35: Remove state water pipelines drop-down defines if state water pipelines are to be removed also.
B36: Remove powercable in OCS drop-down defines if power cables in the OCS are removed.
B37: Remove powercable in State Waters drop-down defines if power cables in the state waters should be removed also.
B39: Equipment Sources
B40: Equipment sources drop-downs define where the equipment will be mobilized from. These equipment include: - Derrick Barge Source (Asia, Europe, GOM), - Lifting Barge Source (GOM, POLA, Seattle), - Cargo Barges (GOM, POLA, Seattle) and - Derrick-Lay Barges (GOM, POLA, Seattle). Emissions are calculated based on distance and tug/barge engine characteristics. For other equipment, including crew and supply boats, etc., equipment is assumed to be commuting from the closest pier (for crew and dive boats) or from the POLA/LB or Port Hueneme for supply boats.
B41: Crew, supply and dive boat emissions to/from ports are included in each activity. Mobilization and demobilization emissions are associated only with derrick barges and cargo barges.
B43: ShellMounds
B44: This is the drop-down option to Remove shell mounds or not to remove the shell mounds. If not removing the shell mounds is selected, then none of the shell mounds specific options are applicable and will be greyed out on the relevant screens. The year of decommissioning will also not be used.
B46: Emission Estimates
B47: The Parameters screen also allows for not including the P&A or conductor removal subtasks in in the emission calculations. Also, all emission factors can be overridden with Tier 4 factors to view the results of the full usage of Tier 4 engines.
B48: Change Default Equipment and Construction Parameters
B49: An extensive number of parameters have been included in the analysis, based on previous studies and research. Emissions estimates can be generated utilizing all of these default parameters or these parameters can be changed and updated based on new information. The default parameters that can be changed include the Platform Characteristics, the Equipment Parameters or the Construction Parameters.
B51: Change Default Platform Characteristics
B52: This area allow for changes to the Platform database specific to each platform, such as the number of jacket sections, deck modules, conductors, pipelines, well abandonment requirements, etc. Any changes to this screen will update the data in the Platform database for that platform selected at the home screen and used for input for the emissions calculations.
B54: Change Default Equipment
B55: This area allow for changes to the equipment that will be used specific to each platform, such as the number of equipment used per phase or the horsepower and the load factors and the emission factors. These screens have the default values already loaded. Entry only into the non-protected, blue highlighted cells is allowed.
B56: For the horsepower and load factors , the drop-down menus for each equipment define whether to use the default value or a value as entered by the user. If the "User Input" value is selected, then the user must enter a value in the cell to the right of the dropdown.
B57: For emission factors, selecting the options allows for using the default values, user input values or respective Tiers. The default values are shown to the right for reference.
B58: The emission estimates are based on a set of equipment that is the basis for the emission calculations. There is space for up to 10 pieces or categories of additional equipment, which can be entered. The equipment name should be entered in the User data input for Additional Equipment by Phase screen, and this equipment name will be propagated through other screens. The equipment name, number, hp will be propagated through the sheets and emission calculations. The load factor and emission factors can be entered or the default value or the tiered values can be used.
B59: At the Change Default Equipment Parameter menu, the user can also view a summary of the factors used in the emissions analysis. In order to change any of these factors, the user must return to the respective screen for inputs. This is just a summary location to check on the values selected.
B61: Change Default Construction Parameters
B62: This area allows for changes to the construction activities specific to the decommissioning effort and these values are applied to all of the Platform decommissioning projects. These include the pipelines and power cables removal options, shell mound removal options, transportation arrangements, well abandonment timing, etc.
B64: Pipeline and Powercables
B65: The options under Pipelines and Powercables address the pipeline removal rate, days per mile of pipeline, the powercable removal rate and the powercable weight per mile.
B67: Shell Mounds
B68: If removing the shell mounds is selected, then the crane bucket size, yds3, is defined (24 yds3 default)
B69: If removing the shell mounds is selected, then the shell mounds Removal rate, bucket-feet/day, is defined (17,000 default). This is based on the depth of the water and the rate of bucket movement. For example, in 100 feet of water, 10 buckets could be removed over a 17 hour period.
B70: If removing the shell mounds is selected, shell mounds Bucket Water Cut Fraction, bucket volume/volume shell mounds (1.54 default) defined the amount of water in the bucket along with the shell mounds.
B71: If removing the shell mounds is selected, under the depth below mudline, ft (2 ft default) defines the amount of muds that are removed as well, using the depth and the area of the shell mounds (which is defined in the platforms database).
B72: If removing the shell mounds is selected, under the Marine Growth Contribution, tons/8-leg-jacket (1,000 tons default) defines the amount of marine growth that falls to the ocean floor during marine growth removal during platform preparation. This value is scaled depending on the number of legs per platform.
B73: If removing the shell mounds is selected, udner the shell mounds removal, barge capacity, yds3 (3,000 yds default) defines the capacity of the barge used to transport the shell mounds.
B75: Transportation
B76: Defines the Supply Boat speed, mph (12 default)
B77: Defines the Crew boat speed, mph (12 default)
B78: Defines the Barge speed, mph, generally pulled by a tug boat (4 default)
B79: Supply Boat, round trips per day, between the Platform site and the Supply boat port.
B80: Crew Boat, round trips per day, defines the crew boat trips between the Platform site and the closest pier
B81: Defines the Cargo Barge 300' capacity for jacket/topsides, tons (default 1647). Barge capacity is substantially less for jackets/topsides than a barges weight capacity due to the sizing constraints.
B82: Defines the Cargo barge 400' capacity for jackets/topsides, tons (default 2196). Barge capacity is substantially less for jackets/topsides than a barges weight capacity due to the sizing constraints.
B83: For derrick barges Mobilization time from Asia, One-Way, days (50 default)
B84: For derrick barges and cargo barges Mobilization time from GOM, One-Way, days (50 default)
B85: For derrick barges Mobilization time from Europe, One-Way, days (50 default)
B86: For derrick barges and cargo barges Mobilization time from Seattle, One-Way, days (15 default)
B87: For cargo barge pipeline and conductor capacity, capacity for pipelines and conductors is based on a greater capacity than jackets and topsides due to higher density of loading (10,000 tons default).
B89: Well Abandonment
B90: Wells are broken in to 5 categories as follows: Well Abandonment, rigless-low well type, days to abandon (3 default)
B91: Well Abandonment, rigless-medium-low well type, days to abandon (4 default)
B92: Well Abandonment, rigless-medium-high well type, days to abandon (5 default)
B93: Well Abandonment, rigless-high well type, days to abandon (8 default)
B94: Well Abandonment, rigged, days per Rigged well (21 default)
B95: Well Abandonment, days to set up and break down abandonment (7 default)
B97: Miscellaneous Items
B98: Well P&A time spent cementing, fraction of total time, defines the cementing time spent during well P&A (0.10 default)
B99: The Jacket contingency for work and weather, fraction of time, defines an additional factor added to jacket removal due to weather and other issues. (0.25 default)
B100: The Partial Removal contingency is additional time that is added to the partial removal scenario to allow for setup and breakdown associated with only the partial scenario jacket topmost section removal.
B101: The Cargo barge sets peak hour number defines the number of cargo barge sets (barge plus tug) that are utilized during the peak hour. (1 default)
B102: The Cargo barge sets peak day number defines the number of cargo barge sets (barge plus tug) that are utilized during the peak day. (2 default)
B104: Emissions Summary Discussion
B105: The Emissions Summary link provides for viewing the emissions for the defined area (totasl emissions within all 3 air districts or with a specified air district). The menu also allows for viewing a summary of emissions and timing for all of the Platforms.
B106: The emission summary by equipment allows for viewing the emissions by equipment, with the drop down menus to allow for viewing filters and queries.
B107: The emissions summary for all platforms allows for viewing the emissions for all of the platforms and filtering/querying the results by defined area, phase, sub-phase, platform water depth and Platform Unit/Field. These queries are selected with drop-down menus. In addition, the timing of each of the phases and sub-phases is shown for each of the Platforms. These emissions estimates utilize the parameters settings selected in the parameters screen (full or partial removal, shell mounds, etc.).
B108: The emissions summaries can be printed from these locations using the Spreadsheet printing function. The Print Areas have already been defined. Utilize the File-Print function in Excel when on a specific screen to print the associated information.
B110: Other Issues
B111: Some tabs are hidden and can be unhidden by right clicking on any tab, selecting unhide, and then selecting the hidden tab to unhide. Some cell are protected. To change those cells, just unprotect the sheet. There is no password.
B112: Printing is performed by utilizing the file/print functions in excel. All input screens and the emissions screens have print areas designated for printing.
B113: Note that Platform Holly is included in the listing but is not an OCS Platform. It is located in State waters.

Sheet Home
B2: Air Emissions Associated with Decommissioning Operations for Pacific Outer Continental Shelf (OCS) Oil and Gas Platforms Home Screen
C4: Select The Platform from the Dropdown List: | D4: A
C6: Define Emission Calculations Parameters and Options: | D6: =HYPERLINK("#Inputs!A100:A136","Parameters and Options") -> Parameters and Options
C8: Change Default Parameters | D8: =HYPERLINK("#Home!A99:A140","Change Default Equipment and Construction Parameters") -> Change Default Equipment and Construction Parameters
C10: Summary of Emissions Reports | D10: =HYPERLINK("#Home!A249:A290","Emissions Summaries") -> Emissions Summaries
B12: =IF(Plat="Group SB","Group SB includes all Platforms in Santa Barbara County",IF(Plat="Group VC","Group VC includes all Platforms in Ventura County",IF(Plat="Group SC","Group SC includes all Platforms in the SCAQMD",IF(Plat="Group D","Group D includes all Platforms in water deeper than 1,000 feet","")))) -> 
B13: Parameters and Options covers information applicable to all platforms such as limits on pipeline and power cable removal, sources of major equipment, limits on shell mound removal, and full or partial jacket removal, and whether emission estimates should include well P&A, conductor removal and use of all Tier 4 engines.
B14: Default parameters covers information specific to each platform on platform characteristics, equipment, hp, load and emission factors and construction durations. Default parameters do not have to be modified in order to estimate emissions.
B100: Air Emissions Associated with Decommissioning Operations for Pacific Outer Continental Shelf (OCS) Oil and Gas Platforms Change Default Parameters Menu
C102: Define the Platform Characteristics: | D102: =HYPERLINK("#"&Plat&"!B1","Change Default Platform Characteristics") -> Change Default Platform Characteristics
C104: Define the Equipment: | D104: =HYPERLINK("#Home!A149:A180","Change Default Equipment Horsepower, Load and Emission Factors") -> Change Default Equipment Horsepower, Load and Emission Factors
C106: Define Operating Parameters: | D106: =HYPERLINK("#Inputs!A1:A36","Change Default Construction Parameters") -> Change Default Construction Parameters
B108: Note: Default parameters are already included in the above links based on analysis and previous studies. Emissions can be estimated using these default parameters or, if new and more accurate information is available, it can be entered in the respective links.
B150: Air Emissions Associated with Decommissioning Operations for Pacific Outer Continental Shelf (OCS) Oil and Gas Platforms Change Default Equipment Parameter Menu
C152: =HYPERLINK("#"&Plat&"!$A92:$L$121","Change Number of Equipment Used per Phase") -> Change Number of Equipment Used per Phase
C154: =HYPERLINK("#"&Plat&"!$A$212:$N$250","Change Default Equipment HP, Load Factors, and Emission Factors") -> Change Default Equipment HP, Load Factors, and Emission Factors
C156: =HYPERLINK("#Home!$A$200:$A244","Add New Equipment") -> Add New Equipment
C158: =HYPERLINK("#"&Plat&"!$A142:$A$177","View Summary of Factors Used in the Emissions Analysis") -> View Summary of Factors Used in the Emissions Analysis
B160: Note: Default parameters are already included in the above links based on analysis and previous studies. Emissions can be estimated using these default parameters or, if new and more accurate information is available, it can be entered in the respective links.
B201: Air Emissions Associated with Decommissioning Operations for Pacific Outer Continental Shelf (OCS) Oil and Gas Platforms Add New Equipment Menu
C203: =HYPERLINK("#"&Plat&"!$A$270:$L$300","Add Number of Equipment Used per Phase") -> Add Number of Equipment Used per Phase
C205: =HYPERLINK("#"&Plat&"!$A$305:$K$342","Add Equipment HP, Load Factors, and Emission Factors") -> Add Equipment HP, Load Factors, and Emission Factors
B250: Air Emissions Associated with Decommissioning Operations for Pacific Outer Continental Shelf (OCS) Oil and Gas Platforms Emissions Summaries
C252: Defined Area Summary | D252: =HYPERLINK("#EmissionsSummaryArea!a1","Emissions for Single Platform Defined Area: "&Inputs!$C$104) -> Emissions for Single Platform Defined Area: Total
C254: By Equipment | D254: =HYPERLINK("#EmissionsEquipment!a1","Emissions Queries for Single Platform by Equipment") -> Emissions Queries for Single Platform by Equipment
C256: All Platforms Summary | D256: =HYPERLINK("#PlatformsSummary!a1","Emissions Queries for Multiple Platforms") -> Emissions Queries for Multiple Platforms

Sheet Inputs
B2: Construction Activity Parameters
B3: Pipelines and Powercables | C3: Item
B4: Pipeline removal rate, days/mile (1.8 average for pipelines >2 miles) | C4: 1.8
B5: Powercable removal rate, days/mile (5.6 average for all powercables) | C5: 5.6
B6: Powercable weight per mile, tons (default: 45.5 tons/mile) | C6: 45.5
B7: ShellMounds | C7: Item
B8: Shell Mounds Removal, bucket size, yds3 (24 yds3 default) | C8: 24
B9: Shell Mounds Removal rate, bucket-feet/day (17,000 default) | C9: =17*10*100 -> 17000
B10: Shell Mounds Bucket Water Cut Fraction, bucket volume/volume shell mounds (1.54 default) | C10: 1.54
B11: Shell Mounds Removal, depth below mudline, ft (2 ft default) | C11: 2
B12: Marine Growth Contribution, tons/8-leg-jacket (1,000 tons default) | C12: 1000
B13: Shell Mounds Removal, barge capacity, yds3 (3,000 yds default) | C13: 3000
B15: Transportation | C15: Item
B16: Supply Boat speed, mph | C16: 12
B17: Crew boat speed, mph | C17: 12
B18: Barge speed, mph | C18: 4
B19: Supply Boat, round trips per day | C19: 1
B20: Crew Boat, round trips per day | C20: 2
B21: Supply Boat Port | C21: Hueneme
B22: Cargo barge 400' capacity for jackets/topsides, tons (default 2196) | C22: 2196
B23: Mobilization time from Asia, One-Way, days (50 default) | C23: 50
B24: Mobilization time from GOM, One-Way, days (50 default) | C24: 50
B25: Mobilization time from Europe, One-Way, days (50 default) | C25: 50
B26: Mobilization time from Seattle, One-Way, days (15 default) | C26: 15
B27: Cargo Barge Capacity, pipelines & conductors, tons (default 10,000) | C27: 10000
B28: Well Abandonment | C28: Item
B29: Well Abandonment, days per rigless-low well (3 default) | C29: 3
B30: Well Abandonment, days per rigless-medium-low well (4 default) | C30: 4
B31: Well Abandonment, days per rigless-medium-high well (5 default) | C31: 5
B32: Well Abandonment, days per rigless-high well (8 default) | C32: 8
B33: Well Abandonment, days per Rigged well (21 default) | C33: 21
B34: Well Abandonment, days to set up and break down abandonment (7 default) | C34: 7
B36: Misc | C36: Item
B37: Well P&A time spent cementing, fraction of total time | C37: 0.1
B38: Jacket and Topside contingency for work and weather, fraction of time | C38: 0.25
B39: Partial Abandonment contingency jacket removal, days additional | C39: 0
B40: Cargo barge/Tugs peak hour number | C40: 1
B41: Cargo barge/Tugs peak day number | C41: 2
B101: Emission Calculations Parameters and Queries
B102: General | C102: Item
B103: Year of Decommissioning | C103: 2022
B104: Defined Area (emissions only within in a specific area); Total or Air District | C104: Total
B105: Demobilization port for Topsides and Jacket (Asia, GOM, POLA, Seattle) | C105: POLA
B106: Jacket Removal Options | C106: Item
B107: Removal option (Full, Partial Laydown, Partial Disposal Offshore, Partial Disposal Onshore) | C107: Full
B108: Partial Removal Option, transport distance, mi (if applicable) | C108: 10
B109: Pipelines and Power Cables | C109: Item
B110: OCS Pipeline removal options: All (remove all OCS pipelines), None or Shallow Only? | C110: Shallow
B111: Remove state water pipelines? | C111: No
B112: Remove power cable in OCS? | C112: Yes
B113: Remove power cable in State Waters? | C113: No
B114: =IF(C110="Shallow","Shallow removal includes only removal of pipelines in less than 200 ft of water and not between platforms.","") -> Shallow removal includes only removal of pipelines in less than 200 ft of water and not between platforms.
B115: Barge Origins | C115: Item
B116: Derrick Barge Source (Asia, Europe, GOM) | C116: Europe
B117: Lifting Barge Source (GOM, POLA, Seattle) | C117: GOM
B118: Cargo Barges (GOM, POLA, Seattle) | C118: GOM
B119: Derrick-Lay Barges (GOM, POLA, Seattle) | C119: GOM
B121: ShellMounds | C121: Item
B122: Remove Shell Mounds? | C122: Yes
B123: =IF(C107<>"full",IF(C122="yes","Unless full removal is selected, shell mounds would normally not be removed.",""),"") -> 
B124: Emission Estimates | C124: Item
B125: Include Well P&A? | C125: Yes
B126: Include conductor removal? | C126: Yes
B127: Overide all Emission Factors with Tier 4? | C127: No

Sheet EmissionsSummary
A1: Air Emissions Associated with Decommissioning Operations for Pacific Outer Continental Shelf (OCS) Oil and Gas Platforms: Emissions Summary for All Areas
A2: ="Platform: "&Plat -> Platform: A
A4: ="Permitted and Actual Emissions for Platform "&Plat -> Permitted and Actual Emissions for Platform A
B5: Tons per Year
A6: PHASE | B6: NOx | C6: ROC | D6: CO | E6: SOx | F6: PM10 | G6: PM2.5 | H6: GHG MT
A7: ="Permitted: Platform "&Plat&" permit number "&VLOOKUP(Plat,Districts!$A$8:$M$30,Districts!$F$43) -> Permitted: Platform A permit number 9110-R4 | B7: =VLOOKUP(Plat,Districts!$A$8:$M$30,Districts!$G$43) -> 24.3 | C7: =VLOOKUP(Plat,Districts!$A$8:$M$30,Districts!$H$43) -> 45.9 | D7: =VLOOKUP(Plat,Districts!$A$8:$M$30,Districts!$I$43) -> 24.1 | E7: =VLOOKUP(Plat,Districts!$A$8:$M$30,Districts!$J$43) -> 0.72 | F7: =VLOOKUP(Plat,Districts!$A$8:$M$30,Districts!$K$43) -> 2.42 | G7: =VLOOKUP(Plat,Districts!$A$8:$M$30,Districts!$L$43) -> 2.37 | H7: =VLOOKUP(Plat,Districts!$A$8:$M$30,Districts!$M$43) -> 1895.4
A8: ="Actual 2014: Platform "&Plat -> Actual 2014: Platform A | B8: =VLOOKUP(Plat,Districts!$A$8:$S$30,Districts!N$43) -> 5.819969 | C8: =VLOOKUP(Plat,Districts!$A$8:$S$30,Districts!O$43) -> 30.180383 | D8: =VLOOKUP(Plat,Districts!$A$8:$S$30,Districts!P$43) -> 2.27731 | E8: =VLOOKUP(Plat,Districts!$A$8:$S$30,Districts!Q$43) -> 0.413372 | F8: =VLOOKUP(Plat,Districts!$A$8:$S$30,Districts!R$43) -> 0.605814 | G8: =VLOOKUP(Plat,Districts!$A$8:$S$30,Districts!S$43) -> 0.601953 | H8: -
A10: ="Decommissioning Characteristics for Platform "&Plat -> Decommissioning Characteristics for Platform A
A11: Number of cargo barges/trips | B11: =Emissions!$C$8+Emissions!$C$75+Emissions!$C$130+Emissions!$C$165 -> 10 | C11: Decommissioning total time, days | H11: =Emissions!$K$13+Emissions!$K$23+Emissions!$K$34+Emissions!$K$56+Emissions!$K$80+Emissions!$K$106+Emissions!$K$136+Emissions!$K$149 -> 371.7597282
A12: Total platform tonnage for disposal, tons | B12: =VLOOKUP(Plat,Platforms!$A$7:$CU$30,Platforms!$J$38,0)+VLOOKUP(Plat,Platforms!$A$7:$CU$30,Platforms!$M$38,0)+IF(Inputs!$C$107="full",VLOOKUP(Plat,Platforms!$A$7:$CU$30,Platforms!$K$38,0)+VLOOKUP(Plat,Platforms!$A$7:$CU$30,Platforms!$L$38,0),0)+IF(Inputs!$C$107="partial disposal onshore",VLOOKUP(Plat,Platforms!$A$7:$CU$30,Platforms!$U$38,0),0) -> 4896 | C12: Total supply boat trips, RT | H12: =(Emissions!$K$18+Emissions!$K$29+Emissions!$K$43+Emissions!$K$61+Emissions!$K$87+Emissions!$K$115+Emissions!$K$142)*Inputs!$C$19 -> 356.7597282
A13: Total shell mounds for disposal, yds3 | B13: =IF(Inputs!$C$122="Yes",VLOOKUP(Plat,Platforms!$A$7:$CU$30,Platforms!$CU$38,0)*Inputs!$C$13,0) -> 21723.24 | C13: Total crew boat trips, RT | H13: =(Emissions!$K$16+Emissions!$K$27+Emissions!$K$41+Emissions!$K$59+Emissions!$K$85+Emissions!$K$113+Emissions!$K$140)*Inputs!$C$20 -> 713.5194565
A14: Jacket Removal Option | B14: =Inputs!$C$107 -> Full | C14: Pipelines and Power Cables Option | G14: =Inputs!$C$110 -> Shallow
A15: Shell Mounds Removal | B15: =Inputs!$C$122 -> Yes | C15: Supply Boat Port Option | G15: =Inputs!$C$21 -> Hueneme
A16: ="Emission Factor Options: Crew Boats: "&INDIRECT(Plat&"!$F$221")&", Supply Boats: "&INDIRECT(Plat&"!$F$235")&", Tug Boats: "&INDIRECT(Plat&"!$F$237")&", Derrick Barge: "&INDIRECT(Plat&"!$F$223")&", Lay Barge: "&INDIRECT(Plat&"!$F$224")&", Lifting Barge: "&INDIRECT(Plat&"!$F$232") -> Emission Factor Options: Crew Boats: Default, Supply Boats: Default, Tug Boats: Default, Derrick Barge: Default, Lay Barge: Default, Lifting Barge: Default
A18: ="Decommissioning Emissions Summary for Platform "&Plat -> Decommissioning Emissions Summary for Platform A
A19: PHASE | B19: NOx | C19: ROC | D19: CO | E19: SOx | F19: PM | G19: PM10 | H19: PM2.5 | I19: GHG MT
A20: Total Tons
A21: Pre-Abandonment | B21: =EmissionsSummaryDetail!B24 -> 186.0099163 | C21: =EmissionsSummaryDetail!C24 -> 14.00974153 | D21: =EmissionsSummaryDetail!D24 -> 62.63573898 | E21: =EmissionsSummaryDetail!E24 -> 0.09168279169 | F21: =EmissionsSummaryDetail!F24 -> 16.43634027 | G21: =EmissionsSummaryDetail!G24 -> 16.23947169 | H21: =EmissionsSummaryDetail!H24 -> 16.23947169 | I21: =EmissionsSummaryDetail!I24 -> 9027.154025
A22: Topside Removal | B22: =EmissionsSummaryDetail!B25 -> 338.7593495 | C22: =EmissionsSummaryDetail!C25 -> 26.96440528 | D22: =EmissionsSummaryDetail!D25 -> 73.86547597 | E22: =EmissionsSummaryDetail!E25 -> 0.1214462327 | F22: =EmissionsSummaryDetail!F25 -> 24.16609499 | G22: =EmissionsSummaryDetail!G25 -> 24.15929495 | H22: =EmissionsSummaryDetail!H25 -> 24.15929495 | I22: =EmissionsSummaryDetail!I25 -> 11459.12563
A23: Jacket Removal | B23: =EmissionsSummaryDetail!B26 -> 193.9640978 | C23: =EmissionsSummaryDetail!C26 -> 15.3952698 | D23: =EmissionsSummaryDetail!D26 -> 42.94765441 | E23: =EmissionsSummaryDetail!E26 -> 0.07024329433 | F23: =EmissionsSummaryDetail!F26 -> 13.92328868 | G23: =EmissionsSummaryDetail!G26 -> 13.91157471 | H23: =EmissionsSummaryDetail!H26 -> 13.91157471 | I23: =EmissionsSummaryDetail!I26 -> 6640.985942
A24: Debris Removal | B24: =EmissionsSummaryDetail!B27 -> 1348.740322 | C24: =EmissionsSummaryDetail!C27 -> 107.3494616 | D24: =EmissionsSummaryDetail!D27 -> 292.2906731 | E24: =EmissionsSummaryDetail!E27 -> 0.4814226055 | F24: =EmissionsSummaryDetail!F27 -> 95.93254627 | G24: =EmissionsSummaryDetail!G27 -> 95.91691723 | H24: =EmissionsSummaryDetail!H27 -> 95.91691723 | I24: =EmissionsSummaryDetail!I27 -> 45399.38858
A25: Pipelines and Power Cable Removal | B25: =EmissionsSummaryDetail!B28 -> 358.2639888 | C25: =EmissionsSummaryDetail!C28 -> 28.20534827 | D25: =EmissionsSummaryDetail!D28 -> 81.37543204 | E25: =EmissionsSummaryDetail!E28 -> 0.1320377311 | F25: =EmissionsSummaryDetail!F28 -> 25.94471362 | G25: =EmissionsSummaryDetail!G28 -> 25.90853906 | H25: =EmissionsSummaryDetail!H28 -> 25.90853906 | I25: =EmissionsSummaryDetail!I28 -> 12521.39278
A26: Total | B26: =EmissionsSummaryDetail!B29 -> 2425.737674 | C26: =EmissionsSummaryDetail!C29 -> 191.9242265 | D26: =EmissionsSummaryDetail!D29 -> 553.1149745 | E26: =EmissionsSummaryDetail!E29 -> 0.8968326553 | F26: =EmissionsSummaryDetail!F29 -> 176.4029838 | G26: =EmissionsSummaryDetail!G29 -> 176.1357976 | H26: =EmissionsSummaryDetail!H29 -> 176.1357976 | I26: =EmissionsSummaryDetail!I29 -> 85048.04695
A27: Potential to Emit, Total Tons
A28: Pre-Abandonment | B28: =EmissionsSummaryDetail!B31 -> 389.0469417 | C28: =EmissionsSummaryDetail!C31 -> 28.87197623 | D28: =EmissionsSummaryDetail!D31 -> 119.0548018 | E28: =EmissionsSummaryDetail!E31 -> 0.1766337357 | F28: =EmissionsSummaryDetail!F31 -> 32.7561348 | G28: =EmissionsSummaryDetail!G31 -> 32.21640263 | H28: =EmissionsSummaryDetail!H31 -> 32.21640263 | I28: =EmissionsSummaryDetail!I31 -> 17417.40741
A29: Topside Removal | B29: =EmissionsSummaryDetail!B32 -> 401.5107939 | C29: =EmissionsSummaryDetail!C32 -> 31.94805285 | D29: =EmissionsSummaryDetail!D32 -> 87.87501658 | E29: =EmissionsSummaryDetail!E32 -> 0.1443225979 | F29: =EmissionsSummaryDetail!F32 -> 28.69523747 | G29: =EmissionsSummaryDetail!G32 -> 28.68316865 | H29: =EmissionsSummaryDetail!H32 -> 28.68316865 | I29: =EmissionsSummaryDetail!I32 -> 13623.83814
A30: Jacket Removal | B30: =EmissionsSummaryDetail!B33 -> 281.6216531 | C30: =EmissionsSummaryDetail!C33 -> 22.2269645 | D30: =EmissionsSummaryDetail!D33 -> 62.42088324 | E30: =EmissionsSummaryDetail!E33 -> 0.1018212706 | F30: =EmissionsSummaryDetail!F33 -> 20.21382773 | G30: =EmissionsSummaryDetail!G33 -> 20.17012791 | H30: =EmissionsSummaryDetail!H33 -> 20.17012791 | I30: =EmissionsSummaryDetail!I33 -> 9647.45535
A31: Debris Removal | B31: =EmissionsSummaryDetail!B34 -> 1399.159088 | C31: =EmissionsSummaryDetail!C34 -> 111.1262982 | D31: =EmissionsSummaryDetail!D34 -> 304.0280398 | E31: =EmissionsSummaryDetail!E34 -> 0.4999513883 | F31: =EmissionsSummaryDetail!F34 -> 99.61137746 | G31: =EmissionsSummaryDetail!G34 -> 99.54708223 | H31: =EmissionsSummaryDetail!H34 -> 99.54708223 | I31: =EmissionsSummaryDetail!I34 -> 47192.22341
A32: Pipelines and Power Cable Removal | B32: =EmissionsSummaryDetail!B35 -> 690.1650136 | C32: =EmissionsSummaryDetail!C35 -> 54.0411861 | D32: =EmissionsSummaryDetail!D35 -> 155.1496312 | E32: =EmissionsSummaryDetail!E35 -> 0.2516620533 | F32: =EmissionsSummaryDetail!F35 -> 49.75506308 | G32: =EmissionsSummaryDetail!G35 -> 49.59960977 | H32: =EmissionsSummaryDetail!H35 -> 49.59960977 | I32: =EmissionsSummaryDetail!I35 -> 23911.00448
A33: Total | B33: =EmissionsSummaryDetail!B36 -> 3161.50349 | C33: =EmissionsSummaryDetail!C36 -> 248.2144779 | D33: =EmissionsSummaryDetail!D36 -> 728.5283727 | E33: =EmissionsSummaryDetail!E36 -> 1.174391046 | F33: =EmissionsSummaryDetail!F36 -> 231.0316405 | G33: =EmissionsSummaryDetail!G36 -> 230.2163912 | H33: =EmissionsSummaryDetail!H36 -> 230.2163912 | I33: =EmissionsSummaryDetail!I36 -> 111791.9288

Sheet EmissionsSummaryDetail
A1: Air Emissions Associated with Decommissioning Operations for Pacific Outer Continental Shelf (OCS) Oil and Gas Platforms: Emissions Summary for All Areas
A2: ="Platform: "&Plat -> Platform: A
A4: ="Permitted and Actual Emissions for Platform "&Plat -> Permitted and Actual Emissions for Platform A
B5: Tons per Year
A6: PHASE | B6: NOx | C6: ROC | D6: CO | E6: SOx | F6: PM10 | G6: PM2.5 | H6: GHG MT
A7: ="Permitted: "&Plat&" permit number "&VLOOKUP(Plat,Districts!$A$8:$M$30,Districts!$F$43) -> Permitted: A permit number 9110-R4 | B7: =VLOOKUP(Plat,Districts!$A$8:$M$30,Districts!$G$43) -> 24.3 | C7: =VLOOKUP(Plat,Districts!$A$8:$M$30,Districts!$H$43) -> 45.9 | D7: =VLOOKUP(Plat,Districts!$A$8:$M$30,Districts!$I$43) -> 24.1 | E7: =VLOOKUP(Plat,Districts!$A$8:$M$30,Districts!$J$43) -> 0.72 | F7: =VLOOKUP(Plat,Districts!$A$8:$M$30,Districts!$K$43) -> 2.42 | G7: =VLOOKUP(Plat,Districts!$A$8:$M$30,Districts!$L$43) -> 2.37 | H7: =VLOOKUP(Plat,Districts!$A$8:$M$30,Districts!$M$43) -> 1895.4
A8: ="Actual 2014: "&Plat -> Actual 2014: A | B8: =VLOOKUP(Plat,Districts!$A$8:$S$30,Districts!N$43) -> 5.819969 | C8: =VLOOKUP(Plat,Districts!$A$8:$S$30,Districts!O$43) -> 30.180383 | D8: =VLOOKUP(Plat,Districts!$A$8:$S$30,Districts!P$43) -> 2.27731 | E8: =VLOOKUP(Plat,Districts!$A$8:$S$30,Districts!Q$43) -> 0.413372 | F8: =VLOOKUP(Plat,Districts!$A$8:$S$30,Districts!R$43) -> 0.605814 | G8: =VLOOKUP(Plat,Districts!$A$8:$S$30,Districts!S$43) -> 0.601953 | H8: -
A10: ="Decommissioning Characteristics for Platform "&Plat -> Decommissioning Characteristics for Platform A
A11: Number of cargo barges/trips | B11: =Emissions!$C$8+Emissions!$C$75+Emissions!$C$130+Emissions!$C$165 -> 10 | C11: Decommissioning total time, days | H11: =Emissions!$K$13+Emissions!$K$23+Emissions!$K$34+Emissions!$K$56+Emissions!$K$80+Emissions!$K$106+Emissions!$K$136+Emissions!$K$149 -> 371.7597282
A12: Total platform tonnage for disposal, tons | B12: =VLOOKUP(Plat,Platforms!$A$7:$CU$30,Platforms!$J$38,0)+VLOOKUP(Plat,Platforms!$A$7:$CU$30,Platforms!$M$38,0)+IF(Inputs!$C$107="full",VLOOKUP(Plat,Platforms!$A$7:$CU$30,Platforms!$K$38,0)+VLOOKUP(Plat,Platforms!$A$7:$CU$30,Platforms!$L$38,0),0)+IF(Inputs!$C$107="partial disposal onshore",VLOOKUP(Plat,Platforms!$A$7:$CU$30,Platforms!$U$38,0),0) -> 4896 | C12: Total supply boat trips, RT | H12: =(Emissions!$K$18+Emissions!$K$29+Emissions!$K$43+Emissions!$K$61+Emissions!$K$87+Emissions!$K$115+Emissions!$K$142)*Inputs!$C$19 -> 356.7597282
A13: Total shell mounds for disposal, yds3 | B13: =IF(Inputs!$C$122="Yes",VLOOKUP(Plat,Platforms!$A$7:$CU$30,Platforms!$CU$38,0)*Inputs!$C$13,0) -> 21723.24 | C13: Total crew boat trips, RT | H13: =(Emissions!$K$16+Emissions!$K$27+Emissions!$K$41+Emissions!$K$59+Emissions!$K$85+Emissions!$K$113+Emissions!$K$140)*Inputs!$C$20 -> 713.5194565
A15: ="Decommissioning Emissions Summary for Platform "&Plat -> Decommissioning Emissions Summary for Platform A
A16: PHASE | B16: NOx | C16: ROC | D16: CO | E16: SOx | F16: PM | G16: PM10 | H16: PM2.5 | I16: GHG MT
A17: Peak Day, pounds per day
A18: Pre-Abandonment | B18: =MAX(B73:B79) -> 1632.688294 | C18: =MAX(C73:C79) -> 123.9430552 | D18: 497.6208093 | E18: 0.7440603873 | F18: 136.6688287 | G18: 135.2271091 | H18: 135.2271091 | I18: ="-" -> -
A19: Topside Removal | B19: =MAX(B81:B83) -> 12620.472 | C19: 1005.56664 | D19: 2719.50816 | E19: 4.487566138 | F19: 895.6464 | G19: 895.6464 | H19: 895.6464 | I19: ="-" -> -
A20: Jacket Removal | B20: =MAX(B85:B87) -> 12620.472 | C20: 1005.56664 | D20: 2719.50816 | E20: 4.487566138 | F20: 895.6464 | G20: 895.6464 | H20: 895.6464 | I20: ="-" -> -
A21: Debris Removal | B21: =MAX(B89:B92) -> 16238.544 | C21: 1293.84528 | D21: 3499.14432 | E21: 5.774074074 | F21: 1152.4128 | G21: 1152.4128 | H21: 1152.4128 | I21: ="-" -> -
A22: Pipelines and Power Cable Removal | B22: =MAX(B94:B97) -> 10849.752 | C22: 864.48024 | D22: 2337.94656 | E22: 3.857936508 | F22: 769.9824 | G22: 769.9824 | H22: 769.9824 | I22: ="-" -> -
A23: Total Tons
A24: Pre-Abandonment | B24: =SUM(B163:B169) -> 186.0099163 | C24: 14.00974153 | D24: 62.63573898 | E24: 0.09168279169 | F24: 16.43634027 | G24: 16.23947169 | H24: 16.23947169 | I24: 9027.154025
A25: Topside Removal | B25: =SUM(B171:B173) -> 338.7593495 | C25: 26.96440528 | D25: 73.86547597 | E25: 0.1214462327 | F25: 24.16609499 | G25: 24.15929495 | H25: 24.15929495 | I25: 11459.12563
A26: Jacket Removal | B26: =SUM(B175:B177) -> 193.9640978 | C26: 15.3952698 | D26: 42.94765441 | E26: 0.07024329433 | F26: 13.92328868 | G26: 13.91157471 | H26: 13.91157471 | I26: 6640.985942
A27: Debris Removal | B27: =SUM(B179:B182) -> 1348.740322 | C27: 107.3494616 | D27: 292.2906731 | E27: 0.4814226055 | F27: 95.93254627 | G27: 95.91691723 | H27: 95.91691723 | I27: 45399.38858
A28: Pipelines and Power Cable Removal | B28: =SUM(B184:B187) -> 358.2639888 | C28: 28.20534827 | D28: 81.37543204 | E28: 0.1320377311 | F28: 25.94471362 | G28: 25.90853906 | H28: 25.90853906 | I28: 12521.39278
A29: Total | B29: =SUM(B24:B28) -> 2425.737674 | C29: 191.9242265 | D29: 553.1149745 | E29: 0.8968326553 | F29: 176.4029838 | G29: 176.1357976 | H29: 176.1357976 | I29: 85048.04695
A30: Potential to Emit, Total Tons
A31: Pre-Abandonment | B31: =SUM(B193:B199) -> 389.0469417 | C31: =SUM(C193:C199) -> 28.87197623 | D31: 119.0548018 | E31: 0.1766337357 | F31: 32.7561348 | G31: 32.21640263 | H31: 32.21640263 | I31: 17417.40741
A32: Topside Removal | B32: =SUM(B201:B203) -> 401.5107939 | C32: =SUM(C201:C203) -> 31.94805285 | D32: 87.87501658 | E32: 0.1443225979 | F32: 28.69523747 | G32: 28.68316865 | H32: 28.68316865 | I32: 13623.83814
A33: Jacket Removal | B33: =SUM(B205:B207) -> 281.6216531 | C33: =SUM(C205:C207) -> 22.2269645 | D33: 62.42088324 | E33: 0.1018212706 | F33: 20.21382773 | G33: 20.17012791 | H33: 20.17012791 | I33: 9647.45535
A34: Debris Removal | B34: =SUM(B209:B212) -> 1399.159088 | C34: =SUM(C209:C212) -> 111.1262982 | D34: 304.0280398 | E34: 0.4999513883 | F34: 99.61137746 | G34: 99.54708223 | H34: 99.54708223 | I34: 47192.22341
A35: Pipelines and Power Cable Removal | B35: =SUM(B214:B217) -> 690.1650136 | C35: =SUM(C214:C217) -> 54.0411861 | D35: 155.1496312 | E35: 0.2516620533 | F35: 49.75506308 | G35: 49.59960977 | H35: 49.59960977 | I35: 23911.00448
A36: Total | B36: =SUM(B31:B35) -> 3161.50349 | C36: =SUM(C31:C35) -> 248.2144779 | D36: 728.5283727 | E36: 1.174391046 | F36: 231.0316405 | G36: 230.2163912 | H36: 230.2163912 | I36: 111791.9288
A39: Decommissioning Emissions Estimate
A40: ="Platform "&Plat -> Platform A | B40: Pounds per Hour
A41: PHASE | B41: NOx | C41: ROC | D41: CO | E41: SOx | F41: PM | G41: PM10 | H41: PM2.5
A42: Pre-Abandonment
A43: Mobilization | B43: =Emissions!W10 -> 0 | C43: =Emissions!X10 -> 0 | D43: =Emissions!Y10 -> 0 | E43: =Emissions!Z10 -> 0 | F43: =Emissions!AA10 -> 0 | G43: =Emissions!AB10 -> 0 | H43: =Emissions!AC10 -> 0
A44: Well Plugging and Abandonment: Rigless | B44: =Emissions!W20+Emissions!W206 -> 89.29253483 | C44: =Emissions!X20+Emissions!X206 -> 8.005293407 | D44: =Emissions!Y20+Emissions!Y206 -> 32.79707554 | E44: =Emissions!Z20+Emissions!Z206 -> 0.04675981041 | F44: =Emissions!AA20+Emissions!AA206 -> 8.846231975 | G44: =Emissions!AB20+Emissions!AB206 -> 8.664807813 | H44: =Emissions!AC20+Emissions!AC206 -> 8.664807813
A45: Well Plugging and Abandonment: Rigs | B45: =Emissions!W31+Emissions!W218 -> 0 | C45: =Emissions!X31+Emissions!X218 -> 0 | D45: =Emissions!Y31+Emissions!Y218 -> 0 | E45: =Emissions!Z31+Emissions!Z218 -> 0 | F45: =Emissions!AA31+Emissions!AA218 -> 0 | G45: =Emissions!AB31+Emissions!AB218 -> 0 | H45: =Emissions!AC31+Emissions!AC218 -> 0
A46: Topside Platform Preparation | B46: =Emissions!W45+Emissions!W230 -> 121.0397282 | C46: =Emissions!X45+Emissions!X230 -> 10.16830722 | D46: =Emissions!Y45+Emissions!Y230 -> 45.51226997 | E46: =Emissions!Z45+Emissions!Z230 -> 0.06482363316 | F46: =Emissions!AA45+Emissions!AA230 -> 11.83662479 | G46: =Emissions!AB45+Emissions!AB230 -> 11.63058863 | H46: =Emissions!AC45+Emissions!AC230 -> 11.63058863
A47: Marine Growth Removal | B47: =Emissions!W53+Emissions!W242 -> 48.17719334 | C47: =Emissions!X53+Emissions!X242 -> 3.472113818 | D47: =Emissions!Y53+Emissions!Y242 -> 16.25559443 | E47: =Emissions!Z53+Emissions!Z242 -> 0.02390597443 | F47: =Emissions!AA53+Emissions!AA242 -> 4.156392813 | G47: =Emissions!AB53+Emissions!AB242 -> 4.13178082 | H47: =Emissions!AC53+Emissions!AC242 -> 4.13178082
A48: Conductor Removal | B48: =Emissions!W65+Emissions!W254 -> 86.87453483 | C48: =Emissions!X65+Emissions!X254 -> 7.812633407 | D48: =Emissions!Y65+Emissions!Y254 -> 32.27603554 | E48: =Emissions!Z65+Emissions!Z254 -> 0.04590002205 | F48: =Emissions!AA65+Emissions!AA254 -> 8.674631975 | G48: =Emissions!AB65+Emissions!AB254 -> 8.493207813 | H48: =Emissions!AC65+Emissions!AC254 -> 8.493207813
A49: Demobilization | B49: =Emissions!W70 -> 0 | C49: =Emissions!X70 -> 0 | D49: =Emissions!Y70 -> 0 | E49: =Emissions!Z70 -> 0 | F49: =Emissions!AA70 -> 0 | G49: =Emissions!AB70 -> 0 | H49: =Emissions!AC70 -> 0
A50: Topside Removal
A51: Mobilization | B51: =Emissions!W77 -> 525.853 | C51: =Emissions!X77 -> 41.89861 | D51: =Emissions!Y77 -> 113.31284 | E51: =Emissions!Z77 -> 0.1869819224 | F51: =Emissions!AA77 -> 37.3186 | G51: =Emissions!AB77 -> 37.3186 | H51: =Emissions!AC77 -> 37.3186
A52: Cutting and Removal of Equipment/Modules | B52: =Emissions!W91+Emissions!W267 -> 166.8405848 | C52: =Emissions!X91+Emissions!X267 -> 14.18412191 | D52: =Emissions!Y91+Emissions!Y267 -> 49.50742954 | E52: =Emissions!Z91+Emissions!Z267 -> 0.07433421517 | F52: =Emissions!AA91+Emissions!AA267 -> 14.34964198 | G52: =Emissions!AB91+Emissions!AB267 -> 14.16821781 | H52: =Emissions!AC91+Emissions!AC267 -> 14.16821781
A53: Demobilization | B53: =Emissions!W96 -> 271.653 | C53: =Emissions!X96 -> 21.64461 | D53: =Emissions!Y96 -> 58.53684 | E53: =Emissions!Z96 -> 0.09659391534 | F53: =Emissions!AA96 -> 19.2786 | G53: =Emissions!AB96 -> 19.2786 | H53: =Emissions!AC96 -> 19.2786
A54: Jacket Removal
A55: Mobilization | B55: =Emissions!W103 -> 271.653 | C55: =Emissions!X103 -> 21.64461 | D55: =Emissions!Y103 -> 58.53684 | E55: =Emissions!Z103 -> 0.09659391534 | F55: =Emissions!AA103 -> 19.2786 | G55: =Emissions!AB103 -> 19.2786 | H55: =Emissions!AC103 -> 19.2786
A56: Removal of Jacket Sections | B56: =Emissions!W119+Emissions!W280 -> 176.7864792 | C56: =Emissions!X119+Emissions!X280 -> 14.56207413 | D56: =Emissions!Y119+Emissions!Y280 -> 57.35490797 | E56: =Emissions!Z119+Emissions!Z280 -> 0.08436563051 | F56: =Emissions!AA119+Emissions!AA280 -> 15.73689479 | G56: =Emissions!AB119+Emissions!AB280 -> 15.53085863 | H56: =Emissions!AC119+Emissions!AC280 -> 15.53085863
A57: Demobilization | B57: =Emissions!W126 -> 525.853 | C57: =Emissions!X126 -> 41.89861 | D57: =Emissions!Y126 -> 113.31284 | E57: =Emissions!Z126 -> 0.1869819224 | F57: =Emissions!AA126 -> 37.3186 | G57: =Emissions!AB126 -> 37.3186 | H57: =Emissions!AC126 -> 37.3186
A58: Debris Removal
A59: Mobilization | B59: =Emissions!W133 -> 404.953 | C59: =Emissions!X133 -> 32.26561 | D59: =Emissions!Y133 -> 87.26084 | E59: =Emissions!Z133 -> 0.1439925044 | F59: =Emissions!AA133 -> 28.7386 | G59: =Emissions!AB133 -> 28.7386 | H59: =Emissions!AC133 -> 28.7386
A60: Removal of Shell Mounds | B60: =Emissions!W146+Emissions!W293 -> 115.9412292 | C60: =Emissions!X146+Emissions!X293 -> 9.714081635 | D60: =Emissions!Y146+Emissions!Y293 -> 44.24373797 | E60: =Emissions!Z146+Emissions!Z293 -> 0.06273037919 | F60: =Emissions!AA146+Emissions!AA293 -> 11.41884479 | G60: =Emissions!AB146+Emissions!AB293 -> 11.21280863 | H60: =Emissions!AC146+Emissions!AC293 -> 11.21280863
A61: Surveys of Platform and Pipelines Areas | B61: =Emissions!W154+Emissions!W305 -> 57.73491071 | C61: =Emissions!X154+Emissions!X305 -> 3.737077822 | D61: =Emissions!Y154+Emissions!Y305 -> 25.22289462 | E61: =Emissions!Z154+Emissions!Z305 -> 0.03513282628 | F61: =Emissions!AA154+Emissions!AA305 -> 5.698016975 | G61: =Emissions!AB154+Emissions!AB305 -> 5.629092813 | H61: =Emissions!AC154+Emissions!AC305 -> 5.629092813
A62: Demobilization | B62: =Emissions!W160 -> 404.953 | C62: =Emissions!X160 -> 32.26561 | D62: =Emissions!Y160 -> 87.26084 | E62: =Emissions!Z160 -> 0.1439925044 | F62: =Emissions!AA160 -> 28.7386 | G62: =Emissions!AB160 -> 28.7386 | H62: =Emissions!AC160 -> 28.7386
A63: Pipelines and Power Cable Removal
A64: Mobilization | B64: =Emissions!W167 -> 452.073 | C64: =Emissions!X167 -> 36.02001 | D64: =Emissions!Y167 -> 97.41444 | E64: =Emissions!Z167 -> 0.1607473545 | F64: =Emissions!AA167 -> 32.0826 | G64: =Emissions!AB167 -> 32.0826 | H64: =Emissions!AC167 -> 32.0826
A65: Pipeline Removal | B65: =Emissions!W179+Emissions!W318 -> 135.9572107 | C65: =Emissions!X179+Emissions!X318 -> 9.969628822 | D65: =Emissions!Y179+Emissions!Y318 -> 42.07853862 | E65: =Emissions!Z179+Emissions!Z318 -> 0.06294697972 | F65: =Emissions!AA179+Emissions!AA318 -> 11.24927698 | G65: =Emissions!AB179+Emissions!AB318 -> 11.18035281 | H65: =Emissions!AC179+Emissions!AC318 -> 11.18035281
A66: Power Cable Removal | B66: =Emissions!W185+Emissions!W330 -> 73.67543474 | C66: =Emissions!X185+Emissions!X330 -> 4.877128007 | D66: =Emissions!Y185+Emissions!Y330 -> 29.69140039 | E66: =Emissions!Z185+Emissions!Z330 -> 0.04185405644 | F66: =Emissions!AA185+Emissions!AA330 -> 6.955248325 | G66: =Emissions!AB185+Emissions!AB330 -> 6.866623986 | H66: =Emissions!AC185+Emissions!AC330 -> 6.866623986
A67: Demobilization | B67: =Emissions!W191 -> 452.073 | C67: =Emissions!X191 -> 36.02001 | D67: =Emissions!Y191 -> 97.41444 | E67: =Emissions!Z191 -> 0.1607473545 | F67: =Emissions!AA191 -> 32.0826 | G67: =Emissions!AB191 -> 32.0826 | H67: =Emissions!AC191 -> 32.0826
A70: ="Platform "&Plat -> Platform A | B70: Pounds per Day
A71: PHASE | B71: NOx | C71: ROC | D71: CO | E71: SOx | F71: PM | G71: PM10 | H71: PM2.5
A72: Pre-Abandonment
A73: Mobilization | B73: =Emissions!AD10 -> 0 | C73: =Emissions!AE10 -> 0 | D73: =Emissions!AF10 -> 0 | E73: =Emissions!AG10 -> 0 | F73: =Emissions!AH10 -> 0 | G73: =Emissions!AI10 -> 0 | H73: =Emissions!AJ10 -> 0
A74: Well Plugging and Abandonment: Rigless | B74: =Emissions!AD20+Emissions!AD206 -> 1293.416486 | C74: =Emissions!AE20+Emissions!AE206 -> 98.72561245 | D74: =Emissions!AF20+Emissions!AF206 -> 417.6383925 | E74: =Emissions!AG20+Emissions!AG206 -> 0.6184316211 | F74: =Emissions!AH20+Emissions!AH206 -> 111.8082704 | G74: =Emissions!AI20+Emissions!AI206 -> 110.7202648 | H74: =Emissions!AJ20+Emissions!AJ206 -> 110.7202648
A75: Well Plugging and Abandonment: Rigs | B75: =Emissions!AD31+Emissions!AD218 -> 0 | C75: =Emissions!AE31+Emissions!AE218 -> 0 | D75: =Emissions!AF31+Emissions!AF218 -> 0 | E75: =Emissions!AG31+Emissions!AG218 -> 0 | F75: =Emissions!AH31+Emissions!AH218 -> 0 | G75: =Emissions!AI31+Emissions!AI218 -> 0 | H75: =Emissions!AJ31+Emissions!AJ218 -> 0
A76: Topside Platform Preparation | B76: =Emissions!AD45+Emissions!AD230 -> 1632.688294 | C76: =Emissions!AE45+Emissions!AE230 -> 123.9430552 | D76: =Emissions!AF45+Emissions!AF230 -> 497.6208093 | E76: =Emissions!AG45+Emissions!AG230 -> 0.7440603873 | F76: =Emissions!AH45+Emissions!AH230 -> 136.6688287 | G76: =Emissions!AI45+Emissions!AI230 -> 135.2271091 | H76: =Emissions!AJ45+Emissions!AJ230 -> 135.2271091
A77: Marine Growth Removal | B77: =Emissions!AD53+Emissions!AD242 -> 733.5918089 | C77: =Emissions!AE53+Emissions!AE242 -> 56.63584279 | D77: =Emissions!AF53+Emissions!AF242 -> 164.9520168 | E77: =Emissions!AG53+Emissions!AG242 -> 0.2658404064 | F77: =Emissions!AH53+Emissions!AH242 -> 52.84455828 | G77: =Emissions!AI53+Emissions!AI242 -> 52.49084429 | H77: =Emissions!AJ53+Emissions!AJ242 -> 52.49084429
A78: Conductor Removal | B78: =Emissions!AD65+Emissions!AD254 -> 1235.384486 | C78: =Emissions!AE65+Emissions!AE254 -> 94.10177245 | D78: =Emissions!AF65+Emissions!AF254 -> 405.1334325 | E78: =Emissions!AG65+Emissions!AG254 -> 0.5977967005 | F78: =Emissions!AH65+Emissions!AH254 -> 107.6898704 | G78: =Emissions!AI65+Emissions!AI254 -> 106.6018648 | H78: =Emissions!AJ65+Emissions!AJ254 -> 106.6018648
A79: Demobilization | B79: =Emissions!AD70 -> 0 | C79: =Emissions!AE70 -> 0 | D79: =Emissions!AF70 -> 0 | E79: =Emissions!AG70 -> 0 | F79: =Emissions!AH70 -> 0 | G79: =Emissions!AI70 -> 0 | H79: =Emissions!AJ70 -> 0
A80: Topside Removal
A81: Mobilization | B81: =Emissions!AD77 -> 12620.472 | C81: =Emissions!AE77 -> 1005.56664 | D81: =Emissions!AF77 -> 2719.50816 | E81: =Emissions!AG77 -> 4.487566138 | F81: =Emissions!AH77 -> 895.6464 | G81: =Emissions!AI77 -> 895.6464 | H81: =Emissions!AJ77 -> 895.6464
A82: Cutting and Removal of Equipment/Modules | B82: =Emissions!AD91+Emissions!AD267 -> 3154.569686 | C82: =Emissions!AE91+Emissions!AE267 -> 247.0174965 | D82: =Emissions!AF91+Emissions!AF267 -> 818.6868885 | E82: =Emissions!AG91+Emissions!AG267 -> 1.280217335 | F82: =Emissions!AH91+Emissions!AH267 -> 243.8901104 | G82: =Emissions!AI91+Emissions!AI267 -> 242.8021048 | H82: =Emissions!AJ91+Emissions!AJ267 -> 242.8021048
A83: Demobilization | B83: =Emissions!AD96 -> 6519.672 | C83: =Emissions!AE96 -> 519.47064 | D83: =Emissions!AF96 -> 1404.88416 | E83: =Emissions!AG96 -> 2.318253968 | F83: =Emissions!AH96 -> 462.6864 | G83: =Emissions!AI96 -> 462.6864 | H83: =Emissions!AJ96 -> 462.6864
A84: Jacket Removal
A85: Mobilization | B85: =Emissions!AD103 -> 6519.672 | C85: =Emissions!AE103 -> 519.47064 | D85: =Emissions!AF103 -> 1404.88416 | E85: =Emissions!AG103 -> 2.318253968 | F85: =Emissions!AH103 -> 462.6864 | G85: =Emissions!AI103 -> 462.6864 | H85: =Emissions!AJ103 -> 462.6864
A86: Removal of Jacket Sections | B86: =Emissions!AD119+Emissions!AD280 -> 2970.61032 | C86: =Emissions!AE119+Emissions!AE280 -> 229.3934611 | D86: =Emissions!AF119+Emissions!AF280 -> 781.8441213 | E86: =Emissions!AG119+Emissions!AG280 -> 1.213068324 | F86: =Emissions!AH119+Emissions!AH280 -> 230.2753087 | G86: =Emissions!AI119+Emissions!AI280 -> 228.8335891 | H86: =Emissions!AJ119+Emissions!AJ280 -> 228.8335891
A87: Demobilization | B87: =Emissions!AD126 -> 12620.472 | C87: =Emissions!AE126 -> 1005.56664 | D87: =Emissions!AF126 -> 2719.50816 | E87: =Emissions!AG126 -> 4.487566138 | F87: =Emissions!AH126 -> 895.6464 | G87: =Emissions!AI126 -> 895.6464 | H87: =Emissions!AJ126 -> 895.6464
A88: Debris Removal
A89: Mobilization | B89: =Emissions!AD133 -> 16238.544 | C89: =Emissions!AE133 -> 1293.84528 | D89: =Emissions!AF133 -> 3499.14432 | E89: =Emissions!AG133 -> 5.774074074 | F89: =Emissions!AH133 -> 1152.4128 | G89: =Emissions!AI133 -> 1152.4128 | H89: =Emissions!AJ133 -> 1152.4128
A90: Removal of Shell Mounds | B90: =Emissions!AD146+Emissions!AD293 -> 1510.32432 | C90: =Emissions!AE146+Emissions!AE293 -> 113.0416411 | D90: =Emissions!AF146+Emissions!AF293 -> 467.1760413 | E90: =Emissions!AG146+Emissions!AG293 -> 0.693822292 | F90: =Emissions!AH146+Emissions!AH293 -> 126.6421087 | G90: =Emissions!AI146+Emissions!AI293 -> 125.2003891 | H90: =Emissions!AJ146+Emissions!AJ293 -> 125.2003891
A91: Surveys of Platform and Pipelines Areas | B91: =Emissions!AD154+Emissions!AD305 -> 737.2322433 | C91: =Emissions!AE154+Emissions!AE305 -> 48.31868552 | D91: =Emissions!AF154+Emissions!AF305 -> 285.4710869 | E91: =Emissions!AG154+Emissions!AG305 -> 0.4028260031 | F91: =Emissions!AH154+Emissions!AH305 -> 68.06737709 | G91: =Emissions!AI154+Emissions!AI305 -> 66.9455855 | H91: =Emissions!AJ154+Emissions!AJ305 -> 66.9455855
A92: Demobilization | B92: =Emissions!AD160 -> 16238.544 | C92: =Emissions!AE160 -> 1293.84528 | D92: =Emissions!AF160 -> 3499.14432 | E92: =Emissions!AG160 -> 5.774074074 | F92: =Emissions!AH160 -> 1152.4128 | G92: =Emissions!AI160 -> 1152.4128 | H92: =Emissions!AJ160 -> 1152.4128
A93: Pipelines and Power Cable Removal
A94: Mobilization | B94: =Emissions!AD167 -> 10849.752 | C94: =Emissions!AE167 -> 864.48024 | D94: =Emissions!AF167 -> 2337.94656 | E94: =Emissions!AG167 -> 3.857936508 | F94: =Emissions!AH167 -> 769.9824 | G94: =Emissions!AI167 -> 769.9824 | H94: =Emissions!AJ167 -> 769.9824
A95: Pipeline Removal | B95: =Emissions!AD179+Emissions!AD318 -> 2614.567443 | C95: =Emissions!AE179+Emissions!AE318 -> 197.8999095 | D95: =Emissions!AF179+Emissions!AF318 -> 690.0065429 | E95: =Emissions!AG179+Emissions!AG318 -> 1.070365686 | F95: =Emissions!AH179+Emissions!AH318 -> 201.2976171 | G95: =Emissions!AI179+Emissions!AI318 -> 200.1758255 | H95: =Emissions!AJ179+Emissions!AJ318 -> 200.1758255
A96: Power Cable Removal | B96: =Emissions!AD185+Emissions!AD330 -> 1316.720869 | C96: =Emissions!AE185+Emissions!AE330 -> 87.69848546 | D96: =Emissions!AF185+Emissions!AF330 -> 523.2013401 | E96: =Emissions!AG185+Emissions!AG330 -> 0.739579659 | F96: =Emissions!AH185+Emissions!AH330 -> 123.3736376 | G96: =Emissions!AI185+Emissions!AI330 -> 121.8374824 | H96: =Emissions!AJ185+Emissions!AJ330 -> 121.8374824
A97: Demobilization | B97: =Emissions!AD191 -> 10849.752 | C97: =Emissions!AE191 -> 864.48024 | D97: =Emissions!AF191 -> 2337.94656 | E97: =Emissions!AG191 -> 3.857936508 | F97: =Emissions!AH191 -> 769.9824 | G97: =Emissions!AI191 -> 769.9824 | H97: =Emissions!AJ191 -> 769.9824
A99: Decommissioning Emissions Estimate
A100: ="Platform "&Plat -> Platform A | B100: Tons per Quarter
A101: PHASE | B101: NOx | C101: ROC | D101: CO | E101: SOx | F101: PM | G101: PM10 | H101: PM2.5
A102: Pre-Abandonment
A103: Mobilization | B103: =Emissions!AK10 -> 0 | C103: =Emissions!AL10 -> 0 | D103: =Emissions!AM10 -> 0 | E103: =Emissions!AN10 -> 0 | F103: =Emissions!AO10 -> 0 | G103: =Emissions!AP10 -> 0 | H103: =Emissions!AQ10 -> 0
A104: Well Plugging and Abandonment: Rigless | B104: =Emissions!AK20+Emissions!AK206 -> 34.53281009 | C104: =Emissions!AL20+Emissions!AL206 -> 2.554448567 | D104: =Emissions!AM20+Emissions!AM206 -> 13.76248766 | E104: =Emissions!AN20+Emissions!AN206 -> 0.01949181336 | F104: =Emissions!AO20+Emissions!AO206 -> 3.361508302 | G104: =Emissions!AP20+Emissions!AP206 -> 3.312004048 | H104: =Emissions!AQ20+Emissions!AQ206 -> 3.312004048
A105: Well Plugging and Abandonment: Rigs | B105: =Emissions!AK31+Emissions!AK218 -> 0 | C105: =Emissions!AL31+Emissions!AL218 -> 0 | D105: =Emissions!AM31+Emissions!AM218 -> 0 | E105: =Emissions!AN31+Emissions!AN218 -> 0 | F105: =Emissions!AO31+Emissions!AO218 -> 0 | G105: =Emissions!AP31+Emissions!AP218 -> 0 | H105: =Emissions!AQ31+Emissions!AQ218 -> 0
A106: Topside Platform Preparation | B106: =Emissions!AK45+Emissions!AK230 -> 73.47097325 | C106: =Emissions!AL45+Emissions!AL230 -> 5.577437486 | D106: =Emissions!AM45+Emissions!AM230 -> 22.39293642 | E106: =Emissions!AN45+Emissions!AN230 -> 0.03348271743 | F106: =Emissions!AO45+Emissions!AO230 -> 6.15009729 | G106: =Emissions!AP45+Emissions!AP230 -> 6.085219909 | H106: =Emissions!AQ45+Emissions!AQ230 -> 6.085219909
A107: Marine Growth Removal | B107: =Emissions!AK53+Emissions!AK242 -> 16.5058157 | C107: =Emissions!AL53+Emissions!AL242 -> 1.274306463 | D107: =Emissions!AM53+Emissions!AM242 -> 3.711420379 | E107: =Emissions!AN53+Emissions!AN242 -> 0.005981409144 | F107: =Emissions!AO53+Emissions!AO242 -> 1.189002561 | G107: =Emissions!AP53+Emissions!AP242 -> 1.181043997 | H107: =Emissions!AQ53+Emissions!AQ242 -> 1.181043997
A108: Conductor Removal | B108: =Emissions!AK65+Emissions!AK254 -> 32.73768887 | C108: =Emissions!AL65+Emissions!AL254 -> 2.49369697 | D108: =Emissions!AM65+Emissions!AM254 -> 10.73603596 | E108: =Emissions!AN65+Emissions!AN254 -> 0.01584161256 | F108: =Emissions!AO65+Emissions!AO254 -> 2.853781565 | G108: =Emissions!AP65+Emissions!AP254 -> 2.824949417 | H108: =Emissions!AQ65+Emissions!AQ254 -> 2.824949417
A109: Demobilization | B109: =Emissions!AK70 -> 0 | C109: =Emissions!AL70 -> 0 | D109: =Emissions!AM70 -> 0 | E109: =Emissions!AN70 -> 0 | F109: =Emissions!AO70 -> 0 | G109: =Emissions!AP70 -> 0 | H109: =Emissions!AQ70 -> 0
A110: Topside Removal
A111: Mobilization | B111: =Emissions!AK77 -> 315.5118 | C111: =Emissions!AL77 -> 25.139166 | D111: =Emissions!AM77 -> 67.987704 | E111: =Emissions!AN77 -> 0.1121891534 | F111: =Emissions!AO77 -> 22.39116 | G111: =Emissions!AP77 -> 22.39116 | H111: =Emissions!AQ77 -> 22.39116
A112: Cutting and Removal of Equipment/Modules | B112: =Emissions!AK91+Emissions!AK267 -> 19.71606053 | C112: =Emissions!AL91+Emissions!AL267 -> 1.543859353 | D112: =Emissions!AM91+Emissions!AM267 -> 5.116793053 | E112: =Emissions!AN91+Emissions!AN267 -> 0.008001358346 | F112: =Emissions!AO91+Emissions!AO267 -> 1.52431319 | G112: =Emissions!AP91+Emissions!AP267 -> 1.517513155 | H112: =Emissions!AQ91+Emissions!AQ267 -> 1.517513155
A113: Demobilization | B113: =Emissions!AK96 -> 3.531489 | C113: =Emissions!AL96 -> 0.28137993 | D113: =Emissions!AM96 -> 0.76097892 | E113: =Emissions!AN96 -> 0.001255720899 | F113: =Emissions!AO96 -> 0.2506218 | G113: =Emissions!AP96 -> 0.2506218 | H113: =Emissions!AQ96 -> 0.2506218
A114: Jacket Removal
A115: Mobilization | B115: =Emissions!AK103 -> 162.9918 | C115: =Emissions!AL103 -> 12.986766 | D115: =Emissions!AM103 -> 35.122104 | E115: =Emissions!AN103 -> 0.05795634921 | F115: =Emissions!AO103 -> 11.56716 | G115: =Emissions!AP103 -> 11.56716 | H115: =Emissions!AQ103 -> 11.56716
A116: Removal of Jacket Sections | B116: =Emissions!AK119+Emissions!AK280 -> 24.13620885 | C116: =Emissions!AL119+Emissions!AL280 -> 1.863821871 | D116: =Emissions!AM119+Emissions!AM280 -> 6.352483486 | E116: =Emissions!AN119+Emissions!AN280 -> 0.009856180131 | F116: =Emissions!AO119+Emissions!AO280 -> 1.870986883 | G116: =Emissions!AP119+Emissions!AP280 -> 1.859272911 | H116: =Emissions!AQ119+Emissions!AQ280 -> 1.859272911
A117: Demobilization | B117: =Emissions!AK126 -> 6.836089 | C117: =Emissions!AL126 -> 0.54468193 | D117: =Emissions!AM126 -> 1.47306692 | E117: =Emissions!AN126 -> 0.002430764991 | F117: =Emissions!AO126 -> 0.4851418 | G117: =Emissions!AP126 -> 0.4851418 | H117: =Emissions!AQ126 -> 0.4851418
A118: Debris Removal
A119: Mobilization | B119: =Emissions!AK133 -> 1305.6673 | C119: =Emissions!AL133 -> 104.032201 | D119: =Emissions!AM133 -> 281.350244 | E119: =Emissions!AN133 -> 0.4642669753 | F119: =Emissions!AO133 -> 92.66026 | G119: =Emissions!AP133 -> 92.66026 | H119: =Emissions!AQ133 -> 92.66026
A120: Removal of Shell Mounds | B120: =Emissions!AK146+Emissions!AK293 -> 7.558967995 | C120: =Emissions!AL146+Emissions!AL293 -> 0.5657580532 | D120: =Emissions!AM146+Emissions!AM293 -> 2.338152606 | E120: =Emissions!AN146+Emissions!AN293 -> 0.003472486293 | F120: =Emissions!AO146+Emissions!AO293 -> 0.6338265454 | G120: =Emissions!AP146+Emissions!AP293 -> 0.6266109348 | H120: =Emissions!AQ146+Emissions!AQ293 -> 0.6266109348
A121: Surveys of Platform and Pipelines Areas | B121: =Emissions!AK154+Emissions!AK305 -> 5.529241825 | C121: =Emissions!AL154+Emissions!AL305 -> 0.3623901414 | D121: =Emissions!AM154+Emissions!AM305 -> 2.141033151 | E121: =Emissions!AN154+Emissions!AN305 -> 0.003021195023 | F121: =Emissions!AO154+Emissions!AO305 -> 0.5105053282 | G121: =Emissions!AP154+Emissions!AP305 -> 0.5020918913 | H121: =Emissions!AQ154+Emissions!AQ305 -> 0.5020918913
A122: Demobilization | B122: =Emissions!AK160 -> 29.984812 | C122: =Emissions!AL160 -> 2.38911244 | D122: =Emissions!AM160 -> 6.46124336 | E122: =Emissions!AN160 -> 0.01066194885 | F122: =Emissions!AO160 -> 2.1279544 | G122: =Emissions!AP160 -> 2.1279544 | H122: =Emissions!AQ160 -> 2.1279544
A123: Pipelines and Power Cable Removal
A124: Mobilization | B124: =Emissions!AK167 -> 271.2438 | C124: =Emissions!AL167 -> 21.612006 | D124: =Emissions!AM167 -> 58.448664 | E124: =Emissions!AN167 -> 0.0964484127 | F124: =Emissions!AO167 -> 19.24956 | G124: =Emissions!AP167 -> 19.24956 | H124: =Emissions!AQ167 -> 19.24956
A125: Pipeline Removal | B125: =Emissions!AK179+Emissions!AK318 -> 79.29983056 | C125: =Emissions!AL179+Emissions!AL318 -> 6.002304256 | D125: =Emissions!AM179+Emissions!AM318 -> 20.92789844 | E125: =Emissions!AN179+Emissions!AN318 -> 0.03246419125 | F125: =Emissions!AO179+Emissions!AO318 -> 6.105356726 | G125: =Emissions!AP179+Emissions!AP318 -> 6.071332787 | H125: =Emissions!AQ179+Emissions!AQ318 -> 6.071332787
A126: Power Cable Removal | B126: =Emissions!AK185+Emissions!AK330 -> 1.843409216 | C126: =Emissions!AL185+Emissions!AL330 -> 0.1227778796 | D126: =Emissions!AM185+Emissions!AM330 -> 0.7324818761 | E126: =Emissions!AN185+Emissions!AN330 -> 0.001035411523 | F126: =Emissions!AO185+Emissions!AO330 -> 0.1727230927 | G126: =Emissions!AP185+Emissions!AP330 -> 0.1705724754 | H126: =Emissions!AQ185+Emissions!AQ330 -> 0.1705724754
A127: Demobilization | B127: =Emissions!AK191 -> 5.876949 | C127: =Emissions!AL191 -> 0.46826013 | D127: =Emissions!AM191 -> 1.26638772 | E127: =Emissions!AN191 -> 0.002089715608 | F127: =Emissions!AO191 -> 0.4170738 | G127: =Emissions!AP191 -> 0.4170738 | H127: =Emissions!AQ191 -> 0.4170738
A130: ="Platform "&Plat -> Platform A | B130: Tons per Year
A131: PHASE | B131: NOx | C131: ROC | D131: CO | E131: SOx | F131: PM | G131: PM10 | H131: PM2.5 | I131: GHG MT
A132: Pre-Abandonment
A133: Mobilization | B133: =Emissions!AR10 -> 0 | C133: =Emissions!AS10 -> 0 | D133: =Emissions!AT10 -> 0 | E133: =Emissions!AU10 -> 0 | F133: =Emissions!AV10 -> 0 | G133: =Emissions!AW10 -> 0 | H133: =Emissions!AX10 -> 0 | I133: =Emissions!AY10 -> 0
A134: Well Plugging and Abandonment: Rigless | B134: =Emissions!AR20+Emissions!AR206 -> 63.29543849 | C134: =Emissions!AS20+Emissions!AS206 -> 4.66430061 | D134: =Emissions!AT20+Emissions!AT206 -> 25.79534622 | E134: =Emissions!AU20+Emissions!AU206 -> 0.03637705256 | F134: =Emissions!AV20+Emissions!AV206 -> 6.243458858 | G134: =Emissions!AW20+Emissions!AW206 -> 6.148258369 | H134: =Emissions!AX20+Emissions!AX206 -> 6.148258369 | I134: =Emissions!AY20+Emissions!AY206 -> 3628.241323
A135: Well Plugging and Abandonment: Rigs | B135: =Emissions!AR31+Emissions!AR218 -> 0 | C135: =Emissions!AS31+Emissions!AS218 -> 0 | D135: =Emissions!AT31+Emissions!AT218 -> 0 | E135: =Emissions!AU31+Emissions!AU218 -> 0 | F135: =Emissions!AV31+Emissions!AV218 -> 0 | G135: =Emissions!AW31+Emissions!AW218 -> 0 | H135: =Emissions!AX31+Emissions!AX218 -> 0 | I135: =Emissions!AY31+Emissions!AY218 -> 0
A136: Topside Platform Preparation | B136: =Emissions!AR45+Emissions!AR230 -> 73.47097325 | C136: =Emissions!AS45+Emissions!AS230 -> 5.577437486 | D136: =Emissions!AT45+Emissions!AT230 -> 22.39293642 | E136: =Emissions!AU45+Emissions!AU230 -> 0.03348271743 | F136: =Emissions!AV45+Emissions!AV230 -> 6.15009729 | G136: =Emissions!AW45+Emissions!AW230 -> 6.085219909 | H136: =Emissions!AX45+Emissions!AX230 -> 6.085219909 | I136: =Emissions!AY45+Emissions!AY230 -> 3273.918826
A137: Marine Growth Removal | B137: =Emissions!AR53+Emissions!AR242 -> 16.5058157 | C137: =Emissions!AS53+Emissions!AS242 -> 1.274306463 | D137: =Emissions!AT53+Emissions!AT242 -> 3.711420379 | E137: =Emissions!AU53+Emissions!AU242 -> 0.005981409144 | F137: =Emissions!AV53+Emissions!AV242 -> 1.189002561 | G137: =Emissions!AW53+Emissions!AW242 -> 1.181043997 | H137: =Emissions!AX53+Emissions!AX242 -> 1.181043997 | I137: =Emissions!AY53+Emissions!AY242 -> 571.4987876
A138: Conductor Removal | B138: =Emissions!AR65+Emissions!AR254 -> 32.73768887 | C138: =Emissions!AS65+Emissions!AS254 -> 2.49369697 | D138: =Emissions!AT65+Emissions!AT254 -> 10.73603596 | E138: =Emissions!AU65+Emissions!AU254 -> 0.01584161256 | F138: =Emissions!AV65+Emissions!AV254 -> 2.853781565 | G138: =Emissions!AW65+Emissions!AW254 -> 2.824949417 | H138: =Emissions!AX65+Emissions!AX254 -> 2.824949417 | I138: =Emissions!AY65+Emissions!AY254 -> 1553.495088
A139: Demobilization | B139: =Emissions!AR70 -> 0 | C139: =Emissions!AS70 -> 0 | D139: =Emissions!AT70 -> 0 | E139: =Emissions!AU70 -> 0 | F139: =Emissions!AV70 -> 0 | G139: =Emissions!AW70 -> 0 | H139: =Emissions!AX70 -> 0 | I139: =Emissions!AY70 -> 0
A140: Topside Removal
A141: Mobilization | B141: =Emissions!AR77 -> 315.5118 | C141: =Emissions!AS77 -> 25.139166 | D141: =Emissions!AT77 -> 67.987704 | E141: =Emissions!AU77 -> 0.1121891534 | F141: =Emissions!AV77 -> 22.39116 | G141: =Emissions!AW77 -> 22.39116 | H141: =Emissions!AX77 -> 22.39116 | I141: =Emissions!AY77 -> 10572.46237
A142: Cutting and Removal of Equipment/Modules | B142: =Emissions!AR91+Emissions!AR267 -> 19.71606053 | C142: =Emissions!AS91+Emissions!AS267 -> 1.543859353 | D142: =Emissions!AT91+Emissions!AT267 -> 5.116793053 | E142: =Emissions!AU91+Emissions!AU267 -> 0.008001358346 | F142: =Emissions!AV91+Emissions!AV267 -> 1.52431319 | G142: =Emissions!AW91+Emissions!AW267 -> 1.517513155 | H142: =Emissions!AX91+Emissions!AX267 -> 1.517513155 | I142: =Emissions!AY91+Emissions!AY267 -> 768.3268496
A143: Demobilization | B143: =Emissions!AR96 -> 3.531489 | C143: =Emissions!AS96 -> 0.28137993 | D143: =Emissions!AT96 -> 0.76097892 | E143: =Emissions!AU96 -> 0.001255720899 | F143: =Emissions!AV96 -> 0.2506218 | G143: =Emissions!AW96 -> 0.2506218 | H143: =Emissions!AX96 -> 0.2506218 | I143: =Emissions!AY96 -> 118.3364127
A144: Jacket Removal
A145: Mobilization | B145: =Emissions!AR103 -> 162.9918 | C145: =Emissions!AS103 -> 12.986766 | D145: =Emissions!AT103 -> 35.122104 | E145: =Emissions!AU103 -> 0.05795634921 | F145: =Emissions!AV103 -> 11.56716 | G145: =Emissions!AW103 -> 11.56716 | H145: =Emissions!AX103 -> 11.56716 | I145: =Emissions!AY103 -> 5461.680584
A146: Removal of Jacket Sections | B146: =Emissions!AR119+Emissions!AR280 -> 24.13620885 | C146: =Emissions!AS119+Emissions!AS280 -> 1.863821871 | D146: =Emissions!AT119+Emissions!AT280 -> 6.352483486 | E146: =Emissions!AU119+Emissions!AU280 -> 0.009856180131 | F146: =Emissions!AV119+Emissions!AV280 -> 1.870986883 | G146: =Emissions!AW119+Emissions!AW280 -> 1.859272911 | H146: =Emissions!AX119+Emissions!AX280 -> 1.859272911 | I146: =Emissions!AY119+Emissions!AY280 -> 950.2353403
A147: Demobilization | B147: =Emissions!AR126 -> 6.836089 | C147: =Emissions!AS126 -> 0.54468193 | D147: =Emissions!AT126 -> 1.47306692 | E147: =Emissions!AU126 -> 0.002430764991 | F147: =Emissions!AV126 -> 0.4851418 | G147: =Emissions!AW126 -> 0.4851418 | H147: =Emissions!AX126 -> 0.4851418 | I147: =Emissions!AY126 -> 229.070018
A148: Debris Removal
A149: Mobilization | B149: =Emissions!AR133 -> 1305.6673 | C149: =Emissions!AS133 -> 104.032201 | D149: =Emissions!AT133 -> 281.350244 | E149: =Emissions!AU133 -> 0.4642669753 | F149: =Emissions!AV133 -> 92.66026 | G149: =Emissions!AW133 -> 92.66026 | H149: =Emissions!AX133 -> 92.66026 | I149: =Emissions!AY133 -> 43751.51229
A150: Removal of Shell Mounds | B150: =Emissions!AR146+Emissions!AR293 -> 7.558967995 | C150: =Emissions!AS146+Emissions!AS293 -> 0.5657580532 | D150: =Emissions!AT146+Emissions!AT293 -> 2.338152606 | E150: =Emissions!AU146+Emissions!AU293 -> 0.003472486293 | F150: =Emissions!AV146+Emissions!AV293 -> 0.6338265454 | G150: =Emissions!AW146+Emissions!AW293 -> 0.6266109348 | H150: =Emissions!AX146+Emissions!AX293 -> 0.6266109348 | I150: =Emissions!AY146+Emissions!AY293 -> 340.4279676
A151: Surveys of Platform and Pipelines Areas | B151: =Emissions!AR154+Emissions!AR305 -> 5.529241825 | C151: =Emissions!AS154+Emissions!AS305 -> 0.3623901414 | D151: =Emissions!AT154+Emissions!AT305 -> 2.141033151 | E151: =Emissions!AU154+Emissions!AU305 -> 0.003021195023 | F151: =Emissions!AV154+Emissions!AV305 -> 0.5105053282 | G151: =Emissions!AW154+Emissions!AW305 -> 0.5020918913 | H151: =Emissions!AX154+Emissions!AX305 -> 0.5020918913 | I151: =Emissions!AY154+Emissions!AY305 -> 302.6893903
A152: Demobilization | B152: =Emissions!AR160 -> 29.984812 | C152: =Emissions!AS160 -> 2.38911244 | D152: =Emissions!AT160 -> 6.46124336 | E152: =Emissions!AU160 -> 0.01066194885 | F152: =Emissions!AV160 -> 2.1279544 | G152: =Emissions!AW160 -> 2.1279544 | H152: =Emissions!AX160 -> 2.1279544 | I152: =Emissions!AY160 -> 1004.758924
A153: Pipelines and Power Cable Removal
A154: Mobilization | B154: =Emissions!AR167 -> 271.2438 | C154: =Emissions!AS167 -> 21.612006 | D154: =Emissions!AT167 -> 58.448664 | E154: =Emissions!AU167 -> 0.0964484127 | F154: =Emissions!AV167 -> 19.24956 | G154: =Emissions!AW167 -> 19.24956 | H154: =Emissions!AX167 -> 19.24956 | I154: =Emissions!AY167 -> 9089.08912
A155: Pipeline Removal | B155: =Emissions!AR179+Emissions!AR318 -> 79.29983056 | C155: =Emissions!AS179+Emissions!AS318 -> 6.002304256 | D155: =Emissions!AT179+Emissions!AT318 -> 20.92789844 | E155: =Emissions!AU179+Emissions!AU318 -> 0.03246419125 | F155: =Emissions!AV179+Emissions!AV318 -> 6.105356726 | G155: =Emissions!AW179+Emissions!AW318 -> 6.071332787 | H155: =Emissions!AX179+Emissions!AX318 -> 6.071332787 | I155: =Emissions!AY179+Emissions!AY318 -> 3132.0601
A156: Power Cable Removal | B156: =Emissions!AR185+Emissions!AR330 -> 1.843409216 | C156: =Emissions!AS185+Emissions!AS330 -> 0.1227778796 | D156: =Emissions!AT185+Emissions!AT330 -> 0.7324818761 | E156: =Emissions!AU185+Emissions!AU330 -> 0.001035411523 | F156: =Emissions!AV185+Emissions!AV330 -> 0.1727230927 | G156: =Emissions!AW185+Emissions!AW330 -> 0.1705724754 | H156: =Emissions!AX185+Emissions!AX330 -> 0.1705724754 | I156: =Emissions!AY185+Emissions!AY330 -> 103.3132939
A157: Demobilization | B157: =Emissions!AR191 -> 5.876949 | C157: =Emissions!AS191 -> 0.46826013 | D157: =Emissions!AT191 -> 1.26638772 | E157: =Emissions!AU191 -> 0.002089715608 | F157: =Emissions!AV191 -> 0.4170738 | G157: =Emissions!AW191 -> 0.4170738 | H157: =Emissions!AX191 -> 0.4170738 | I157: =Emissions!AY191 -> 196.9302643
A159: Decommissioning Emissions Estimate
A160: ="Platform "&Plat -> Platform A | B160: Total Tons
A161: PHASE | B161: NOx | C161: ROC | D161: CO | E161: SOx | F161: PM | G161: PM10 | H161: PM2.5 | I161: GHG MT
A162: Pre-Abandonment
A163: Mobilization | B163: =Emissions!AZ10 -> 0 | C163: =Emissions!BA10 -> 0 | D163: =Emissions!BB10 -> 0 | E163: =Emissions!BC10 -> 0 | F163: =Emissions!BD10 -> 0 | G163: =Emissions!BE10 -> 0 | H163: =Emissions!BF10 -> 0 | I163: =Emissions!BG10 -> 0
A164: Well Plugging and Abandonment: Rigless | B164: =Emissions!AZ20+Emissions!AZ206 -> 63.29543849 | C164: =Emissions!BA20+Emissions!BA206 -> 4.66430061 | D164: =Emissions!BB20+Emissions!BB206 -> 25.79534622 | E164: =Emissions!BC20+Emissions!BC206 -> 0.03637705256 | F164: =Emissions!BD20+Emissions!BD206 -> 6.243458858 | G164: =Emissions!BE20+Emissions!BE206 -> 6.148258369 | H164: =Emissions!BF20+Emissions!BF206 -> 6.148258369 | I164: =Emissions!BG20+Emissions!BG206 -> 3628.241323
A165: Well Plugging and Abandonment: Rigs | B165: =Emissions!AZ31+Emissions!AZ218 -> 0 | C165: =Emissions!BA31+Emissions!BA218 -> 0 | D165: =Emissions!BB31+Emissions!BB218 -> 0 | E165: =Emissions!BC31+Emissions!BC218 -> 0 | F165: =Emissions!BD31+Emissions!BD218 -> 0 | G165: =Emissions!BE31+Emissions!BE218 -> 0 | H165: =Emissions!BF31+Emissions!BF218 -> 0 | I165: =Emissions!BG31+Emissions!BG218 -> 0
A166: Topside Platform Preparation | B166: =Emissions!AZ45+Emissions!AZ230 -> 73.47097325 | C166: =Emissions!BA45+Emissions!BA230 -> 5.577437486 | D166: =Emissions!BB45+Emissions!BB230 -> 22.39293642 | E166: =Emissions!BC45+Emissions!BC230 -> 0.03348271743 | F166: =Emissions!BD45+Emissions!BD230 -> 6.15009729 | G166: =Emissions!BE45+Emissions!BE230 -> 6.085219909 | H166: =Emissions!BF45+Emissions!BF230 -> 6.085219909 | I166: =Emissions!BG45+Emissions!BG230 -> 3273.918826
A167: Marine Growth Removal | B167: =Emissions!AZ53+Emissions!AZ242 -> 16.5058157 | C167: =Emissions!BA53+Emissions!BA242 -> 1.274306463 | D167: =Emissions!BB53+Emissions!BB242 -> 3.711420379 | E167: =Emissions!BC53+Emissions!BC242 -> 0.005981409144 | F167: =Emissions!BD53+Emissions!BD242 -> 1.189002561 | G167: =Emissions!BE53+Emissions!BE242 -> 1.181043997 | H167: =Emissions!BF53+Emissions!BF242 -> 1.181043997 | I167: =Emissions!BG53+Emissions!BG242 -> 571.4987876
A168: Conductor Removal | B168: =Emissions!AZ65+Emissions!AZ254 -> 32.73768887 | C168: =Emissions!BA65+Emissions!BA254 -> 2.49369697 | D168: =Emissions!BB65+Emissions!BB254 -> 10.73603596 | E168: =Emissions!BC65+Emissions!BC254 -> 0.01584161256 | F168: =Emissions!BD65+Emissions!BD254 -> 2.853781565 | G168: =Emissions!BE65+Emissions!BE254 -> 2.824949417 | H168: =Emissions!BF65+Emissions!BF254 -> 2.824949417 | I168: =Emissions!BG65+Emissions!BG254 -> 1553.495088
A169: Demobilization | B169: =Emissions!AZ70 -> 0 | C169: =Emissions!BA70 -> 0 | D169: =Emissions!BB70 -> 0 | E169: =Emissions!BC70 -> 0 | F169: =Emissions!BD70 -> 0 | G169: =Emissions!BE70 -> 0 | H169: =Emissions!BF70 -> 0 | I169: =Emissions!BG70 -> 0
A170: Topside Removal
A171: Mobilization | B171: =Emissions!AZ77 -> 315.5118 | C171: =Emissions!BA77 -> 25.139166 | D171: =Emissions!BB77 -> 67.987704 | E171: =Emissions!BC77 -> 0.1121891534 | F171: =Emissions!BD77 -> 22.39116 | G171: =Emissions!BE77 -> 22.39116 | H171: =Emissions!BF77 -> 22.39116 | I171: =Emissions!BG77 -> 10572.46237
A172: Cutting and Removal of Equipment/Modules | B172: =Emissions!AZ91+Emissions!AZ267 -> 19.71606053 | C172: =Emissions!BA91+Emissions!BA267 -> 1.543859353 | D172: =Emissions!BB91+Emissions!BB267 -> 5.116793053 | E172: =Emissions!BC91+Emissions!BC267 -> 0.008001358346 | F172: =Emissions!BD91+Emissions!BD267 -> 1.52431319 | G172: =Emissions!BE91+Emissions!BE267 -> 1.517513155 | H172: =Emissions!BF91+Emissions!BF267 -> 1.517513155 | I172: =Emissions!BG91+Emissions!BG267 -> 768.3268496
A173: Demobilization | B173: =Emissions!AZ96 -> 3.531489 | C173: =Emissions!BA96 -> 0.28137993 | D173: =Emissions!BB96 -> 0.76097892 | E173: =Emissions!BC96 -> 0.001255720899 | F173: =Emissions!BD96 -> 0.2506218 | G173: =Emissions!BE96 -> 0.2506218 | H173: =Emissions!BF96 -> 0.2506218 | I173: =Emissions!BG96 -> 118.3364127
A174: Jacket Removal
A175: Mobilization | B175: =Emissions!AZ103 -> 162.9918 | C175: =Emissions!BA103 -> 12.986766 | D175: =Emissions!BB103 -> 35.122104 | E175: =Emissions!BC103 -> 0.05795634921 | F175: =Emissions!BD103 -> 11.56716 | G175: =Emissions!BE103 -> 11.56716 | H175: =Emissions!BF103 -> 11.56716 | I175: =Emissions!BG103 -> 5461.680584
A176: Removal of Jacket Sections | B176: =Emissions!AZ119+Emissions!AZ280 -> 24.13620885 | C176: =Emissions!BA119+Emissions!BA280 -> 1.863821871 | D176: =Emissions!BB119+Emissions!BB280 -> 6.352483486 | E176: =Emissions!BC119+Emissions!BC280 -> 0.009856180131 | F176: =Emissions!BD119+Emissions!BD280 -> 1.870986883 | G176: =Emissions!BE119+Emissions!BE280 -> 1.859272911 | H176: =Emissions!BF119+Emissions!BF280 -> 1.859272911 | I176: =Emissions!BG119+Emissions!BG280 -> 950.2353403
A177: Demobilization | B177: =Emissions!AZ126 -> 6.836089 | C177: =Emissions!BA126 -> 0.54468193 | D177: =Emissions!BB126 -> 1.47306692 | E177: =Emissions!BC126 -> 0.002430764991 | F177: =Emissions!BD126 -> 0.4851418 | G177: =Emissions!BE126 -> 0.4851418 | H177: =Emissions!BF126 -> 0.4851418 | I177: =Emissions!BG126 -> 229.070018
A178: Debris Removal
A179: Mobilization | B179: =Emissions!AZ133 -> 1305.6673 | C179: =Emissions!BA133 -> 104.032201 | D179: =Emissions!BB133 -> 281.350244 | E179: =Emissions!BC133 -> 0.4642669753 | F179: =Emissions!BD133 -> 92.66026 | G179: =Emissions!BE133 -> 92.66026 | H179: =Emissions!BF133 -> 92.66026 | I179: =Emissions!BG133 -> 43751.51229
A180: Removal of Shell Mounds | B180: =Emissions!AZ146+Emissions!AZ293 -> 7.558967995 | C180: =Emissions!BA146+Emissions!BA293 -> 0.5657580532 | D180: =Emissions!BB146+Emissions!BB293 -> 2.338152606 | E180: =Emissions!BC146+Emissions!BC293 -> 0.003472486293 | F180: =Emissions!BD146+Emissions!BD293 -> 0.6338265454 | G180: =Emissions!BE146+Emissions!BE293 -> 0.6266109348 | H180: =Emissions!BF146+Emissions!BF293 -> 0.6266109348 | I180: =Emissions!BG146+Emissions!BG293 -> 340.4279676
A181: Surveys of Platform and Pipelines Areas | B181: =Emissions!AZ154+Emissions!AZ305 -> 5.529241825 | C181: =Emissions!BA154+Emissions!BA305 -> 0.3623901414 | D181: =Emissions!BB154+Emissions!BB305 -> 2.141033151 | E181: =Emissions!BC154+Emissions!BC305 -> 0.003021195023 | F181: =Emissions!BD154+Emissions!BD305 -> 0.5105053282 | G181: =Emissions!BE154+Emissions!BE305 -> 0.5020918913 | H181: =Emissions!BF154+Emissions!BF305 -> 0.5020918913 | I181: =Emissions!BG154+Emissions!BG305 -> 302.6893903
A182: Demobilization | B182: =Emissions!AZ160 -> 29.984812 | C182: =Emissions!BA160 -> 2.38911244 | D182: =Emissions!BB160 -> 6.46124336 | E182: =Emissions!BC160 -> 0.01066194885 | F182: =Emissions!BD160 -> 2.1279544 | G182: =Emissions!BE160 -> 2.1279544 | H182: =Emissions!BF160 -> 2.1279544 | I182: =Emissions!BG160 -> 1004.758924
A183: Pipelines and Power Cable Removal
A184: Mobilization | B184: =Emissions!AZ167 -> 271.2438 | C184: =Emissions!BA167 -> 21.612006 | D184: =Emissions!BB167 -> 58.448664 | E184: =Emissions!BC167 -> 0.0964484127 | F184: =Emissions!BD167 -> 19.24956 | G184: =Emissions!BE167 -> 19.24956 | H184: =Emissions!BF167 -> 19.24956 | I184: =Emissions!BG167 -> 9089.08912
A185: Pipeline Removal | B185: =Emissions!AZ179+Emissions!AZ318 -> 79.29983056 | C185: =Emissions!BA179+Emissions!BA318 -> 6.002304256 | D185: =Emissions!BB179+Emissions!BB318 -> 20.92789844 | E185: =Emissions!BC179+Emissions!BC318 -> 0.03246419125 | F185: =Emissions!BD179+Emissions!BD318 -> 6.105356726 | G185: =Emissions!BE179+Emissions!BE318 -> 6.071332787 | H185: =Emissions!BF179+Emissions!BF318 -> 6.071332787 | I185: =Emissions!BG179+Emissions!BG318 -> 3132.0601
A186: Power Cable Removal | B186: =Emissions!AZ185+Emissions!AZ330 -> 1.843409216 | C186: =Emissions!BA185+Emissions!BA330 -> 0.1227778796 | D186: =Emissions!BB185+Emissions!BB330 -> 0.7324818761 | E186: =Emissions!BC185+Emissions!BC330 -> 0.001035411523 | F186: =Emissions!BD185+Emissions!BD330 -> 0.1727230927 | G186: =Emissions!BE185+Emissions!BE330 -> 0.1705724754 | H186: =Emissions!BF185+Emissions!BF330 -> 0.1705724754 | I186: =Emissions!BG185+Emissions!BG330 -> 103.3132939
A187: Demobilization | B187: =Emissions!AZ191 -> 5.876949 | C187: =Emissions!BA191 -> 0.46826013 | D187: =Emissions!BB191 -> 1.26638772 | E187: =Emissions!BC191 -> 0.002089715608 | F187: =Emissions!BD191 -> 0.4170738 | G187: =Emissions!BE191 -> 0.4170738 | H187: =Emissions!BF191 -> 0.4170738 | I187: =Emissions!BG191 -> 196.9302643
A190: ="Platform "&Plat -> Platform A | B190: Potential to Emit, Total Tons
A191: PHASE | B191: NOx | C191: ROC | D191: CO | E191: SOx | F191: PM | G191: PM10 | H191: PM2.5 | I191: GHG MT
A192: Pre-Abandonment
A193: Mobilization | B193: =Emissions!BH10 -> 0 | C193: =Emissions!BI10 -> 0 | D193: =Emissions!BJ10 -> 0 | E193: =Emissions!BK10 -> 0 | F193: =Emissions!BL10 -> 0 | G193: =Emissions!BM10 -> 0 | H193: =Emissions!BN10 -> 0 | I193: =Emissions!BO10 -> 0
A194: Well Plugging and Abandonment: Rigless | B194: =Emissions!BH20+Emissions!BH206 -> 110.589564 | C194: =Emissions!BI20+Emissions!BI206 -> 8.20541642 | D194: =Emissions!BJ20+Emissions!BJ206 -> 42.81309811 | E194: =Emissions!BK20+Emissions!BK206 -> 0.06108019364 | F194: =Emissions!BL20+Emissions!BL206 -> 10.66121459 | G194: =Emissions!BM20+Emissions!BM206 -> 10.49225112 | H194: =Emissions!BN20+Emissions!BN206 -> 10.49225112 | I194: =Emissions!BO20+Emissions!BO206 -> 6080.720609
A195: Well Plugging and Abandonment: Rigs | B195: =Emissions!BH31+Emissions!BH218 -> 0 | C195: =Emissions!BI31+Emissions!BI218 -> 0 | D195: =Emissions!BJ31+Emissions!BJ218 -> 0 | E195: =Emissions!BK31+Emissions!BK218 -> 0 | F195: =Emissions!BL31+Emissions!BL218 -> 0 | G195: =Emissions!BM31+Emissions!BM218 -> 0 | H195: =Emissions!BN31+Emissions!BN218 -> 0 | I195: =Emissions!BO31+Emissions!BO218 -> 0
A196: Topside Platform Preparation | B196: =Emissions!BH45+Emissions!BH230 -> 176.3691084 | C196: =Emissions!BI45+Emissions!BI230 -> 13.05763596 | D196: =Emissions!BJ45+Emissions!BJ230 -> 48.25192721 | E196: =Emissions!BK45+Emissions!BK230 -> 0.07307671958 | F196: =Emissions!BL45+Emissions!BL230 -> 13.98640945 | G196: =Emissions!BM45+Emissions!BM230 -> 13.74437969 | H196: =Emissions!BN45+Emissions!BN230 -> 13.74437969 | I196: =Emissions!BO45+Emissions!BO230 -> 7174.811705
A197: Marine Growth Removal | B197: =Emissions!BH53+Emissions!BH242 -> 49.90105671 | C197: =Emissions!BI53+Emissions!BI242 -> 3.634335463 | D197: =Emissions!BJ53+Emissions!BJ242 -> 10.99518803 | E197: =Emissions!BK53+Emissions!BK242 -> 0.01733093585 | F197: =Emissions!BL53+Emissions!BL242 -> 3.55298831 | G197: =Emissions!BM53+Emissions!BM242 -> 3.475421181 | H197: =Emissions!BN53+Emissions!BN242 -> 3.475421181 | I197: =Emissions!BO53+Emissions!BO242 -> 1693.857005
A198: Conductor Removal | B198: =Emissions!BH65+Emissions!BH254 -> 52.1872126 | C198: =Emissions!BI65+Emissions!BI254 -> 3.974588387 | D198: =Emissions!BJ65+Emissions!BJ254 -> 16.99458848 | E198: =Emissions!BK65+Emissions!BK254 -> 0.02514588661 | F198: =Emissions!BL65+Emissions!BL254 -> 4.555522445 | G198: =Emissions!BM65+Emissions!BM254 -> 4.504350649 | H198: =Emissions!BN65+Emissions!BN254 -> 4.504350649 | I198: =Emissions!BO65+Emissions!BO254 -> 2468.018087
A199: Demobilization | B199: =Emissions!BH70 -> 0 | C199: =Emissions!BI70 -> 0 | D199: =Emissions!BJ70 -> 0 | E199: =Emissions!BK70 -> 0 | F199: =Emissions!BL70 -> 0 | G199: =Emissions!BM70 -> 0 | H199: =Emissions!BN70 -> 0 | I199: =Emissions!BO70 -> 0
A200: Topside Removal
A201: Mobilization | B201: =Emissions!BH77 -> 315.5118 | C201: =Emissions!BI77 -> 25.139166 | D201: =Emissions!BJ77 -> 67.987704 | E201: =Emissions!BK77 -> 0.1121891534 | F201: =Emissions!BL77 -> 22.39116 | G201: =Emissions!BM77 -> 22.39116 | H201: =Emissions!BN77 -> 22.39116 | I201: =Emissions!BO77 -> 10572.46237
A202: Cutting and Removal of Equipment/Modules | B202: =Emissions!BH91+Emissions!BH267 -> 82.46750486 | C202: =Emissions!BI91+Emissions!BI267 -> 6.527506921 | D202: =Emissions!BJ91+Emissions!BJ267 -> 19.12633366 | E202: =Emissions!BK91+Emissions!BK267 -> 0.03087772358 | F202: =Emissions!BL91+Emissions!BL267 -> 6.053455671 | G202: =Emissions!BM91+Emissions!BM267 -> 6.041386851 | H202: =Emissions!BN91+Emissions!BN267 -> 6.041386851 | I202: =Emissions!BO91+Emissions!BO267 -> 2933.039359
A203: Demobilization | B203: =Emissions!BH96 -> 3.531489 | C203: =Emissions!BI96 -> 0.28137993 | D203: =Emissions!BJ96 -> 0.76097892 | E203: =Emissions!BK96 -> 0.001255720899 | F203: =Emissions!BL96 -> 0.2506218 | G203: =Emissions!BM96 -> 0.2506218 | H203: =Emissions!BN96 -> 0.2506218 | I203: =Emissions!BO96 -> 118.3364127
A204: Jacket Removal
A205: Mobilization | B205: =Emissions!BH103 -> 162.9918 | C205: =Emissions!BI103 -> 12.986766 | D205: =Emissions!BJ103 -> 35.122104 | E205: =Emissions!BK103 -> 0.05795634921 | F205: =Emissions!BL103 -> 11.56716 | G205: =Emissions!BM103 -> 11.56716 | H205: =Emissions!BN103 -> 11.56716 | I205: =Emissions!BO103 -> 5461.680584
A206: Removal of Jacket Sections | B206: =Emissions!BH119+Emissions!BH280 -> 111.7937641 | C206: =Emissions!BI119+Emissions!BI280 -> 8.69551657 | D206: =Emissions!BJ119+Emissions!BJ280 -> 25.82571232 | E206: =Emissions!BK119+Emissions!BK280 -> 0.04143415638 | F206: =Emissions!BL119+Emissions!BL280 -> 8.161525929 | G206: =Emissions!BM119+Emissions!BM280 -> 8.117826111 | H206: =Emissions!BN119+Emissions!BN280 -> 8.117826111 | I206: =Emissions!BO119+Emissions!BO280 -> 3956.704748
A207: Demobilization | B207: =Emissions!BH126 -> 6.836089 | C207: =Emissions!BI126 -> 0.54468193 | D207: =Emissions!BJ126 -> 1.47306692 | E207: =Emissions!BK126 -> 0.002430764991 | F207: =Emissions!BL126 -> 0.4851418 | G207: =Emissions!BM126 -> 0.4851418 | H207: =Emissions!BN126 -> 0.4851418 | I207: =Emissions!BO126 -> 229.070018
A208: Debris Removal
A209: Mobilization | B209: =Emissions!BH133 -> 1305.6673 | C209: =Emissions!BI133 -> 104.032201 | D209: =Emissions!BJ133 -> 281.350244 | E209: =Emissions!BK133 -> 0.4642669753 | F209: =Emissions!BL133 -> 92.66026 | G209: =Emissions!BM133 -> 92.66026 | H209: =Emissions!BN133 -> 92.66026 | I209: =Emissions!BO133 -> 43751.51229
A210: Removal of Shell Mounds | B210: =Emissions!BH146+Emissions!BH293 -> 45.79526994 | C210: =Emissions!BI146+Emissions!BI293 -> 3.518308487 | D210: =Emissions!BJ146+Emissions!BJ293 -> 10.93746393 | E210: =Emissions!BK146+Emissions!BK293 -> 0.01732033119 | F210: =Emissions!BL146+Emissions!BL293 -> 3.390292445 | G210: =Emissions!BM146+Emissions!BM293 -> 3.363374088 | H210: =Emissions!BN146+Emissions!BN293 -> 3.363374088 | I210: =Emissions!BO146+Emissions!BO293 -> 1664.28605
A211: Surveys of Platform and Pipelines Areas | B211: =Emissions!BH154+Emissions!BH305 -> 17.71170563 | C211: =Emissions!BI154+Emissions!BI305 -> 1.186676257 | D211: =Emissions!BJ154+Emissions!BJ305 -> 5.279088542 | E211: =Emissions!BK154+Emissions!BK305 -> 0.007702132937 | F211: =Emissions!BL154+Emissions!BL305 -> 1.432870618 | G211: =Emissions!BM154+Emissions!BM305 -> 1.395493744 | H211: =Emissions!BN154+Emissions!BN305 -> 1.395493744 | I211: =Emissions!BO154+Emissions!BO305 -> 771.666147
A212: Demobilization | B212: =Emissions!BH160 -> 29.984812 | C212: =Emissions!BI160 -> 2.38911244 | D212: =Emissions!BJ160 -> 6.46124336 | E212: =Emissions!BK160 -> 0.01066194885 | F212: =Emissions!BL160 -> 2.1279544 | G212: =Emissions!BM160 -> 2.1279544 | H212: =Emissions!BN160 -> 2.1279544 | I212: =Emissions!BO160 -> 1004.758924
A213: Pipelines and Power Cable Removal
... 35 more rows

Sheet EmissionsSummaryArea
A1: ="Air Emissions Associated with Decommissioning Operations for Pacific Outer Continental Shelf (OCS) Oil and Gas Platforms: Emissions Summary within "&Inputs!$C$104&"" -> Air Emissions Associated with Decommissioning Operations for Pacific Outer Continental Shelf (OCS) Oil and Gas Platforms: Emissions Summary within Total
A2: ="Platform: "&Plat -> Platform: A
A4: ="Permitted and Actual Historical Emissions for Platform "&Plat -> Permitted and Actual Historical Emissions for Platform A
A5: ="Platform "&Plat&" is located in the "&VLOOKUP(Plat,Platforms!$A$7:$CU$30,3,0) -> Platform A is located in the SBCAPCD | B5: Tons per Year
A6: PHASE | B6: NOx | C6: ROC | D6: CO | E6: SOx | F6: PM10 | G6: PM2.5 | H6: GHG MT
A7: ="Permitted: permit number "&VLOOKUP(Plat,Districts!$A$8:$M$30,Districts!$F$43) -> Permitted: permit number 9110-R4 | B7: =VLOOKUP(Plat,Districts!$A$8:$M$30,Districts!$G$43) -> 24.3 | C7: =VLOOKUP(Plat,Districts!$A$8:$M$30,Districts!$H$43) -> 45.9 | D7: =VLOOKUP(Plat,Districts!$A$8:$M$30,Districts!$I$43) -> 24.1 | E7: =VLOOKUP(Plat,Districts!$A$8:$M$30,Districts!$J$43) -> 0.72 | F7: =VLOOKUP(Plat,Districts!$A$8:$M$30,Districts!$K$43) -> 2.42 | G7: =VLOOKUP(Plat,Districts!$A$8:$M$30,Districts!$L$43) -> 2.37 | H7: =VLOOKUP(Plat,Districts!$A$8:$M$30,Districts!$M$43) -> 1895.4
A8: ="Actual 2014: Platform "&Plat -> Actual 2014: Platform A | B8: =VLOOKUP(Plat,Districts!$A$8:$S$30,Districts!N$43) -> 5.819969 | C8: =VLOOKUP(Plat,Districts!$A$8:$S$30,Districts!O$43) -> 30.180383 | D8: =VLOOKUP(Plat,Districts!$A$8:$S$30,Districts!P$43) -> 2.27731 | E8: =VLOOKUP(Plat,Districts!$A$8:$S$30,Districts!Q$43) -> 0.413372 | F8: =VLOOKUP(Plat,Districts!$A$8:$S$30,Districts!R$43) -> 0.605814 | G8: =VLOOKUP(Plat,Districts!$A$8:$S$30,Districts!S$43) -> 0.601953 | H8: -
A10: Decommissioning Characteristics
A11: =EmissionsSummary!A11 -> Number of cargo barges/trips | B11: =EmissionsSummary!B11 -> 10 | C11: =EmissionsSummary!C11 -> Decommissioning total time, days | H11: =EmissionsSummary!H11 -> 371.7597282
A12: =EmissionsSummary!A12 -> Total platform tonnage for disposal, tons | B12: =EmissionsSummary!B12 -> 4896 | C12: =EmissionsSummary!C12 -> Total supply boat trips, RT | H12: =EmissionsSummary!H12 -> 356.7597282
A13: =EmissionsSummary!A13 -> Total shell mounds for disposal, yds3 | B13: =EmissionsSummary!B13 -> 21723.24 | C13: =EmissionsSummary!C13 -> Total crew boat trips, RT | H13: =EmissionsSummary!H13 -> 713.5194565
A14: Jacket Removal Option | B14: =Inputs!$C$107 -> Full | C14: Pipelines and Power Cables Option | G14: =Inputs!$C$110 -> Shallow
A15: Shell Mounds Removal | B15: =Inputs!$C$122 -> Yes | C15: Supply Boat Port Option | G15: =Inputs!$C$21 -> Hueneme
A16: ="Emission Factor Options: Crew Boats: "&INDIRECT(Plat&"!$F$221")&", Supply Boats: "&INDIRECT(Plat&"!$F$235")&", Tug Boats: "&INDIRECT(Plat&"!$F$237")&", Derrick Barge: "&INDIRECT(Plat&"!$F$223")&", Lay Barge: "&INDIRECT(Plat&"!$F$224")&", Lifting Barge: "&INDIRECT(Plat&"!$F$232") -> Emission Factor Options: Crew Boats: Default, Supply Boats: Default, Tug Boats: Default, Derrick Barge: Default, Lay Barge: Default, Lifting Barge: Default
A18: ="Decommissioning Emissions Summary for Platform "&Plat&" within "&Inputs!C104 -> Decommissioning Emissions Summary for Platform A within Total
A19: PHASE | B19: NOx | C19: ROC | D19: CO | E19: SOx | F19: PM | G19: PM10 | H19: PM2.5 | I19: GHG MT
A20: Total Tons
A21: Pre-Abandonment | B21: =EmissionsSummaryAreaDetail!B27 -> 118.2566947 | C21: =EmissionsSummaryAreaDetail!C27 -> 9.603623242 | D21: =EmissionsSummaryAreaDetail!D27 -> 34.29347416 | E21: =EmissionsSummaryAreaDetail!E27 -> 0.05202657545 | F21: =EmissionsSummaryAreaDetail!F27 -> 9.910753561 | G21: =EmissionsSummaryAreaDetail!G27 -> 9.803070329 | H21: =EmissionsSummaryAreaDetail!H27 -> 9.803070329 | I21: =EmissionsSummaryAreaDetail!I27 -> 5054.052049
A22: Topside Removal | B22: =EmissionsSummaryAreaDetail!B28 -> 32.33089555 | C22: =EmissionsSummaryAreaDetail!C28 -> 2.589116281 | D22: =EmissionsSummaryAreaDetail!D28 -> 7.276708761 | E22: =EmissionsSummaryAreaDetail!E28 -> 0.01185412969 | F22: =EmissionsSummaryAreaDetail!F28 -> 2.349773337 | G22: =EmissionsSummaryAreaDetail!G28 -> 2.346555202 | H22: =EmissionsSummaryAreaDetail!H28 -> 2.346555202 | I22: =EmissionsSummaryAreaDetail!I28 -> 1121.846298
A23: Jacket Removal | B23: =EmissionsSummaryAreaDetail!B29 -> 32.86961394 | C23: =EmissionsSummaryAreaDetail!C29 -> 2.608383999 | D23: =EmissionsSummaryAreaDetail!D29 -> 7.564182709 | E23: =EmissionsSummaryAreaDetail!E29 -> 0.0122031854 | F23: =EmissionsSummaryAreaDetail!F29 -> 2.407044467 | G23: =EmissionsSummaryAreaDetail!G29 -> 2.399753665 | H23: =EmissionsSummaryAreaDetail!H29 -> 2.399753665 | I23: =EmissionsSummaryAreaDetail!I29 -> 1159.848473
A24: Debris Removal | B24: =EmissionsSummaryAreaDetail!B30 -> 82.34545384 | C24: =EmissionsSummaryAreaDetail!C30 -> 6.521349594 | D24: =EmissionsSummaryAreaDetail!D30 -> 18.37151324 | E24: =EmissionsSummaryAreaDetail!E30 -> 0.02995282559 | F24: =EmissionsSummaryAreaDetail!F30 -> 5.930492806 | G24: =EmissionsSummaryAreaDetail!G30 -> 5.921671283 | H24: =EmissionsSummaryAreaDetail!H30 -> 5.921671283 | I24: =EmissionsSummaryAreaDetail!I30 -> 2836.059207
A25: Pipelines and Power Cable Removal | B25: =EmissionsSummaryAreaDetail!B31 -> 82.05823316 | C25: =EmissionsSummaryAreaDetail!C31 -> 6.397788199 | D25: =EmissionsSummaryAreaDetail!D31 -> 19.10555582 | E25: =EmissionsSummaryAreaDetail!E31 -> 0.03071040001 | F25: =EmissionsSummaryAreaDetail!F31 -> 5.999183801 | G25: =EmissionsSummaryAreaDetail!G31 -> 5.981125286 | H25: =EmissionsSummaryAreaDetail!H31 -> 5.981125286 | I25: =EmissionsSummaryAreaDetail!I31 -> 2925.077435
A26: Total | B26: =EmissionsSummaryAreaDetail!B32 -> 347.8608912 | C26: =EmissionsSummaryAreaDetail!C32 -> 27.72026131 | D26: =EmissionsSummaryAreaDetail!D32 -> 86.61143469 | E26: =EmissionsSummaryAreaDetail!E32 -> 0.1367471161 | F26: =EmissionsSummaryAreaDetail!F32 -> 26.59724797 | G26: =EmissionsSummaryAreaDetail!G32 -> 26.45217576 | H26: =EmissionsSummaryAreaDetail!H32 -> 26.45217576 | I26: =EmissionsSummaryAreaDetail!I32 -> 13096.88346
A27: Potential to Emit Total Tons
A28: Pre-Abandonment | B28: =EmissionsSummaryAreaDetail!B34 -> 272.8635433 | C28: =EmissionsSummaryAreaDetail!C34 -> 21.27673663 | D28: =EmissionsSummaryAreaDetail!D34 -> 72.87467934 | E28: =EmissionsSummaryAreaDetail!E34 -> 0.1116601135 | F28: =EmissionsSummaryAreaDetail!F34 -> 21.87639018 | G28: =EmissionsSummaryAreaDetail!G34 -> 21.50557872 | H28: =EmissionsSummaryAreaDetail!H34 -> 21.50557872 | I28: =EmissionsSummaryAreaDetail!I34 -> 10907.78922
A29: Topside Removal | B29: =EmissionsSummaryAreaDetail!B35 -> 92.98564955 | C29: =EmissionsSummaryAreaDetail!C35 -> 7.43437508 | D29: =EmissionsSummaryAreaDetail!D35 -> 20.53367161 | E29: =EmissionsSummaryAreaDetail!E35 -> 0.03365904339 | F29: =EmissionsSummaryAreaDetail!F35 -> 6.692933216 | G29: =EmissionsSummaryAreaDetail!G35 -> 6.688028197 | H29: =EmissionsSummaryAreaDetail!H35 -> 6.688028197 | I29: =EmissionsSummaryAreaDetail!I35 -> 3179.211546
A30: Jacket Removal | B30: =EmissionsSummaryAreaDetail!B36 -> 118.3924451 | C30: =EmissionsSummaryAreaDetail!C36 -> 9.300074748 | D30: =EmissionsSummaryAreaDetail!D36 -> 26.21647126 | E30: =EmissionsSummaryAreaDetail!E36 -> 0.04262183183 | F30: =EmissionsSummaryAreaDetail!F36 -> 8.501214588 | G30: =EmissionsSummaryAreaDetail!G36 -> 8.465223609 | H30: =EmissionsSummaryAreaDetail!H36 -> 8.465223609 | I30: =EmissionsSummaryAreaDetail!I36 -> 4050.166215
A31: Debris Removal | B31: =EmissionsSummaryAreaDetail!B37 -> 129.4787508 | C31: =EmissionsSummaryAreaDetail!C37 -> 10.08271164 | D31: =EmissionsSummaryAreaDetail!D37 -> 28.84540343 | E31: =EmissionsSummaryAreaDetail!E37 -> 0.04669733002 | F31: =EmissionsSummaryAreaDetail!F37 -> 9.3071004 | G31: =EmissionsSummaryAreaDetail!G37 -> 9.254669536 | H31: =EmissionsSummaryAreaDetail!H37 -> 9.254669536 | I31: =EmissionsSummaryAreaDetail!I37 -> 4450.129641
A32: Pipelines and Power Cable Removal | B32: =EmissionsSummaryAreaDetail!B38 -> 405.05118 | C32: =EmissionsSummaryAreaDetail!C38 -> 31.64900389 | D32: =EmissionsSummaryAreaDetail!D38 -> 89.47809325 | E32: =EmissionsSummaryAreaDetail!E38 -> 0.1455270229 | F32: =EmissionsSummaryAreaDetail!F38 -> 28.99318296 | G32: =EmissionsSummaryAreaDetail!G38 -> 28.86971554 | H32: =EmissionsSummaryAreaDetail!H38 -> 28.86971554 | I32: =EmissionsSummaryAreaDetail!I38 -> 13833.01233
A33: Total | B33: =EmissionsSummaryAreaDetail!B39 -> 1018.771569 | C33: =EmissionsSummaryAreaDetail!C39 -> 79.74290198 | D33: =EmissionsSummaryAreaDetail!D39 -> 237.9483189 | E33: =EmissionsSummaryAreaDetail!E39 -> 0.3801653417 | F33: =EmissionsSummaryAreaDetail!F39 -> 75.37082135 | G33: =EmissionsSummaryAreaDetail!G39 -> 74.7832156 | H33: =EmissionsSummaryAreaDetail!H39 -> 74.7832156 | I33: =EmissionsSummaryAreaDetail!I39 -> 36420.30895

Sheet EmissionsSummaryAreaDetail
A1: ="Air Emissions Associated with Decommissioning Operations for Pacific Outer Continental Shelf (OCS) Oil and Gas Platforms: Emissions Detail Summary By "&Inputs!$C$104&"" -> Air Emissions Associated with Decommissioning Operations for Pacific Outer Continental Shelf (OCS) Oil and Gas Platforms: Emissions Detail Summary By Total
A2: ="Platform: "&Plat -> Platform: A
A4: ="Permitted and Actual Historical Emissions for Platform "&Plat -> Permitted and Actual Historical Emissions for Platform A
A5: ="Platform "&Plat&" is located in the "&VLOOKUP(Plat,Platforms!$A$7:$CU$30,3,0) -> Platform A is located in the SBCAPCD | B5: Tons per Year
A6: PHASE | B6: NOx | C6: ROC | D6: CO | E6: SOx | F6: PM10 | G6: PM2.5 | H6: GHG MT
A7: ="Permitted: permit number "&VLOOKUP(Plat,Districts!$A$8:$M$30,Districts!$F$43) -> Permitted: permit number 9110-R4 | B7: =VLOOKUP(Plat,Districts!$A$8:$M$30,Districts!$G$43) -> 24.3 | C7: =VLOOKUP(Plat,Districts!$A$8:$M$30,Districts!$H$43) -> 45.9 | D7: =VLOOKUP(Plat,Districts!$A$8:$M$30,Districts!$I$43) -> 24.1 | E7: =VLOOKUP(Plat,Districts!$A$8:$M$30,Districts!$J$43) -> 0.72 | F7: =VLOOKUP(Plat,Districts!$A$8:$M$30,Districts!$K$43) -> 2.42 | G7: =VLOOKUP(Plat,Districts!$A$8:$M$30,Districts!$L$43) -> 2.37 | H7: =VLOOKUP(Plat,Districts!$A$8:$M$30,Districts!$M$43) -> 1895.4
A8: ="Actual 2014: Platform "&Plat -> Actual 2014: Platform A | B8: =VLOOKUP(Plat,Districts!$A$8:$S$30,Districts!N$43) -> 5.819969 | C8: =VLOOKUP(Plat,Districts!$A$8:$S$30,Districts!O$43) -> 30.180383 | D8: =VLOOKUP(Plat,Districts!$A$8:$S$30,Districts!P$43) -> 2.27731 | E8: =VLOOKUP(Plat,Districts!$A$8:$S$30,Districts!Q$43) -> 0.413372 | F8: =VLOOKUP(Plat,Districts!$A$8:$S$30,Districts!R$43) -> 0.605814 | G8: =VLOOKUP(Plat,Districts!$A$8:$S$30,Districts!S$43) -> 0.601953 | H8: -
A10: Decommissioning Characteristics
A11: =EmissionsSummary!A11 -> Number of cargo barges/trips | B11: =EmissionsSummary!B11 -> 10 | C11: =EmissionsSummary!C11 -> Decommissioning total time, days | H11: =EmissionsSummary!H11 -> 371.7597282
A12: =EmissionsSummary!A12 -> Total platform tonnage for disposal, tons | B12: =EmissionsSummary!B12 -> 4896 | C12: =EmissionsSummary!C12 -> Total supply boat trips, RT | H12: =EmissionsSummary!H12 -> 356.7597282
A13: =EmissionsSummary!A13 -> Total shell mounds for disposal, yds3 | B13: =EmissionsSummary!B13 -> 21723.24 | C13: =EmissionsSummary!C13 -> Total crew boat trips, RT | H13: =EmissionsSummary!H13 -> 713.5194565
A14: Jacket Removal Option | B14: =Inputs!$C$107 -> Full | C14: Pipelines and Power Cables Option | G14: =Inputs!$C$110 -> Shallow
A15: Shell Mounds Removal | B15: =Inputs!$C$122 -> Yes | C15: Supply Boat Port Option | G15: =Inputs!$C$21 -> Hueneme
A16: ="Emission Factor Options: Crew Boats: "&INDIRECT(Plat&"!$F$221")&", Supply Boats: "&INDIRECT(Plat&"!$F$235")&", Tug Boats: "&INDIRECT(Plat&"!$F$237")&", Derrick Barge: "&INDIRECT(Plat&"!$F$223")&", Lay Barge: "&INDIRECT(Plat&"!$F$224")&", Lifting Barge: "&INDIRECT(Plat&"!$F$232") -> Emission Factor Options: Crew Boats: Default, Supply Boats: Default, Tug Boats: Default, Derrick Barge: Default, Lay Barge: Default, Lifting Barge: Default
A18: ="Decommissioning Emissions Summary for Platform "&Plat&" within "&Inputs!C104 -> Decommissioning Emissions Summary for Platform A within Total
A19: PHASE | B19: NOx | C19: ROC | D19: CO | E19: SOx | F19: PM | G19: PM10 | H19: PM2.5 | I19: GHG MT
A20: Peak Day
A21: Pre-Abandonment | B21: =MAX(B76:B82) -> 1222.595475 | C21: =MAX(C76:C82) -> 97.26261892 | D21: 326.765195 | E21: 0.5048982216 | F21: 97.25993444 | G21: 96.36260493 | H21: 96.36260493 | I21: ="-" -> -
A22: Topside Removal | B22: =MAX(B84:B86) -> 12620.472 | C22: =MAX(C84:C86) -> 1005.56664 | D22: 2719.50816 | E22: 4.487566138 | F22: 895.6464 | G22: 895.6464 | H22: 895.6464 | I22: ="-" -> -
A23: Jacket Removal | B23: =MAX(B88:B90) -> 12620.472 | C23: =MAX(C88:C90) -> 1005.56664 | D23: 2719.50816 | E23: 4.487566138 | F23: 895.6464 | G23: 895.6464 | H23: 895.6464 | I23: ="-" -> -
A24: Debris Removal | B24: =MAX(B92:B95) -> 16238.544 | C24: =MAX(C92:C95) -> 1293.84528 | D24: 3499.14432 | E24: 5.774074074 | F24: 1152.4128 | G24: 1152.4128 | H24: 3928.5312 | I24: ="-" -> -
A25: Pipelines and Power Cable Removal | B25: =MAX(B97:B100) -> 10849.752 | C25: =MAX(C97:C100) -> 864.48024 | D25: 2337.94656 | E25: 3.857936508 | F25: 769.9824 | G25: 769.9824 | H25: 769.9824 | I25: ="-" -> -
A26: Total Tons
A27: Pre-Abandonment | B27: =SUM(B166:B172) -> 118.2566947 | C27: =SUM(C166:C172) -> 9.603623242 | D27: 34.29347416 | E27: 0.05202657545 | F27: 9.910753561 | G27: 9.803070329 | H27: 9.803070329 | I27: 5054.052049
A28: Topside Removal | B28: =SUM(B174:B176) -> 32.33089555 | C28: =SUM(C174:C176) -> 2.589116281 | D28: 7.276708761 | E28: 0.01185412969 | F28: 2.349773337 | G28: 2.346555202 | H28: 2.346555202 | I28: 1121.846298
A29: Jacket Removal | B29: =SUM(B178:B180) -> 32.86961394 | C29: =SUM(C178:C180) -> 2.608383999 | D29: 7.564182709 | E29: 0.0122031854 | F29: 2.407044467 | G29: 2.399753665 | H29: 2.399753665 | I29: 1159.848473
A30: Debris Removal | B30: =SUM(B182:B185) -> 82.34545384 | C30: =SUM(C182:C185) -> 6.521349594 | D30: 18.37151324 | E30: 0.02995282559 | F30: 5.930492806 | G30: 5.921671283 | H30: 5.921671283 | I30: 2836.059207
A31: Pipelines and Power Cable Removal | B31: =SUM(B187:B190) -> 82.05823316 | C31: =SUM(C187:C190) -> 6.397788199 | D31: 19.10555582 | E31: 0.03071040001 | F31: 5.999183801 | G31: 5.981125286 | H31: 5.981125286 | I31: 2925.077435
A32: Total | B32: =SUM(B27:B31) -> 347.8608912 | C32: =SUM(C27:C31) -> 27.72026131 | D32: 86.61143469 | E32: 0.1367471161 | F32: 26.59724797 | G32: 26.45217576 | H32: 26.45217576 | I32: 13096.88346
A33: Potential to Emit Total Tons
A34: Pre-Abandonment | B34: =SUM(B196:B202) -> 272.8635433 | C34: =SUM(C196:C202) -> 21.27673663 | D34: 72.87467934 | E34: 0.1116601135 | F34: 21.87639018 | G34: 21.50557872 | H34: 21.50557872 | I34: 10907.78922
A35: Topside Removal | B35: =SUM(B204:B206) -> 92.98564955 | C35: =SUM(C204:C206) -> 7.43437508 | D35: 20.53367161 | E35: 0.03365904339 | F35: 6.692933216 | G35: 6.688028197 | H35: 6.688028197 | I35: 3179.211546
A36: Jacket Removal | B36: =SUM(B208:B210) -> 118.3924451 | C36: =SUM(C208:C210) -> 9.300074748 | D36: 26.21647126 | E36: 0.04262183183 | F36: 8.501214588 | G36: 8.465223609 | H36: 8.465223609 | I36: 4050.166215
A37: Debris Removal | B37: =SUM(B212:B215) -> 129.4787508 | C37: =SUM(C212:C215) -> 10.08271164 | D37: 28.84540343 | E37: 0.04669733002 | F37: 9.3071004 | G37: 9.254669536 | H37: 9.254669536 | I37: 4450.129641
A38: Pipelines and Power Cable Removal | B38: =SUM(B217:B220) -> 405.05118 | C38: =SUM(C217:C220) -> 31.64900389 | D38: 89.47809325 | E38: 0.1455270229 | F38: 28.99318296 | G38: 28.86971554 | H38: 28.86971554 | I38: 13833.01233
A39: Total | B39: =SUM(B34:B38) -> 1018.771569 | C39: =SUM(C34:C38) -> 79.74290198 | D39: 237.9483189 | E39: 0.3801653417 | F39: 75.37082135 | G39: 74.7832156 | H39: 74.7832156 | I39: 36420.30895
A42: ="Decommissioning Emissions Estimate within "&Inputs!$C$104 -> Decommissioning Emissions Estimate within Total
A43: ="Platform "&Plat -> Platform A | B43: Pounds per Hour
A44: PHASE | B44: NOx | C44: ROC | D44: CO | E44: SOx | F44: PM | G44: PM10 | H44: PM2.5
A45: Pre-Abandonment
A46: Mobilization | B46: =EmissionsArea!W10 -> 0 | C46: =EmissionsArea!X10 -> 0 | D46: =EmissionsArea!Y10 -> 0 | E46: =EmissionsArea!Z10 -> 0 | F46: =EmissionsArea!AA10 -> 0 | G46: =EmissionsArea!AB10 -> 0 | H46: =EmissionsArea!AC10 -> 0
A47: Well Plugging and Abandonment: Rigless | B47: =EmissionsArea!W20+EmissionsArea!W206 -> 89.29253483 | C47: =EmissionsArea!X20+EmissionsArea!X206 -> 8.005293407 | D47: =EmissionsArea!Y20+EmissionsArea!Y206 -> 32.79707554 | E47: =EmissionsArea!Z20+EmissionsArea!Z206 -> 0.04675981041 | F47: =EmissionsArea!AA20+EmissionsArea!AA206 -> 8.846231975 | G47: =EmissionsArea!AB20+EmissionsArea!AB206 -> 8.664807813 | H47: =EmissionsArea!AC20+EmissionsArea!AC206 -> 8.664807813
A48: Well Plugging and Abandonment: Rigs | B48: =EmissionsArea!W31+EmissionsArea!W218 -> 0 | C48: =EmissionsArea!X31+EmissionsArea!X218 -> 0 | D48: =EmissionsArea!Y31+EmissionsArea!Y218 -> 0 | E48: =EmissionsArea!Z31+EmissionsArea!Z218 -> 0 | F48: =EmissionsArea!AA31+EmissionsArea!AA218 -> 0 | G48: =EmissionsArea!AB31+EmissionsArea!AB218 -> 0 | H48: =EmissionsArea!AC31+EmissionsArea!AC218 -> 0
A49: Topside Platform Preparation | B49: =EmissionsArea!W45+EmissionsArea!W230 -> 121.0397282 | C49: =EmissionsArea!X45+EmissionsArea!X230 -> 10.16830722 | D49: =EmissionsArea!Y45+EmissionsArea!Y230 -> 45.51226997 | E49: =EmissionsArea!Z45+EmissionsArea!Z230 -> 0.06482363316 | F49: =EmissionsArea!AA45+EmissionsArea!AA230 -> 11.83662479 | G49: =EmissionsArea!AB45+EmissionsArea!AB230 -> 11.63058863 | H49: =EmissionsArea!AC45+EmissionsArea!AC230 -> 11.63058863
A50: Marine Growth Removal | B50: =EmissionsArea!W53+EmissionsArea!W242 -> 48.17719334 | C50: =EmissionsArea!X53+EmissionsArea!X242 -> 3.472113818 | D50: =EmissionsArea!Y53+EmissionsArea!Y242 -> 16.25559443 | E50: =EmissionsArea!Z53+EmissionsArea!Z242 -> 0.02390597443 | F50: =EmissionsArea!AA53+EmissionsArea!AA242 -> 4.156392813 | G50: =EmissionsArea!AB53+EmissionsArea!AB242 -> 4.13178082 | H50: =EmissionsArea!AC53+EmissionsArea!AC242 -> 4.13178082
A51: Conductor Removal | B51: =EmissionsArea!W65+EmissionsArea!W254 -> 86.87453483 | C51: =EmissionsArea!X65+EmissionsArea!X254 -> 7.812633407 | D51: =EmissionsArea!Y65+EmissionsArea!Y254 -> 32.27603554 | E51: =EmissionsArea!Z65+EmissionsArea!Z254 -> 0.04590002205 | F51: =EmissionsArea!AA65+EmissionsArea!AA254 -> 8.674631975 | G51: =EmissionsArea!AB65+EmissionsArea!AB254 -> 8.493207813 | H51: =EmissionsArea!AC65+EmissionsArea!AC254 -> 8.493207813
A52: Demobilization | B52: =EmissionsArea!W70 -> 0 | C52: =EmissionsArea!X70 -> 0 | D52: =EmissionsArea!Y70 -> 0 | E52: =EmissionsArea!Z70 -> 0 | F52: =EmissionsArea!AA70 -> 0 | G52: =EmissionsArea!AB70 -> 0 | H52: =EmissionsArea!AC70 -> 0
A53: Topside Removal
A54: Mobilization | B54: =EmissionsArea!W77 -> 525.853 | C54: =EmissionsArea!X77 -> 41.89861 | D54: =EmissionsArea!Y77 -> 113.31284 | E54: =EmissionsArea!Z77 -> 0.1869819224 | F54: =EmissionsArea!AA77 -> 37.3186 | G54: =EmissionsArea!AB77 -> 37.3186 | H54: =EmissionsArea!AC77 -> 37.3186
A55: Cutting and Removal of Equipment/Modules | B55: =EmissionsArea!W91+EmissionsArea!W267 -> 139.6752848 | C55: =EmissionsArea!X91+EmissionsArea!X267 -> 12.01966091 | D55: =EmissionsArea!Y91+EmissionsArea!Y267 -> 43.65374554 | E55: =EmissionsArea!Z91+EmissionsArea!Z267 -> 0.06467482363 | F55: =EmissionsArea!AA91+EmissionsArea!AA267 -> 12.42178198 | G55: =EmissionsArea!AB91+EmissionsArea!AB267 -> 12.24035781 | H55: =EmissionsArea!AC91+EmissionsArea!AC267 -> 12.24035781
A56: Demobilization | B56: =EmissionsArea!W96 -> 271.653 | C56: =EmissionsArea!X96 -> 21.64461 | D56: =EmissionsArea!Y96 -> 58.53684 | E56: =EmissionsArea!Z96 -> 0.09659391534 | F56: =EmissionsArea!AA96 -> 19.2786 | G56: =EmissionsArea!AB96 -> 19.2786 | H56: =EmissionsArea!AC96 -> 19.2786
A57: Jacket Removal
A58: Mobilization | B58: =EmissionsArea!W103 -> 271.653 | C58: =EmissionsArea!X103 -> 21.64461 | D58: =EmissionsArea!Y103 -> 58.53684 | E58: =EmissionsArea!Z103 -> 0.09659391534 | F58: =EmissionsArea!AA103 -> 19.2786 | G58: =EmissionsArea!AB103 -> 19.2786 | H58: =EmissionsArea!AC103 -> 19.2786
A59: Removal of Jacket Sections | B59: =EmissionsArea!W119+EmissionsArea!W280 -> 176.7864792 | C59: =EmissionsArea!X119+EmissionsArea!X280 -> 14.56207413 | D59: =EmissionsArea!Y119+EmissionsArea!Y280 -> 57.35490797 | E59: =EmissionsArea!Z119+EmissionsArea!Z280 -> 0.08436563051 | F59: =EmissionsArea!AA119+EmissionsArea!AA280 -> 15.73689479 | G59: =EmissionsArea!AB119+EmissionsArea!AB280 -> 15.53085863 | H59: =EmissionsArea!AC119+EmissionsArea!AC280 -> 15.53085863
A60: Demobilization | B60: =EmissionsArea!W126 -> 525.853 | C60: =EmissionsArea!X126 -> 41.89861 | D60: =EmissionsArea!Y126 -> 113.31284 | E60: =EmissionsArea!Z126 -> 0.1869819224 | F60: =EmissionsArea!AA126 -> 37.3186 | G60: =EmissionsArea!AB126 -> 37.3186 | H60: =EmissionsArea!AC126 -> 37.3186
A61: Debris Removal
A62: Mobilization | B62: =EmissionsArea!W133 -> 404.953 | C62: =EmissionsArea!X133 -> 32.26561 | D62: =EmissionsArea!Y133 -> 87.26084 | E62: =EmissionsArea!Z133 -> 0.1439925044 | F62: =EmissionsArea!AA133 -> 28.7386 | G62: =EmissionsArea!AB133 -> 28.7386 | H62: =EmissionsArea!AC133 -> 28.7386
A63: Removal of Shell Mounds | B63: =EmissionsArea!W146+EmissionsArea!W293 -> 115.9412292 | C63: =EmissionsArea!X146+EmissionsArea!X293 -> 9.714081635 | D63: =EmissionsArea!Y146+EmissionsArea!Y293 -> 44.24373797 | E63: =EmissionsArea!Z146+EmissionsArea!Z293 -> 0.06273037919 | F63: =EmissionsArea!AA146+EmissionsArea!AA293 -> 11.41884479 | G63: =EmissionsArea!AB146+EmissionsArea!AB293 -> 11.21280863 | H63: =EmissionsArea!AC146+EmissionsArea!AC293 -> 11.21280863
A64: Surveys of Platform and Pipelines Areas | B64: =EmissionsArea!W154+EmissionsArea!W305 -> 57.73491071 | C64: =EmissionsArea!X154+EmissionsArea!X305 -> 3.737077822 | D64: =EmissionsArea!Y154+EmissionsArea!Y305 -> 25.22289462 | E64: =EmissionsArea!Z154+EmissionsArea!Z305 -> 0.03513282628 | F64: =EmissionsArea!AA154+EmissionsArea!AA305 -> 5.698016975 | G64: =EmissionsArea!AB154+EmissionsArea!AB305 -> 5.629092813 | H64: =EmissionsArea!AC154+EmissionsArea!AC305 -> 5.629092813
A65: Demobilization | B65: =EmissionsArea!W160 -> 404.953 | C65: =EmissionsArea!X160 -> 32.26561 | D65: =EmissionsArea!Y160 -> 87.26084 | E65: =EmissionsArea!Z160 -> 0.1439925044 | F65: =EmissionsArea!AA160 -> 28.7386 | G65: =EmissionsArea!AB160 -> 28.7386 | H65: =EmissionsArea!AC160 -> 28.7386
A66: Pipelines and Power Cable Removal
A67: Mobilization | B67: =EmissionsArea!W167 -> 452.073 | C67: =EmissionsArea!X167 -> 36.02001 | D67: =EmissionsArea!Y167 -> 97.41444 | E67: =EmissionsArea!Z167 -> 0.1607473545 | F67: =EmissionsArea!AA167 -> 32.0826 | G67: =EmissionsArea!AB167 -> 32.0826 | H67: =EmissionsArea!AC167 -> 32.0826
A68: Pipeline Removal | B68: =EmissionsArea!W179+EmissionsArea!W318 -> 135.9572107 | C68: =EmissionsArea!X179+EmissionsArea!X318 -> 9.969628822 | D68: =EmissionsArea!Y179+EmissionsArea!Y318 -> 42.07853862 | E68: =EmissionsArea!Z179+EmissionsArea!Z318 -> 0.06294697972 | F68: =EmissionsArea!AA179+EmissionsArea!AA318 -> 11.24927698 | G68: =EmissionsArea!AB179+EmissionsArea!AB318 -> 11.18035281 | H68: =EmissionsArea!AC179+EmissionsArea!AC318 -> 11.18035281
A69: Power Cable Removal | B69: =EmissionsArea!W185+EmissionsArea!W330 -> 73.67543474 | C69: =EmissionsArea!X185+EmissionsArea!X330 -> 4.877128007 | D69: =EmissionsArea!Y185+EmissionsArea!Y330 -> 29.69140039 | E69: =EmissionsArea!Z185+EmissionsArea!Z330 -> 0.04185405644 | F69: =EmissionsArea!AA185+EmissionsArea!AA330 -> 6.955248325 | G69: =EmissionsArea!AB185+EmissionsArea!AB330 -> 6.866623986 | H69: =EmissionsArea!AC185+EmissionsArea!AC330 -> 6.866623986
A70: Demobilization | B70: =EmissionsArea!W191 -> 452.073 | C70: =EmissionsArea!X191 -> 36.02001 | D70: =EmissionsArea!Y191 -> 97.41444 | E70: =EmissionsArea!Z191 -> 0.1607473545 | F70: =EmissionsArea!AA191 -> 32.0826 | G70: =EmissionsArea!AB191 -> 32.0826 | H70: =EmissionsArea!AC191 -> 32.0826
A73: ="Platform "&Plat -> Platform A | B73: Pounds per Day
A74: PHASE | B74: NOx | C74: ROC | D74: CO | E74: SOx | F74: PM | G74: PM10 | H74: PM2.5
A75: Pre-Abandonment
A76: Mobilization | B76: =EmissionsArea!AD10 -> 0 | C76: =EmissionsArea!AE10 -> 0 | D76: =EmissionsArea!AF10 -> 0 | E76: =EmissionsArea!AG10 -> 0 | F76: =EmissionsArea!AH10 -> 0 | G76: =EmissionsArea!AI10 -> 0 | H76: =EmissionsArea!AJ10 -> 0
A77: Well Plugging and Abandonment: Rigless | B77: =EmissionsArea!AD20+EmissionsArea!AD206 -> 855.4716076 | C77: =EmissionsArea!AE20+EmissionsArea!AE206 -> 70.25360334 | D77: =EmissionsArea!AF20+EmissionsArea!AF206 -> 233.9278913 | E77: =EmissionsArea!AG20+EmissionsArea!AG206 -> 0.3614614565 | F77: =EmissionsArea!AH20+EmissionsArea!AH206 -> 69.56251788 | G77: =EmissionsArea!AI20+EmissionsArea!AI206 -> 69.04761635 | H77: =EmissionsArea!AJ20+EmissionsArea!AJ206 -> 69.04761635
A78: Well Plugging and Abandonment: Rigs | B78: =EmissionsArea!AD31+EmissionsArea!AD218 -> 0 | C78: =EmissionsArea!AE31+EmissionsArea!AE218 -> 0 | D78: =EmissionsArea!AF31+EmissionsArea!AF218 -> 0 | E78: =EmissionsArea!AG31+EmissionsArea!AG218 -> 0 | F78: =EmissionsArea!AH31+EmissionsArea!AH218 -> 0 | G78: =EmissionsArea!AI31+EmissionsArea!AI218 -> 0 | H78: =EmissionsArea!AJ31+EmissionsArea!AJ218 -> 0
A79: Topside Platform Preparation | B79: =EmissionsArea!AD45+EmissionsArea!AD230 -> 1222.595475 | C79: =EmissionsArea!AE45+EmissionsArea!AE230 -> 97.26261892 | D79: =EmissionsArea!AF45+EmissionsArea!AF230 -> 326.765195 | E79: =EmissionsArea!AG45+EmissionsArea!AG230 -> 0.5048982216 | F79: =EmissionsArea!AH45+EmissionsArea!AH230 -> 97.25993444 | G79: =EmissionsArea!AI45+EmissionsArea!AI230 -> 96.36260493 | H79: =EmissionsArea!AJ45+EmissionsArea!AJ230 -> 96.36260493
A80: Marine Growth Removal | B80: =EmissionsArea!AD53+EmissionsArea!AD242 -> 761.4438678 | C80: =EmissionsArea!AE53+EmissionsArea!AE242 -> 58.42741558 | D80: =EmissionsArea!AF53+EmissionsArea!AF242 -> 177.8069037 | E80: =EmissionsArea!AG53+EmissionsArea!AG242 -> 0.2836484053 | F80: =EmissionsArea!AH53+EmissionsArea!AH242 -> 55.68141656 | G80: =EmissionsArea!AI53+EmissionsArea!AI242 -> 55.29898858 | H80: =EmissionsArea!AJ53+EmissionsArea!AJ242 -> 55.29898858
A81: Conductor Removal | B81: =EmissionsArea!AD65+EmissionsArea!AD254 -> 797.4396076 | C81: =EmissionsArea!AE65+EmissionsArea!AE254 -> 65.62976334 | D81: =EmissionsArea!AF65+EmissionsArea!AF254 -> 221.4229313 | E81: =EmissionsArea!AG65+EmissionsArea!AG254 -> 0.3408265359 | F81: =EmissionsArea!AH65+EmissionsArea!AH254 -> 65.44411788 | G81: =EmissionsArea!AI65+EmissionsArea!AI254 -> 64.92921635 | H81: =EmissionsArea!AJ65+EmissionsArea!AJ254 -> 64.92921635
A82: Demobilization | B82: =EmissionsArea!AD70 -> 0 | C82: =EmissionsArea!AE70 -> 0 | D82: =EmissionsArea!AF70 -> 0 | E82: =EmissionsArea!AG70 -> 0 | F82: =EmissionsArea!AH70 -> 0 | G82: =EmissionsArea!AI70 -> 0 | H82: =EmissionsArea!AJ70 -> 0
A83: Topside Removal
A84: Mobilization | B84: =EmissionsArea!AD77 -> 12620.472 | C84: =EmissionsArea!AE77 -> 1005.56664 | D84: =EmissionsArea!AF77 -> 2719.50816 | E84: =EmissionsArea!AG77 -> 4.487566138 | F84: =EmissionsArea!AH77 -> 895.6464 | G84: =EmissionsArea!AI77 -> 895.6464 | H84: =EmissionsArea!AJ77 -> 895.6464
A85: Cutting and Removal of Equipment/Modules | B85: =EmissionsArea!AD91+EmissionsArea!AD267 -> 2716.624808 | C85: =EmissionsArea!AE91+EmissionsArea!AE267 -> 218.5454873 | D85: =EmissionsArea!AF91+EmissionsArea!AF267 -> 634.9763873 | E85: =EmissionsArea!AG91+EmissionsArea!AG267 -> 1.023247171 | F85: =EmissionsArea!AH91+EmissionsArea!AH267 -> 201.6443579 | G85: =EmissionsArea!AI91+EmissionsArea!AI267 -> 201.1294563 | H85: =EmissionsArea!AJ91+EmissionsArea!AJ267 -> 201.1294563
A86: Demobilization | B86: =EmissionsArea!AD96 -> 6519.672 | C86: =EmissionsArea!AE96 -> 519.47064 | D86: =EmissionsArea!AF96 -> 1404.88416 | E86: =EmissionsArea!AG96 -> 2.318253968 | F86: =EmissionsArea!AH96 -> 462.6864 | G86: =EmissionsArea!AI96 -> 462.6864 | H86: =EmissionsArea!AJ96 -> 462.6864
A87: Jacket Removal
A88: Mobilization | B88: =EmissionsArea!AD103 -> 6519.672 | C88: =EmissionsArea!AE103 -> 519.47064 | D88: =EmissionsArea!AF103 -> 1404.88416 | E88: =EmissionsArea!AG103 -> 2.318253968 | F88: =EmissionsArea!AH103 -> 462.6864 | G88: =EmissionsArea!AI103 -> 462.6864 | H88: =EmissionsArea!AJ103 -> 462.6864
A89: Removal of Jacket Sections | B89: =EmissionsArea!AD119+EmissionsArea!AD280 -> 2560.517501 | C89: =EmissionsArea!AE119+EmissionsArea!AE280 -> 202.7130248 | D89: =EmissionsArea!AF119+EmissionsArea!AF280 -> 610.988507 | E89: =EmissionsArea!AG119+EmissionsArea!AG280 -> 0.9739061581 | F89: =EmissionsArea!AH119+EmissionsArea!AH280 -> 190.8664144 | G89: =EmissionsArea!AI119+EmissionsArea!AI280 -> 189.9690849 | H89: =EmissionsArea!AJ119+EmissionsArea!AJ280 -> 189.9690849
A90: Demobilization | B90: =EmissionsArea!AD126 -> 12620.472 | C90: =EmissionsArea!AE126 -> 1005.56664 | D90: =EmissionsArea!AF126 -> 2719.50816 | E90: =EmissionsArea!AG126 -> 4.487566138 | F90: =EmissionsArea!AH126 -> 895.6464 | G90: =EmissionsArea!AI126 -> 895.6464 | H90: =EmissionsArea!AJ126 -> 895.6464
A91: Debris Removal
A92: Mobilization | B92: =EmissionsArea!AD133 -> 16238.544 | C92: =EmissionsArea!AE133 -> 1293.84528 | D92: =EmissionsArea!AF133 -> 3499.14432 | E92: =EmissionsArea!AG133 -> 5.774074074 | F92: =EmissionsArea!AH133 -> 1152.4128 | G92: =EmissionsArea!AI133 -> 1152.4128 | H92: =EmissionsArea!AJ133 -> 3928.5312
A93: Removal of Shell Mounds | B93: =EmissionsArea!AD146+EmissionsArea!AD293 -> 1100.231501 | C93: =EmissionsArea!AE146+EmissionsArea!AE293 -> 86.36120476 | D93: =EmissionsArea!AF146+EmissionsArea!AF293 -> 296.320427 | E93: =EmissionsArea!AG146+EmissionsArea!AG293 -> 0.4546601264 | F93: =EmissionsArea!AH146+EmissionsArea!AH293 -> 87.23321444 | G93: =EmissionsArea!AI146+EmissionsArea!AI293 -> 86.33588493 | H93: =EmissionsArea!AJ146+EmissionsArea!AJ293 -> 86.33588493
A94: Surveys of Platform and Pipelines Areas | B94: =EmissionsArea!AD154+EmissionsArea!AD305 -> 327.1394242 | C94: =EmissionsArea!AE154+EmissionsArea!AE305 -> 21.63824919 | D94: =EmissionsArea!AF154+EmissionsArea!AF305 -> 114.6154725 | E94: =EmissionsArea!AG154+EmissionsArea!AG305 -> 0.1636638374 | F94: =EmissionsArea!AH154+EmissionsArea!AH305 -> 28.65848288 | G94: =EmissionsArea!AI154+EmissionsArea!AI305 -> 28.08108135 | H94: =EmissionsArea!AJ154+EmissionsArea!AJ305 -> 28.08108135
A95: Demobilization | B95: =EmissionsArea!AD160 -> 16238.544 | C95: =EmissionsArea!AE160 -> 1293.84528 | D95: =EmissionsArea!AF160 -> 3499.14432 | E95: =EmissionsArea!AG160 -> 5.774074074 | F95: =EmissionsArea!AH160 -> 1152.4128 | G95: =EmissionsArea!AI160 -> 1152.4128 | H95: =EmissionsArea!AJ160 -> 3928.5312
A96: Pipelines and Power Cable Removal
A97: Mobilization | B97: =EmissionsArea!AD167 -> 10849.752 | C97: =EmissionsArea!AE167 -> 864.48024 | D97: =EmissionsArea!AF167 -> 2337.94656 | E97: =EmissionsArea!AG167 -> 3.857936508 | F97: =EmissionsArea!AH167 -> 769.9824 | G97: =EmissionsArea!AI167 -> 769.9824 | H97: =EmissionsArea!AJ167 -> 769.9824
A98: Pipeline Removal | B98: =EmissionsArea!AD179+EmissionsArea!AD318 -> 2204.474624 | C98: =EmissionsArea!AE179+EmissionsArea!AE318 -> 171.2194732 | D98: =EmissionsArea!AF179+EmissionsArea!AF318 -> 519.1509285 | E98: =EmissionsArea!AG179+EmissionsArea!AG318 -> 0.83120352 | F98: =EmissionsArea!AH179+EmissionsArea!AH318 -> 161.8887229 | G98: =EmissionsArea!AI179+EmissionsArea!AI318 -> 161.3113213 | H98: =EmissionsArea!AJ179+EmissionsArea!AJ318 -> 161.3113213
A99: Power Cable Removal | B99: =EmissionsArea!AD185+EmissionsArea!AD330 -> 440.8311129 | C99: =EmissionsArea!AE185+EmissionsArea!AE330 -> 30.75446723 | D99: =EmissionsArea!AF185+EmissionsArea!AF330 -> 155.7803377 | E99: =EmissionsArea!AG185+EmissionsArea!AG330 -> 0.2256393298 | F99: =EmissionsArea!AH185+EmissionsArea!AH330 -> 38.88213263 | G99: =EmissionsArea!AI185+EmissionsArea!AI330 -> 38.49218554 | H99: =EmissionsArea!AJ185+EmissionsArea!AJ330 -> 38.49218554
A100: Demobilization | B100: =EmissionsArea!AD191 -> 10849.752 | C100: =EmissionsArea!AE191 -> 864.48024 | D100: =EmissionsArea!AF191 -> 2337.94656 | E100: =EmissionsArea!AG191 -> 3.857936508 | F100: =EmissionsArea!AH191 -> 769.9824 | G100: =EmissionsArea!AI191 -> 769.9824 | H100: =EmissionsArea!AJ191 -> 769.9824
A102: ="Decommissioning Emissions Estimate within "&Inputs!$C$104 -> Decommissioning Emissions Estimate within Total
A103: ="Platform "&Plat -> Platform A | B103: Tons per Quarter
A104: PHASE | B104: NOx | C104: ROC | D104: CO | E104: SOx | F104: PM | G104: PM10 | H104: PM2.5
A105: Pre-Abandonment
A106: Mobilization | B106: =EmissionsArea!AK10 -> 0 | C106: =EmissionsArea!AL10 -> 0 | D106: =EmissionsArea!AM10 -> 0 | E106: =EmissionsArea!AN10 -> 0 | F106: =EmissionsArea!AO10 -> 0 | G106: =EmissionsArea!AP10 -> 0 | H106: =EmissionsArea!AQ10 -> 0
A107: Well Plugging and Abandonment: Rigless | B107: =EmissionsArea!AK20+EmissionsArea!AK206 -> 14.60631815 | C107: =EmissionsArea!AL20+EmissionsArea!AL206 -> 1.258972152 | D107: =EmissionsArea!AM20+EmissionsArea!AM206 -> 5.403659856 | E107: =EmissionsArea!AN20+EmissionsArea!AN206 -> 0.007799670874 | F107: =EmissionsArea!AO20+EmissionsArea!AO206 -> 1.439326563 | G107: =EmissionsArea!AP20+EmissionsArea!AP206 -> 1.415898544 | H107: =EmissionsArea!AQ20+EmissionsArea!AQ206 -> 1.415898544
A108: Well Plugging and Abandonment: Rigs | B108: =EmissionsArea!AK31+EmissionsArea!AK218 -> 0 | C108: =EmissionsArea!AL31+EmissionsArea!AL218 -> 0 | D108: =EmissionsArea!AM31+EmissionsArea!AM218 -> 0 | E108: =EmissionsArea!AN31+EmissionsArea!AN218 -> 0 | F108: =EmissionsArea!AO31+EmissionsArea!AO218 -> 0 | G108: =EmissionsArea!AP31+EmissionsArea!AP218 -> 0 | H108: =EmissionsArea!AQ31+EmissionsArea!AQ218 -> 0
A109: Topside Platform Preparation | B109: =EmissionsArea!AK45+EmissionsArea!AK230 -> 55.01679639 | C109: =EmissionsArea!AL45+EmissionsArea!AL230 -> 4.376817851 | D109: =EmissionsArea!AM45+EmissionsArea!AM230 -> 14.70443377 | E109: =EmissionsArea!AN45+EmissionsArea!AN230 -> 0.02272041997 | F109: =EmissionsArea!AO45+EmissionsArea!AO230 -> 4.37669705 | G109: =EmissionsArea!AP45+EmissionsArea!AP230 -> 4.336317222 | H109: =EmissionsArea!AQ45+EmissionsArea!AQ230 -> 4.336317222
A110: Marine Growth Removal | B110: =EmissionsArea!AK53+EmissionsArea!AK242 -> 17.13248703 | C110: =EmissionsArea!AL53+EmissionsArea!AL242 -> 1.31461685 | D110: =EmissionsArea!AM53+EmissionsArea!AM242 -> 4.000655332 | E110: =EmissionsArea!AN53+EmissionsArea!AN242 -> 0.00638208912 | F110: =EmissionsArea!AO53+EmissionsArea!AO242 -> 1.252831873 | G110: =EmissionsArea!AP53+EmissionsArea!AP242 -> 1.244227243 | H110: =EmissionsArea!AQ53+EmissionsArea!AQ242 -> 1.244227243
A111: Conductor Removal | B111: =EmissionsArea!AK65+EmissionsArea!AK254 -> 21.1321496 | C111: =EmissionsArea!AL65+EmissionsArea!AL254 -> 1.739188728 | D111: =EmissionsArea!AM65+EmissionsArea!AM254 -> 5.86770768 | E111: =EmissionsArea!AN65+EmissionsArea!AN254 -> 0.0090319032 | F111: =EmissionsArea!AO65+EmissionsArea!AO254 -> 1.734269124 | G111: =EmissionsArea!AP65+EmissionsArea!AP254 -> 1.720624233 | H111: =EmissionsArea!AQ65+EmissionsArea!AQ254 -> 1.720624233
A112: Demobilization | B112: =EmissionsArea!AK70 -> 0 | C112: =EmissionsArea!AL70 -> 0 | D112: =EmissionsArea!AM70 -> 0 | E112: =EmissionsArea!AN70 -> 0 | F112: =EmissionsArea!AO70 -> 0 | G112: =EmissionsArea!AP70 -> 0 | H112: =EmissionsArea!AQ70 -> 0
A113: Topside Removal
A114: Mobilization | B114: =EmissionsArea!AK77 -> 10.12267025 | C114: =EmissionsArea!AL77 -> 0.8065482425 | D114: =EmissionsArea!AM77 -> 2.18127217 | E114: =EmissionsArea!AN77 -> 0.003599402006 | F114: =EmissionsArea!AO77 -> 0.71838305 | G114: =EmissionsArea!AP77 -> 0.71838305 | H114: =EmissionsArea!AQ77 -> 0.71838305
A115: Cutting and Removal of Equipment/Modules | B115: =EmissionsArea!AK91+EmissionsArea!AK267 -> 16.97890505 | C115: =EmissionsArea!AL91+EmissionsArea!AL267 -> 1.365909296 | D115: =EmissionsArea!AM91+EmissionsArea!AM267 -> 3.968602421 | E115: =EmissionsArea!AN91+EmissionsArea!AN267 -> 0.006395294817 | F115: =EmissionsArea!AO91+EmissionsArea!AO267 -> 1.260277237 | G115: =EmissionsArea!AP91+EmissionsArea!AP267 -> 1.257059102 | H115: =EmissionsArea!AQ91+EmissionsArea!AQ267 -> 1.257059102
A116: Demobilization | B116: =EmissionsArea!AK96 -> 5.22932025 | C116: =EmissionsArea!AL96 -> 0.4166587425 | D116: =EmissionsArea!AM96 -> 1.12683417 | E116: =EmissionsArea!AN96 -> 0.00185943287 | F116: =EmissionsArea!AO96 -> 0.37111305 | G116: =EmissionsArea!AP96 -> 0.37111305 | H116: =EmissionsArea!AQ96 -> 0.37111305
A117: Jacket Removal
A118: Mobilization | B118: =EmissionsArea!AK103 -> 5.22932025 | C118: =EmissionsArea!AL103 -> 0.4166587425 | D118: =EmissionsArea!AM103 -> 1.12683417 | E118: =EmissionsArea!AN103 -> 0.00185943287 | F118: =EmissionsArea!AO103 -> 0.37111305 | G118: =EmissionsArea!AP103 -> 0.37111305 | H118: =EmissionsArea!AQ103 -> 0.37111305
A119: Removal of Jacket Sections | B119: =EmissionsArea!AK119+EmissionsArea!AK280 -> 20.80420469 | C119: =EmissionsArea!AL119+EmissionsArea!AL280 -> 1.647043326 | D119: =EmissionsArea!AM119+EmissionsArea!AM280 -> 4.964281619 | E119: =EmissionsArea!AN119+EmissionsArea!AN280 -> 0.007912987535 | F119: =EmissionsArea!AO119+EmissionsArea!AO280 -> 1.550789617 | G119: =EmissionsArea!AP119+EmissionsArea!AP280 -> 1.543498815 | H119: =EmissionsArea!AQ119+EmissionsArea!AQ280 -> 1.543498815
A120: Demobilization | B120: =EmissionsArea!AK126 -> 6.836089 | C120: =EmissionsArea!AL126 -> 0.54468193 | D120: =EmissionsArea!AM126 -> 1.47306692 | E120: =EmissionsArea!AN126 -> 0.002430764991 | F120: =EmissionsArea!AO126 -> 0.4851418 | G120: =EmissionsArea!AP126 -> 0.4851418 | H120: =EmissionsArea!AQ126 -> 0.4851418
A121: Debris Removal
A122: Mobilization | B122: =EmissionsArea!AK133 -> 44.400587 | C122: =EmissionsArea!AL133 -> 3.53772419 | D122: =EmissionsArea!AM133 -> 9.56761036 | E122: =EmissionsArea!AN133 -> 0.0157878858 | F122: =EmissionsArea!AO133 -> 3.1510094 | G122: =EmissionsArea!AP133 -> 3.1510094 | H122: =EmissionsArea!AQ133 -> 3.1510094
A123: Removal of Shell Mounds | B123: =EmissionsArea!AK146+EmissionsArea!AK293 -> 5.506509159 | C123: =EmissionsArea!AL146+EmissionsArea!AL293 -> 0.4322260948 | D123: =EmissionsArea!AM146+EmissionsArea!AM293 -> 1.483043472 | E123: =EmissionsArea!AN146+EmissionsArea!AN293 -> 0.002275512152 | F123: =EmissionsArea!AO146+EmissionsArea!AO293 -> 0.4365903848 | G123: =EmissionsArea!AP146+EmissionsArea!AP293 -> 0.4320993725 | H123: =EmissionsArea!AQ146+EmissionsArea!AQ293 -> 0.4320993725
A124: Surveys of Platform and Pipelines Areas | B124: =EmissionsArea!AK154+EmissionsArea!AK305 -> 2.453545682 | C124: =EmissionsArea!AL154+EmissionsArea!AL305 -> 0.1622868689 | D124: =EmissionsArea!AM154+EmissionsArea!AM305 -> 0.8596160439 | E124: =EmissionsArea!AN154+EmissionsArea!AN305 -> 0.001227478781 | F124: =EmissionsArea!AO154+EmissionsArea!AO305 -> 0.2149386216 | G124: =EmissionsArea!AP154+EmissionsArea!AP305 -> 0.2106081101 | H124: =EmissionsArea!AQ154+EmissionsArea!AQ305 -> 0.2106081101
A125: Demobilization | B125: =EmissionsArea!AK160 -> 29.984812 | C125: =EmissionsArea!AL160 -> 2.38911244 | D125: =EmissionsArea!AM160 -> 6.46124336 | E125: =EmissionsArea!AN160 -> 0.01066194885 | F125: =EmissionsArea!AO160 -> 2.1279544 | G125: =EmissionsArea!AP160 -> 2.1279544 | H125: =EmissionsArea!AQ160 -> 2.1279544
A126: Pipelines and Power Cable Removal
A127: Mobilization | B127: =EmissionsArea!AK167 -> 8.70240525 | C127: =EmissionsArea!AL167 -> 0.6933851925 | D127: =EmissionsArea!AM167 -> 1.87522797 | E127: =EmissionsArea!AN167 -> 0.003094386574 | F127: =EmissionsArea!AO167 -> 0.61759005 | G127: =EmissionsArea!AP167 -> 0.61759005 | H127: =EmissionsArea!AQ167 -> 0.61759005
A128: Pipeline Removal | B128: =EmissionsArea!AK179+EmissionsArea!AK318 -> 66.86171535 | C128: =EmissionsArea!AL179+EmissionsArea!AL318 -> 5.193086622 | D128: =EmissionsArea!AM179+EmissionsArea!AM318 -> 15.74584766 | E128: =EmissionsArea!AN179+EmissionsArea!AN318 -> 0.02521040276 | F128: =EmissionsArea!AO179+EmissionsArea!AO318 -> 4.910084965 | G128: =EmissionsArea!AP179+EmissionsArea!AP318 -> 4.892572377 | H128: =EmissionsArea!AQ179+EmissionsArea!AQ318 -> 4.892572377
A129: Power Cable Removal | B129: =EmissionsArea!AK185+EmissionsArea!AK330 -> 0.617163558 | C129: =EmissionsArea!AL185+EmissionsArea!AL330 -> 0.04305625412 | D129: =EmissionsArea!AM185+EmissionsArea!AM330 -> 0.2180924728 | E129: =EmissionsArea!AN185+EmissionsArea!AN330 -> 0.0003158950617 | F129: =EmissionsArea!AO185+EmissionsArea!AO330 -> 0.05443498568 | G129: =EmissionsArea!AP185+EmissionsArea!AP330 -> 0.05388905975 | H129: =EmissionsArea!AQ185+EmissionsArea!AQ330 -> 0.05388905975
A130: Demobilization | B130: =EmissionsArea!AK191 -> 5.876949 | C130: =EmissionsArea!AL191 -> 0.46826013 | D130: =EmissionsArea!AM191 -> 1.26638772 | E130: =EmissionsArea!AN191 -> 0.002089715608 | F130: =EmissionsArea!AO191 -> 0.4170738 | G130: =EmissionsArea!AP191 -> 0.4170738 | H130: =EmissionsArea!AQ191 -> 0.4170738
A133: ="Platform "&Plat -> Platform A | B133: Tons per Year
A134: PHASE | B134: NOx | C134: ROC | D134: CO | E134: SOx | F134: PM | G134: PM10 | H134: PM2.5 | I134: GHG MT
A135: Pre-Abandonment
A136: Mobilization | B136: =EmissionsArea!AR10 -> 0 | C136: =EmissionsArea!AS10 -> 0 | D136: =EmissionsArea!AT10 -> 0 | E136: =EmissionsArea!AU10 -> 0 | F136: =EmissionsArea!AV10 -> 0 | G136: =EmissionsArea!AW10 -> 0 | H136: =EmissionsArea!AX10 -> 0 | I136: =EmissionsArea!AY10 -> 0
A137: Well Plugging and Abandonment: Rigless | B137: =EmissionsArea!AR20+EmissionsArea!AR206 -> 24.97526166 | C137: =EmissionsArea!AS20+EmissionsArea!AS206 -> 2.172999812 | D137: =EmissionsArea!AT20+EmissionsArea!AT206 -> 9.720677371 | E137: =EmissionsArea!AU20+EmissionsArea!AU206 -> 0.01389216316 | F137: =EmissionsArea!AV20+EmissionsArea!AV206 -> 2.546955514 | G137: =EmissionsArea!AW20+EmissionsArea!AW206 -> 2.501901631 | H137: =EmissionsArea!AX20+EmissionsArea!AX206 -> 2.501901631 | I137: =EmissionsArea!AY20+EmissionsArea!AY206 -> 1375.511058
A138: Well Plugging and Abandonment: Rigs | B138: =EmissionsArea!AR31+EmissionsArea!AR218 -> 0 | C138: =EmissionsArea!AS31+EmissionsArea!AS218 -> 0 | D138: =EmissionsArea!AT31+EmissionsArea!AT218 -> 0 | E138: =EmissionsArea!AU31+EmissionsArea!AU218 -> 0 | F138: =EmissionsArea!AV31+EmissionsArea!AV218 -> 0 | G138: =EmissionsArea!AW31+EmissionsArea!AW218 -> 0 | H138: =EmissionsArea!AX31+EmissionsArea!AX218 -> 0 | I138: =EmissionsArea!AY31+EmissionsArea!AY218 -> 0
A139: Topside Platform Preparation | B139: =EmissionsArea!AR45+EmissionsArea!AR230 -> 55.01679639 | C139: =EmissionsArea!AS45+EmissionsArea!AS230 -> 4.376817851 | D139: =EmissionsArea!AT45+EmissionsArea!AT230 -> 14.70443377 | E139: =EmissionsArea!AU45+EmissionsArea!AU230 -> 0.02272041997 | F139: =EmissionsArea!AV45+EmissionsArea!AV230 -> 4.37669705 | G139: =EmissionsArea!AW45+EmissionsArea!AW230 -> 4.336317222 | H139: =EmissionsArea!AX45+EmissionsArea!AX230 -> 4.336317222 | I139: =EmissionsArea!AY45+EmissionsArea!AY230 -> 2195.658989
A140: Marine Growth Removal | B140: =EmissionsArea!AR53+EmissionsArea!AR242 -> 17.13248703 | C140: =EmissionsArea!AS53+EmissionsArea!AS242 -> 1.31461685 | D140: =EmissionsArea!AT53+EmissionsArea!AT242 -> 4.000655332 | E140: =EmissionsArea!AU53+EmissionsArea!AU242 -> 0.00638208912 | F140: =EmissionsArea!AV53+EmissionsArea!AV242 -> 1.252831873 | G140: =EmissionsArea!AW53+EmissionsArea!AW242 -> 1.244227243 | H140: =EmissionsArea!AX53+EmissionsArea!AX242 -> 1.244227243 | I140: =EmissionsArea!AY53+EmissionsArea!AY242 -> 611.6423655
A141: Conductor Removal | B141: =EmissionsArea!AR65+EmissionsArea!AR254 -> 21.1321496 | C141: =EmissionsArea!AS65+EmissionsArea!AS254 -> 1.739188728 | D141: =EmissionsArea!AT65+EmissionsArea!AT254 -> 5.86770768 | E141: =EmissionsArea!AU65+EmissionsArea!AU254 -> 0.0090319032 | F141: =EmissionsArea!AV65+EmissionsArea!AV254 -> 1.734269124 | G141: =EmissionsArea!AW65+EmissionsArea!AW254 -> 1.720624233 | H141: =EmissionsArea!AX65+EmissionsArea!AX254 -> 1.720624233 | I141: =EmissionsArea!AY65+EmissionsArea!AY254 -> 871.2396364
A142: Demobilization | B142: =EmissionsArea!AR70 -> 0 | C142: =EmissionsArea!AS70 -> 0 | D142: =EmissionsArea!AT70 -> 0 | E142: =EmissionsArea!AU70 -> 0 | F142: =EmissionsArea!AV70 -> 0 | G142: =EmissionsArea!AW70 -> 0 | H142: =EmissionsArea!AX70 -> 0 | I142: =EmissionsArea!AY70 -> 0
A143: Topside Removal
A144: Mobilization | B144: =EmissionsArea!AR77 -> 10.12267025 | C144: =EmissionsArea!AS77 -> 0.8065482425 | D144: =EmissionsArea!AT77 -> 2.18127217 | E144: =EmissionsArea!AU77 -> 0.003599402006 | F144: =EmissionsArea!AV77 -> 0.71838305 | G144: =EmissionsArea!AW77 -> 0.71838305 | H144: =EmissionsArea!AX77 -> 0.71838305 | I144: =EmissionsArea!AY77 -> 339.1998344
A145: Cutting and Removal of Equipment/Modules | B145: =EmissionsArea!AR91+EmissionsArea!AR267 -> 16.97890505 | C145: =EmissionsArea!AS91+EmissionsArea!AS267 -> 1.365909296 | D145: =EmissionsArea!AT91+EmissionsArea!AT267 -> 3.968602421 | E145: =EmissionsArea!AU91+EmissionsArea!AU267 -> 0.006395294817 | F145: =EmissionsArea!AV91+EmissionsArea!AV267 -> 1.260277237 | G145: =EmissionsArea!AW91+EmissionsArea!AW267 -> 1.257059102 | H145: =EmissionsArea!AX91+EmissionsArea!AX267 -> 1.257059102 | I145: =EmissionsArea!AY91+EmissionsArea!AY267 -> 607.417545
A146: Demobilization | B146: =EmissionsArea!AR96 -> 5.22932025 | C146: =EmissionsArea!AS96 -> 0.4166587425 | D146: =EmissionsArea!AT96 -> 1.12683417 | E146: =EmissionsArea!AU96 -> 0.00185943287 | F146: =EmissionsArea!AV96 -> 0.37111305 | G146: =EmissionsArea!AW96 -> 0.37111305 | H146: =EmissionsArea!AX96 -> 0.37111305 | I146: =EmissionsArea!AY96 -> 175.2289187
A147: Jacket Removal
A148: Mobilization | B148: =EmissionsArea!AR103 -> 5.22932025 | C148: =EmissionsArea!AS103 -> 0.4166587425 | D148: =EmissionsArea!AT103 -> 1.12683417 | E148: =EmissionsArea!AU103 -> 0.00185943287 | F148: =EmissionsArea!AV103 -> 0.37111305 | G148: =EmissionsArea!AW103 -> 0.37111305 | H148: =EmissionsArea!AX103 -> 0.37111305 | I148: =EmissionsArea!AY103 -> 175.2289187
A149: Removal of Jacket Sections | B149: =EmissionsArea!AR119+EmissionsArea!AR280 -> 20.80420469 | C149: =EmissionsArea!AS119+EmissionsArea!AS280 -> 1.647043326 | D149: =EmissionsArea!AT119+EmissionsArea!AT280 -> 4.964281619 | E149: =EmissionsArea!AU119+EmissionsArea!AU280 -> 0.007912987535 | F149: =EmissionsArea!AV119+EmissionsArea!AV280 -> 1.550789617 | G149: =EmissionsArea!AW119+EmissionsArea!AW280 -> 1.543498815 | H149: =EmissionsArea!AX119+EmissionsArea!AX280 -> 1.543498815 | I149: =EmissionsArea!AY119+EmissionsArea!AY280 -> 755.5495363
A150: Demobilization | B150: =EmissionsArea!AR126 -> 6.836089 | C150: =EmissionsArea!AS126 -> 0.54468193 | D150: =EmissionsArea!AT126 -> 1.47306692 | E150: =EmissionsArea!AU126 -> 0.002430764991 | F150: =EmissionsArea!AV126 -> 0.4851418 | G150: =EmissionsArea!AW126 -> 0.4851418 | H150: =EmissionsArea!AX126 -> 0.4851418 | I150: =EmissionsArea!AY126 -> 229.070018
A151: Debris Removal
A152: Mobilization | B152: =EmissionsArea!AR133 -> 44.400587 | C152: =EmissionsArea!AS133 -> 3.53772419 | D152: =EmissionsArea!AT133 -> 9.56761036 | E152: =EmissionsArea!AU133 -> 0.0157878858 | F152: =EmissionsArea!AV133 -> 3.1510094 | G152: =EmissionsArea!AW133 -> 3.1510094 | H152: =EmissionsArea!AX133 -> 3.1510094 | I152: =EmissionsArea!AY133 -> 1487.816098
A153: Removal of Shell Mounds | B153: =EmissionsArea!AR146+EmissionsArea!AR293 -> 5.506509159 | C153: =EmissionsArea!AS146+EmissionsArea!AS293 -> 0.4322260948 | D153: =EmissionsArea!AT146+EmissionsArea!AT293 -> 1.483043472 | E153: =EmissionsArea!AU146+EmissionsArea!AU293 -> 0.002275512152 | F153: =EmissionsArea!AV146+EmissionsArea!AV293 -> 0.4365903848 | G153: =EmissionsArea!AW146+EmissionsArea!AW293 -> 0.4320993725 | H153: =EmissionsArea!AX146+EmissionsArea!AX293 -> 0.4320993725 | I153: =EmissionsArea!AY146+EmissionsArea!AY293 -> 220.5047682
A154: Surveys of Platform and Pipelines Areas | B154: =EmissionsArea!AR154+EmissionsArea!AR305 -> 2.453545682 | C154: =EmissionsArea!AS154+EmissionsArea!AS305 -> 0.1622868689 | D154: =EmissionsArea!AT154+EmissionsArea!AT305 -> 0.8596160439 | E154: =EmissionsArea!AU154+EmissionsArea!AU305 -> 0.001227478781 | F154: =EmissionsArea!AV154+EmissionsArea!AV305 -> 0.2149386216 | G154: =EmissionsArea!AW154+EmissionsArea!AW305 -> 0.2106081101 | H154: =EmissionsArea!AX154+EmissionsArea!AX305 -> 0.2106081101 | I154: =EmissionsArea!AY154+EmissionsArea!AY305 -> 122.9794174
A155: Demobilization | B155: =EmissionsArea!AR160 -> 29.984812 | C155: =EmissionsArea!AS160 -> 2.38911244 | D155: =EmissionsArea!AT160 -> 6.46124336 | E155: =EmissionsArea!AU160 -> 0.01066194885 | F155: =EmissionsArea!AV160 -> 2.1279544 | G155: =EmissionsArea!AW160 -> 2.1279544 | H155: =EmissionsArea!AX160 -> 2.1279544 | I155: =EmissionsArea!AY160 -> 1004.758924
A156: Pipelines and Power Cable Removal
A157: Mobilization | B157: =EmissionsArea!AR167 -> 8.70240525 | C157: =EmissionsArea!AS167 -> 0.6933851925 | D157: =EmissionsArea!AT167 -> 1.87522797 | E157: =EmissionsArea!AU167 -> 0.003094386574 | F157: =EmissionsArea!AV167 -> 0.61759005 | G157: =EmissionsArea!AW167 -> 0.61759005 | H157: =EmissionsArea!AX167 -> 0.61759005 | I157: =EmissionsArea!AY167 -> 291.6082759
A158: Pipeline Removal | B158: =EmissionsArea!AR179+EmissionsArea!AR318 -> 66.86171535 | C158: =EmissionsArea!AS179+EmissionsArea!AS318 -> 5.193086622 | D158: =EmissionsArea!AT179+EmissionsArea!AT318 -> 15.74584766 | E158: =EmissionsArea!AU179+EmissionsArea!AU318 -> 0.02521040276 | F158: =EmissionsArea!AV179+EmissionsArea!AV318 -> 4.910084965 | G158: =EmissionsArea!AW179+EmissionsArea!AW318 -> 4.892572377 | H158: =EmissionsArea!AX179+EmissionsArea!AX318 -> 4.892572377 | I158: =EmissionsArea!AY179+EmissionsArea!AY318 -> 2405.31297
A159: Power Cable Removal | B159: =EmissionsArea!AR185+EmissionsArea!AR330 -> 0.617163558 | C159: =EmissionsArea!AS185+EmissionsArea!AS330 -> 0.04305625412 | D159: =EmissionsArea!AT185+EmissionsArea!AT330 -> 0.2180924728 | E159: =EmissionsArea!AU185+EmissionsArea!AU330 -> 0.0003158950617 | F159: =EmissionsArea!AV185+EmissionsArea!AV330 -> 0.05443498568 | G159: =EmissionsArea!AW185+EmissionsArea!AW330 -> 0.05388905975 | H159: =EmissionsArea!AX185+EmissionsArea!AX330 -> 0.05388905975 | I159: =EmissionsArea!AY185+EmissionsArea!AY330 -> 31.22592546
A160: Demobilization | B160: =EmissionsArea!AR191 -> 5.876949 | C160: =EmissionsArea!AS191 -> 0.46826013 | D160: =EmissionsArea!AT191 -> 1.26638772 | E160: =EmissionsArea!AU191 -> 0.002089715608 | F160: =EmissionsArea!AV191 -> 0.4170738 | G160: =EmissionsArea!AW191 -> 0.4170738 | H160: =EmissionsArea!AX191 -> 0.4170738 | I160: =EmissionsArea!AY191 -> 196.9302643
A162: ="Decommissioning Emissions Estimate within "&Inputs!$C$104 -> Decommissioning Emissions Estimate within Total
A163: ="Platform "&Plat -> Platform A | B163: Total Tons
A164: PHASE | B164: NOx | C164: ROC | D164: CO | E164: SOx | F164: PM | G164: PM10 | H164: PM2.5 | I164: GHG MT
A165: Pre-Abandonment
A166: Mobilization | B166: =EmissionsArea!AZ10 -> 0 | C166: =EmissionsArea!BA10 -> 0 | D166: =EmissionsArea!BB10 -> 0 | E166: =EmissionsArea!BC10 -> 0 | F166: =EmissionsArea!BD10 -> 0 | G166: =EmissionsArea!BE10 -> 0 | H166: =EmissionsArea!BF10 -> 0 | I166: =EmissionsArea!BG10 -> 0
A167: Well Plugging and Abandonment: Rigless | B167: =EmissionsArea!AZ20+EmissionsArea!AZ206 -> 24.97526166 | C167: =EmissionsArea!BA20+EmissionsArea!BA206 -> 2.172999812 | D167: =EmissionsArea!BB20+EmissionsArea!BB206 -> 9.720677371 | E167: =EmissionsArea!BC20+EmissionsArea!BC206 -> 0.01389216316 | F167: =EmissionsArea!BD20+EmissionsArea!BD206 -> 2.546955514 | G167: =EmissionsArea!BE20+EmissionsArea!BE206 -> 2.501901631 | H167: =EmissionsArea!BF20+EmissionsArea!BF206 -> 2.501901631 | I167: =EmissionsArea!BG20+EmissionsArea!BG206 -> 1375.511058
A168: Well Plugging and Abandonment: Rigs | B168: =EmissionsArea!AZ31+EmissionsArea!AZ218 -> 0 | C168: =EmissionsArea!BA31+EmissionsArea!BA218 -> 0 | D168: =EmissionsArea!BB31+EmissionsArea!BB218 -> 0 | E168: =EmissionsArea!BC31+EmissionsArea!BC218 -> 0 | F168: =EmissionsArea!BD31+EmissionsArea!BD218 -> 0 | G168: =EmissionsArea!BE31+EmissionsArea!BE218 -> 0 | H168: =EmissionsArea!BF31+EmissionsArea!BF218 -> 0 | I168: =EmissionsArea!BG31+EmissionsArea!BG218 -> 0
A169: Topside Platform Preparation | B169: =EmissionsArea!AZ45+EmissionsArea!AZ230 -> 55.01679639 | C169: =EmissionsArea!BA45+EmissionsArea!BA230 -> 4.376817851 | D169: =EmissionsArea!BB45+EmissionsArea!BB230 -> 14.70443377 | E169: =EmissionsArea!BC45+EmissionsArea!BC230 -> 0.02272041997 | F169: =EmissionsArea!BD45+EmissionsArea!BD230 -> 4.37669705 | G169: =EmissionsArea!BE45+EmissionsArea!BE230 -> 4.336317222 | H169: =EmissionsArea!BF45+EmissionsArea!BF230 -> 4.336317222 | I169: =EmissionsArea!BG45+EmissionsArea!BG230 -> 2195.658989
A170: Marine Growth Removal | B170: =EmissionsArea!AZ53+EmissionsArea!AZ242 -> 17.13248703 | C170: =EmissionsArea!BA53+EmissionsArea!BA242 -> 1.31461685 | D170: =EmissionsArea!BB53+EmissionsArea!BB242 -> 4.000655332 | E170: =EmissionsArea!BC53+EmissionsArea!BC242 -> 0.00638208912 | F170: =EmissionsArea!BD53+EmissionsArea!BD242 -> 1.252831873 | G170: =EmissionsArea!BE53+EmissionsArea!BE242 -> 1.244227243 | H170: =EmissionsArea!BF53+EmissionsArea!BF242 -> 1.244227243 | I170: =EmissionsArea!BG53+EmissionsArea!BG242 -> 611.6423655
A171: Conductor Removal | B171: =EmissionsArea!AZ65+EmissionsArea!AZ254 -> 21.1321496 | C171: =EmissionsArea!BA65+EmissionsArea!BA254 -> 1.739188728 | D171: =EmissionsArea!BB65+EmissionsArea!BB254 -> 5.86770768 | E171: =EmissionsArea!BC65+EmissionsArea!BC254 -> 0.0090319032 | F171: =EmissionsArea!BD65+EmissionsArea!BD254 -> 1.734269124 | G171: =EmissionsArea!BE65+EmissionsArea!BE254 -> 1.720624233 | H171: =EmissionsArea!BF65+EmissionsArea!BF254 -> 1.720624233 | I171: =EmissionsArea!BG65+EmissionsArea!BG254 -> 871.2396364
A172: Demobilization | B172: =EmissionsArea!AZ70 -> 0 | C172: =EmissionsArea!BA70 -> 0 | D172: =EmissionsArea!BB70 -> 0 | E172: =EmissionsArea!BC70 -> 0 | F172: =EmissionsArea!BD70 -> 0 | G172: =EmissionsArea!BE70 -> 0 | H172: =EmissionsArea!BF70 -> 0 | I172: =EmissionsArea!BG70 -> 0
A173: Topside Removal
A174: Mobilization | B174: =EmissionsArea!AZ77 -> 10.12267025 | C174: =EmissionsArea!BA77 -> 0.8065482425 | D174: =EmissionsArea!BB77 -> 2.18127217 | E174: =EmissionsArea!BC77 -> 0.003599402006 | F174: =EmissionsArea!BD77 -> 0.71838305 | G174: =EmissionsArea!BE77 -> 0.71838305 | H174: =EmissionsArea!BF77 -> 0.71838305 | I174: =EmissionsArea!BG77 -> 339.1998344
A175: Cutting and Removal of Equipment/Modules | B175: =EmissionsArea!AZ91+EmissionsArea!AZ267 -> 16.97890505 | C175: =EmissionsArea!BA91+EmissionsArea!BA267 -> 1.365909296 | D175: =EmissionsArea!BB91+EmissionsArea!BB267 -> 3.968602421 | E175: =EmissionsArea!BC91+EmissionsArea!BC267 -> 0.006395294817 | F175: =EmissionsArea!BD91+EmissionsArea!BD267 -> 1.260277237 | G175: =EmissionsArea!BE91+EmissionsArea!BE267 -> 1.257059102 | H175: =EmissionsArea!BF91+EmissionsArea!BF267 -> 1.257059102 | I175: =EmissionsArea!BG91+EmissionsArea!BG267 -> 607.417545
A176: Demobilization | B176: =EmissionsArea!AZ96 -> 5.22932025 | C176: =EmissionsArea!BA96 -> 0.4166587425 | D176: =EmissionsArea!BB96 -> 1.12683417 | E176: =EmissionsArea!BC96 -> 0.00185943287 | F176: =EmissionsArea!BD96 -> 0.37111305 | G176: =EmissionsArea!BE96 -> 0.37111305 | H176: =EmissionsArea!BF96 -> 0.37111305 | I176: =EmissionsArea!BG96 -> 175.2289187
A177: Jacket Removal
A178: Mobilization | B178: =EmissionsArea!AZ103 -> 5.22932025 | C178: =EmissionsArea!BA103 -> 0.4166587425 | D178: =EmissionsArea!BB103 -> 1.12683417 | E178: =EmissionsArea!BC103 -> 0.00185943287 | F178: =EmissionsArea!BD103 -> 0.37111305 | G178: =EmissionsArea!BE103 -> 0.37111305 | H178: =EmissionsArea!BF103 -> 0.37111305 | I178: =EmissionsArea!BG103 -> 175.2289187
A179: Removal of Jacket Sections | B179: =EmissionsArea!AZ119+EmissionsArea!AZ280 -> 20.80420469 | C179: =EmissionsArea!BA119+EmissionsArea!BA280 -> 1.647043326 | D179: =EmissionsArea!BB119+EmissionsArea!BB280 -> 4.964281619 | E179: =EmissionsArea!BC119+EmissionsArea!BC280 -> 0.007912987535 | F179: =EmissionsArea!BD119+EmissionsArea!BD280 -> 1.550789617 | G179: =EmissionsArea!BE119+EmissionsArea!BE280 -> 1.543498815 | H179: =EmissionsArea!BF119+EmissionsArea!BF280 -> 1.543498815 | I179: =EmissionsArea!BG119+EmissionsArea!BG280 -> 755.5495363
A180: Demobilization | B180: =EmissionsArea!AZ126 -> 6.836089 | C180: =EmissionsArea!BA126 -> 0.54468193 | D180: =EmissionsArea!BB126 -> 1.47306692 | E180: =EmissionsArea!BC126 -> 0.002430764991 | F180: =EmissionsArea!BD126 -> 0.4851418 | G180: =EmissionsArea!BE126 -> 0.4851418 | H180: =EmissionsArea!BF126 -> 0.4851418 | I180: =EmissionsArea!BG126 -> 229.070018
A181: Debris Removal
A182: Mobilization | B182: =EmissionsArea!AZ133 -> 44.400587 | C182: =EmissionsArea!BA133 -> 3.53772419 | D182: =EmissionsArea!BB133 -> 9.56761036 | E182: =EmissionsArea!BC133 -> 0.0157878858 | F182: =EmissionsArea!BD133 -> 3.1510094 | G182: =EmissionsArea!BE133 -> 3.1510094 | H182: =EmissionsArea!BF133 -> 3.1510094 | I182: =EmissionsArea!BG133 -> 1487.816098
A183: Removal of Shell Mounds | B183: =EmissionsArea!AZ146+EmissionsArea!AZ293 -> 5.506509159 | C183: =EmissionsArea!BA146+EmissionsArea!BA293 -> 0.4322260948 | D183: =EmissionsArea!BB146+EmissionsArea!BB293 -> 1.483043472 | E183: =EmissionsArea!BC146+EmissionsArea!BC293 -> 0.002275512152 | F183: =EmissionsArea!BD146+EmissionsArea!BD293 -> 0.4365903848 | G183: =EmissionsArea!BE146+EmissionsArea!BE293 -> 0.4320993725 | H183: =EmissionsArea!BF146+EmissionsArea!BF293 -> 0.4320993725 | I183: =EmissionsArea!BG146+EmissionsArea!BG293 -> 220.5047682
A184: Surveys of Platform and Pipelines Areas | B184: =EmissionsArea!AZ154+EmissionsArea!AZ305 -> 2.453545682 | C184: =EmissionsArea!BA154+EmissionsArea!BA305 -> 0.1622868689 | D184: =EmissionsArea!BB154+EmissionsArea!BB305 -> 0.8596160439 | E184: =EmissionsArea!BC154+EmissionsArea!BC305 -> 0.001227478781 | F184: =EmissionsArea!BD154+EmissionsArea!BD305 -> 0.2149386216 | G184: =EmissionsArea!BE154+EmissionsArea!BE305 -> 0.2106081101 | H184: =EmissionsArea!BF154+EmissionsArea!BF305 -> 0.2106081101 | I184: =EmissionsArea!BG154+EmissionsArea!BG305 -> 122.9794174
A185: Demobilization | B185: =EmissionsArea!AZ160 -> 29.984812 | C185: =EmissionsArea!BA160 -> 2.38911244 | D185: =EmissionsArea!BB160 -> 6.46124336 | E185: =EmissionsArea!BC160 -> 0.01066194885 | F185: =EmissionsArea!BD160 -> 2.1279544 | G185: =EmissionsArea!BE160 -> 2.1279544 | H185: =EmissionsArea!BF160 -> 2.1279544 | I185: =EmissionsArea!BG160 -> 1004.758924
A186: Pipelines and Power Cable Removal
A187: Mobilization | B187: =EmissionsArea!AZ167 -> 8.70240525 | C187: =EmissionsArea!BA167 -> 0.6933851925 | D187: =EmissionsArea!BB167 -> 1.87522797 | E187: =EmissionsArea!BC167 -> 0.003094386574 | F187: =EmissionsArea!BD167 -> 0.61759005 | G187: =EmissionsArea!BE167 -> 0.61759005 | H187: =EmissionsArea!BF167 -> 0.61759005 | I187: =EmissionsArea!BG167 -> 291.6082759
A188: Pipeline Removal | B188: =EmissionsArea!AZ179+EmissionsArea!AZ318 -> 66.86171535 | C188: =EmissionsArea!BA179+EmissionsArea!BA318 -> 5.193086622 | D188: =EmissionsArea!BB179+EmissionsArea!BB318 -> 15.74584766 | E188: =EmissionsArea!BC179+EmissionsArea!BC318 -> 0.02521040276 | F188: =EmissionsArea!BD179+EmissionsArea!BD318 -> 4.910084965 | G188: =EmissionsArea!BE179+EmissionsArea!BE318 -> 4.892572377 | H188: =EmissionsArea!BF179+EmissionsArea!BF318 -> 4.892572377 | I188: =EmissionsArea!BG179+EmissionsArea!BG318 -> 2405.31297
A189: Power Cable Removal | B189: =EmissionsArea!AZ185+EmissionsArea!AZ330 -> 0.617163558 | C189: =EmissionsArea!BA185+EmissionsArea!BA330 -> 0.04305625412 | D189: =EmissionsArea!BB185+EmissionsArea!BB330 -> 0.2180924728 | E189: =EmissionsArea!BC185+EmissionsArea!BC330 -> 0.0003158950617 | F189: =EmissionsArea!BD185+EmissionsArea!BD330 -> 0.05443498568 | G189: =EmissionsArea!BE185+EmissionsArea!BE330 -> 0.05388905975 | H189: =EmissionsArea!BF185+EmissionsArea!BF330 -> 0.05388905975 | I189: =EmissionsArea!BG185+EmissionsArea!BG330 -> 31.22592546
A190: Demobilization | B190: =EmissionsArea!AZ191 -> 5.876949 | C190: =EmissionsArea!BA191 -> 0.46826013 | D190: =EmissionsArea!BB191 -> 1.26638772 | E190: =EmissionsArea!BC191 -> 0.002089715608 | F190: =EmissionsArea!BD191 -> 0.4170738 | G190: =EmissionsArea!BE191 -> 0.4170738 | H190: =EmissionsArea!BF191 -> 0.4170738 | I190: =EmissionsArea!BG191 -> 196.9302643
A193: ="Platform "&Plat -> Platform A | B193: Potential to Emit, Total Tons
A194: PHASE | B194: NOx | C194: ROC | D194: CO | E194: SOx | F194: PM | G194: PM10 | H194: PM2.5 | I194: GHG MT
A195: Pre-Abandonment
A196: Mobilization | B196: =EmissionsArea!BH10 -> 0 | C196: =EmissionsArea!BI10 -> 0 | D196: =EmissionsArea!BJ10 -> 0 | E196: =EmissionsArea!BK10 -> 0 | F196: =EmissionsArea!BL10 -> 0 | G196: =EmissionsArea!BM10 -> 0 | H196: =EmissionsArea!BN10 -> 0 | I196: =EmissionsArea!BO10 -> 0
A197: Well Plugging and Abandonment: Rigless | B197: =EmissionsArea!BH20+EmissionsArea!BH206 -> 42.9157227 | C197: =EmissionsArea!BI20+EmissionsArea!BI206 -> 3.77667285 | D197: =EmissionsArea!BJ20+EmissionsArea!BJ206 -> 16.20234065 | E197: =EmissionsArea!BK20+EmissionsArea!BK206 -> 0.02359498273 | F197: =EmissionsArea!BL20+EmissionsArea!BL206 -> 4.360954819 | G197: =EmissionsArea!BM20+EmissionsArea!BM206 -> 4.292284552 | H197: =EmissionsArea!BN20+EmissionsArea!BN206 -> 4.292284552 | I197: =EmissionsArea!BO20+EmissionsArea!BO206 -> 2325.128683
A198: Well Plugging and Abandonment: Rigs | B198: =EmissionsArea!BH31+EmissionsArea!BH218 -> 0 | C198: =EmissionsArea!BI31+EmissionsArea!BI218 -> 0 | D198: =EmissionsArea!BJ31+EmissionsArea!BJ218 -> 0 | E198: =EmissionsArea!BK31+EmissionsArea!BK218 -> 0 | F198: =EmissionsArea!BL31+EmissionsArea!BL218 -> 0 | G198: =EmissionsArea!BM31+EmissionsArea!BM218 -> 0 | H198: =EmissionsArea!BN31+EmissionsArea!BN218 -> 0 | I198: =EmissionsArea!BO31+EmissionsArea!BO218 -> 0
A199: Topside Platform Preparation | B199: =EmissionsArea!BH45+EmissionsArea!BH230 -> 146.0918445 | C199: =EmissionsArea!BI45+EmissionsArea!BI230 -> 11.08160984 | D199: =EmissionsArea!BJ45+EmissionsArea!BJ230 -> 36.01667837 | E199: =EmissionsArea!BK45+EmissionsArea!BK230 -> 0.05589351852 | F199: =EmissionsArea!BL45+EmissionsArea!BL230 -> 11.12542747 | G199: =EmissionsArea!BM45+EmissionsArea!BM230 -> 10.92609282 | H199: =EmissionsArea!BN45+EmissionsArea!BN230 -> 10.92609282 | I199: =EmissionsArea!BO45+EmissionsArea!BO230 -> 5453.250332
A200: Marine Growth Removal | B200: =EmissionsArea!BH53+EmissionsArea!BH242 -> 52.16426968 | C200: =EmissionsArea!BI53+EmissionsArea!BI242 -> 3.785142176 | D200: =EmissionsArea!BJ53+EmissionsArea!BJ242 -> 11.72032981 | E200: =EmissionsArea!BK53+EmissionsArea!BK242 -> 0.01837838955 | F200: =EmissionsArea!BL53+EmissionsArea!BL242 -> 3.74256412 | G200: =EmissionsArea!BM53+EmissionsArea!BM242 -> 3.660554861 | H200: =EmissionsArea!BN53+EmissionsArea!BN242 -> 3.660554861 | I200: =EmissionsArea!BO53+EmissionsArea!BO242 -> 1798.799956
A201: Conductor Removal | B201: =EmissionsArea!BH65+EmissionsArea!BH254 -> 31.69170637 | C201: =EmissionsArea!BI65+EmissionsArea!BI254 -> 2.633311763 | D201: =EmissionsArea!BJ65+EmissionsArea!BJ254 -> 8.935330503 | E201: =EmissionsArea!BK65+EmissionsArea!BK254 -> 0.01379322274 | F201: =EmissionsArea!BL65+EmissionsArea!BL254 -> 2.64744377 | G201: =EmissionsArea!BM65+EmissionsArea!BM254 -> 2.626646489 | H201: =EmissionsArea!BN65+EmissionsArea!BN254 -> 2.626646489 | I201: =EmissionsArea!BO65+EmissionsArea!BO254 -> 1330.610246
A202: Demobilization | B202: =EmissionsArea!BH70 -> 0 | C202: =EmissionsArea!BI70 -> 0 | D202: =EmissionsArea!BJ70 -> 0 | E202: =EmissionsArea!BK70 -> 0 | F202: =EmissionsArea!BL70 -> 0 | G202: =EmissionsArea!BM70 -> 0 | H202: =EmissionsArea!BN70 -> 0 | I202: =EmissionsArea!BO70 -> 0
A203: Topside Removal
A204: Mobilization | B204: =EmissionsArea!BH77 -> 10.12267025 | C204: =EmissionsArea!BI77 -> 0.8065482425 | D204: =EmissionsArea!BJ77 -> 2.18127217 | E204: =EmissionsArea!BK77 -> 0.003599402006 | F204: =EmissionsArea!BL77 -> 0.71838305 | G204: =EmissionsArea!BM77 -> 0.71838305 | H204: =EmissionsArea!BN77 -> 0.71838305 | I204: =EmissionsArea!BO77 -> 339.1998344
A205: Cutting and Removal of Equipment/Modules | B205: =EmissionsArea!BH91+EmissionsArea!BH267 -> 77.63365905 | C205: =EmissionsArea!BI91+EmissionsArea!BI267 -> 6.211168095 | D205: =EmissionsArea!BJ91+EmissionsArea!BJ267 -> 17.22556527 | E205: =EmissionsArea!BK91+EmissionsArea!BK267 -> 0.02820020852 | F205: =EmissionsArea!BL91+EmissionsArea!BL267 -> 5.603437116 | G205: =EmissionsArea!BM91+EmissionsArea!BM267 -> 5.598532097 | H205: =EmissionsArea!BN91+EmissionsArea!BN267 -> 5.598532097 | I205: =EmissionsArea!BO91+EmissionsArea!BO267 -> 2664.782793
A206: Demobilization | B206: =EmissionsArea!BH96 -> 5.22932025 | C206: =EmissionsArea!BI96 -> 0.4166587425 | D206: =EmissionsArea!BJ96 -> 1.12683417 | E206: =EmissionsArea!BK96 -> 0.00185943287 | F206: =EmissionsArea!BL96 -> 0.37111305 | G206: =EmissionsArea!BM96 -> 0.37111305 | H206: =EmissionsArea!BN96 -> 0.37111305 | I206: =EmissionsArea!BO96 -> 175.2289187
A207: Jacket Removal
A208: Mobilization | B208: =EmissionsArea!BH103 -> 5.22932025 | C208: =EmissionsArea!BI103 -> 0.4166587425 | D208: =EmissionsArea!BJ103 -> 1.12683417 | E208: =EmissionsArea!BK103 -> 0.00185943287 | F208: =EmissionsArea!BL103 -> 0.37111305 | G208: =EmissionsArea!BM103 -> 0.37111305 | H208: =EmissionsArea!BN103 -> 0.37111305 | I208: =EmissionsArea!BO103 -> 175.2289187
A209: Removal of Jacket Sections | B209: =EmissionsArea!BH119+EmissionsArea!BH280 -> 106.3270359 | C209: =EmissionsArea!BI119+EmissionsArea!BI280 -> 8.338734075 | D209: =EmissionsArea!BJ119+EmissionsArea!BJ280 -> 23.61657017 | E209: =EmissionsArea!BK119+EmissionsArea!BK280 -> 0.03833163397 | F209: =EmissionsArea!BL119+EmissionsArea!BL280 -> 7.644959738 | G209: =EmissionsArea!BM119+EmissionsArea!BM280 -> 7.608968759 | H209: =EmissionsArea!BN119+EmissionsArea!BN280 -> 7.608968759 | I209: =EmissionsArea!BO119+EmissionsArea!BO280 -> 3645.867278
A210: Demobilization | B210: =EmissionsArea!BH126 -> 6.836089 | C210: =EmissionsArea!BI126 -> 0.54468193 | D210: =EmissionsArea!BJ126 -> 1.47306692 | E210: =EmissionsArea!BK126 -> 0.002430764991 | F210: =EmissionsArea!BL126 -> 0.4851418 | G210: =EmissionsArea!BM126 -> 0.4851418 | H210: =EmissionsArea!BN126 -> 0.4851418 | I210: =EmissionsArea!BO126 -> 229.070018
A211: Debris Removal
A212: Mobilization | B212: =EmissionsArea!BH133 -> 44.400587 | C212: =EmissionsArea!BI133 -> 3.53772419 | D212: =EmissionsArea!BJ133 -> 9.56761036 | E212: =EmissionsArea!BK133 -> 0.0157878858 | F212: =EmissionsArea!BL133 -> 3.1510094 | G212: =EmissionsArea!BM133 -> 3.1510094 | H212: =EmissionsArea!BN133 -> 3.1510094 | I212: =EmissionsArea!BO133 -> 1487.816098
A213: Removal of Shell Mounds | B213: =EmissionsArea!BH146+EmissionsArea!BH293 -> 42.42785679 | C213: =EmissionsArea!BI146+EmissionsArea!BI293 -> 3.298536437 | D213: =EmissionsArea!BJ146+EmissionsArea!BJ293 -> 9.576669307 | E213: =EmissionsArea!BK146+EmissionsArea!BK293 -> 0.01540922927 | F213: =EmissionsArea!BL146+EmissionsArea!BL293 -> 3.072096311 | G213: =EmissionsArea!BM146+EmissionsArea!BM293 -> 3.04992647 | H213: =EmissionsArea!BN146+EmissionsArea!BN293 -> 3.04992647 | I213: =EmissionsArea!BO146+EmissionsArea!BO293 -> 1472.815367
... 38 more rows

Sheet EmissionsEquipment
A1: Air Emissions Associated with Decommissioning Operations for Pacific Outer Continental Shelf (OCS) Oil and Gas Platforms: Emissions Summary by Equipment within Defined Area
A2: ="Platform: "&Plat -> Platform: A
A5: Queries | F5: Select Value
A6: Emissions Type (peak day, total tons, PTE tons) --> | F6: TotalTons
A7: Phase (All Phases or Specify Phase) --> | F7: All
A8: Subphase (All Subphases or Specify Subphase) --> | F8: All
A9: ="Defined area: "&Inputs!$C$104 -> Defined area: Total | B9: ="Pipeline removal: "&Inputs!$C$110 -> Pipeline removal: Shallow | F9: ="Use of all Tier 4 engines: "&Inputs!$C$127 -> Use of all Tier 4 engines: No
A10: ="Jacket removal: "&Inputs!$C$107 -> Jacket removal: Full | B10: ="Shell mounds removal: "&Inputs!$C$122 -> Shell mounds removal: Yes
A11: ="Current Platform (Platform "&Plat&") is located in "&VLOOKUP(Plat,Platforms!$A$7:$C$30,3,0) -> Current Platform (Platform A) is located in SBCAPCD
A13: ="Platform "&Plat&" by Equipment - "&IF($F$6="PTE","PTE Total Tons",IF($F$6="peakday","Peak Day, pounds/day","Total Tons")) -> Platform A by Equipment - Total Tons
A14: Equipment | B14: NOx | C14: ROC | D14: CO | E14: SOx | F14: PM | G14: PM10 | H14: PM2.5 | I14: GHG MT
A15: Cargo Barges & Tugs | B15: =SUMIFS(IF($F$6="totaltons",INDIRECT(Plat&"!BZ$798:BZ$985"),IF($F$6="peakday",INDIRECT(Plat&"!BD$798:BD$985"),INDIRECT(Plat&"!CH$798:CH$985"))),INDIRECT(Plat&"!$Y$798:$Y$985"),IF($F$7<>"All",$F$7,"*"),INDIRECT(Plat&"!$Z$798:$Z$985"),IF($F$8<>"All",$F$8,"*"),INDIRECT(Plat&"!$AA$798:$AA$985"),"Cargo Barge Tug")+SUMIFS(IF($F$6="totaltons",INDIRECT(Plat&"!BZ$798:BZ$985"),IF($F$6="peakday",INDIRECT(Plat&"!BD$798:BD$985"),INDIRECT(Plat&"!CH$798:CH$985"))),INDIRECT(Plat&"!$Y$798:$Y$985"),IF($F$7<>"All",$F$7,"*"),INDIRECT(Plat&"!$Z$798:$Z$985"),IF($F$8<>"All",$F$8,"*"),INDIRECT(Plat&"!$AA$798:$AA$985"),"Cargo Barge Tug-Aux") -> 146.0552335 | C15: =SUMIFS(IF($F$6="totaltons",INDIRECT(Plat&"!CA$798:CA$985"),IF($F$6="peakday",INDIRECT(Plat&"!BE$798:BE$985"),INDIRECT(Plat&"!CI$798:CI$985"))),INDIRECT(Plat&"!$Y$798:$Y$985"),IF($F$7<>"All",$F$7,"*"),INDIRECT(Plat&"!$Z$798:$Z$985"),IF($F$8<>"All",$F$8,"*"),INDIRECT(Plat&"!$AA$798:$AA$985"),"Cargo Barge Tug")+SUMIFS(IF($F$6="totaltons",INDIRECT(Plat&"!CA$798:CA$985"),IF($F$6="peakday",INDIRECT(Plat&"!BE$798:BE$985"),INDIRECT(Plat&"!CI$798:CI$985"))),INDIRECT(Plat&"!$Y$798:$Y$985"),IF($F$7<>"All",$F$7,"*"),INDIRECT(Plat&"!$Z$798:$Z$985"),IF($F$8<>"All",$F$8,"*"),INDIRECT(Plat&"!$AA$798:$AA$985"),"Cargo Barge Tug-Aux") -> 11.63730409 | D15: =SUMIFS(IF($F$6="totaltons",INDIRECT(Plat&"!CB$798:CB$985"),IF($F$6="peakday",INDIRECT(Plat&"!BF$798:BF$985"),INDIRECT(Plat&"!CJ$798:CJ$985"))),INDIRECT(Plat&"!$Y$798:$Y$985"),IF($F$7<>"All",$F$7,"*"),INDIRECT(Plat&"!$Z$798:$Z$985"),IF($F$8<>"All",$F$8,"*"),INDIRECT(Plat&"!$AA$798:$AA$985"),"Cargo Barge Tug")+SUMIFS(IF($F$6="totaltons",INDIRECT(Plat&"!CB$798:CB$985"),IF($F$6="peakday",INDIRECT(Plat&"!BF$798:BF$985"),INDIRECT(Plat&"!CJ$798:CJ$985"))),INDIRECT(Plat&"!$Y$798:$Y$985"),IF($F$7<>"All",$F$7,"*"),INDIRECT(Plat&"!$Z$798:$Z$985"),IF($F$8<>"All",$F$8,"*"),INDIRECT(Plat&"!$AA$798:$AA$985"),"Cargo Barge Tug-Aux") -> 31.47254708 | E15: =SUMIFS(IF($F$6="totaltons",INDIRECT(Plat&"!CC$798:CC$985"),IF($F$6="peakday",INDIRECT(Plat&"!BG$798:BG$985"),INDIRECT(Plat&"!CK$798:CK$985"))),INDIRECT(Plat&"!$Y$798:$Y$985"),IF($F$7<>"All",$F$7,"*"),INDIRECT(Plat&"!$Z$798:$Z$985"),IF($F$8<>"All",$F$8,"*"),INDIRECT(Plat&"!$AA$798:$AA$985"),"Cargo Barge Tug")+SUMIFS(IF($F$6="totaltons",INDIRECT(Plat&"!CC$798:CC$985"),IF($F$6="peakday",INDIRECT(Plat&"!BG$798:BG$985"),INDIRECT(Plat&"!CK$798:CK$985"))),INDIRECT(Plat&"!$Y$798:$Y$985"),IF($F$7<>"All",$F$7,"*"),INDIRECT(Plat&"!$Z$798:$Z$985"),IF($F$8<>"All",$F$8,"*"),INDIRECT(Plat&"!$AA$798:$AA$985"),"Cargo Barge Tug-Aux") -> 0.05193407346 | F15: =SUMIFS(IF($F$6="totaltons",INDIRECT(Plat&"!CD$798:CD$985"),IF($F$6="peakday",INDIRECT(Plat&"!BH$798:BH$985"),INDIRECT(Plat&"!CL$798:CL$985"))),INDIRECT(Plat&"!$Y$798:$Y$985"),IF($F$7<>"All",$F$7,"*"),INDIRECT(Plat&"!$Z$798:$Z$985"),IF($F$8<>"All",$F$8,"*"),INDIRECT(Plat&"!$AA$798:$AA$985"),"Cargo Barge Tug")+SUMIFS(IF($F$6="totaltons",INDIRECT(Plat&"!CD$798:CD$985"),IF($F$6="peakday",INDIRECT(Plat&"!BH$798:BH$985"),INDIRECT(Plat&"!CL$798:CL$985"))),INDIRECT(Plat&"!$Y$798:$Y$985"),IF($F$7<>"All",$F$7,"*"),INDIRECT(Plat&"!$Z$798:$Z$985"),IF($F$8<>"All",$F$8,"*"),INDIRECT(Plat&"!$AA$798:$AA$985"),"Cargo Barge Tug-Aux") -> 10.36521012 | G15: =SUMIFS(IF($F$6="totaltons",INDIRECT(Plat&"!CE$798:CE$985"),IF($F$6="peakday",INDIRECT(Plat&"!BI$798:BI$985"),INDIRECT(Plat&"!CM$798:CM$985"))),INDIRECT(Plat&"!$Y$798:$Y$985"),IF($F$7<>"All",$F$7,"*"),INDIRECT(Plat&"!$Z$798:$Z$985"),IF($F$8<>"All",$F$8,"*"),INDIRECT(Plat&"!$AA$798:$AA$985"),"Cargo Barge Tug")+SUMIFS(IF($F$6="totaltons",INDIRECT(Plat&"!CE$798:CE$985"),IF($F$6="peakday",INDIRECT(Plat&"!BI$798:BI$985"),INDIRECT(Plat&"!CM$798:CM$985"))),INDIRECT(Plat&"!$Y$798:$Y$985"),IF($F$7<>"All",$F$7,"*"),INDIRECT(Plat&"!$Z$798:$Z$985"),IF($F$8<>"All",$F$8,"*"),INDIRECT(Plat&"!$AA$798:$AA$985"),"Cargo Barge Tug-Aux") -> 10.36521012 | H15: =SUMIFS(IF($F$6="totaltons",INDIRECT(Plat&"!CF$798:CF$985"),IF($F$6="peakday",INDIRECT(Plat&"!BJ$798:BJ$985"),INDIRECT(Plat&"!CN$798:CN$985"))),INDIRECT(Plat&"!$Y$798:$Y$985"),IF($F$7<>"All",$F$7,"*"),INDIRECT(Plat&"!$Z$798:$Z$985"),IF($F$8<>"All",$F$8,"*"),INDIRECT(Plat&"!$AA$798:$AA$985"),"Cargo Barge Tug")+SUMIFS(IF($F$6="totaltons",INDIRECT(Plat&"!CF$798:CF$985"),IF($F$6="peakday",INDIRECT(Plat&"!BJ$798:BJ$985"),INDIRECT(Plat&"!CN$798:CN$985"))),INDIRECT(Plat&"!$Y$798:$Y$985"),IF($F$7<>"All",$F$7,"*"),INDIRECT(Plat&"!$Z$798:$Z$985"),IF($F$8<>"All",$F$8,"*"),INDIRECT(Plat&"!$AA$798:$AA$985"),"Cargo Barge Tug-Aux") -> 10.36521012 | I15: =SUMIFS(IF($F$6="totaltons",INDIRECT(Plat&"!CG$798:CG$985"),IF($F$6="peakday",INDIRECT(Plat&"!BK$798:BK$985"),INDIRECT(Plat&"!CO$798:CO$985"))),INDIRECT(Plat&"!$Y$798:$Y$985"),IF($F$7<>"All",$F$7,"*"),INDIRECT(Plat&"!$Z$798:$Z$985"),IF($F$8<>"All",$F$8,"*"),INDIRECT(Plat&"!$AA$798:$AA$985"),"Cargo Barge Tug")+SUMIFS(IF($F$6="totaltons",INDIRECT(Plat&"!CG$798:CG$985"),IF($F$6="peakday",INDIRECT(Plat&"!BK$798:BK$985"),INDIRECT(Plat&"!CO$798:CO$985"))),INDIRECT(Plat&"!$Y$798:$Y$985"),IF($F$7<>"All",$F$7,"*"),INDIRECT(Plat&"!$Z$798:$Z$985"),IF($F$8<>"All",$F$8,"*"),INDIRECT(Plat&"!$AA$798:$AA$985"),"Cargo Barge Tug-Aux") -> 4892.049482
A16: Cement Pumping Skid | B16: =SUMIFS(IF($F$6="totaltons",INDIRECT(Plat&"!BZ$798:BZ$985"),IF($F$6="peakday",INDIRECT(Plat&"!BD$798:BD$985"),INDIRECT(Plat&"!CH$798:CH$985"))),INDIRECT(Plat&"!$Y$798:$Y$985"),IF($F$7<>"All",$F$7,"*"),INDIRECT(Plat&"!$Z$798:$Z$985"),IF($F$8<>"All",$F$8,"*"),INDIRECT(Plat&"!$AA$798:$AA$985"),$A16) -> 3.255 | C16: =SUMIFS(IF($F$6="totaltons",INDIRECT(Plat&"!CA$798:CA$985"),IF($F$6="peakday",INDIRECT(Plat&"!BE$798:BE$985"),INDIRECT(Plat&"!CI$798:CI$985"))),INDIRECT(Plat&"!$Y$798:$Y$985"),IF($F$7<>"All",$F$7,"*"),INDIRECT(Plat&"!$Z$798:$Z$985"),IF($F$8<>"All",$F$8,"*"),INDIRECT(Plat&"!$AA$798:$AA$985"),$A16) -> 0.25935 | D16: =SUMIFS(IF($F$6="totaltons",INDIRECT(Plat&"!CB$798:CB$985"),IF($F$6="peakday",INDIRECT(Plat&"!BF$798:BF$985"),INDIRECT(Plat&"!CJ$798:CJ$985"))),INDIRECT(Plat&"!$Y$798:$Y$985"),IF($F$7<>"All",$F$7,"*"),INDIRECT(Plat&"!$Z$798:$Z$985"),IF($F$8<>"All",$F$8,"*"),INDIRECT(Plat&"!$AA$798:$AA$985"),$A16) -> 0.7014 | E16: =SUMIFS(IF($F$6="totaltons",INDIRECT(Plat&"!CC$798:CC$985"),IF($F$6="peakday",INDIRECT(Plat&"!BG$798:BG$985"),INDIRECT(Plat&"!CK$798:CK$985"))),INDIRECT(Plat&"!$Y$798:$Y$985"),IF($F$7<>"All",$F$7,"*"),INDIRECT(Plat&"!$Z$798:$Z$985"),IF($F$8<>"All",$F$8,"*"),INDIRECT(Plat&"!$AA$798:$AA$985"),$A16) -> 0.001157407407 | F16: =SUMIFS(IF($F$6="totaltons",INDIRECT(Plat&"!CD$798:CD$985"),IF($F$6="peakday",INDIRECT(Plat&"!BH$798:BH$985"),INDIRECT(Plat&"!CL$798:CL$985"))),INDIRECT(Plat&"!$Y$798:$Y$985"),IF($F$7<>"All",$F$7,"*"),INDIRECT(Plat&"!$Z$798:$Z$985"),IF($F$8<>"All",$F$8,"*"),INDIRECT(Plat&"!$AA$798:$AA$985"),$A16) -> 0.231 | G16: =SUMIFS(IF($F$6="totaltons",INDIRECT(Plat&"!CE$798:CE$985"),IF($F$6="peakday",INDIRECT(Plat&"!BI$798:BI$985"),INDIRECT(Plat&"!CM$798:CM$985"))),INDIRECT(Plat&"!$Y$798:$Y$985"),IF($F$7<>"All",$F$7,"*"),INDIRECT(Plat&"!$Z$798:$Z$985"),IF($F$8<>"All",$F$8,"*"),INDIRECT(Plat&"!$AA$798:$AA$985"),$A16) -> 0.231 | H16: =SUMIFS(IF($F$6="totaltons",INDIRECT(Plat&"!CF$798:CF$985"),IF($F$6="peakday",INDIRECT(Plat&"!BJ$798:BJ$985"),INDIRECT(Plat&"!CN$798:CN$985"))),INDIRECT(Plat&"!$Y$798:$Y$985"),IF($F$7<>"All",$F$7,"*"),INDIRECT(Plat&"!$Z$798:$Z$985"),IF($F$8<>"All",$F$8,"*"),INDIRECT(Plat&"!$AA$798:$AA$985"),$A16) -> 0.231 | I16: =SUMIFS(IF($F$6="totaltons",INDIRECT(Plat&"!CG$798:CG$985"),IF($F$6="peakday",INDIRECT(Plat&"!BK$798:BK$985"),INDIRECT(Plat&"!CO$798:CO$985"))),INDIRECT(Plat&"!$Y$798:$Y$985"),IF($F$7<>"All",$F$7,"*"),INDIRECT(Plat&"!$Z$798:$Z$985"),IF($F$8<>"All",$F$8,"*"),INDIRECT(Plat&"!$AA$798:$AA$985"),$A16) -> 109.0715625
A17: Compressors | B17: =SUMIFS(IF($F$6="totaltons",INDIRECT(Plat&"!BZ$798:BZ$985"),IF($F$6="peakday",INDIRECT(Plat&"!BD$798:BD$985"),INDIRECT(Plat&"!CH$798:CH$985"))),INDIRECT(Plat&"!$Y$798:$Y$985"),IF($F$7<>"All",$F$7,"*"),INDIRECT(Plat&"!$Z$798:$Z$985"),IF($F$8<>"All",$F$8,"*"),INDIRECT(Plat&"!$AA$798:$AA$985"),$A17) -> 15.06760704 | C17: =SUMIFS(IF($F$6="totaltons",INDIRECT(Plat&"!CA$798:CA$985"),IF($F$6="peakday",INDIRECT(Plat&"!BE$798:BE$985"),INDIRECT(Plat&"!CI$798:CI$985"))),INDIRECT(Plat&"!$Y$798:$Y$985"),IF($F$7<>"All",$F$7,"*"),INDIRECT(Plat&"!$Z$798:$Z$985"),IF($F$8<>"All",$F$8,"*"),INDIRECT(Plat&"!$AA$798:$AA$985"),$A17) -> 1.200548045 | D17: =SUMIFS(IF($F$6="totaltons",INDIRECT(Plat&"!CB$798:CB$985"),IF($F$6="peakday",INDIRECT(Plat&"!BF$798:BF$985"),INDIRECT(Plat&"!CJ$798:CJ$985"))),INDIRECT(Plat&"!$Y$798:$Y$985"),IF($F$7<>"All",$F$7,"*"),INDIRECT(Plat&"!$Z$798:$Z$985"),IF($F$8<>"All",$F$8,"*"),INDIRECT(Plat&"!$AA$798:$AA$985"),$A17) -> 3.246826291 | E17: =SUMIFS(IF($F$6="totaltons",INDIRECT(Plat&"!CC$798:CC$985"),IF($F$6="peakday",INDIRECT(Plat&"!BG$798:BG$985"),INDIRECT(Plat&"!CK$798:CK$985"))),INDIRECT(Plat&"!$Y$798:$Y$985"),IF($F$7<>"All",$F$7,"*"),INDIRECT(Plat&"!$Z$798:$Z$985"),IF($F$8<>"All",$F$8,"*"),INDIRECT(Plat&"!$AA$798:$AA$985"),$A17) -> 0.005357714286 | F17: =SUMIFS(IF($F$6="totaltons",INDIRECT(Plat&"!CD$798:CD$985"),IF($F$6="peakday",INDIRECT(Plat&"!BH$798:BH$985"),INDIRECT(Plat&"!CL$798:CL$985"))),INDIRECT(Plat&"!$Y$798:$Y$985"),IF($F$7<>"All",$F$7,"*"),INDIRECT(Plat&"!$Z$798:$Z$985"),IF($F$8<>"All",$F$8,"*"),INDIRECT(Plat&"!$AA$798:$AA$985"),$A17) -> 1.069314048 | G17: =SUMIFS(IF($F$6="totaltons",INDIRECT(Plat&"!CE$798:CE$985"),IF($F$6="peakday",INDIRECT(Plat&"!BI$798:BI$985"),INDIRECT(Plat&"!CM$798:CM$985"))),INDIRECT(Plat&"!$Y$798:$Y$985"),IF($F$7<>"All",$F$7,"*"),INDIRECT(Plat&"!$Z$798:$Z$985"),IF($F$8<>"All",$F$8,"*"),INDIRECT(Plat&"!$AA$798:$AA$985"),$A17) -> 1.069314048 | H17: =SUMIFS(IF($F$6="totaltons",INDIRECT(Plat&"!CF$798:CF$985"),IF($F$6="peakday",INDIRECT(Plat&"!BJ$798:BJ$985"),INDIRECT(Plat&"!CN$798:CN$985"))),INDIRECT(Plat&"!$Y$798:$Y$985"),IF($F$7<>"All",$F$7,"*"),INDIRECT(Plat&"!$Z$798:$Z$985"),IF($F$8<>"All",$F$8,"*"),INDIRECT(Plat&"!$AA$798:$AA$985"),$A17) -> 1.069314048 | I17: =SUMIFS(IF($F$6="totaltons",INDIRECT(Plat&"!CG$798:CG$985"),IF($F$6="peakday",INDIRECT(Plat&"!BK$798:BK$985"),INDIRECT(Plat&"!CO$798:CO$985"))),INDIRECT(Plat&"!$Y$798:$Y$985"),IF($F$7<>"All",$F$7,"*"),INDIRECT(Plat&"!$Z$798:$Z$985"),IF($F$8<>"All",$F$8,"*"),INDIRECT(Plat&"!$AA$798:$AA$985"),$A17) -> 504.899368
A18: Crane | B18: =SUMIFS(IF($F$6="totaltons",INDIRECT(Plat&"!BZ$798:BZ$985"),IF($F$6="peakday",INDIRECT(Plat&"!BD$798:BD$985"),INDIRECT(Plat&"!CH$798:CH$985"))),INDIRECT(Plat&"!$Y$798:$Y$985"),IF($F$7<>"All",$F$7,"*"),INDIRECT(Plat&"!$Z$798:$Z$985"),IF($F$8<>"All",$F$8,"*"),INDIRECT(Plat&"!$AA$798:$AA$985"),$A18) -> 5.073699603 | C18: =SUMIFS(IF($F$6="totaltons",INDIRECT(Plat&"!CA$798:CA$985"),IF($F$6="peakday",INDIRECT(Plat&"!BE$798:BE$985"),INDIRECT(Plat&"!CI$798:CI$985"))),INDIRECT(Plat&"!$Y$798:$Y$985"),IF($F$7<>"All",$F$7,"*"),INDIRECT(Plat&"!$Z$798:$Z$985"),IF($F$8<>"All",$F$8,"*"),INDIRECT(Plat&"!$AA$798:$AA$985"),$A18) -> 0.5945890259 | D18: =SUMIFS(IF($F$6="totaltons",INDIRECT(Plat&"!CB$798:CB$985"),IF($F$6="peakday",INDIRECT(Plat&"!BF$798:BF$985"),INDIRECT(Plat&"!CJ$798:CJ$985"))),INDIRECT(Plat&"!$Y$798:$Y$985"),IF($F$7<>"All",$F$7,"*"),INDIRECT(Plat&"!$Z$798:$Z$985"),IF($F$8<>"All",$F$8,"*"),INDIRECT(Plat&"!$AA$798:$AA$985"),$A18) -> 1.767075096 | E18: =SUMIFS(IF($F$6="totaltons",INDIRECT(Plat&"!CC$798:CC$985"),IF($F$6="peakday",INDIRECT(Plat&"!BG$798:BG$985"),INDIRECT(Plat&"!CK$798:CK$985"))),INDIRECT(Plat&"!$Y$798:$Y$985"),IF($F$7<>"All",$F$7,"*"),INDIRECT(Plat&"!$Z$798:$Z$985"),IF($F$8<>"All",$F$8,"*"),INDIRECT(Plat&"!$AA$798:$AA$985"),$A18) -> 0.002915919312 | F18: =SUMIFS(IF($F$6="totaltons",INDIRECT(Plat&"!CD$798:CD$985"),IF($F$6="peakday",INDIRECT(Plat&"!BH$798:BH$985"),INDIRECT(Plat&"!CL$798:CL$985"))),INDIRECT(Plat&"!$Y$798:$Y$985"),IF($F$7<>"All",$F$7,"*"),INDIRECT(Plat&"!$Z$798:$Z$985"),IF($F$8<>"All",$F$8,"*"),INDIRECT(Plat&"!$AA$798:$AA$985"),$A18) -> 0.58197084 | G18: =SUMIFS(IF($F$6="totaltons",INDIRECT(Plat&"!CE$798:CE$985"),IF($F$6="peakday",INDIRECT(Plat&"!BI$798:BI$985"),INDIRECT(Plat&"!CM$798:CM$985"))),INDIRECT(Plat&"!$Y$798:$Y$985"),IF($F$7<>"All",$F$7,"*"),INDIRECT(Plat&"!$Z$798:$Z$985"),IF($F$8<>"All",$F$8,"*"),INDIRECT(Plat&"!$AA$798:$AA$985"),$A18) -> 0.58197084 | H18: =SUMIFS(IF($F$6="totaltons",INDIRECT(Plat&"!CF$798:CF$985"),IF($F$6="peakday",INDIRECT(Plat&"!BJ$798:BJ$985"),INDIRECT(Plat&"!CN$798:CN$985"))),INDIRECT(Plat&"!$Y$798:$Y$985"),IF($F$7<>"All",$F$7,"*"),INDIRECT(Plat&"!$Z$798:$Z$985"),IF($F$8<>"All",$F$8,"*"),INDIRECT(Plat&"!$AA$798:$AA$985"),$A18) -> 0.58197084 | I18: =SUMIFS(IF($F$6="totaltons",INDIRECT(Plat&"!CG$798:CG$985"),IF($F$6="peakday",INDIRECT(Plat&"!BK$798:BK$985"),INDIRECT(Plat&"!CO$798:CO$985"))),INDIRECT(Plat&"!$Y$798:$Y$985"),IF($F$7<>"All",$F$7,"*"),INDIRECT(Plat&"!$Z$798:$Z$985"),IF($F$8<>"All",$F$8,"*"),INDIRECT(Plat&"!$AA$798:$AA$985"),$A18) -> 274.7899084
A19: Crane Barge | B19: =SUMIFS(IF($F$6="totaltons",INDIRECT(Plat&"!BZ$798:BZ$985"),IF($F$6="peakday",INDIRECT(Plat&"!BD$798:BD$985"),INDIRECT(Plat&"!CH$798:CH$985"))),INDIRECT(Plat&"!$Y$798:$Y$985"),IF($F$7<>"All",$F$7,"*"),INDIRECT(Plat&"!$Z$798:$Z$985"),IF($F$8<>"All",$F$8,"*"),INDIRECT(Plat&"!$AA$798:$AA$985"),$A19) -> 3.735762371 | C19: =SUMIFS(IF($F$6="totaltons",INDIRECT(Plat&"!CA$798:CA$985"),IF($F$6="peakday",INDIRECT(Plat&"!BE$798:BE$985"),INDIRECT(Plat&"!CI$798:CI$985"))),INDIRECT(Plat&"!$Y$798:$Y$985"),IF($F$7<>"All",$F$7,"*"),INDIRECT(Plat&"!$Z$798:$Z$985"),IF($F$8<>"All",$F$8,"*"),INDIRECT(Plat&"!$AA$798:$AA$985"),$A19) -> 0.297655905 | D19: =SUMIFS(IF($F$6="totaltons",INDIRECT(Plat&"!CB$798:CB$985"),IF($F$6="peakday",INDIRECT(Plat&"!BF$798:BF$985"),INDIRECT(Plat&"!CJ$798:CJ$985"))),INDIRECT(Plat&"!$Y$798:$Y$985"),IF($F$7<>"All",$F$7,"*"),INDIRECT(Plat&"!$Z$798:$Z$985"),IF($F$8<>"All",$F$8,"*"),INDIRECT(Plat&"!$AA$798:$AA$985"),$A19) -> 0.8049965366 | E19: =SUMIFS(IF($F$6="totaltons",INDIRECT(Plat&"!CC$798:CC$985"),IF($F$6="peakday",INDIRECT(Plat&"!BG$798:BG$985"),INDIRECT(Plat&"!CK$798:CK$985"))),INDIRECT(Plat&"!$Y$798:$Y$985"),IF($F$7<>"All",$F$7,"*"),INDIRECT(Plat&"!$Z$798:$Z$985"),IF($F$8<>"All",$F$8,"*"),INDIRECT(Plat&"!$AA$798:$AA$985"),$A19) -> 0.00132835608 | F19: =SUMIFS(IF($F$6="totaltons",INDIRECT(Plat&"!CD$798:CD$985"),IF($F$6="peakday",INDIRECT(Plat&"!BH$798:BH$985"),INDIRECT(Plat&"!CL$798:CL$985"))),INDIRECT(Plat&"!$Y$798:$Y$985"),IF($F$7<>"All",$F$7,"*"),INDIRECT(Plat&"!$Z$798:$Z$985"),IF($F$8<>"All",$F$8,"*"),INDIRECT(Plat&"!$AA$798:$AA$985"),$A19) -> 0.2651186198 | G19: =SUMIFS(IF($F$6="totaltons",INDIRECT(Plat&"!CE$798:CE$985"),IF($F$6="peakday",INDIRECT(Plat&"!BI$798:BI$985"),INDIRECT(Plat&"!CM$798:CM$985"))),INDIRECT(Plat&"!$Y$798:$Y$985"),IF($F$7<>"All",$F$7,"*"),INDIRECT(Plat&"!$Z$798:$Z$985"),IF($F$8<>"All",$F$8,"*"),INDIRECT(Plat&"!$AA$798:$AA$985"),$A19) -> 0.2651186198 | H19: =SUMIFS(IF($F$6="totaltons",INDIRECT(Plat&"!CF$798:CF$985"),IF($F$6="peakday",INDIRECT(Plat&"!BJ$798:BJ$985"),INDIRECT(Plat&"!CN$798:CN$985"))),INDIRECT(Plat&"!$Y$798:$Y$985"),IF($F$7<>"All",$F$7,"*"),INDIRECT(Plat&"!$Z$798:$Z$985"),IF($F$8<>"All",$F$8,"*"),INDIRECT(Plat&"!$AA$798:$AA$985"),$A19) -> 0.2651186198 | I19: =SUMIFS(IF($F$6="totaltons",INDIRECT(Plat&"!CG$798:CG$985"),IF($F$6="peakday",INDIRECT(Plat&"!BK$798:BK$985"),INDIRECT(Plat&"!CO$798:CO$985"))),INDIRECT(Plat&"!$Y$798:$Y$985"),IF($F$7<>"All",$F$7,"*"),INDIRECT(Plat&"!$Z$798:$Z$985"),IF($F$8<>"All",$F$8,"*"),INDIRECT(Plat&"!$AA$798:$AA$985"),$A19) -> 125.1813944
A20: Crew Boats | B20: =SUMIFS(IF($F$6="totaltons",INDIRECT(Plat&"!BZ$798:BZ$985"),IF($F$6="peakday",INDIRECT(Plat&"!BD$798:BD$985"),INDIRECT(Plat&"!CH$798:CH$985"))),INDIRECT(Plat&"!$Y$798:$Y$985"),IF($F$7<>"All",$F$7,"*"),INDIRECT(Plat&"!$Z$798:$Z$985"),IF($F$8<>"All",$F$8,"*"),INDIRECT(Plat&"!$AA$798:$AA$985"),"Crew Boat-Main Engine")+SUMIFS(IF($F$6="totaltons",INDIRECT(Plat&"!BZ$798:BZ$985"),IF($F$6="peakday",INDIRECT(Plat&"!BD$798:BD$985"),INDIRECT(Plat&"!CH$798:CH$985"))),INDIRECT(Plat&"!$Y$798:$Y$985"),IF($F$7<>"All",$F$7,"*"),INDIRECT(Plat&"!$Z$798:$Z$985"),IF($F$8<>"All",$F$8,"*"),INDIRECT(Plat&"!$AA$798:$AA$985"),"Crew Boat-Aux Engine") -> 11.98442915 | C20: =SUMIFS(IF($F$6="totaltons",INDIRECT(Plat&"!CA$798:CA$985"),IF($F$6="peakday",INDIRECT(Plat&"!BE$798:BE$985"),INDIRECT(Plat&"!CI$798:CI$985"))),INDIRECT(Plat&"!$Y$798:$Y$985"),IF($F$7<>"All",$F$7,"*"),INDIRECT(Plat&"!$Z$798:$Z$985"),IF($F$8<>"All",$F$8,"*"),INDIRECT(Plat&"!$AA$798:$AA$985"),"Crew Boat-Main Engine")+SUMIFS(IF($F$6="totaltons",INDIRECT(Plat&"!CA$798:CA$985"),IF($F$6="peakday",INDIRECT(Plat&"!BE$798:BE$985"),INDIRECT(Plat&"!CI$798:CI$985"))),INDIRECT(Plat&"!$Y$798:$Y$985"),IF($F$7<>"All",$F$7,"*"),INDIRECT(Plat&"!$Z$798:$Z$985"),IF($F$8<>"All",$F$8,"*"),INDIRECT(Plat&"!$AA$798:$AA$985"),"Crew Boat-Aux Engine") -> 1.512320821 | D20: =SUMIFS(IF($F$6="totaltons",INDIRECT(Plat&"!CB$798:CB$985"),IF($F$6="peakday",INDIRECT(Plat&"!BF$798:BF$985"),INDIRECT(Plat&"!CJ$798:CJ$985"))),INDIRECT(Plat&"!$Y$798:$Y$985"),IF($F$7<>"All",$F$7,"*"),INDIRECT(Plat&"!$Z$798:$Z$985"),IF($F$8<>"All",$F$8,"*"),INDIRECT(Plat&"!$AA$798:$AA$985"),"Crew Boat-Main Engine")+SUMIFS(IF($F$6="totaltons",INDIRECT(Plat&"!CB$798:CB$985"),IF($F$6="peakday",INDIRECT(Plat&"!BF$798:BF$985"),INDIRECT(Plat&"!CJ$798:CJ$985"))),INDIRECT(Plat&"!$Y$798:$Y$985"),IF($F$7<>"All",$F$7,"*"),INDIRECT(Plat&"!$Z$798:$Z$985"),IF($F$8<>"All",$F$8,"*"),INDIRECT(Plat&"!$AA$798:$AA$985"),"Crew Boat-Aux Engine") -> 5.278855696 | E20: =SUMIFS(IF($F$6="totaltons",INDIRECT(Plat&"!CC$798:CC$985"),IF($F$6="peakday",INDIRECT(Plat&"!BG$798:BG$985"),INDIRECT(Plat&"!CK$798:CK$985"))),INDIRECT(Plat&"!$Y$798:$Y$985"),IF($F$7<>"All",$F$7,"*"),INDIRECT(Plat&"!$Z$798:$Z$985"),IF($F$8<>"All",$F$8,"*"),INDIRECT(Plat&"!$AA$798:$AA$985"),"Crew Boat-Main Engine")+SUMIFS(IF($F$6="totaltons",INDIRECT(Plat&"!CC$798:CC$985"),IF($F$6="peakday",INDIRECT(Plat&"!BG$798:BG$985"),INDIRECT(Plat&"!CK$798:CK$985"))),INDIRECT(Plat&"!$Y$798:$Y$985"),IF($F$7<>"All",$F$7,"*"),INDIRECT(Plat&"!$Z$798:$Z$985"),IF($F$8<>"All",$F$8,"*"),INDIRECT(Plat&"!$AA$798:$AA$985"),"Crew Boat-Aux Engine") -> 0.007133588779 | F20: =SUMIFS(IF($F$6="totaltons",INDIRECT(Plat&"!CD$798:CD$985"),IF($F$6="peakday",INDIRECT(Plat&"!BH$798:BH$985"),INDIRECT(Plat&"!CL$798:CL$985"))),INDIRECT(Plat&"!$Y$798:$Y$985"),IF($F$7<>"All",$F$7,"*"),INDIRECT(Plat&"!$Z$798:$Z$985"),IF($F$8<>"All",$F$8,"*"),INDIRECT(Plat&"!$AA$798:$AA$985"),"Crew Boat-Main Engine")+SUMIFS(IF($F$6="totaltons",INDIRECT(Plat&"!CD$798:CD$985"),IF($F$6="peakday",INDIRECT(Plat&"!BH$798:BH$985"),INDIRECT(Plat&"!CL$798:CL$985"))),INDIRECT(Plat&"!$Y$798:$Y$985"),IF($F$7<>"All",$F$7,"*"),INDIRECT(Plat&"!$Z$798:$Z$985"),IF($F$8<>"All",$F$8,"*"),INDIRECT(Plat&"!$AA$798:$AA$985"),"Crew Boat-Aux Engine") -> 1.512320821 | G20: =SUMIFS(IF($F$6="totaltons",INDIRECT(Plat&"!CE$798:CE$985"),IF($F$6="peakday",INDIRECT(Plat&"!BI$798:BI$985"),INDIRECT(Plat&"!CM$798:CM$985"))),INDIRECT(Plat&"!$Y$798:$Y$985"),IF($F$7<>"All",$F$7,"*"),INDIRECT(Plat&"!$Z$798:$Z$985"),IF($F$8<>"All",$F$8,"*"),INDIRECT(Plat&"!$AA$798:$AA$985"),"Crew Boat-Main Engine")+SUMIFS(IF($F$6="totaltons",INDIRECT(Plat&"!CE$798:CE$985"),IF($F$6="peakday",INDIRECT(Plat&"!BI$798:BI$985"),INDIRECT(Plat&"!CM$798:CM$985"))),INDIRECT(Plat&"!$Y$798:$Y$985"),IF($F$7<>"All",$F$7,"*"),INDIRECT(Plat&"!$Z$798:$Z$985"),IF($F$8<>"All",$F$8,"*"),INDIRECT(Plat&"!$AA$798:$AA$985"),"Crew Boat-Aux Engine") -> 1.455252111 | H20: =SUMIFS(IF($F$6="totaltons",INDIRECT(Plat&"!CF$798:CF$985"),IF($F$6="peakday",INDIRECT(Plat&"!BJ$798:BJ$985"),INDIRECT(Plat&"!CN$798:CN$985"))),INDIRECT(Plat&"!$Y$798:$Y$985"),IF($F$7<>"All",$F$7,"*"),INDIRECT(Plat&"!$Z$798:$Z$985"),IF($F$8<>"All",$F$8,"*"),INDIRECT(Plat&"!$AA$798:$AA$985"),"Crew Boat-Main Engine")+SUMIFS(IF($F$6="totaltons",INDIRECT(Plat&"!CF$798:CF$985"),IF($F$6="peakday",INDIRECT(Plat&"!BJ$798:BJ$985"),INDIRECT(Plat&"!CN$798:CN$985"))),INDIRECT(Plat&"!$Y$798:$Y$985"),IF($F$7<>"All",$F$7,"*"),INDIRECT(Plat&"!$Z$798:$Z$985"),IF($F$8<>"All",$F$8,"*"),INDIRECT(Plat&"!$AA$798:$AA$985"),"Crew Boat-Aux Engine") -> 1.455252111 | I20: =SUMIFS(IF($F$6="totaltons",INDIRECT(Plat&"!CG$798:CG$985"),IF($F$6="peakday",INDIRECT(Plat&"!BK$798:BK$985"),INDIRECT(Plat&"!CO$798:CO$985"))),INDIRECT(Plat&"!$Y$798:$Y$985"),IF($F$7<>"All",$F$7,"*"),INDIRECT(Plat&"!$Z$798:$Z$985"),IF($F$8<>"All",$F$8,"*"),INDIRECT(Plat&"!$AA$798:$AA$985"),"Crew Boat-Main Engine")+SUMIFS(IF($F$6="totaltons",INDIRECT(Plat&"!CG$798:CG$985"),IF($F$6="peakday",INDIRECT(Plat&"!BK$798:BK$985"),INDIRECT(Plat&"!CO$798:CO$985"))),INDIRECT(Plat&"!$Y$798:$Y$985"),IF($F$7<>"All",$F$7,"*"),INDIRECT(Plat&"!$Z$798:$Z$985"),IF($F$8<>"All",$F$8,"*"),INDIRECT(Plat&"!$AA$798:$AA$985"),"Crew Boat-Aux Engine") -> 714.7044867
A21: Derrick Barge | B21: =SUMIFS(IF($F$6="totaltons",INDIRECT(Plat&"!BZ$798:BZ$985"),IF($F$6="peakday",INDIRECT(Plat&"!BD$798:BD$985"),INDIRECT(Plat&"!CH$798:CH$985"))),INDIRECT(Plat&"!$Y$798:$Y$985"),IF($F$7<>"All",$F$7,"*"),INDIRECT(Plat&"!$Z$798:$Z$985"),IF($F$8<>"All",$F$8,"*"),INDIRECT(Plat&"!$AA$798:$AA$985"),$A21) -> 22.86346875 | C21: =SUMIFS(IF($F$6="totaltons",INDIRECT(Plat&"!CA$798:CA$985"),IF($F$6="peakday",INDIRECT(Plat&"!BE$798:BE$985"),INDIRECT(Plat&"!CI$798:CI$985"))),INDIRECT(Plat&"!$Y$798:$Y$985"),IF($F$7<>"All",$F$7,"*"),INDIRECT(Plat&"!$Z$798:$Z$985"),IF($F$8<>"All",$F$8,"*"),INDIRECT(Plat&"!$AA$798:$AA$985"),$A21) -> 1.821702187 | D21: =SUMIFS(IF($F$6="totaltons",INDIRECT(Plat&"!CB$798:CB$985"),IF($F$6="peakday",INDIRECT(Plat&"!BF$798:BF$985"),INDIRECT(Plat&"!CJ$798:CJ$985"))),INDIRECT(Plat&"!$Y$798:$Y$985"),IF($F$7<>"All",$F$7,"*"),INDIRECT(Plat&"!$Z$798:$Z$985"),IF($F$8<>"All",$F$8,"*"),INDIRECT(Plat&"!$AA$798:$AA$985"),$A21) -> 4.92670875 | E21: =SUMIFS(IF($F$6="totaltons",INDIRECT(Plat&"!CC$798:CC$985"),IF($F$6="peakday",INDIRECT(Plat&"!BG$798:BG$985"),INDIRECT(Plat&"!CK$798:CK$985"))),INDIRECT(Plat&"!$Y$798:$Y$985"),IF($F$7<>"All",$F$7,"*"),INDIRECT(Plat&"!$Z$798:$Z$985"),IF($F$8<>"All",$F$8,"*"),INDIRECT(Plat&"!$AA$798:$AA$985"),$A21) -> 0.008129753638 | F21: =SUMIFS(IF($F$6="totaltons",INDIRECT(Plat&"!CD$798:CD$985"),IF($F$6="peakday",INDIRECT(Plat&"!BH$798:BH$985"),INDIRECT(Plat&"!CL$798:CL$985"))),INDIRECT(Plat&"!$Y$798:$Y$985"),IF($F$7<>"All",$F$7,"*"),INDIRECT(Plat&"!$Z$798:$Z$985"),IF($F$8<>"All",$F$8,"*"),INDIRECT(Plat&"!$AA$798:$AA$985"),$A21) -> 1.62256875 | G21: =SUMIFS(IF($F$6="totaltons",INDIRECT(Plat&"!CE$798:CE$985"),IF($F$6="peakday",INDIRECT(Plat&"!BI$798:BI$985"),INDIRECT(Plat&"!CM$798:CM$985"))),INDIRECT(Plat&"!$Y$798:$Y$985"),IF($F$7<>"All",$F$7,"*"),INDIRECT(Plat&"!$Z$798:$Z$985"),IF($F$8<>"All",$F$8,"*"),INDIRECT(Plat&"!$AA$798:$AA$985"),$A21) -> 1.62256875 | H21: =SUMIFS(IF($F$6="totaltons",INDIRECT(Plat&"!CF$798:CF$985"),IF($F$6="peakday",INDIRECT(Plat&"!BJ$798:BJ$985"),INDIRECT(Plat&"!CN$798:CN$985"))),INDIRECT(Plat&"!$Y$798:$Y$985"),IF($F$7<>"All",$F$7,"*"),INDIRECT(Plat&"!$Z$798:$Z$985"),IF($F$8<>"All",$F$8,"*"),INDIRECT(Plat&"!$AA$798:$AA$985"),$A21) -> 1.62256875 | I21: =SUMIFS(IF($F$6="totaltons",INDIRECT(Plat&"!CG$798:CG$985"),IF($F$6="peakday",INDIRECT(Plat&"!BK$798:BK$985"),INDIRECT(Plat&"!CO$798:CO$985"))),INDIRECT(Plat&"!$Y$798:$Y$985"),IF($F$7<>"All",$F$7,"*"),INDIRECT(Plat&"!$Z$798:$Z$985"),IF($F$8<>"All",$F$8,"*"),INDIRECT(Plat&"!$AA$798:$AA$985"),$A21) -> 766.1303412
A22: Derrick Lay Barge | B22: =SUMIFS(IF($F$6="totaltons",INDIRECT(Plat&"!BZ$798:BZ$985"),IF($F$6="peakday",INDIRECT(Plat&"!BD$798:BD$985"),INDIRECT(Plat&"!CH$798:CH$985"))),INDIRECT(Plat&"!$Y$798:$Y$985"),IF($F$7<>"All",$F$7,"*"),INDIRECT(Plat&"!$Z$798:$Z$985"),IF($F$8<>"All",$F$8,"*"),INDIRECT(Plat&"!$AA$798:$AA$985"),$A22) -> 38.6513766 | C22: =SUMIFS(IF($F$6="totaltons",INDIRECT(Plat&"!CA$798:CA$985"),IF($F$6="peakday",INDIRECT(Plat&"!BE$798:BE$985"),INDIRECT(Plat&"!CI$798:CI$985"))),INDIRECT(Plat&"!$Y$798:$Y$985"),IF($F$7<>"All",$F$7,"*"),INDIRECT(Plat&"!$Z$798:$Z$985"),IF($F$8<>"All",$F$8,"*"),INDIRECT(Plat&"!$AA$798:$AA$985"),$A22) -> 3.079641942 | D22: =SUMIFS(IF($F$6="totaltons",INDIRECT(Plat&"!CB$798:CB$985"),IF($F$6="peakday",INDIRECT(Plat&"!BF$798:BF$985"),INDIRECT(Plat&"!CJ$798:CJ$985"))),INDIRECT(Plat&"!$Y$798:$Y$985"),IF($F$7<>"All",$F$7,"*"),INDIRECT(Plat&"!$Z$798:$Z$985"),IF($F$8<>"All",$F$8,"*"),INDIRECT(Plat&"!$AA$798:$AA$985"),$A22) -> 8.328748248 | E22: =SUMIFS(IF($F$6="totaltons",INDIRECT(Plat&"!CC$798:CC$985"),IF($F$6="peakday",INDIRECT(Plat&"!BG$798:BG$985"),INDIRECT(Plat&"!CK$798:CK$985"))),INDIRECT(Plat&"!$Y$798:$Y$985"),IF($F$7<>"All",$F$7,"*"),INDIRECT(Plat&"!$Z$798:$Z$985"),IF($F$8<>"All",$F$8,"*"),INDIRECT(Plat&"!$AA$798:$AA$985"),$A22) -> 0.01374359127 | F22: =SUMIFS(IF($F$6="totaltons",INDIRECT(Plat&"!CD$798:CD$985"),IF($F$6="peakday",INDIRECT(Plat&"!BH$798:BH$985"),INDIRECT(Plat&"!CL$798:CL$985"))),INDIRECT(Plat&"!$Y$798:$Y$985"),IF($F$7<>"All",$F$7,"*"),INDIRECT(Plat&"!$Z$798:$Z$985"),IF($F$8<>"All",$F$8,"*"),INDIRECT(Plat&"!$AA$798:$AA$985"),$A22) -> 2.74300092 | G22: =SUMIFS(IF($F$6="totaltons",INDIRECT(Plat&"!CE$798:CE$985"),IF($F$6="peakday",INDIRECT(Plat&"!BI$798:BI$985"),INDIRECT(Plat&"!CM$798:CM$985"))),INDIRECT(Plat&"!$Y$798:$Y$985"),IF($F$7<>"All",$F$7,"*"),INDIRECT(Plat&"!$Z$798:$Z$985"),IF($F$8<>"All",$F$8,"*"),INDIRECT(Plat&"!$AA$798:$AA$985"),$A22) -> 2.74300092 | H22: =SUMIFS(IF($F$6="totaltons",INDIRECT(Plat&"!CF$798:CF$985"),IF($F$6="peakday",INDIRECT(Plat&"!BJ$798:BJ$985"),INDIRECT(Plat&"!CN$798:CN$985"))),INDIRECT(Plat&"!$Y$798:$Y$985"),IF($F$7<>"All",$F$7,"*"),INDIRECT(Plat&"!$Z$798:$Z$985"),IF($F$8<>"All",$F$8,"*"),INDIRECT(Plat&"!$AA$798:$AA$985"),$A22) -> 2.74300092 | I22: =SUMIFS(IF($F$6="totaltons",INDIRECT(Plat&"!CG$798:CG$985"),IF($F$6="peakday",INDIRECT(Plat&"!BK$798:BK$985"),INDIRECT(Plat&"!CO$798:CO$985"))),INDIRECT(Plat&"!$Y$798:$Y$985"),IF($F$7<>"All",$F$7,"*"),INDIRECT(Plat&"!$Z$798:$Z$985"),IF($F$8<>"All",$F$8,"*"),INDIRECT(Plat&"!$AA$798:$AA$985"),$A22) -> 1295.166218
A23: Dive Boats | B23: =SUMIFS(IF($F$6="totaltons",INDIRECT(Plat&"!BZ$798:BZ$985"),IF($F$6="peakday",INDIRECT(Plat&"!BD$798:BD$985"),INDIRECT(Plat&"!CH$798:CH$985"))),INDIRECT(Plat&"!$Y$798:$Y$985"),IF($F$7<>"All",$F$7,"*"),INDIRECT(Plat&"!$Z$798:$Z$985"),IF($F$8<>"All",$F$8,"*"),INDIRECT(Plat&"!$AA$798:$AA$985"),"Dive Boat-Main Engine")+SUMIFS(IF($F$6="totaltons",INDIRECT(Plat&"!BZ$798:BZ$985"),IF($F$6="peakday",INDIRECT(Plat&"!BD$798:BD$985"),INDIRECT(Plat&"!CH$798:CH$985"))),INDIRECT(Plat&"!$Y$798:$Y$985"),IF($F$7<>"All",$F$7,"*"),INDIRECT(Plat&"!$Z$798:$Z$985"),IF($F$8<>"All",$F$8,"*"),INDIRECT(Plat&"!$AA$798:$AA$985"),"Dive Boat-Aux Engine")+SUMIFS(IF($F$6="totaltons",INDIRECT(Plat&"!BZ$798:BZ$985"),IF($F$6="peakday",INDIRECT(Plat&"!BD$798:BD$985"),INDIRECT(Plat&"!CH$798:CH$985"))),INDIRECT(Plat&"!$Y$798:$Y$985"),IF($F$7<>"All",$F$7,"*"),INDIRECT(Plat&"!$Z$798:$Z$985"),IF($F$8<>"All",$F$8,"*"),INDIRECT(Plat&"!$AA$798:$AA$985"),"Dive Boat-Main Engine Maneuver") -> 21.10337221 | C23: =SUMIFS(IF($F$6="totaltons",INDIRECT(Plat&"!CA$798:CA$985"),IF($F$6="peakday",INDIRECT(Plat&"!BE$798:BE$985"),INDIRECT(Plat&"!CI$798:CI$985"))),INDIRECT(Plat&"!$Y$798:$Y$985"),IF($F$7<>"All",$F$7,"*"),INDIRECT(Plat&"!$Z$798:$Z$985"),IF($F$8<>"All",$F$8,"*"),INDIRECT(Plat&"!$AA$798:$AA$985"),"Dive Boat-Main Engine")+SUMIFS(IF($F$6="totaltons",INDIRECT(Plat&"!CA$798:CA$985"),IF($F$6="peakday",INDIRECT(Plat&"!BE$798:BE$985"),INDIRECT(Plat&"!CI$798:CI$985"))),INDIRECT(Plat&"!$Y$798:$Y$985"),IF($F$7<>"All",$F$7,"*"),INDIRECT(Plat&"!$Z$798:$Z$985"),IF($F$8<>"All",$F$8,"*"),INDIRECT(Plat&"!$AA$798:$AA$985"),"Dive Boat-Aux Engine")+SUMIFS(IF($F$6="totaltons",INDIRECT(Plat&"!CA$798:CA$985"),IF($F$6="peakday",INDIRECT(Plat&"!BE$798:BE$985"),INDIRECT(Plat&"!CI$798:CI$985"))),INDIRECT(Plat&"!$Y$798:$Y$985"),IF($F$7<>"All",$F$7,"*"),INDIRECT(Plat&"!$Z$798:$Z$985"),IF($F$8<>"All",$F$8,"*"),INDIRECT(Plat&"!$AA$798:$AA$985"),"Dive Boat-Main Engine Maneuver") -> 1.415819926 | D23: =SUMIFS(IF($F$6="totaltons",INDIRECT(Plat&"!CB$798:CB$985"),IF($F$6="peakday",INDIRECT(Plat&"!BF$798:BF$985"),INDIRECT(Plat&"!CJ$798:CJ$985"))),INDIRECT(Plat&"!$Y$798:$Y$985"),IF($F$7<>"All",$F$7,"*"),INDIRECT(Plat&"!$Z$798:$Z$985"),IF($F$8<>"All",$F$8,"*"),INDIRECT(Plat&"!$AA$798:$AA$985"),"Dive Boat-Main Engine")+SUMIFS(IF($F$6="totaltons",INDIRECT(Plat&"!CB$798:CB$985"),IF($F$6="peakday",INDIRECT(Plat&"!BF$798:BF$985"),INDIRECT(Plat&"!CJ$798:CJ$985"))),INDIRECT(Plat&"!$Y$798:$Y$985"),IF($F$7<>"All",$F$7,"*"),INDIRECT(Plat&"!$Z$798:$Z$985"),IF($F$8<>"All",$F$8,"*"),INDIRECT(Plat&"!$AA$798:$AA$985"),"Dive Boat-Aux Engine")+SUMIFS(IF($F$6="totaltons",INDIRECT(Plat&"!CB$798:CB$985"),IF($F$6="peakday",INDIRECT(Plat&"!BF$798:BF$985"),INDIRECT(Plat&"!CJ$798:CJ$985"))),INDIRECT(Plat&"!$Y$798:$Y$985"),IF($F$7<>"All",$F$7,"*"),INDIRECT(Plat&"!$Z$798:$Z$985"),IF($F$8<>"All",$F$8,"*"),INDIRECT(Plat&"!$AA$798:$AA$985"),"Dive Boat-Main Engine Maneuver") -> 6.173657081 | E23: =SUMIFS(IF($F$6="totaltons",INDIRECT(Plat&"!CC$798:CC$985"),IF($F$6="peakday",INDIRECT(Plat&"!BG$798:BG$985"),INDIRECT(Plat&"!CK$798:CK$985"))),INDIRECT(Plat&"!$Y$798:$Y$985"),IF($F$7<>"All",$F$7,"*"),INDIRECT(Plat&"!$Z$798:$Z$985"),IF($F$8<>"All",$F$8,"*"),INDIRECT(Plat&"!$AA$798:$AA$985"),"Dive Boat-Main Engine")+SUMIFS(IF($F$6="totaltons",INDIRECT(Plat&"!CC$798:CC$985"),IF($F$6="peakday",INDIRECT(Plat&"!BG$798:BG$985"),INDIRECT(Plat&"!CK$798:CK$985"))),INDIRECT(Plat&"!$Y$798:$Y$985"),IF($F$7<>"All",$F$7,"*"),INDIRECT(Plat&"!$Z$798:$Z$985"),IF($F$8<>"All",$F$8,"*"),INDIRECT(Plat&"!$AA$798:$AA$985"),"Dive Boat-Aux Engine")+SUMIFS(IF($F$6="totaltons",INDIRECT(Plat&"!CC$798:CC$985"),IF($F$6="peakday",INDIRECT(Plat&"!BG$798:BG$985"),INDIRECT(Plat&"!CK$798:CK$985"))),INDIRECT(Plat&"!$Y$798:$Y$985"),IF($F$7<>"All",$F$7,"*"),INDIRECT(Plat&"!$Z$798:$Z$985"),IF($F$8<>"All",$F$8,"*"),INDIRECT(Plat&"!$AA$798:$AA$985"),"Dive Boat-Main Engine Maneuver") -> 0.009031498256 | F23: =SUMIFS(IF($F$6="totaltons",INDIRECT(Plat&"!CD$798:CD$985"),IF($F$6="peakday",INDIRECT(Plat&"!BH$798:BH$985"),INDIRECT(Plat&"!CL$798:CL$985"))),INDIRECT(Plat&"!$Y$798:$Y$985"),IF($F$7<>"All",$F$7,"*"),INDIRECT(Plat&"!$Z$798:$Z$985"),IF($F$8<>"All",$F$8,"*"),INDIRECT(Plat&"!$AA$798:$AA$985"),"Dive Boat-Main Engine")+SUMIFS(IF($F$6="totaltons",INDIRECT(Plat&"!CD$798:CD$985"),IF($F$6="peakday",INDIRECT(Plat&"!BH$798:BH$985"),INDIRECT(Plat&"!CL$798:CL$985"))),INDIRECT(Plat&"!$Y$798:$Y$985"),IF($F$7<>"All",$F$7,"*"),INDIRECT(Plat&"!$Z$798:$Z$985"),IF($F$8<>"All",$F$8,"*"),INDIRECT(Plat&"!$AA$798:$AA$985"),"Dive Boat-Aux Engine")+SUMIFS(IF($F$6="totaltons",INDIRECT(Plat&"!CD$798:CD$985"),IF($F$6="peakday",INDIRECT(Plat&"!BH$798:BH$985"),INDIRECT(Plat&"!CL$798:CL$985"))),INDIRECT(Plat&"!$Y$798:$Y$985"),IF($F$7<>"All",$F$7,"*"),INDIRECT(Plat&"!$Z$798:$Z$985"),IF($F$8<>"All",$F$8,"*"),INDIRECT(Plat&"!$AA$798:$AA$985"),"Dive Boat-Main Engine Maneuver") -> 1.692343273 | G23: =SUMIFS(IF($F$6="totaltons",INDIRECT(Plat&"!CE$798:CE$985"),IF($F$6="peakday",INDIRECT(Plat&"!BI$798:BI$985"),INDIRECT(Plat&"!CM$798:CM$985"))),INDIRECT(Plat&"!$Y$798:$Y$985"),IF($F$7<>"All",$F$7,"*"),INDIRECT(Plat&"!$Z$798:$Z$985"),IF($F$8<>"All",$F$8,"*"),INDIRECT(Plat&"!$AA$798:$AA$985"),"Dive Boat-Main Engine")+SUMIFS(IF($F$6="totaltons",INDIRECT(Plat&"!CE$798:CE$985"),IF($F$6="peakday",INDIRECT(Plat&"!BI$798:BI$985"),INDIRECT(Plat&"!CM$798:CM$985"))),INDIRECT(Plat&"!$Y$798:$Y$985"),IF($F$7<>"All",$F$7,"*"),INDIRECT(Plat&"!$Z$798:$Z$985"),IF($F$8<>"All",$F$8,"*"),INDIRECT(Plat&"!$AA$798:$AA$985"),"Dive Boat-Aux Engine")+SUMIFS(IF($F$6="totaltons",INDIRECT(Plat&"!CE$798:CE$985"),IF($F$6="peakday",INDIRECT(Plat&"!BI$798:BI$985"),INDIRECT(Plat&"!CM$798:CM$985"))),INDIRECT(Plat&"!$Y$798:$Y$985"),IF($F$7<>"All",$F$7,"*"),INDIRECT(Plat&"!$Z$798:$Z$985"),IF($F$8<>"All",$F$8,"*"),INDIRECT(Plat&"!$AA$798:$AA$985"),"Dive Boat-Main Engine Maneuver") -> 1.647040906 | H23: =SUMIFS(IF($F$6="totaltons",INDIRECT(Plat&"!CF$798:CF$985"),IF($F$6="peakday",INDIRECT(Plat&"!BJ$798:BJ$985"),INDIRECT(Plat&"!CN$798:CN$985"))),INDIRECT(Plat&"!$Y$798:$Y$985"),IF($F$7<>"All",$F$7,"*"),INDIRECT(Plat&"!$Z$798:$Z$985"),IF($F$8<>"All",$F$8,"*"),INDIRECT(Plat&"!$AA$798:$AA$985"),"Dive Boat-Main Engine")+SUMIFS(IF($F$6="totaltons",INDIRECT(Plat&"!CF$798:CF$985"),IF($F$6="peakday",INDIRECT(Plat&"!BJ$798:BJ$985"),INDIRECT(Plat&"!CN$798:CN$985"))),INDIRECT(Plat&"!$Y$798:$Y$985"),IF($F$7<>"All",$F$7,"*"),INDIRECT(Plat&"!$Z$798:$Z$985"),IF($F$8<>"All",$F$8,"*"),INDIRECT(Plat&"!$AA$798:$AA$985"),"Dive Boat-Aux Engine")+SUMIFS(IF($F$6="totaltons",INDIRECT(Plat&"!CF$798:CF$985"),IF($F$6="peakday",INDIRECT(Plat&"!BJ$798:BJ$985"),INDIRECT(Plat&"!CN$798:CN$985"))),INDIRECT(Plat&"!$Y$798:$Y$985"),IF($F$7<>"All",$F$7,"*"),INDIRECT(Plat&"!$Z$798:$Z$985"),IF($F$8<>"All",$F$8,"*"),INDIRECT(Plat&"!$AA$798:$AA$985"),"Dive Boat-Main Engine Maneuver") -> 1.647040906 | I23: =SUMIFS(IF($F$6="totaltons",INDIRECT(Plat&"!CG$798:CG$985"),IF($F$6="peakday",INDIRECT(Plat&"!BK$798:BK$985"),INDIRECT(Plat&"!CO$798:CO$985"))),INDIRECT(Plat&"!$Y$798:$Y$985"),IF($F$7<>"All",$F$7,"*"),INDIRECT(Plat&"!$Z$798:$Z$985"),IF($F$8<>"All",$F$8,"*"),INDIRECT(Plat&"!$AA$798:$AA$985"),"Dive Boat-Main Engine")+SUMIFS(IF($F$6="totaltons",INDIRECT(Plat&"!CG$798:CG$985"),IF($F$6="peakday",INDIRECT(Plat&"!BK$798:BK$985"),INDIRECT(Plat&"!CO$798:CO$985"))),INDIRECT(Plat&"!$Y$798:$Y$985"),IF($F$7<>"All",$F$7,"*"),INDIRECT(Plat&"!$Z$798:$Z$985"),IF($F$8<>"All",$F$8,"*"),INDIRECT(Plat&"!$AA$798:$AA$985"),"Dive Boat-Aux Engine")+SUMIFS(IF($F$6="totaltons",INDIRECT(Plat&"!CG$798:CG$985"),IF($F$6="peakday",INDIRECT(Plat&"!BK$798:BK$985"),INDIRECT(Plat&"!CO$798:CO$985"))),INDIRECT(Plat&"!$Y$798:$Y$985"),IF($F$7<>"All",$F$7,"*"),INDIRECT(Plat&"!$Z$798:$Z$985"),IF($F$8<>"All",$F$8,"*"),INDIRECT(Plat&"!$AA$798:$AA$985"),"Dive Boat-Main Engine Maneuver") -> 904.8534372
A24: Drilling Rig | B24: =SUMIFS(IF($F$6="totaltons",INDIRECT(Plat&"!BZ$798:BZ$985"),IF($F$6="peakday",INDIRECT(Plat&"!BD$798:BD$985"),INDIRECT(Plat&"!CH$798:CH$985"))),INDIRECT(Plat&"!$Y$798:$Y$985"),IF($F$7<>"All",$F$7,"*"),INDIRECT(Plat&"!$Z$798:$Z$985"),IF($F$8<>"All",$F$8,"*"),INDIRECT(Plat&"!$AA$798:$AA$985"),$A24) -> 0 | C24: =SUMIFS(IF($F$6="totaltons",INDIRECT(Plat&"!CA$798:CA$985"),IF($F$6="peakday",INDIRECT(Plat&"!BE$798:BE$985"),INDIRECT(Plat&"!CI$798:CI$985"))),INDIRECT(Plat&"!$Y$798:$Y$985"),IF($F$7<>"All",$F$7,"*"),INDIRECT(Plat&"!$Z$798:$Z$985"),IF($F$8<>"All",$F$8,"*"),INDIRECT(Plat&"!$AA$798:$AA$985"),$A24) -> 0 | D24: =SUMIFS(IF($F$6="totaltons",INDIRECT(Plat&"!CB$798:CB$985"),IF($F$6="peakday",INDIRECT(Plat&"!BF$798:BF$985"),INDIRECT(Plat&"!CJ$798:CJ$985"))),INDIRECT(Plat&"!$Y$798:$Y$985"),IF($F$7<>"All",$F$7,"*"),INDIRECT(Plat&"!$Z$798:$Z$985"),IF($F$8<>"All",$F$8,"*"),INDIRECT(Plat&"!$AA$798:$AA$985"),$A24) -> 0 | E24: =SUMIFS(IF($F$6="totaltons",INDIRECT(Plat&"!CC$798:CC$985"),IF($F$6="peakday",INDIRECT(Plat&"!BG$798:BG$985"),INDIRECT(Plat&"!CK$798:CK$985"))),INDIRECT(Plat&"!$Y$798:$Y$985"),IF($F$7<>"All",$F$7,"*"),INDIRECT(Plat&"!$Z$798:$Z$985"),IF($F$8<>"All",$F$8,"*"),INDIRECT(Plat&"!$AA$798:$AA$985"),$A24) -> 0 | F24: =SUMIFS(IF($F$6="totaltons",INDIRECT(Plat&"!CD$798:CD$985"),IF($F$6="peakday",INDIRECT(Plat&"!BH$798:BH$985"),INDIRECT(Plat&"!CL$798:CL$985"))),INDIRECT(Plat&"!$Y$798:$Y$985"),IF($F$7<>"All",$F$7,"*"),INDIRECT(Plat&"!$Z$798:$Z$985"),IF($F$8<>"All",$F$8,"*"),INDIRECT(Plat&"!$AA$798:$AA$985"),$A24) -> 0 | G24: =SUMIFS(IF($F$6="totaltons",INDIRECT(Plat&"!CE$798:CE$985"),IF($F$6="peakday",INDIRECT(Plat&"!BI$798:BI$985"),INDIRECT(Plat&"!CM$798:CM$985"))),INDIRECT(Plat&"!$Y$798:$Y$985"),IF($F$7<>"All",$F$7,"*"),INDIRECT(Plat&"!$Z$798:$Z$985"),IF($F$8<>"All",$F$8,"*"),INDIRECT(Plat&"!$AA$798:$AA$985"),$A24) -> 0 | H24: =SUMIFS(IF($F$6="totaltons",INDIRECT(Plat&"!CF$798:CF$985"),IF($F$6="peakday",INDIRECT(Plat&"!BJ$798:BJ$985"),INDIRECT(Plat&"!CN$798:CN$985"))),INDIRECT(Plat&"!$Y$798:$Y$985"),IF($F$7<>"All",$F$7,"*"),INDIRECT(Plat&"!$Z$798:$Z$985"),IF($F$8<>"All",$F$8,"*"),INDIRECT(Plat&"!$AA$798:$AA$985"),$A24) -> 0 | I24: =SUMIFS(IF($F$6="totaltons",INDIRECT(Plat&"!CG$798:CG$985"),IF($F$6="peakday",INDIRECT(Plat&"!BK$798:BK$985"),INDIRECT(Plat&"!CO$798:CO$985"))),INDIRECT(Plat&"!$Y$798:$Y$985"),IF($F$7<>"All",$F$7,"*"),INDIRECT(Plat&"!$Z$798:$Z$985"),IF($F$8<>"All",$F$8,"*"),INDIRECT(Plat&"!$AA$798:$AA$985"),$A24) -> 0
A25: Generators | B25: =SUMIFS(IF($F$6="totaltons",INDIRECT(Plat&"!BZ$798:BZ$985"),IF($F$6="peakday",INDIRECT(Plat&"!BD$798:BD$985"),INDIRECT(Plat&"!CH$798:CH$985"))),INDIRECT(Plat&"!$Y$798:$Y$985"),IF($F$7<>"All",$F$7,"*"),INDIRECT(Plat&"!$Z$798:$Z$985"),IF($F$8<>"All",$F$8,"*"),INDIRECT(Plat&"!$AA$798:$AA$985"),$A25) -> 47.733552 | C25: =SUMIFS(IF($F$6="totaltons",INDIRECT(Plat&"!CA$798:CA$985"),IF($F$6="peakday",INDIRECT(Plat&"!BE$798:BE$985"),INDIRECT(Plat&"!CI$798:CI$985"))),INDIRECT(Plat&"!$Y$798:$Y$985"),IF($F$7<>"All",$F$7,"*"),INDIRECT(Plat&"!$Z$798:$Z$985"),IF($F$8<>"All",$F$8,"*"),INDIRECT(Plat&"!$AA$798:$AA$985"),$A25) -> 3.80328624 | D25: =SUMIFS(IF($F$6="totaltons",INDIRECT(Plat&"!CB$798:CB$985"),IF($F$6="peakday",INDIRECT(Plat&"!BF$798:BF$985"),INDIRECT(Plat&"!CJ$798:CJ$985"))),INDIRECT(Plat&"!$Y$798:$Y$985"),IF($F$7<>"All",$F$7,"*"),INDIRECT(Plat&"!$Z$798:$Z$985"),IF($F$8<>"All",$F$8,"*"),INDIRECT(Plat&"!$AA$798:$AA$985"),$A25) -> 10.28581056 | E25: =SUMIFS(IF($F$6="totaltons",INDIRECT(Plat&"!CC$798:CC$985"),IF($F$6="peakday",INDIRECT(Plat&"!BG$798:BG$985"),INDIRECT(Plat&"!CK$798:CK$985"))),INDIRECT(Plat&"!$Y$798:$Y$985"),IF($F$7<>"All",$F$7,"*"),INDIRECT(Plat&"!$Z$798:$Z$985"),IF($F$8<>"All",$F$8,"*"),INDIRECT(Plat&"!$AA$798:$AA$985"),$A25) -> 0.01697301587 | F25: =SUMIFS(IF($F$6="totaltons",INDIRECT(Plat&"!CD$798:CD$985"),IF($F$6="peakday",INDIRECT(Plat&"!BH$798:BH$985"),INDIRECT(Plat&"!CL$798:CL$985"))),INDIRECT(Plat&"!$Y$798:$Y$985"),IF($F$7<>"All",$F$7,"*"),INDIRECT(Plat&"!$Z$798:$Z$985"),IF($F$8<>"All",$F$8,"*"),INDIRECT(Plat&"!$AA$798:$AA$985"),$A25) -> 3.3875424 | G25: =SUMIFS(IF($F$6="totaltons",INDIRECT(Plat&"!CE$798:CE$985"),IF($F$6="peakday",INDIRECT(Plat&"!BI$798:BI$985"),INDIRECT(Plat&"!CM$798:CM$985"))),INDIRECT(Plat&"!$Y$798:$Y$985"),IF($F$7<>"All",$F$7,"*"),INDIRECT(Plat&"!$Z$798:$Z$985"),IF($F$8<>"All",$F$8,"*"),INDIRECT(Plat&"!$AA$798:$AA$985"),$A25) -> 3.3875424 | H25: =SUMIFS(IF($F$6="totaltons",INDIRECT(Plat&"!CF$798:CF$985"),IF($F$6="peakday",INDIRECT(Plat&"!BJ$798:BJ$985"),INDIRECT(Plat&"!CN$798:CN$985"))),INDIRECT(Plat&"!$Y$798:$Y$985"),IF($F$7<>"All",$F$7,"*"),INDIRECT(Plat&"!$Z$798:$Z$985"),IF($F$8<>"All",$F$8,"*"),INDIRECT(Plat&"!$AA$798:$AA$985"),$A25) -> 3.3875424 | I25: =SUMIFS(IF($F$6="totaltons",INDIRECT(Plat&"!CG$798:CG$985"),IF($F$6="peakday",INDIRECT(Plat&"!BK$798:BK$985"),INDIRECT(Plat&"!CO$798:CO$985"))),INDIRECT(Plat&"!$Y$798:$Y$985"),IF($F$7<>"All",$F$7,"*"),INDIRECT(Plat&"!$Z$798:$Z$985"),IF($F$8<>"All",$F$8,"*"),INDIRECT(Plat&"!$AA$798:$AA$985"),$A25) -> 1599.500184
A26: Lifting Barge | B26: =SUMIFS(IF($F$6="totaltons",INDIRECT(Plat&"!BZ$798:BZ$985"),IF($F$6="peakday",INDIRECT(Plat&"!BD$798:BD$985"),INDIRECT(Plat&"!CH$798:CH$985"))),INDIRECT(Plat&"!$Y$798:$Y$985"),IF($F$7<>"All",$F$7,"*"),INDIRECT(Plat&"!$Z$798:$Z$985"),IF($F$8<>"All",$F$8,"*"),INDIRECT(Plat&"!$AA$798:$AA$985"),$A26) -> 0 | C26: =SUMIFS(IF($F$6="totaltons",INDIRECT(Plat&"!CA$798:CA$985"),IF($F$6="peakday",INDIRECT(Plat&"!BE$798:BE$985"),INDIRECT(Plat&"!CI$798:CI$985"))),INDIRECT(Plat&"!$Y$798:$Y$985"),IF($F$7<>"All",$F$7,"*"),INDIRECT(Plat&"!$Z$798:$Z$985"),IF($F$8<>"All",$F$8,"*"),INDIRECT(Plat&"!$AA$798:$AA$985"),$A26) -> 0 | D26: =SUMIFS(IF($F$6="totaltons",INDIRECT(Plat&"!CB$798:CB$985"),IF($F$6="peakday",INDIRECT(Plat&"!BF$798:BF$985"),INDIRECT(Plat&"!CJ$798:CJ$985"))),INDIRECT(Plat&"!$Y$798:$Y$985"),IF($F$7<>"All",$F$7,"*"),INDIRECT(Plat&"!$Z$798:$Z$985"),IF($F$8<>"All",$F$8,"*"),INDIRECT(Plat&"!$AA$798:$AA$985"),$A26) -> 0 | E26: =SUMIFS(IF($F$6="totaltons",INDIRECT(Plat&"!CC$798:CC$985"),IF($F$6="peakday",INDIRECT(Plat&"!BG$798:BG$985"),INDIRECT(Plat&"!CK$798:CK$985"))),INDIRECT(Plat&"!$Y$798:$Y$985"),IF($F$7<>"All",$F$7,"*"),INDIRECT(Plat&"!$Z$798:$Z$985"),IF($F$8<>"All",$F$8,"*"),INDIRECT(Plat&"!$AA$798:$AA$985"),$A26) -> 0 | F26: =SUMIFS(IF($F$6="totaltons",INDIRECT(Plat&"!CD$798:CD$985"),IF($F$6="peakday",INDIRECT(Plat&"!BH$798:BH$985"),INDIRECT(Plat&"!CL$798:CL$985"))),INDIRECT(Plat&"!$Y$798:$Y$985"),IF($F$7<>"All",$F$7,"*"),INDIRECT(Plat&"!$Z$798:$Z$985"),IF($F$8<>"All",$F$8,"*"),INDIRECT(Plat&"!$AA$798:$AA$985"),$A26) -> 0 | G26: =SUMIFS(IF($F$6="totaltons",INDIRECT(Plat&"!CE$798:CE$985"),IF($F$6="peakday",INDIRECT(Plat&"!BI$798:BI$985"),INDIRECT(Plat&"!CM$798:CM$985"))),INDIRECT(Plat&"!$Y$798:$Y$985"),IF($F$7<>"All",$F$7,"*"),INDIRECT(Plat&"!$Z$798:$Z$985"),IF($F$8<>"All",$F$8,"*"),INDIRECT(Plat&"!$AA$798:$AA$985"),$A26) -> 0 | H26: =SUMIFS(IF($F$6="totaltons",INDIRECT(Plat&"!CF$798:CF$985"),IF($F$6="peakday",INDIRECT(Plat&"!BJ$798:BJ$985"),INDIRECT(Plat&"!CN$798:CN$985"))),INDIRECT(Plat&"!$Y$798:$Y$985"),IF($F$7<>"All",$F$7,"*"),INDIRECT(Plat&"!$Z$798:$Z$985"),IF($F$8<>"All",$F$8,"*"),INDIRECT(Plat&"!$AA$798:$AA$985"),$A26) -> 0 | I26: =SUMIFS(IF($F$6="totaltons",INDIRECT(Plat&"!CG$798:CG$985"),IF($F$6="peakday",INDIRECT(Plat&"!BK$798:BK$985"),INDIRECT(Plat&"!CO$798:CO$985"))),INDIRECT(Plat&"!$Y$798:$Y$985"),IF($F$7<>"All",$F$7,"*"),INDIRECT(Plat&"!$Z$798:$Z$985"),IF($F$8<>"All",$F$8,"*"),INDIRECT(Plat&"!$AA$798:$AA$985"),$A26) -> 0
A27: Mechanical Cutter | B27: =SUMIFS(IF($F$6="totaltons",INDIRECT(Plat&"!BZ$798:BZ$985"),IF($F$6="peakday",INDIRECT(Plat&"!BD$798:BD$985"),INDIRECT(Plat&"!CH$798:CH$985"))),INDIRECT(Plat&"!$Y$798:$Y$985"),IF($F$7<>"All",$F$7,"*"),INDIRECT(Plat&"!$Z$798:$Z$985"),IF($F$8<>"All",$F$8,"*"),INDIRECT(Plat&"!$AA$798:$AA$985"),$A27) -> 2.917968 | C27: =SUMIFS(IF($F$6="totaltons",INDIRECT(Plat&"!CA$798:CA$985"),IF($F$6="peakday",INDIRECT(Plat&"!BE$798:BE$985"),INDIRECT(Plat&"!CI$798:CI$985"))),INDIRECT(Plat&"!$Y$798:$Y$985"),IF($F$7<>"All",$F$7,"*"),INDIRECT(Plat&"!$Z$798:$Z$985"),IF($F$8<>"All",$F$8,"*"),INDIRECT(Plat&"!$AA$798:$AA$985"),$A27) -> 0.23249616 | D27: =SUMIFS(IF($F$6="totaltons",INDIRECT(Plat&"!CB$798:CB$985"),IF($F$6="peakday",INDIRECT(Plat&"!BF$798:BF$985"),INDIRECT(Plat&"!CJ$798:CJ$985"))),INDIRECT(Plat&"!$Y$798:$Y$985"),IF($F$7<>"All",$F$7,"*"),INDIRECT(Plat&"!$Z$798:$Z$985"),IF($F$8<>"All",$F$8,"*"),INDIRECT(Plat&"!$AA$798:$AA$985"),$A27) -> 0.62877504 | E27: =SUMIFS(IF($F$6="totaltons",INDIRECT(Plat&"!CC$798:CC$985"),IF($F$6="peakday",INDIRECT(Plat&"!BG$798:BG$985"),INDIRECT(Plat&"!CK$798:CK$985"))),INDIRECT(Plat&"!$Y$798:$Y$985"),IF($F$7<>"All",$F$7,"*"),INDIRECT(Plat&"!$Z$798:$Z$985"),IF($F$8<>"All",$F$8,"*"),INDIRECT(Plat&"!$AA$798:$AA$985"),$A27) -> 0.001037566138 | F27: =SUMIFS(IF($F$6="totaltons",INDIRECT(Plat&"!CD$798:CD$985"),IF($F$6="peakday",INDIRECT(Plat&"!BH$798:BH$985"),INDIRECT(Plat&"!CL$798:CL$985"))),INDIRECT(Plat&"!$Y$798:$Y$985"),IF($F$7<>"All",$F$7,"*"),INDIRECT(Plat&"!$Z$798:$Z$985"),IF($F$8<>"All",$F$8,"*"),INDIRECT(Plat&"!$AA$798:$AA$985"),$A27) -> 0.2070816 | G27: =SUMIFS(IF($F$6="totaltons",INDIRECT(Plat&"!CE$798:CE$985"),IF($F$6="peakday",INDIRECT(Plat&"!BI$798:BI$985"),INDIRECT(Plat&"!CM$798:CM$985"))),INDIRECT(Plat&"!$Y$798:$Y$985"),IF($F$7<>"All",$F$7,"*"),INDIRECT(Plat&"!$Z$798:$Z$985"),IF($F$8<>"All",$F$8,"*"),INDIRECT(Plat&"!$AA$798:$AA$985"),$A27) -> 0.2070816 | H27: =SUMIFS(IF($F$6="totaltons",INDIRECT(Plat&"!CF$798:CF$985"),IF($F$6="peakday",INDIRECT(Plat&"!BJ$798:BJ$985"),INDIRECT(Plat&"!CN$798:CN$985"))),INDIRECT(Plat&"!$Y$798:$Y$985"),IF($F$7<>"All",$F$7,"*"),INDIRECT(Plat&"!$Z$798:$Z$985"),IF($F$8<>"All",$F$8,"*"),INDIRECT(Plat&"!$AA$798:$AA$985"),$A27) -> 0.2070816 | I27: =SUMIFS(IF($F$6="totaltons",INDIRECT(Plat&"!CG$798:CG$985"),IF($F$6="peakday",INDIRECT(Plat&"!BK$798:BK$985"),INDIRECT(Plat&"!CO$798:CO$985"))),INDIRECT(Plat&"!$Y$798:$Y$985"),IF($F$7<>"All",$F$7,"*"),INDIRECT(Plat&"!$Z$798:$Z$985"),IF($F$8<>"All",$F$8,"*"),INDIRECT(Plat&"!$AA$798:$AA$985"),$A27) -> 97.77798129
A28: Supply Boats | B28: =SUMIFS(IF($F$6="totaltons",INDIRECT(Plat&"!BZ$798:BZ$985"),IF($F$6="peakday",INDIRECT(Plat&"!BD$798:BD$985"),INDIRECT(Plat&"!CH$798:CH$985"))),INDIRECT(Plat&"!$Y$798:$Y$985"),IF($F$7<>"All",$F$7,"*"),INDIRECT(Plat&"!$Z$798:$Z$985"),IF($F$8<>"All",$F$8,"*"),INDIRECT(Plat&"!$AA$798:$AA$985"),"Supply Boat-Main Engine")+SUMIFS(IF($F$6="totaltons",INDIRECT(Plat&"!BZ$798:BZ$985"),IF($F$6="peakday",INDIRECT(Plat&"!BD$798:BD$985"),INDIRECT(Plat&"!CH$798:CH$985"))),INDIRECT(Plat&"!$Y$798:$Y$985"),IF($F$7<>"All",$F$7,"*"),INDIRECT(Plat&"!$Z$798:$Z$985"),IF($F$8<>"All",$F$8,"*"),INDIRECT(Plat&"!$AA$798:$AA$985"),"Supply Boat-Aux Engine") -> 32.63062053 | C28: =SUMIFS(IF($F$6="totaltons",INDIRECT(Plat&"!CA$798:CA$985"),IF($F$6="peakday",INDIRECT(Plat&"!BE$798:BE$985"),INDIRECT(Plat&"!CI$798:CI$985"))),INDIRECT(Plat&"!$Y$798:$Y$985"),IF($F$7<>"All",$F$7,"*"),INDIRECT(Plat&"!$Z$798:$Z$985"),IF($F$8<>"All",$F$8,"*"),INDIRECT(Plat&"!$AA$798:$AA$985"),"Supply Boat-Main Engine")+SUMIFS(IF($F$6="totaltons",INDIRECT(Plat&"!CA$798:CA$985"),IF($F$6="peakday",INDIRECT(Plat&"!BE$798:BE$985"),INDIRECT(Plat&"!CI$798:CI$985"))),INDIRECT(Plat&"!$Y$798:$Y$985"),IF($F$7<>"All",$F$7,"*"),INDIRECT(Plat&"!$Z$798:$Z$985"),IF($F$8<>"All",$F$8,"*"),INDIRECT(Plat&"!$AA$798:$AA$985"),"Supply Boat-Aux Engine") -> 2.121406989 | D28: =SUMIFS(IF($F$6="totaltons",INDIRECT(Plat&"!CB$798:CB$985"),IF($F$6="peakday",INDIRECT(Plat&"!BF$798:BF$985"),INDIRECT(Plat&"!CJ$798:CJ$985"))),INDIRECT(Plat&"!$Y$798:$Y$985"),IF($F$7<>"All",$F$7,"*"),INDIRECT(Plat&"!$Z$798:$Z$985"),IF($F$8<>"All",$F$8,"*"),INDIRECT(Plat&"!$AA$798:$AA$985"),"Supply Boat-Main Engine")+SUMIFS(IF($F$6="totaltons",INDIRECT(Plat&"!CB$798:CB$985"),IF($F$6="peakday",INDIRECT(Plat&"!BF$798:BF$985"),INDIRECT(Plat&"!CJ$798:CJ$985"))),INDIRECT(Plat&"!$Y$798:$Y$985"),IF($F$7<>"All",$F$7,"*"),INDIRECT(Plat&"!$Z$798:$Z$985"),IF($F$8<>"All",$F$8,"*"),INDIRECT(Plat&"!$AA$798:$AA$985"),"Supply Boat-Aux Engine") -> 13.6879958 | E28: =SUMIFS(IF($F$6="totaltons",INDIRECT(Plat&"!CC$798:CC$985"),IF($F$6="peakday",INDIRECT(Plat&"!BG$798:BG$985"),INDIRECT(Plat&"!CK$798:CK$985"))),INDIRECT(Plat&"!$Y$798:$Y$985"),IF($F$7<>"All",$F$7,"*"),INDIRECT(Plat&"!$Z$798:$Z$985"),IF($F$8<>"All",$F$8,"*"),INDIRECT(Plat&"!$AA$798:$AA$985"),"Supply Boat-Main Engine")+SUMIFS(IF($F$6="totaltons",INDIRECT(Plat&"!CC$798:CC$985"),IF($F$6="peakday",INDIRECT(Plat&"!BG$798:BG$985"),INDIRECT(Plat&"!CK$798:CK$985"))),INDIRECT(Plat&"!$Y$798:$Y$985"),IF($F$7<>"All",$F$7,"*"),INDIRECT(Plat&"!$Z$798:$Z$985"),IF($F$8<>"All",$F$8,"*"),INDIRECT(Plat&"!$AA$798:$AA$985"),"Supply Boat-Aux Engine") -> 0.0191464642 | F28: =SUMIFS(IF($F$6="totaltons",INDIRECT(Plat&"!CD$798:CD$985"),IF($F$6="peakday",INDIRECT(Plat&"!BH$798:BH$985"),INDIRECT(Plat&"!CL$798:CL$985"))),INDIRECT(Plat&"!$Y$798:$Y$985"),IF($F$7<>"All",$F$7,"*"),INDIRECT(Plat&"!$Z$798:$Z$985"),IF($F$8<>"All",$F$8,"*"),INDIRECT(Plat&"!$AA$798:$AA$985"),"Supply Boat-Main Engine")+SUMIFS(IF($F$6="totaltons",INDIRECT(Plat&"!CD$798:CD$985"),IF($F$6="peakday",INDIRECT(Plat&"!BH$798:BH$985"),INDIRECT(Plat&"!CL$798:CL$985"))),INDIRECT(Plat&"!$Y$798:$Y$985"),IF($F$7<>"All",$F$7,"*"),INDIRECT(Plat&"!$Z$798:$Z$985"),IF($F$8<>"All",$F$8,"*"),INDIRECT(Plat&"!$AA$798:$AA$985"),"Supply Boat-Aux Engine") -> 3.147668092 | G28: =SUMIFS(IF($F$6="totaltons",INDIRECT(Plat&"!CE$798:CE$985"),IF($F$6="peakday",INDIRECT(Plat&"!BI$798:BI$985"),INDIRECT(Plat&"!CM$798:CM$985"))),INDIRECT(Plat&"!$Y$798:$Y$985"),IF($F$7<>"All",$F$7,"*"),INDIRECT(Plat&"!$Z$798:$Z$985"),IF($F$8<>"All",$F$8,"*"),INDIRECT(Plat&"!$AA$798:$AA$985"),"Supply Boat-Main Engine")+SUMIFS(IF($F$6="totaltons",INDIRECT(Plat&"!CE$798:CE$985"),IF($F$6="peakday",INDIRECT(Plat&"!BI$798:BI$985"),INDIRECT(Plat&"!CM$798:CM$985"))),INDIRECT(Plat&"!$Y$798:$Y$985"),IF($F$7<>"All",$F$7,"*"),INDIRECT(Plat&"!$Z$798:$Z$985"),IF($F$8<>"All",$F$8,"*"),INDIRECT(Plat&"!$AA$798:$AA$985"),"Supply Boat-Aux Engine") -> 3.104966963 | H28: =SUMIFS(IF($F$6="totaltons",INDIRECT(Plat&"!CF$798:CF$985"),IF($F$6="peakday",INDIRECT(Plat&"!BJ$798:BJ$985"),INDIRECT(Plat&"!CN$798:CN$985"))),INDIRECT(Plat&"!$Y$798:$Y$985"),IF($F$7<>"All",$F$7,"*"),INDIRECT(Plat&"!$Z$798:$Z$985"),IF($F$8<>"All",$F$8,"*"),INDIRECT(Plat&"!$AA$798:$AA$985"),"Supply Boat-Main Engine")+SUMIFS(IF($F$6="totaltons",INDIRECT(Plat&"!CF$798:CF$985"),IF($F$6="peakday",INDIRECT(Plat&"!BJ$798:BJ$985"),INDIRECT(Plat&"!CN$798:CN$985"))),INDIRECT(Plat&"!$Y$798:$Y$985"),IF($F$7<>"All",$F$7,"*"),INDIRECT(Plat&"!$Z$798:$Z$985"),IF($F$8<>"All",$F$8,"*"),INDIRECT(Plat&"!$AA$798:$AA$985"),"Supply Boat-Aux Engine") -> 3.104966963 | I28: =SUMIFS(IF($F$6="totaltons",INDIRECT(Plat&"!CG$798:CG$985"),IF($F$6="peakday",INDIRECT(Plat&"!BK$798:BK$985"),INDIRECT(Plat&"!CO$798:CO$985"))),INDIRECT(Plat&"!$Y$798:$Y$985"),IF($F$7<>"All",$F$7,"*"),INDIRECT(Plat&"!$Z$798:$Z$985"),IF($F$8<>"All",$F$8,"*"),INDIRECT(Plat&"!$AA$798:$AA$985"),"Supply Boat-Main Engine")+SUMIFS(IF($F$6="totaltons",INDIRECT(Plat&"!CG$798:CG$985"),IF($F$6="peakday",INDIRECT(Plat&"!BK$798:BK$985"),INDIRECT(Plat&"!CO$798:CO$985"))),INDIRECT(Plat&"!$Y$798:$Y$985"),IF($F$7<>"All",$F$7,"*"),INDIRECT(Plat&"!$Z$798:$Z$985"),IF($F$8<>"All",$F$8,"*"),INDIRECT(Plat&"!$AA$798:$AA$985"),"Supply Boat-Aux Engine") -> 1918.258018
A29: Welding Machine | B29: =SUMIFS(IF($F$6="totaltons",INDIRECT(Plat&"!BZ$798:BZ$985"),IF($F$6="peakday",INDIRECT(Plat&"!BD$798:BD$985"),INDIRECT(Plat&"!CH$798:CH$985"))),INDIRECT(Plat&"!$Y$798:$Y$985"),IF($F$7<>"All",$F$7,"*"),INDIRECT(Plat&"!$Z$798:$Z$985"),IF($F$8<>"All",$F$8,"*"),INDIRECT(Plat&"!$AA$798:$AA$985"),$A29) -> 11.41668 | C29: =SUMIFS(IF($F$6="totaltons",INDIRECT(Plat&"!CA$798:CA$985"),IF($F$6="peakday",INDIRECT(Plat&"!BE$798:BE$985"),INDIRECT(Plat&"!CI$798:CI$985"))),INDIRECT(Plat&"!$Y$798:$Y$985"),IF($F$7<>"All",$F$7,"*"),INDIRECT(Plat&"!$Z$798:$Z$985"),IF($F$8<>"All",$F$8,"*"),INDIRECT(Plat&"!$AA$798:$AA$985"),$A29) -> 0.9096516 | D29: =SUMIFS(IF($F$6="totaltons",INDIRECT(Plat&"!CB$798:CB$985"),IF($F$6="peakday",INDIRECT(Plat&"!BF$798:BF$985"),INDIRECT(Plat&"!CJ$798:CJ$985"))),INDIRECT(Plat&"!$Y$798:$Y$985"),IF($F$7<>"All",$F$7,"*"),INDIRECT(Plat&"!$Z$798:$Z$985"),IF($F$8<>"All",$F$8,"*"),INDIRECT(Plat&"!$AA$798:$AA$985"),$A29) -> 2.4601104 | E29: =SUMIFS(IF($F$6="totaltons",INDIRECT(Plat&"!CC$798:CC$985"),IF($F$6="peakday",INDIRECT(Plat&"!BG$798:BG$985"),INDIRECT(Plat&"!CK$798:CK$985"))),INDIRECT(Plat&"!$Y$798:$Y$985"),IF($F$7<>"All",$F$7,"*"),INDIRECT(Plat&"!$Z$798:$Z$985"),IF($F$8<>"All",$F$8,"*"),INDIRECT(Plat&"!$AA$798:$AA$985"),$A29) -> 0.00405952381 | F29: =SUMIFS(IF($F$6="totaltons",INDIRECT(Plat&"!CD$798:CD$985"),IF($F$6="peakday",INDIRECT(Plat&"!BH$798:BH$985"),INDIRECT(Plat&"!CL$798:CL$985"))),INDIRECT(Plat&"!$Y$798:$Y$985"),IF($F$7<>"All",$F$7,"*"),INDIRECT(Plat&"!$Z$798:$Z$985"),IF($F$8<>"All",$F$8,"*"),INDIRECT(Plat&"!$AA$798:$AA$985"),$A29) -> 0.810216 | G29: =SUMIFS(IF($F$6="totaltons",INDIRECT(Plat&"!CE$798:CE$985"),IF($F$6="peakday",INDIRECT(Plat&"!BI$798:BI$985"),INDIRECT(Plat&"!CM$798:CM$985"))),INDIRECT(Plat&"!$Y$798:$Y$985"),IF($F$7<>"All",$F$7,"*"),INDIRECT(Plat&"!$Z$798:$Z$985"),IF($F$8<>"All",$F$8,"*"),INDIRECT(Plat&"!$AA$798:$AA$985"),$A29) -> 0.810216 | H29: =SUMIFS(IF($F$6="totaltons",INDIRECT(Plat&"!CF$798:CF$985"),IF($F$6="peakday",INDIRECT(Plat&"!BJ$798:BJ$985"),INDIRECT(Plat&"!CN$798:CN$985"))),INDIRECT(Plat&"!$Y$798:$Y$985"),IF($F$7<>"All",$F$7,"*"),INDIRECT(Plat&"!$Z$798:$Z$985"),IF($F$8<>"All",$F$8,"*"),INDIRECT(Plat&"!$AA$798:$AA$985"),$A29) -> 0.810216 | I29: =SUMIFS(IF($F$6="totaltons",INDIRECT(Plat&"!CG$798:CG$985"),IF($F$6="peakday",INDIRECT(Plat&"!BK$798:BK$985"),INDIRECT(Plat&"!CO$798:CO$985"))),INDIRECT(Plat&"!$Y$798:$Y$985"),IF($F$7<>"All",$F$7,"*"),INDIRECT(Plat&"!$Z$798:$Z$985"),IF($F$8<>"All",$F$8,"*"),INDIRECT(Plat&"!$AA$798:$AA$985"),$A29) -> 382.5607146
A30: Well Kill Pump | B30: =SUMIFS(IF($F$6="totaltons",INDIRECT(Plat&"!BZ$798:BZ$985"),IF($F$6="peakday",INDIRECT(Plat&"!BD$798:BD$985"),INDIRECT(Plat&"!CH$798:CH$985"))),INDIRECT(Plat&"!$Y$798:$Y$985"),IF($F$7<>"All",$F$7,"*"),INDIRECT(Plat&"!$Z$798:$Z$985"),IF($F$8<>"All",$F$8,"*"),INDIRECT(Plat&"!$AA$798:$AA$985"),$A30) -> 0.118296 | C30: =SUMIFS(IF($F$6="totaltons",INDIRECT(Plat&"!CA$798:CA$985"),IF($F$6="peakday",INDIRECT(Plat&"!BE$798:BE$985"),INDIRECT(Plat&"!CI$798:CI$985"))),INDIRECT(Plat&"!$Y$798:$Y$985"),IF($F$7<>"All",$F$7,"*"),INDIRECT(Plat&"!$Z$798:$Z$985"),IF($F$8<>"All",$F$8,"*"),INDIRECT(Plat&"!$AA$798:$AA$985"),$A30) -> 0.00942552 | D30: =SUMIFS(IF($F$6="totaltons",INDIRECT(Plat&"!CB$798:CB$985"),IF($F$6="peakday",INDIRECT(Plat&"!BF$798:BF$985"),INDIRECT(Plat&"!CJ$798:CJ$985"))),INDIRECT(Plat&"!$Y$798:$Y$985"),IF($F$7<>"All",$F$7,"*"),INDIRECT(Plat&"!$Z$798:$Z$985"),IF($F$8<>"All",$F$8,"*"),INDIRECT(Plat&"!$AA$798:$AA$985"),$A30) -> 0.02549088 | E30: =SUMIFS(IF($F$6="totaltons",INDIRECT(Plat&"!CC$798:CC$985"),IF($F$6="peakday",INDIRECT(Plat&"!BG$798:BG$985"),INDIRECT(Plat&"!CK$798:CK$985"))),INDIRECT(Plat&"!$Y$798:$Y$985"),IF($F$7<>"All",$F$7,"*"),INDIRECT(Plat&"!$Z$798:$Z$985"),IF($F$8<>"All",$F$8,"*"),INDIRECT(Plat&"!$AA$798:$AA$985"),$A30) -> 4.206349206e-05 | F30: =SUMIFS(IF($F$6="totaltons",INDIRECT(Plat&"!CD$798:CD$985"),IF($F$6="peakday",INDIRECT(Plat&"!BH$798:BH$985"),INDIRECT(Plat&"!CL$798:CL$985"))),INDIRECT(Plat&"!$Y$798:$Y$985"),IF($F$7<>"All",$F$7,"*"),INDIRECT(Plat&"!$Z$798:$Z$985"),IF($F$8<>"All",$F$8,"*"),INDIRECT(Plat&"!$AA$798:$AA$985"),$A30) -> 0.0083952 | G30: =SUMIFS(IF($F$6="totaltons",INDIRECT(Plat&"!CE$798:CE$985"),IF($F$6="peakday",INDIRECT(Plat&"!BI$798:BI$985"),INDIRECT(Plat&"!CM$798:CM$985"))),INDIRECT(Plat&"!$Y$798:$Y$985"),IF($F$7<>"All",$F$7,"*"),INDIRECT(Plat&"!$Z$798:$Z$985"),IF($F$8<>"All",$F$8,"*"),INDIRECT(Plat&"!$AA$798:$AA$985"),$A30) -> 0.0083952 | H30: =SUMIFS(IF($F$6="totaltons",INDIRECT(Plat&"!CF$798:CF$985"),IF($F$6="peakday",INDIRECT(Plat&"!BJ$798:BJ$985"),INDIRECT(Plat&"!CN$798:CN$985"))),INDIRECT(Plat&"!$Y$798:$Y$985"),IF($F$7<>"All",$F$7,"*"),INDIRECT(Plat&"!$Z$798:$Z$985"),IF($F$8<>"All",$F$8,"*"),INDIRECT(Plat&"!$AA$798:$AA$985"),$A30) -> 0.0083952 | I30: =SUMIFS(IF($F$6="totaltons",INDIRECT(Plat&"!CG$798:CG$985"),IF($F$6="peakday",INDIRECT(Plat&"!BK$798:BK$985"),INDIRECT(Plat&"!CO$798:CO$985"))),INDIRECT(Plat&"!$Y$798:$Y$985"),IF($F$7<>"All",$F$7,"*"),INDIRECT(Plat&"!$Z$798:$Z$985"),IF($F$8<>"All",$F$8,"*"),INDIRECT(Plat&"!$AA$798:$AA$985"),$A30) -> 3.963972214
A31: Additional Equipment | B31: =SUMIFS(IF($F$6="totaltons",INDIRECT(Plat&"!BZ$988:BZ$1123"),IF($F$6="peakday",INDIRECT(Plat&"!BD$988:BD$1123"),INDIRECT(Plat&"!CH$988:CH$1123"))),INDIRECT(Plat&"!$Y$988:$Y$1123"),IF($F$7<>"All",$F$7,"*"),INDIRECT(Plat&"!$Z$988:$Z$1123"),IF($F$8<>"All",$F$8,"*")) -> 0 | C31: =SUMIFS(IF($F$6="totaltons",INDIRECT(Plat&"!CA$988:CA$1123"),IF($F$6="peakday",INDIRECT(Plat&"!BE$988:BE$1123"),INDIRECT(Plat&"!CI$988:CI$1123"))),INDIRECT(Plat&"!$Y$988:$Y$1123"),IF($F$7<>"All",$F$7,"*"),INDIRECT(Plat&"!$Z$988:$Z$1123"),IF($F$8<>"All",$F$8,"*")) -> 0 | D31: =SUMIFS(IF($F$6="totaltons",INDIRECT(Plat&"!CB$988:CB$1123"),IF($F$6="peakday",INDIRECT(Plat&"!BF$988:BF$1123"),INDIRECT(Plat&"!CJ$988:CJ$1123"))),INDIRECT(Plat&"!$Y$988:$Y$1123"),IF($F$7<>"All",$F$7,"*"),INDIRECT(Plat&"!$Z$988:$Z$1123"),IF($F$8<>"All",$F$8,"*")) -> 0 | E31: =SUMIFS(IF($F$6="totaltons",INDIRECT(Plat&"!CC$988:CC$1123"),IF($F$6="peakday",INDIRECT(Plat&"!BG$988:BG$1123"),INDIRECT(Plat&"!CK$988:CK$1123"))),INDIRECT(Plat&"!$Y$988:$Y$1123"),IF($F$7<>"All",$F$7,"*"),INDIRECT(Plat&"!$Z$988:$Z$1123"),IF($F$8<>"All",$F$8,"*")) -> 0 | F31: =SUMIFS(IF($F$6="totaltons",INDIRECT(Plat&"!CD$988:CD$1123"),IF($F$6="peakday",INDIRECT(Plat&"!BH$988:BH$1123"),INDIRECT(Plat&"!CL$988:CL$1123"))),INDIRECT(Plat&"!$Y$988:$Y$1123"),IF($F$7<>"All",$F$7,"*"),INDIRECT(Plat&"!$Z$988:$Z$1123"),IF($F$8<>"All",$F$8,"*")) -> 0 | G31: =SUMIFS(IF($F$6="totaltons",INDIRECT(Plat&"!CE$988:CE$1123"),IF($F$6="peakday",INDIRECT(Plat&"!BI$988:BI$1123"),INDIRECT(Plat&"!CM$988:CM$1123"))),INDIRECT(Plat&"!$Y$988:$Y$1123"),IF($F$7<>"All",$F$7,"*"),INDIRECT(Plat&"!$Z$988:$Z$1123"),IF($F$8<>"All",$F$8,"*")) -> 0 | H31: =SUMIFS(IF($F$6="totaltons",INDIRECT(Plat&"!CF$988:CF$1123"),IF($F$6="peakday",INDIRECT(Plat&"!BJ$988:BJ$1123"),INDIRECT(Plat&"!CN$988:CN$1123"))),INDIRECT(Plat&"!$Y$988:$Y$1123"),IF($F$7<>"All",$F$7,"*"),INDIRECT(Plat&"!$Z$988:$Z$1123"),IF($F$8<>"All",$F$8,"*")) -> 0 | I31: =SUMIFS(IF($F$6="totaltons",INDIRECT(Plat&"!CG$988:CG$1123"),IF($F$6="peakday",INDIRECT(Plat&"!BK$988:BK$1123"),INDIRECT(Plat&"!CO$988:CO$1123"))),INDIRECT(Plat&"!$Y$988:$Y$1123"),IF($F$7<>"All",$F$7,"*"),INDIRECT(Plat&"!$Z$988:$Z$1123"),IF($F$8<>"All",$F$8,"*")) -> 0
A33: Total Emissions | B33: =SUM(B15:B32) -> 362.6070657 | C33: =SUM(C15:C32) -> 28.89519845 | D33: 89.78899746 | E33: 0.141990536 | F33: 27.64375068 | G33: 27.49867847 | H33: 27.49867847 | I33: 13588.90707
A34: Thresholds Exceeded ? (25 tpy) | B34: =IF(OR($F$6="totaltons", $F$6="pte"),IF(B33>25,"Yes","-"),"-") -> Yes | C34: Yes | D34: Yes | E34: - | F34: Yes | G34: Yes | H34: Yes | I34: ="-" -> -

Sheet PlatformsSummary
A1: Air Emissions Associated with Decommissioning Operations for Pacific Outer Continental Shelf (OCS) Oil and Gas Platforms: Emissions Summary for All Platforms
A2: ="Defined area: "&Inputs!$C$104 -> Defined area: Total | D2: ="Pipeline removal: "&Inputs!$C$110 -> Pipeline removal: Shallow | H2: ="Use of all Tier 4 engines: "&Inputs!$C$127 -> Use of all Tier 4 engines: No
A3: ="Jacket removal: "&Inputs!$C$107 -> Jacket removal: Full | D3: ="Shell mounds removal: "&Inputs!$C$122 -> Shell mounds removal: Yes | H3: ="Include well P&A: "&Inputs!$C$125 -> Include well P&A: Yes
A4: ="Include conductors: "&Inputs!$C$126 -> Include conductors: Yes
A5: Queries | I5: Select Value
A6: ="Area (All areas or Defined Area specified in Parameters & Options) currently defined as "&Inputs!C104&" -->" -> Area (All areas or Defined Area specified in Parameters & Options) currently defined as Total --> | I6: Area
A7: Phase (All Phases or Specify Phase) --> | I7: All
A8: Subphase (All Subphases or Specify Subphase) --> | I8: All
A9: Platform Depth Category, feet --> | I9: All
A10: Platform Unit or Field --> | I10: All
A11: Platform County --> | I11: All
A15: Platforms Decommissioning Emissions
E16: NOx | F16: ROC | G16: CO | H16: SOx | I16: PM | J16: PM10 | K16: PM2.5 | L16: GHG Metric Tonnes
A17: Platform | D17: Exceed Threshold (25 tpy)? | E17: Total Tons
A18: A | D18: =IF(OR(E18>25,F18>25,G18>25,H18>25,I18>25,J18>25,K18>25),"Yes","-") -> Yes | E18: =SUMIFS(PlatformsSummaryDetail!I$6:I$1100,PlatformsSummaryDetail!$A$6:$A$1100,PlatformsSummary!$A18,PlatformsSummaryDetail!$B$6:$B$1100,$I$6,PlatformsSummaryDetail!$E$6:$E$1100,IF($I$7<>"All",$I$7,"*"),PlatformsSummaryDetail!$F$6:$F$1100,IF($I$8<>"All",$I$8,"*"),PlatformsSummaryDetail!$H$6:$H$1100,IF($I$9<>"All",$I$9,"*"),PlatformsSummaryDetail!$C$6:$C$1100,IF($I$10<>"All",$I$10,"*"),PlatformsSummaryDetail!$D$6:$D$1100,IF($I$11<>"All",$I$11,"*")) -> 362.6070657 | F18: =SUMIFS(PlatformsSummaryDetail!J$6:J$1100,PlatformsSummaryDetail!$A$6:$A$1100,PlatformsSummary!$A18,PlatformsSummaryDetail!$B$6:$B$1100,$I$6,PlatformsSummaryDetail!$E$6:$E$1100,IF($I$7<>"All",$I$7,"*"),PlatformsSummaryDetail!$F$6:$F$1100,IF($I$8<>"All",$I$8,"*"),PlatformsSummaryDetail!$H$6:$H$1100,IF($I$9<>"All",$I$9,"*"),PlatformsSummaryDetail!$C$6:$C$1100,IF($I$10<>"All",$I$10,"*"),PlatformsSummaryDetail!$D$6:$D$1100,IF($I$11<>"All",$I$11,"*")) -> 28.89519845 | G18: =SUMIFS(PlatformsSummaryDetail!K$6:K$1100,PlatformsSummaryDetail!$A$6:$A$1100,PlatformsSummary!$A18,PlatformsSummaryDetail!$B$6:$B$1100,$I$6,PlatformsSummaryDetail!$E$6:$E$1100,IF($I$7<>"All",$I$7,"*"),PlatformsSummaryDetail!$F$6:$F$1100,IF($I$8<>"All",$I$8,"*"),PlatformsSummaryDetail!$H$6:$H$1100,IF($I$9<>"All",$I$9,"*"),PlatformsSummaryDetail!$C$6:$C$1100,IF($I$10<>"All",$I$10,"*"),PlatformsSummaryDetail!$D$6:$D$1100,IF($I$11<>"All",$I$11,"*")) -> 89.78899746 | H18: =SUMIFS(PlatformsSummaryDetail!L$6:L$1100,PlatformsSummaryDetail!$A$6:$A$1100,PlatformsSummary!$A18,PlatformsSummaryDetail!$B$6:$B$1100,$I$6,PlatformsSummaryDetail!$E$6:$E$1100,IF($I$7<>"All",$I$7,"*"),PlatformsSummaryDetail!$F$6:$F$1100,IF($I$8<>"All",$I$8,"*"),PlatformsSummaryDetail!$H$6:$H$1100,IF($I$9<>"All",$I$9,"*"),PlatformsSummaryDetail!$C$6:$C$1100,IF($I$10<>"All",$I$10,"*"),PlatformsSummaryDetail!$D$6:$D$1100,IF($I$11<>"All",$I$11,"*")) -> 0.141990536 | I18: =SUMIFS(PlatformsSummaryDetail!M$6:M$1100,PlatformsSummaryDetail!$A$6:$A$1100,PlatformsSummary!$A18,PlatformsSummaryDetail!$B$6:$B$1100,$I$6,PlatformsSummaryDetail!$E$6:$E$1100,IF($I$7<>"All",$I$7,"*"),PlatformsSummaryDetail!$F$6:$F$1100,IF($I$8<>"All",$I$8,"*"),PlatformsSummaryDetail!$H$6:$H$1100,IF($I$9<>"All",$I$9,"*"),PlatformsSummaryDetail!$C$6:$C$1100,IF($I$10<>"All",$I$10,"*"),PlatformsSummaryDetail!$D$6:$D$1100,IF($I$11<>"All",$I$11,"*")) -> 27.64375068 | J18: =SUMIFS(PlatformsSummaryDetail!N$6:N$1100,PlatformsSummaryDetail!$A$6:$A$1100,PlatformsSummary!$A18,PlatformsSummaryDetail!$B$6:$B$1100,$I$6,PlatformsSummaryDetail!$E$6:$E$1100,IF($I$7<>"All",$I$7,"*"),PlatformsSummaryDetail!$F$6:$F$1100,IF($I$8<>"All",$I$8,"*"),PlatformsSummaryDetail!$H$6:$H$1100,IF($I$9<>"All",$I$9,"*"),PlatformsSummaryDetail!$C$6:$C$1100,IF($I$10<>"All",$I$10,"*"),PlatformsSummaryDetail!$D$6:$D$1100,IF($I$11<>"All",$I$11,"*")) -> 27.49867847 | K18: =SUMIFS(PlatformsSummaryDetail!O$6:O$1100,PlatformsSummaryDetail!$A$6:$A$1100,PlatformsSummary!$A18,PlatformsSummaryDetail!$B$6:$B$1100,$I$6,PlatformsSummaryDetail!$E$6:$E$1100,IF($I$7<>"All",$I$7,"*"),PlatformsSummaryDetail!$F$6:$F$1100,IF($I$8<>"All",$I$8,"*"),PlatformsSummaryDetail!$H$6:$H$1100,IF($I$9<>"All",$I$9,"*"),PlatformsSummaryDetail!$C$6:$C$1100,IF($I$10<>"All",$I$10,"*"),PlatformsSummaryDetail!$D$6:$D$1100,IF($I$11<>"All",$I$11,"*")) -> 27.49867847 | L18: =SUMIFS(PlatformsSummaryDetail!P$6:P$1100,PlatformsSummaryDetail!$A$6:$A$1100,PlatformsSummary!$A18,PlatformsSummaryDetail!$B$6:$B$1100,$I$6,PlatformsSummaryDetail!$E$6:$E$1100,IF($I$7<>"All",$I$7,"*"),PlatformsSummaryDetail!$F$6:$F$1100,IF($I$8<>"All",$I$8,"*"),PlatformsSummaryDetail!$H$6:$H$1100,IF($I$9<>"All",$I$9,"*"),PlatformsSummaryDetail!$C$6:$C$1100,IF($I$10<>"All",$I$10,"*"),PlatformsSummaryDetail!$D$6:$D$1100,IF($I$11<>"All",$I$11,"*")) -> 13588.90707
A19: B | D19: =IF(OR(E19>25,F19>25,G19>25,H19>25,I19>25,J19>25,K19>25),"Yes","-") -> Yes | E19: =SUMIFS(PlatformsSummaryDetail!I$6:I$1100,PlatformsSummaryDetail!$A$6:$A$1100,PlatformsSummary!$A19,PlatformsSummaryDetail!$B$6:$B$1100,$I$6,PlatformsSummaryDetail!$E$6:$E$1100,IF($I$7<>"All",$I$7,"*"),PlatformsSummaryDetail!$F$6:$F$1100,IF($I$8<>"All",$I$8,"*"),PlatformsSummaryDetail!$H$6:$H$1100,IF($I$9<>"All",$I$9,"*"),PlatformsSummaryDetail!$C$6:$C$1100,IF($I$10<>"All",$I$10,"*"),PlatformsSummaryDetail!$D$6:$D$1100,IF($I$11<>"All",$I$11,"*")) -> 300.6043625 | F19: =SUMIFS(PlatformsSummaryDetail!J$6:J$1100,PlatformsSummaryDetail!$A$6:$A$1100,PlatformsSummary!$A19,PlatformsSummaryDetail!$B$6:$B$1100,$I$6,PlatformsSummaryDetail!$E$6:$E$1100,IF($I$7<>"All",$I$7,"*"),PlatformsSummaryDetail!$F$6:$F$1100,IF($I$8<>"All",$I$8,"*"),PlatformsSummaryDetail!$H$6:$H$1100,IF($I$9<>"All",$I$9,"*"),PlatformsSummaryDetail!$C$6:$C$1100,IF($I$10<>"All",$I$10,"*"),PlatformsSummaryDetail!$D$6:$D$1100,IF($I$11<>"All",$I$11,"*")) -> 24.17376273 | G19: =SUMIFS(PlatformsSummaryDetail!K$6:K$1100,PlatformsSummaryDetail!$A$6:$A$1100,PlatformsSummary!$A19,PlatformsSummaryDetail!$B$6:$B$1100,$I$6,PlatformsSummaryDetail!$E$6:$E$1100,IF($I$7<>"All",$I$7,"*"),PlatformsSummaryDetail!$F$6:$F$1100,IF($I$8<>"All",$I$8,"*"),PlatformsSummaryDetail!$H$6:$H$1100,IF($I$9<>"All",$I$9,"*"),PlatformsSummaryDetail!$C$6:$C$1100,IF($I$10<>"All",$I$10,"*"),PlatformsSummaryDetail!$D$6:$D$1100,IF($I$11<>"All",$I$11,"*")) -> 76.28596463 | H19: =SUMIFS(PlatformsSummaryDetail!L$6:L$1100,PlatformsSummaryDetail!$A$6:$A$1100,PlatformsSummary!$A19,PlatformsSummaryDetail!$B$6:$B$1100,$I$6,PlatformsSummaryDetail!$E$6:$E$1100,IF($I$7<>"All",$I$7,"*"),PlatformsSummaryDetail!$F$6:$F$1100,IF($I$8<>"All",$I$8,"*"),PlatformsSummaryDetail!$H$6:$H$1100,IF($I$9<>"All",$I$9,"*"),PlatformsSummaryDetail!$C$6:$C$1100,IF($I$10<>"All",$I$10,"*"),PlatformsSummaryDetail!$D$6:$D$1100,IF($I$11<>"All",$I$11,"*")) -> 0.1198492044 | I19: =SUMIFS(PlatformsSummaryDetail!M$6:M$1100,PlatformsSummaryDetail!$A$6:$A$1100,PlatformsSummary!$A19,PlatformsSummaryDetail!$B$6:$B$1100,$I$6,PlatformsSummaryDetail!$E$6:$E$1100,IF($I$7<>"All",$I$7,"*"),PlatformsSummaryDetail!$F$6:$F$1100,IF($I$8<>"All",$I$8,"*"),PlatformsSummaryDetail!$H$6:$H$1100,IF($I$9<>"All",$I$9,"*"),PlatformsSummaryDetail!$C$6:$C$1100,IF($I$10<>"All",$I$10,"*"),PlatformsSummaryDetail!$D$6:$D$1100,IF($I$11<>"All",$I$11,"*")) -> 23.30262153 | J19: =SUMIFS(PlatformsSummaryDetail!N$6:N$1100,PlatformsSummaryDetail!$A$6:$A$1100,PlatformsSummary!$A19,PlatformsSummaryDetail!$B$6:$B$1100,$I$6,PlatformsSummaryDetail!$E$6:$E$1100,IF($I$7<>"All",$I$7,"*"),PlatformsSummaryDetail!$F$6:$F$1100,IF($I$8<>"All",$I$8,"*"),PlatformsSummaryDetail!$H$6:$H$1100,IF($I$9<>"All",$I$9,"*"),PlatformsSummaryDetail!$C$6:$C$1100,IF($I$10<>"All",$I$10,"*"),PlatformsSummaryDetail!$D$6:$D$1100,IF($I$11<>"All",$I$11,"*")) -> 23.15998186 | K19: =SUMIFS(PlatformsSummaryDetail!O$6:O$1100,PlatformsSummaryDetail!$A$6:$A$1100,PlatformsSummary!$A19,PlatformsSummaryDetail!$B$6:$B$1100,$I$6,PlatformsSummaryDetail!$E$6:$E$1100,IF($I$7<>"All",$I$7,"*"),PlatformsSummaryDetail!$F$6:$F$1100,IF($I$8<>"All",$I$8,"*"),PlatformsSummaryDetail!$H$6:$H$1100,IF($I$9<>"All",$I$9,"*"),PlatformsSummaryDetail!$C$6:$C$1100,IF($I$10<>"All",$I$10,"*"),PlatformsSummaryDetail!$D$6:$D$1100,IF($I$11<>"All",$I$11,"*")) -> 23.15998186 | L19: =SUMIFS(PlatformsSummaryDetail!P$6:P$1100,PlatformsSummaryDetail!$A$6:$A$1100,PlatformsSummary!$A19,PlatformsSummaryDetail!$B$6:$B$1100,$I$6,PlatformsSummaryDetail!$E$6:$E$1100,IF($I$7<>"All",$I$7,"*"),PlatformsSummaryDetail!$F$6:$F$1100,IF($I$8<>"All",$I$8,"*"),PlatformsSummaryDetail!$H$6:$H$1100,IF($I$9<>"All",$I$9,"*"),PlatformsSummaryDetail!$C$6:$C$1100,IF($I$10<>"All",$I$10,"*"),PlatformsSummaryDetail!$D$6:$D$1100,IF($I$11<>"All",$I$11,"*")) -> 11491.39372
A20: C | D20: Yes | E20: =SUMIFS(PlatformsSummaryDetail!I$6:I$1100,PlatformsSummaryDetail!$A$6:$A$1100,PlatformsSummary!$A20,PlatformsSummaryDetail!$B$6:$B$1100,$I$6,PlatformsSummaryDetail!$E$6:$E$1100,IF($I$7<>"All",$I$7,"*"),PlatformsSummaryDetail!$F$6:$F$1100,IF($I$8<>"All",$I$8,"*"),PlatformsSummaryDetail!$H$6:$H$1100,IF($I$9<>"All",$I$9,"*"),PlatformsSummaryDetail!$C$6:$C$1100,IF($I$10<>"All",$I$10,"*"),PlatformsSummaryDetail!$D$6:$D$1100,IF($I$11<>"All",$I$11,"*")) -> 258.8714893 | F20: =SUMIFS(PlatformsSummaryDetail!J$6:J$1100,PlatformsSummaryDetail!$A$6:$A$1100,PlatformsSummary!$A20,PlatformsSummaryDetail!$B$6:$B$1100,$I$6,PlatformsSummaryDetail!$E$6:$E$1100,IF($I$7<>"All",$I$7,"*"),PlatformsSummaryDetail!$F$6:$F$1100,IF($I$8<>"All",$I$8,"*"),PlatformsSummaryDetail!$H$6:$H$1100,IF($I$9<>"All",$I$9,"*"),PlatformsSummaryDetail!$C$6:$C$1100,IF($I$10<>"All",$I$10,"*"),PlatformsSummaryDetail!$D$6:$D$1100,IF($I$11<>"All",$I$11,"*")) -> 20.69446009 | G20: =SUMIFS(PlatformsSummaryDetail!K$6:K$1100,PlatformsSummaryDetail!$A$6:$A$1100,PlatformsSummary!$A20,PlatformsSummaryDetail!$B$6:$B$1100,$I$6,PlatformsSummaryDetail!$E$6:$E$1100,IF($I$7<>"All",$I$7,"*"),PlatformsSummaryDetail!$F$6:$F$1100,IF($I$8<>"All",$I$8,"*"),PlatformsSummaryDetail!$H$6:$H$1100,IF($I$9<>"All",$I$9,"*"),PlatformsSummaryDetail!$C$6:$C$1100,IF($I$10<>"All",$I$10,"*"),PlatformsSummaryDetail!$D$6:$D$1100,IF($I$11<>"All",$I$11,"*")) -> 66.11606026 | H20: =SUMIFS(PlatformsSummaryDetail!L$6:L$1100,PlatformsSummaryDetail!$A$6:$A$1100,PlatformsSummary!$A20,PlatformsSummaryDetail!$B$6:$B$1100,$I$6,PlatformsSummaryDetail!$E$6:$E$1100,IF($I$7<>"All",$I$7,"*"),PlatformsSummaryDetail!$F$6:$F$1100,IF($I$8<>"All",$I$8,"*"),PlatformsSummaryDetail!$H$6:$H$1100,IF($I$9<>"All",$I$9,"*"),PlatformsSummaryDetail!$C$6:$C$1100,IF($I$10<>"All",$I$10,"*"),PlatformsSummaryDetail!$D$6:$D$1100,IF($I$11<>"All",$I$11,"*")) -> 0.1036489372 | I20: =SUMIFS(PlatformsSummaryDetail!M$6:M$1100,PlatformsSummaryDetail!$A$6:$A$1100,PlatformsSummary!$A20,PlatformsSummaryDetail!$B$6:$B$1100,$I$6,PlatformsSummaryDetail!$E$6:$E$1100,IF($I$7<>"All",$I$7,"*"),PlatformsSummaryDetail!$F$6:$F$1100,IF($I$8<>"All",$I$8,"*"),PlatformsSummaryDetail!$H$6:$H$1100,IF($I$9<>"All",$I$9,"*"),PlatformsSummaryDetail!$C$6:$C$1100,IF($I$10<>"All",$I$10,"*"),PlatformsSummaryDetail!$D$6:$D$1100,IF($I$11<>"All",$I$11,"*")) -> 20.08195803 | J20: =SUMIFS(PlatformsSummaryDetail!N$6:N$1100,PlatformsSummaryDetail!$A$6:$A$1100,PlatformsSummary!$A20,PlatformsSummaryDetail!$B$6:$B$1100,$I$6,PlatformsSummaryDetail!$E$6:$E$1100,IF($I$7<>"All",$I$7,"*"),PlatformsSummaryDetail!$F$6:$F$1100,IF($I$8<>"All",$I$8,"*"),PlatformsSummaryDetail!$H$6:$H$1100,IF($I$9<>"All",$I$9,"*"),PlatformsSummaryDetail!$C$6:$C$1100,IF($I$10<>"All",$I$10,"*"),PlatformsSummaryDetail!$D$6:$D$1100,IF($I$11<>"All",$I$11,"*")) -> 19.95641084 | K20: =SUMIFS(PlatformsSummaryDetail!O$6:O$1100,PlatformsSummaryDetail!$A$6:$A$1100,PlatformsSummary!$A20,PlatformsSummaryDetail!$B$6:$B$1100,$I$6,PlatformsSummaryDetail!$E$6:$E$1100,IF($I$7<>"All",$I$7,"*"),PlatformsSummaryDetail!$F$6:$F$1100,IF($I$8<>"All",$I$8,"*"),PlatformsSummaryDetail!$H$6:$H$1100,IF($I$9<>"All",$I$9,"*"),PlatformsSummaryDetail!$C$6:$C$1100,IF($I$10<>"All",$I$10,"*"),PlatformsSummaryDetail!$D$6:$D$1100,IF($I$11<>"All",$I$11,"*")) -> 19.95641084 | L20: =SUMIFS(PlatformsSummaryDetail!P$6:P$1100,PlatformsSummaryDetail!$A$6:$A$1100,PlatformsSummary!$A20,PlatformsSummaryDetail!$B$6:$B$1100,$I$6,PlatformsSummaryDetail!$E$6:$E$1100,IF($I$7<>"All",$I$7,"*"),PlatformsSummaryDetail!$F$6:$F$1100,IF($I$8<>"All",$I$8,"*"),PlatformsSummaryDetail!$H$6:$H$1100,IF($I$9<>"All",$I$9,"*"),PlatformsSummaryDetail!$C$6:$C$1100,IF($I$10<>"All",$I$10,"*"),PlatformsSummaryDetail!$D$6:$D$1100,IF($I$11<>"All",$I$11,"*")) -> 9948.206521
A21: Edith | D21: Yes | E21: =SUMIFS(PlatformsSummaryDetail!I$6:I$1100,PlatformsSummaryDetail!$A$6:$A$1100,PlatformsSummary!$A21,PlatformsSummaryDetail!$B$6:$B$1100,$I$6,PlatformsSummaryDetail!$E$6:$E$1100,IF($I$7<>"All",$I$7,"*"),PlatformsSummaryDetail!$F$6:$F$1100,IF($I$8<>"All",$I$8,"*"),PlatformsSummaryDetail!$H$6:$H$1100,IF($I$9<>"All",$I$9,"*"),PlatformsSummaryDetail!$C$6:$C$1100,IF($I$10<>"All",$I$10,"*"),PlatformsSummaryDetail!$D$6:$D$1100,IF($I$11<>"All",$I$11,"*")) -> 241.8382744 | F21: =SUMIFS(PlatformsSummaryDetail!J$6:J$1100,PlatformsSummaryDetail!$A$6:$A$1100,PlatformsSummary!$A21,PlatformsSummaryDetail!$B$6:$B$1100,$I$6,PlatformsSummaryDetail!$E$6:$E$1100,IF($I$7<>"All",$I$7,"*"),PlatformsSummaryDetail!$F$6:$F$1100,IF($I$8<>"All",$I$8,"*"),PlatformsSummaryDetail!$H$6:$H$1100,IF($I$9<>"All",$I$9,"*"),PlatformsSummaryDetail!$C$6:$C$1100,IF($I$10<>"All",$I$10,"*"),PlatformsSummaryDetail!$D$6:$D$1100,IF($I$11<>"All",$I$11,"*")) -> 18.5212712 | G21: =SUMIFS(PlatformsSummaryDetail!K$6:K$1100,PlatformsSummaryDetail!$A$6:$A$1100,PlatformsSummary!$A21,PlatformsSummaryDetail!$B$6:$B$1100,$I$6,PlatformsSummaryDetail!$E$6:$E$1100,IF($I$7<>"All",$I$7,"*"),PlatformsSummaryDetail!$F$6:$F$1100,IF($I$8<>"All",$I$8,"*"),PlatformsSummaryDetail!$H$6:$H$1100,IF($I$9<>"All",$I$9,"*"),PlatformsSummaryDetail!$C$6:$C$1100,IF($I$10<>"All",$I$10,"*"),PlatformsSummaryDetail!$D$6:$D$1100,IF($I$11<>"All",$I$11,"*")) -> 69.89673543 | H21: =SUMIFS(PlatformsSummaryDetail!L$6:L$1100,PlatformsSummaryDetail!$A$6:$A$1100,PlatformsSummary!$A21,PlatformsSummaryDetail!$B$6:$B$1100,$I$6,PlatformsSummaryDetail!$E$6:$E$1100,IF($I$7<>"All",$I$7,"*"),PlatformsSummaryDetail!$F$6:$F$1100,IF($I$8<>"All",$I$8,"*"),PlatformsSummaryDetail!$H$6:$H$1100,IF($I$9<>"All",$I$9,"*"),PlatformsSummaryDetail!$C$6:$C$1100,IF($I$10<>"All",$I$10,"*"),PlatformsSummaryDetail!$D$6:$D$1100,IF($I$11<>"All",$I$11,"*")) -> 0.1057554109 | I21: =SUMIFS(PlatformsSummaryDetail!M$6:M$1100,PlatformsSummaryDetail!$A$6:$A$1100,PlatformsSummary!$A21,PlatformsSummaryDetail!$B$6:$B$1100,$I$6,PlatformsSummaryDetail!$E$6:$E$1100,IF($I$7<>"All",$I$7,"*"),PlatformsSummaryDetail!$F$6:$F$1100,IF($I$8<>"All",$I$8,"*"),PlatformsSummaryDetail!$H$6:$H$1100,IF($I$9<>"All",$I$9,"*"),PlatformsSummaryDetail!$C$6:$C$1100,IF($I$10<>"All",$I$10,"*"),PlatformsSummaryDetail!$D$6:$D$1100,IF($I$11<>"All",$I$11,"*")) -> 19.67571413 | J21: =SUMIFS(PlatformsSummaryDetail!N$6:N$1100,PlatformsSummaryDetail!$A$6:$A$1100,PlatformsSummary!$A21,PlatformsSummaryDetail!$B$6:$B$1100,$I$6,PlatformsSummaryDetail!$E$6:$E$1100,IF($I$7<>"All",$I$7,"*"),PlatformsSummaryDetail!$F$6:$F$1100,IF($I$8<>"All",$I$8,"*"),PlatformsSummaryDetail!$H$6:$H$1100,IF($I$9<>"All",$I$9,"*"),PlatformsSummaryDetail!$C$6:$C$1100,IF($I$10<>"All",$I$10,"*"),PlatformsSummaryDetail!$D$6:$D$1100,IF($I$11<>"All",$I$11,"*")) -> 19.50055961 | K21: =SUMIFS(PlatformsSummaryDetail!O$6:O$1100,PlatformsSummaryDetail!$A$6:$A$1100,PlatformsSummary!$A21,PlatformsSummaryDetail!$B$6:$B$1100,$I$6,PlatformsSummaryDetail!$E$6:$E$1100,IF($I$7<>"All",$I$7,"*"),PlatformsSummaryDetail!$F$6:$F$1100,IF($I$8<>"All",$I$8,"*"),PlatformsSummaryDetail!$H$6:$H$1100,IF($I$9<>"All",$I$9,"*"),PlatformsSummaryDetail!$C$6:$C$1100,IF($I$10<>"All",$I$10,"*"),PlatformsSummaryDetail!$D$6:$D$1100,IF($I$11<>"All",$I$11,"*")) -> 19.50055961 | L21: =SUMIFS(PlatformsSummaryDetail!P$6:P$1100,PlatformsSummaryDetail!$A$6:$A$1100,PlatformsSummary!$A21,PlatformsSummaryDetail!$B$6:$B$1100,$I$6,PlatformsSummaryDetail!$E$6:$E$1100,IF($I$7<>"All",$I$7,"*"),PlatformsSummaryDetail!$F$6:$F$1100,IF($I$8<>"All",$I$8,"*"),PlatformsSummaryDetail!$H$6:$H$1100,IF($I$9<>"All",$I$9,"*"),PlatformsSummaryDetail!$C$6:$C$1100,IF($I$10<>"All",$I$10,"*"),PlatformsSummaryDetail!$D$6:$D$1100,IF($I$11<>"All",$I$11,"*")) -> 10284.7664
A22: Ellen | D22: Yes | E22: =SUMIFS(PlatformsSummaryDetail!I$6:I$1100,PlatformsSummaryDetail!$A$6:$A$1100,PlatformsSummary!$A22,PlatformsSummaryDetail!$B$6:$B$1100,$I$6,PlatformsSummaryDetail!$E$6:$E$1100,IF($I$7<>"All",$I$7,"*"),PlatformsSummaryDetail!$F$6:$F$1100,IF($I$8<>"All",$I$8,"*"),PlatformsSummaryDetail!$H$6:$H$1100,IF($I$9<>"All",$I$9,"*"),PlatformsSummaryDetail!$C$6:$C$1100,IF($I$10<>"All",$I$10,"*"),PlatformsSummaryDetail!$D$6:$D$1100,IF($I$11<>"All",$I$11,"*")) -> 331.2170279 | F22: =SUMIFS(PlatformsSummaryDetail!J$6:J$1100,PlatformsSummaryDetail!$A$6:$A$1100,PlatformsSummary!$A22,PlatformsSummaryDetail!$B$6:$B$1100,$I$6,PlatformsSummaryDetail!$E$6:$E$1100,IF($I$7<>"All",$I$7,"*"),PlatformsSummaryDetail!$F$6:$F$1100,IF($I$8<>"All",$I$8,"*"),PlatformsSummaryDetail!$H$6:$H$1100,IF($I$9<>"All",$I$9,"*"),PlatformsSummaryDetail!$C$6:$C$1100,IF($I$10<>"All",$I$10,"*"),PlatformsSummaryDetail!$D$6:$D$1100,IF($I$11<>"All",$I$11,"*")) -> 25.6913465 | G22: =SUMIFS(PlatformsSummaryDetail!K$6:K$1100,PlatformsSummaryDetail!$A$6:$A$1100,PlatformsSummary!$A22,PlatformsSummaryDetail!$B$6:$B$1100,$I$6,PlatformsSummaryDetail!$E$6:$E$1100,IF($I$7<>"All",$I$7,"*"),PlatformsSummaryDetail!$F$6:$F$1100,IF($I$8<>"All",$I$8,"*"),PlatformsSummaryDetail!$H$6:$H$1100,IF($I$9<>"All",$I$9,"*"),PlatformsSummaryDetail!$C$6:$C$1100,IF($I$10<>"All",$I$10,"*"),PlatformsSummaryDetail!$D$6:$D$1100,IF($I$11<>"All",$I$11,"*")) -> 99.7574175 | H22: =SUMIFS(PlatformsSummaryDetail!L$6:L$1100,PlatformsSummaryDetail!$A$6:$A$1100,PlatformsSummary!$A22,PlatformsSummaryDetail!$B$6:$B$1100,$I$6,PlatformsSummaryDetail!$E$6:$E$1100,IF($I$7<>"All",$I$7,"*"),PlatformsSummaryDetail!$F$6:$F$1100,IF($I$8<>"All",$I$8,"*"),PlatformsSummaryDetail!$H$6:$H$1100,IF($I$9<>"All",$I$9,"*"),PlatformsSummaryDetail!$C$6:$C$1100,IF($I$10<>"All",$I$10,"*"),PlatformsSummaryDetail!$D$6:$D$1100,IF($I$11<>"All",$I$11,"*")) -> 0.1493556716 | I22: =SUMIFS(PlatformsSummaryDetail!M$6:M$1100,PlatformsSummaryDetail!$A$6:$A$1100,PlatformsSummary!$A22,PlatformsSummaryDetail!$B$6:$B$1100,$I$6,PlatformsSummaryDetail!$E$6:$E$1100,IF($I$7<>"All",$I$7,"*"),PlatformsSummaryDetail!$F$6:$F$1100,IF($I$8<>"All",$I$8,"*"),PlatformsSummaryDetail!$H$6:$H$1100,IF($I$9<>"All",$I$9,"*"),PlatformsSummaryDetail!$C$6:$C$1100,IF($I$10<>"All",$I$10,"*"),PlatformsSummaryDetail!$D$6:$D$1100,IF($I$11<>"All",$I$11,"*")) -> 27.71869084 | J22: =SUMIFS(PlatformsSummaryDetail!N$6:N$1100,PlatformsSummaryDetail!$A$6:$A$1100,PlatformsSummary!$A22,PlatformsSummaryDetail!$B$6:$B$1100,$I$6,PlatformsSummaryDetail!$E$6:$E$1100,IF($I$7<>"All",$I$7,"*"),PlatformsSummaryDetail!$F$6:$F$1100,IF($I$8<>"All",$I$8,"*"),PlatformsSummaryDetail!$H$6:$H$1100,IF($I$9<>"All",$I$9,"*"),PlatformsSummaryDetail!$C$6:$C$1100,IF($I$10<>"All",$I$10,"*"),PlatformsSummaryDetail!$D$6:$D$1100,IF($I$11<>"All",$I$11,"*")) -> 27.43155143 | K22: =SUMIFS(PlatformsSummaryDetail!O$6:O$1100,PlatformsSummaryDetail!$A$6:$A$1100,PlatformsSummary!$A22,PlatformsSummaryDetail!$B$6:$B$1100,$I$6,PlatformsSummaryDetail!$E$6:$E$1100,IF($I$7<>"All",$I$7,"*"),PlatformsSummaryDetail!$F$6:$F$1100,IF($I$8<>"All",$I$8,"*"),PlatformsSummaryDetail!$H$6:$H$1100,IF($I$9<>"All",$I$9,"*"),PlatformsSummaryDetail!$C$6:$C$1100,IF($I$10<>"All",$I$10,"*"),PlatformsSummaryDetail!$D$6:$D$1100,IF($I$11<>"All",$I$11,"*")) -> 27.43155143 | L22: =SUMIFS(PlatformsSummaryDetail!P$6:P$1100,PlatformsSummaryDetail!$A$6:$A$1100,PlatformsSummary!$A22,PlatformsSummaryDetail!$B$6:$B$1100,$I$6,PlatformsSummaryDetail!$E$6:$E$1100,IF($I$7<>"All",$I$7,"*"),PlatformsSummaryDetail!$F$6:$F$1100,IF($I$8<>"All",$I$8,"*"),PlatformsSummaryDetail!$H$6:$H$1100,IF($I$9<>"All",$I$9,"*"),PlatformsSummaryDetail!$C$6:$C$1100,IF($I$10<>"All",$I$10,"*"),PlatformsSummaryDetail!$D$6:$D$1100,IF($I$11<>"All",$I$11,"*")) -> 14566.44132
A23: Elly | D23: Yes | E23: =SUMIFS(PlatformsSummaryDetail!I$6:I$1100,PlatformsSummaryDetail!$A$6:$A$1100,PlatformsSummary!$A23,PlatformsSummaryDetail!$B$6:$B$1100,$I$6,PlatformsSummaryDetail!$E$6:$E$1100,IF($I$7<>"All",$I$7,"*"),PlatformsSummaryDetail!$F$6:$F$1100,IF($I$8<>"All",$I$8,"*"),PlatformsSummaryDetail!$H$6:$H$1100,IF($I$9<>"All",$I$9,"*"),PlatformsSummaryDetail!$C$6:$C$1100,IF($I$10<>"All",$I$10,"*"),PlatformsSummaryDetail!$D$6:$D$1100,IF($I$11<>"All",$I$11,"*")) -> 188.4915772 | F23: =SUMIFS(PlatformsSummaryDetail!J$6:J$1100,PlatformsSummaryDetail!$A$6:$A$1100,PlatformsSummary!$A23,PlatformsSummaryDetail!$B$6:$B$1100,$I$6,PlatformsSummaryDetail!$E$6:$E$1100,IF($I$7<>"All",$I$7,"*"),PlatformsSummaryDetail!$F$6:$F$1100,IF($I$8<>"All",$I$8,"*"),PlatformsSummaryDetail!$H$6:$H$1100,IF($I$9<>"All",$I$9,"*"),PlatformsSummaryDetail!$C$6:$C$1100,IF($I$10<>"All",$I$10,"*"),PlatformsSummaryDetail!$D$6:$D$1100,IF($I$11<>"All",$I$11,"*")) -> 14.58505708 | G23: =SUMIFS(PlatformsSummaryDetail!K$6:K$1100,PlatformsSummaryDetail!$A$6:$A$1100,PlatformsSummary!$A23,PlatformsSummaryDetail!$B$6:$B$1100,$I$6,PlatformsSummaryDetail!$E$6:$E$1100,IF($I$7<>"All",$I$7,"*"),PlatformsSummaryDetail!$F$6:$F$1100,IF($I$8<>"All",$I$8,"*"),PlatformsSummaryDetail!$H$6:$H$1100,IF($I$9<>"All",$I$9,"*"),PlatformsSummaryDetail!$C$6:$C$1100,IF($I$10<>"All",$I$10,"*"),PlatformsSummaryDetail!$D$6:$D$1100,IF($I$11<>"All",$I$11,"*")) -> 50.83846984 | H23: =SUMIFS(PlatformsSummaryDetail!L$6:L$1100,PlatformsSummaryDetail!$A$6:$A$1100,PlatformsSummary!$A23,PlatformsSummaryDetail!$B$6:$B$1100,$I$6,PlatformsSummaryDetail!$E$6:$E$1100,IF($I$7<>"All",$I$7,"*"),PlatformsSummaryDetail!$F$6:$F$1100,IF($I$8<>"All",$I$8,"*"),PlatformsSummaryDetail!$H$6:$H$1100,IF($I$9<>"All",$I$9,"*"),PlatformsSummaryDetail!$C$6:$C$1100,IF($I$10<>"All",$I$10,"*"),PlatformsSummaryDetail!$D$6:$D$1100,IF($I$11<>"All",$I$11,"*")) -> 0.07828033373 | I23: =SUMIFS(PlatformsSummaryDetail!M$6:M$1100,PlatformsSummaryDetail!$A$6:$A$1100,PlatformsSummary!$A23,PlatformsSummaryDetail!$B$6:$B$1100,$I$6,PlatformsSummaryDetail!$E$6:$E$1100,IF($I$7<>"All",$I$7,"*"),PlatformsSummaryDetail!$F$6:$F$1100,IF($I$8<>"All",$I$8,"*"),PlatformsSummaryDetail!$H$6:$H$1100,IF($I$9<>"All",$I$9,"*"),PlatformsSummaryDetail!$C$6:$C$1100,IF($I$10<>"All",$I$10,"*"),PlatformsSummaryDetail!$D$6:$D$1100,IF($I$11<>"All",$I$11,"*")) -> 14.83457846 | J23: =SUMIFS(PlatformsSummaryDetail!N$6:N$1100,PlatformsSummaryDetail!$A$6:$A$1100,PlatformsSummary!$A23,PlatformsSummaryDetail!$B$6:$B$1100,$I$6,PlatformsSummaryDetail!$E$6:$E$1100,IF($I$7<>"All",$I$7,"*"),PlatformsSummaryDetail!$F$6:$F$1100,IF($I$8<>"All",$I$8,"*"),PlatformsSummaryDetail!$H$6:$H$1100,IF($I$9<>"All",$I$9,"*"),PlatformsSummaryDetail!$C$6:$C$1100,IF($I$10<>"All",$I$10,"*"),PlatformsSummaryDetail!$D$6:$D$1100,IF($I$11<>"All",$I$11,"*")) -> 14.72168725 | K23: =SUMIFS(PlatformsSummaryDetail!O$6:O$1100,PlatformsSummaryDetail!$A$6:$A$1100,PlatformsSummary!$A23,PlatformsSummaryDetail!$B$6:$B$1100,$I$6,PlatformsSummaryDetail!$E$6:$E$1100,IF($I$7<>"All",$I$7,"*"),PlatformsSummaryDetail!$F$6:$F$1100,IF($I$8<>"All",$I$8,"*"),PlatformsSummaryDetail!$H$6:$H$1100,IF($I$9<>"All",$I$9,"*"),PlatformsSummaryDetail!$C$6:$C$1100,IF($I$10<>"All",$I$10,"*"),PlatformsSummaryDetail!$D$6:$D$1100,IF($I$11<>"All",$I$11,"*")) -> 14.72168725 | L23: =SUMIFS(PlatformsSummaryDetail!P$6:P$1100,PlatformsSummaryDetail!$A$6:$A$1100,PlatformsSummary!$A23,PlatformsSummaryDetail!$B$6:$B$1100,$I$6,PlatformsSummaryDetail!$E$6:$E$1100,IF($I$7<>"All",$I$7,"*"),PlatformsSummaryDetail!$F$6:$F$1100,IF($I$8<>"All",$I$8,"*"),PlatformsSummaryDetail!$H$6:$H$1100,IF($I$9<>"All",$I$9,"*"),PlatformsSummaryDetail!$C$6:$C$1100,IF($I$10<>"All",$I$10,"*"),PlatformsSummaryDetail!$D$6:$D$1100,IF($I$11<>"All",$I$11,"*")) -> 7568.014971
A24: Eureka | D24: Yes | E24: =SUMIFS(PlatformsSummaryDetail!I$6:I$1100,PlatformsSummaryDetail!$A$6:$A$1100,PlatformsSummary!$A24,PlatformsSummaryDetail!$B$6:$B$1100,$I$6,PlatformsSummaryDetail!$E$6:$E$1100,IF($I$7<>"All",$I$7,"*"),PlatformsSummaryDetail!$F$6:$F$1100,IF($I$8<>"All",$I$8,"*"),PlatformsSummaryDetail!$H$6:$H$1100,IF($I$9<>"All",$I$9,"*"),PlatformsSummaryDetail!$C$6:$C$1100,IF($I$10<>"All",$I$10,"*"),PlatformsSummaryDetail!$D$6:$D$1100,IF($I$11<>"All",$I$11,"*")) -> 591.483983 | F24: =SUMIFS(PlatformsSummaryDetail!J$6:J$1100,PlatformsSummaryDetail!$A$6:$A$1100,PlatformsSummary!$A24,PlatformsSummaryDetail!$B$6:$B$1100,$I$6,PlatformsSummaryDetail!$E$6:$E$1100,IF($I$7<>"All",$I$7,"*"),PlatformsSummaryDetail!$F$6:$F$1100,IF($I$8<>"All",$I$8,"*"),PlatformsSummaryDetail!$H$6:$H$1100,IF($I$9<>"All",$I$9,"*"),PlatformsSummaryDetail!$C$6:$C$1100,IF($I$10<>"All",$I$10,"*"),PlatformsSummaryDetail!$D$6:$D$1100,IF($I$11<>"All",$I$11,"*")) -> 46.33469126 | G24: =SUMIFS(PlatformsSummaryDetail!K$6:K$1100,PlatformsSummaryDetail!$A$6:$A$1100,PlatformsSummary!$A24,PlatformsSummaryDetail!$B$6:$B$1100,$I$6,PlatformsSummaryDetail!$E$6:$E$1100,IF($I$7<>"All",$I$7,"*"),PlatformsSummaryDetail!$F$6:$F$1100,IF($I$8<>"All",$I$8,"*"),PlatformsSummaryDetail!$H$6:$H$1100,IF($I$9<>"All",$I$9,"*"),PlatformsSummaryDetail!$C$6:$C$1100,IF($I$10<>"All",$I$10,"*"),PlatformsSummaryDetail!$D$6:$D$1100,IF($I$11<>"All",$I$11,"*")) -> 168.1466969 | H24: =SUMIFS(PlatformsSummaryDetail!L$6:L$1100,PlatformsSummaryDetail!$A$6:$A$1100,PlatformsSummary!$A24,PlatformsSummaryDetail!$B$6:$B$1100,$I$6,PlatformsSummaryDetail!$E$6:$E$1100,IF($I$7<>"All",$I$7,"*"),PlatformsSummaryDetail!$F$6:$F$1100,IF($I$8<>"All",$I$8,"*"),PlatformsSummaryDetail!$H$6:$H$1100,IF($I$9<>"All",$I$9,"*"),PlatformsSummaryDetail!$C$6:$C$1100,IF($I$10<>"All",$I$10,"*"),PlatformsSummaryDetail!$D$6:$D$1100,IF($I$11<>"All",$I$11,"*")) -> 0.2555717993 | I24: =SUMIFS(PlatformsSummaryDetail!M$6:M$1100,PlatformsSummaryDetail!$A$6:$A$1100,PlatformsSummary!$A24,PlatformsSummaryDetail!$B$6:$B$1100,$I$6,PlatformsSummaryDetail!$E$6:$E$1100,IF($I$7<>"All",$I$7,"*"),PlatformsSummaryDetail!$F$6:$F$1100,IF($I$8<>"All",$I$8,"*"),PlatformsSummaryDetail!$H$6:$H$1100,IF($I$9<>"All",$I$9,"*"),PlatformsSummaryDetail!$C$6:$C$1100,IF($I$10<>"All",$I$10,"*"),PlatformsSummaryDetail!$D$6:$D$1100,IF($I$11<>"All",$I$11,"*")) -> 48.08846736 | J24: =SUMIFS(PlatformsSummaryDetail!N$6:N$1100,PlatformsSummaryDetail!$A$6:$A$1100,PlatformsSummary!$A24,PlatformsSummaryDetail!$B$6:$B$1100,$I$6,PlatformsSummaryDetail!$E$6:$E$1100,IF($I$7<>"All",$I$7,"*"),PlatformsSummaryDetail!$F$6:$F$1100,IF($I$8<>"All",$I$8,"*"),PlatformsSummaryDetail!$H$6:$H$1100,IF($I$9<>"All",$I$9,"*"),PlatformsSummaryDetail!$C$6:$C$1100,IF($I$10<>"All",$I$10,"*"),PlatformsSummaryDetail!$D$6:$D$1100,IF($I$11<>"All",$I$11,"*")) -> 47.67020038 | K24: =SUMIFS(PlatformsSummaryDetail!O$6:O$1100,PlatformsSummaryDetail!$A$6:$A$1100,PlatformsSummary!$A24,PlatformsSummaryDetail!$B$6:$B$1100,$I$6,PlatformsSummaryDetail!$E$6:$E$1100,IF($I$7<>"All",$I$7,"*"),PlatformsSummaryDetail!$F$6:$F$1100,IF($I$8<>"All",$I$8,"*"),PlatformsSummaryDetail!$H$6:$H$1100,IF($I$9<>"All",$I$9,"*"),PlatformsSummaryDetail!$C$6:$C$1100,IF($I$10<>"All",$I$10,"*"),PlatformsSummaryDetail!$D$6:$D$1100,IF($I$11<>"All",$I$11,"*")) -> 47.67020038 | L24: =SUMIFS(PlatformsSummaryDetail!P$6:P$1100,PlatformsSummaryDetail!$A$6:$A$1100,PlatformsSummary!$A24,PlatformsSummaryDetail!$B$6:$B$1100,$I$6,PlatformsSummaryDetail!$E$6:$E$1100,IF($I$7<>"All",$I$7,"*"),PlatformsSummaryDetail!$F$6:$F$1100,IF($I$8<>"All",$I$8,"*"),PlatformsSummaryDetail!$H$6:$H$1100,IF($I$9<>"All",$I$9,"*"),PlatformsSummaryDetail!$C$6:$C$1100,IF($I$10<>"All",$I$10,"*"),PlatformsSummaryDetail!$D$6:$D$1100,IF($I$11<>"All",$I$11,"*")) -> 24784.16246
A25: Gail | D25: Yes | E25: =SUMIFS(PlatformsSummaryDetail!I$6:I$1100,PlatformsSummaryDetail!$A$6:$A$1100,PlatformsSummary!$A25,PlatformsSummaryDetail!$B$6:$B$1100,$I$6,PlatformsSummaryDetail!$E$6:$E$1100,IF($I$7<>"All",$I$7,"*"),PlatformsSummaryDetail!$F$6:$F$1100,IF($I$8<>"All",$I$8,"*"),PlatformsSummaryDetail!$H$6:$H$1100,IF($I$9<>"All",$I$9,"*"),PlatformsSummaryDetail!$C$6:$C$1100,IF($I$10<>"All",$I$10,"*"),PlatformsSummaryDetail!$D$6:$D$1100,IF($I$11<>"All",$I$11,"*")) -> 529.8640393 | F25: =SUMIFS(PlatformsSummaryDetail!J$6:J$1100,PlatformsSummaryDetail!$A$6:$A$1100,PlatformsSummary!$A25,PlatformsSummaryDetail!$B$6:$B$1100,$I$6,PlatformsSummaryDetail!$E$6:$E$1100,IF($I$7<>"All",$I$7,"*"),PlatformsSummaryDetail!$F$6:$F$1100,IF($I$8<>"All",$I$8,"*"),PlatformsSummaryDetail!$H$6:$H$1100,IF($I$9<>"All",$I$9,"*"),PlatformsSummaryDetail!$C$6:$C$1100,IF($I$10<>"All",$I$10,"*"),PlatformsSummaryDetail!$D$6:$D$1100,IF($I$11<>"All",$I$11,"*")) -> 42.66736613 | G25: =SUMIFS(PlatformsSummaryDetail!K$6:K$1100,PlatformsSummaryDetail!$A$6:$A$1100,PlatformsSummary!$A25,PlatformsSummaryDetail!$B$6:$B$1100,$I$6,PlatformsSummaryDetail!$E$6:$E$1100,IF($I$7<>"All",$I$7,"*"),PlatformsSummaryDetail!$F$6:$F$1100,IF($I$8<>"All",$I$8,"*"),PlatformsSummaryDetail!$H$6:$H$1100,IF($I$9<>"All",$I$9,"*"),PlatformsSummaryDetail!$C$6:$C$1100,IF($I$10<>"All",$I$10,"*"),PlatformsSummaryDetail!$D$6:$D$1100,IF($I$11<>"All",$I$11,"*")) -> 125.9223436 | H25: =SUMIFS(PlatformsSummaryDetail!L$6:L$1100,PlatformsSummaryDetail!$A$6:$A$1100,PlatformsSummary!$A25,PlatformsSummaryDetail!$B$6:$B$1100,$I$6,PlatformsSummaryDetail!$E$6:$E$1100,IF($I$7<>"All",$I$7,"*"),PlatformsSummaryDetail!$F$6:$F$1100,IF($I$8<>"All",$I$8,"*"),PlatformsSummaryDetail!$H$6:$H$1100,IF($I$9<>"All",$I$9,"*"),PlatformsSummaryDetail!$C$6:$C$1100,IF($I$10<>"All",$I$10,"*"),PlatformsSummaryDetail!$D$6:$D$1100,IF($I$11<>"All",$I$11,"*")) -> 0.2010186643 | I25: =SUMIFS(PlatformsSummaryDetail!M$6:M$1100,PlatformsSummaryDetail!$A$6:$A$1100,PlatformsSummary!$A25,PlatformsSummaryDetail!$B$6:$B$1100,$I$6,PlatformsSummaryDetail!$E$6:$E$1100,IF($I$7<>"All",$I$7,"*"),PlatformsSummaryDetail!$F$6:$F$1100,IF($I$8<>"All",$I$8,"*"),PlatformsSummaryDetail!$H$6:$H$1100,IF($I$9<>"All",$I$9,"*"),PlatformsSummaryDetail!$C$6:$C$1100,IF($I$10<>"All",$I$10,"*"),PlatformsSummaryDetail!$D$6:$D$1100,IF($I$11<>"All",$I$11,"*")) -> 39.75171931 | J25: =SUMIFS(PlatformsSummaryDetail!N$6:N$1100,PlatformsSummaryDetail!$A$6:$A$1100,PlatformsSummary!$A25,PlatformsSummaryDetail!$B$6:$B$1100,$I$6,PlatformsSummaryDetail!$E$6:$E$1100,IF($I$7<>"All",$I$7,"*"),PlatformsSummaryDetail!$F$6:$F$1100,IF($I$8<>"All",$I$8,"*"),PlatformsSummaryDetail!$H$6:$H$1100,IF($I$9<>"All",$I$9,"*"),PlatformsSummaryDetail!$C$6:$C$1100,IF($I$10<>"All",$I$10,"*"),PlatformsSummaryDetail!$D$6:$D$1100,IF($I$11<>"All",$I$11,"*")) -> 39.55767226 | K25: =SUMIFS(PlatformsSummaryDetail!O$6:O$1100,PlatformsSummaryDetail!$A$6:$A$1100,PlatformsSummary!$A25,PlatformsSummaryDetail!$B$6:$B$1100,$I$6,PlatformsSummaryDetail!$E$6:$E$1100,IF($I$7<>"All",$I$7,"*"),PlatformsSummaryDetail!$F$6:$F$1100,IF($I$8<>"All",$I$8,"*"),PlatformsSummaryDetail!$H$6:$H$1100,IF($I$9<>"All",$I$9,"*"),PlatformsSummaryDetail!$C$6:$C$1100,IF($I$10<>"All",$I$10,"*"),PlatformsSummaryDetail!$D$6:$D$1100,IF($I$11<>"All",$I$11,"*")) -> 39.55767226 | L25: =SUMIFS(PlatformsSummaryDetail!P$6:P$1100,PlatformsSummaryDetail!$A$6:$A$1100,PlatformsSummary!$A25,PlatformsSummaryDetail!$B$6:$B$1100,$I$6,PlatformsSummaryDetail!$E$6:$E$1100,IF($I$7<>"All",$I$7,"*"),PlatformsSummaryDetail!$F$6:$F$1100,IF($I$8<>"All",$I$8,"*"),PlatformsSummaryDetail!$H$6:$H$1100,IF($I$9<>"All",$I$9,"*"),PlatformsSummaryDetail!$C$6:$C$1100,IF($I$10<>"All",$I$10,"*"),PlatformsSummaryDetail!$D$6:$D$1100,IF($I$11<>"All",$I$11,"*")) -> 19158.25071
A26: Gilda | D26: Yes | E26: =SUMIFS(PlatformsSummaryDetail!I$6:I$1100,PlatformsSummaryDetail!$A$6:$A$1100,PlatformsSummary!$A26,PlatformsSummaryDetail!$B$6:$B$1100,$I$6,PlatformsSummaryDetail!$E$6:$E$1100,IF($I$7<>"All",$I$7,"*"),PlatformsSummaryDetail!$F$6:$F$1100,IF($I$8<>"All",$I$8,"*"),PlatformsSummaryDetail!$H$6:$H$1100,IF($I$9<>"All",$I$9,"*"),PlatformsSummaryDetail!$C$6:$C$1100,IF($I$10<>"All",$I$10,"*"),PlatformsSummaryDetail!$D$6:$D$1100,IF($I$11<>"All",$I$11,"*")) -> 358.2192524 | F26: =SUMIFS(PlatformsSummaryDetail!J$6:J$1100,PlatformsSummaryDetail!$A$6:$A$1100,PlatformsSummary!$A26,PlatformsSummaryDetail!$B$6:$B$1100,$I$6,PlatformsSummaryDetail!$E$6:$E$1100,IF($I$7<>"All",$I$7,"*"),PlatformsSummaryDetail!$F$6:$F$1100,IF($I$8<>"All",$I$8,"*"),PlatformsSummaryDetail!$H$6:$H$1100,IF($I$9<>"All",$I$9,"*"),PlatformsSummaryDetail!$C$6:$C$1100,IF($I$10<>"All",$I$10,"*"),PlatformsSummaryDetail!$D$6:$D$1100,IF($I$11<>"All",$I$11,"*")) -> 29.08374673 | G26: =SUMIFS(PlatformsSummaryDetail!K$6:K$1100,PlatformsSummaryDetail!$A$6:$A$1100,PlatformsSummary!$A26,PlatformsSummaryDetail!$B$6:$B$1100,$I$6,PlatformsSummaryDetail!$E$6:$E$1100,IF($I$7<>"All",$I$7,"*"),PlatformsSummaryDetail!$F$6:$F$1100,IF($I$8<>"All",$I$8,"*"),PlatformsSummaryDetail!$H$6:$H$1100,IF($I$9<>"All",$I$9,"*"),PlatformsSummaryDetail!$C$6:$C$1100,IF($I$10<>"All",$I$10,"*"),PlatformsSummaryDetail!$D$6:$D$1100,IF($I$11<>"All",$I$11,"*")) -> 89.54945861 | H26: =SUMIFS(PlatformsSummaryDetail!L$6:L$1100,PlatformsSummaryDetail!$A$6:$A$1100,PlatformsSummary!$A26,PlatformsSummaryDetail!$B$6:$B$1100,$I$6,PlatformsSummaryDetail!$E$6:$E$1100,IF($I$7<>"All",$I$7,"*"),PlatformsSummaryDetail!$F$6:$F$1100,IF($I$8<>"All",$I$8,"*"),PlatformsSummaryDetail!$H$6:$H$1100,IF($I$9<>"All",$I$9,"*"),PlatformsSummaryDetail!$C$6:$C$1100,IF($I$10<>"All",$I$10,"*"),PlatformsSummaryDetail!$D$6:$D$1100,IF($I$11<>"All",$I$11,"*")) -> 0.1407410028 | I26: =SUMIFS(PlatformsSummaryDetail!M$6:M$1100,PlatformsSummaryDetail!$A$6:$A$1100,PlatformsSummary!$A26,PlatformsSummaryDetail!$B$6:$B$1100,$I$6,PlatformsSummaryDetail!$E$6:$E$1100,IF($I$7<>"All",$I$7,"*"),PlatformsSummaryDetail!$F$6:$F$1100,IF($I$8<>"All",$I$8,"*"),PlatformsSummaryDetail!$H$6:$H$1100,IF($I$9<>"All",$I$9,"*"),PlatformsSummaryDetail!$C$6:$C$1100,IF($I$10<>"All",$I$10,"*"),PlatformsSummaryDetail!$D$6:$D$1100,IF($I$11<>"All",$I$11,"*")) -> 27.67227771 | J26: =SUMIFS(PlatformsSummaryDetail!N$6:N$1100,PlatformsSummaryDetail!$A$6:$A$1100,PlatformsSummary!$A26,PlatformsSummaryDetail!$B$6:$B$1100,$I$6,PlatformsSummaryDetail!$E$6:$E$1100,IF($I$7<>"All",$I$7,"*"),PlatformsSummaryDetail!$F$6:$F$1100,IF($I$8<>"All",$I$8,"*"),PlatformsSummaryDetail!$H$6:$H$1100,IF($I$9<>"All",$I$9,"*"),PlatformsSummaryDetail!$C$6:$C$1100,IF($I$10<>"All",$I$10,"*"),PlatformsSummaryDetail!$D$6:$D$1100,IF($I$11<>"All",$I$11,"*")) -> 27.47953216 | K26: =SUMIFS(PlatformsSummaryDetail!O$6:O$1100,PlatformsSummaryDetail!$A$6:$A$1100,PlatformsSummary!$A26,PlatformsSummaryDetail!$B$6:$B$1100,$I$6,PlatformsSummaryDetail!$E$6:$E$1100,IF($I$7<>"All",$I$7,"*"),PlatformsSummaryDetail!$F$6:$F$1100,IF($I$8<>"All",$I$8,"*"),PlatformsSummaryDetail!$H$6:$H$1100,IF($I$9<>"All",$I$9,"*"),PlatformsSummaryDetail!$C$6:$C$1100,IF($I$10<>"All",$I$10,"*"),PlatformsSummaryDetail!$D$6:$D$1100,IF($I$11<>"All",$I$11,"*")) -> 27.47953216 | L26: =SUMIFS(PlatformsSummaryDetail!P$6:P$1100,PlatformsSummaryDetail!$A$6:$A$1100,PlatformsSummary!$A26,PlatformsSummaryDetail!$B$6:$B$1100,$I$6,PlatformsSummaryDetail!$E$6:$E$1100,IF($I$7<>"All",$I$7,"*"),PlatformsSummaryDetail!$F$6:$F$1100,IF($I$8<>"All",$I$8,"*"),PlatformsSummaryDetail!$H$6:$H$1100,IF($I$9<>"All",$I$9,"*"),PlatformsSummaryDetail!$C$6:$C$1100,IF($I$10<>"All",$I$10,"*"),PlatformsSummaryDetail!$D$6:$D$1100,IF($I$11<>"All",$I$11,"*")) -> 13483.61117
A27: Gina | D27: Yes | E27: =SUMIFS(PlatformsSummaryDetail!I$6:I$1100,PlatformsSummaryDetail!$A$6:$A$1100,PlatformsSummary!$A27,PlatformsSummaryDetail!$B$6:$B$1100,$I$6,PlatformsSummaryDetail!$E$6:$E$1100,IF($I$7<>"All",$I$7,"*"),PlatformsSummaryDetail!$F$6:$F$1100,IF($I$8<>"All",$I$8,"*"),PlatformsSummaryDetail!$H$6:$H$1100,IF($I$9<>"All",$I$9,"*"),PlatformsSummaryDetail!$C$6:$C$1100,IF($I$10<>"All",$I$10,"*"),PlatformsSummaryDetail!$D$6:$D$1100,IF($I$11<>"All",$I$11,"*")) -> 155.3602968 | F27: =SUMIFS(PlatformsSummaryDetail!J$6:J$1100,PlatformsSummaryDetail!$A$6:$A$1100,PlatformsSummary!$A27,PlatformsSummaryDetail!$B$6:$B$1100,$I$6,PlatformsSummaryDetail!$E$6:$E$1100,IF($I$7<>"All",$I$7,"*"),PlatformsSummaryDetail!$F$6:$F$1100,IF($I$8<>"All",$I$8,"*"),PlatformsSummaryDetail!$H$6:$H$1100,IF($I$9<>"All",$I$9,"*"),PlatformsSummaryDetail!$C$6:$C$1100,IF($I$10<>"All",$I$10,"*"),PlatformsSummaryDetail!$D$6:$D$1100,IF($I$11<>"All",$I$11,"*")) -> 12.33052197 | G27: =SUMIFS(PlatformsSummaryDetail!K$6:K$1100,PlatformsSummaryDetail!$A$6:$A$1100,PlatformsSummary!$A27,PlatformsSummaryDetail!$B$6:$B$1100,$I$6,PlatformsSummaryDetail!$E$6:$E$1100,IF($I$7<>"All",$I$7,"*"),PlatformsSummaryDetail!$F$6:$F$1100,IF($I$8<>"All",$I$8,"*"),PlatformsSummaryDetail!$H$6:$H$1100,IF($I$9<>"All",$I$9,"*"),PlatformsSummaryDetail!$C$6:$C$1100,IF($I$10<>"All",$I$10,"*"),PlatformsSummaryDetail!$D$6:$D$1100,IF($I$11<>"All",$I$11,"*")) -> 34.95057617 | H27: =SUMIFS(PlatformsSummaryDetail!L$6:L$1100,PlatformsSummaryDetail!$A$6:$A$1100,PlatformsSummary!$A27,PlatformsSummaryDetail!$B$6:$B$1100,$I$6,PlatformsSummaryDetail!$E$6:$E$1100,IF($I$7<>"All",$I$7,"*"),PlatformsSummaryDetail!$F$6:$F$1100,IF($I$8<>"All",$I$8,"*"),PlatformsSummaryDetail!$H$6:$H$1100,IF($I$9<>"All",$I$9,"*"),PlatformsSummaryDetail!$C$6:$C$1100,IF($I$10<>"All",$I$10,"*"),PlatformsSummaryDetail!$D$6:$D$1100,IF($I$11<>"All",$I$11,"*")) -> 0.05669346421 | I27: =SUMIFS(PlatformsSummaryDetail!M$6:M$1100,PlatformsSummaryDetail!$A$6:$A$1100,PlatformsSummary!$A27,PlatformsSummaryDetail!$B$6:$B$1100,$I$6,PlatformsSummaryDetail!$E$6:$E$1100,IF($I$7<>"All",$I$7,"*"),PlatformsSummaryDetail!$F$6:$F$1100,IF($I$8<>"All",$I$8,"*"),PlatformsSummaryDetail!$H$6:$H$1100,IF($I$9<>"All",$I$9,"*"),PlatformsSummaryDetail!$C$6:$C$1100,IF($I$10<>"All",$I$10,"*"),PlatformsSummaryDetail!$D$6:$D$1100,IF($I$11<>"All",$I$11,"*")) -> 11.27979928 | J27: =SUMIFS(PlatformsSummaryDetail!N$6:N$1100,PlatformsSummaryDetail!$A$6:$A$1100,PlatformsSummary!$A27,PlatformsSummaryDetail!$B$6:$B$1100,$I$6,PlatformsSummaryDetail!$E$6:$E$1100,IF($I$7<>"All",$I$7,"*"),PlatformsSummaryDetail!$F$6:$F$1100,IF($I$8<>"All",$I$8,"*"),PlatformsSummaryDetail!$H$6:$H$1100,IF($I$9<>"All",$I$9,"*"),PlatformsSummaryDetail!$C$6:$C$1100,IF($I$10<>"All",$I$10,"*"),PlatformsSummaryDetail!$D$6:$D$1100,IF($I$11<>"All",$I$11,"*")) -> 11.24169501 | K27: =SUMIFS(PlatformsSummaryDetail!O$6:O$1100,PlatformsSummaryDetail!$A$6:$A$1100,PlatformsSummary!$A27,PlatformsSummaryDetail!$B$6:$B$1100,$I$6,PlatformsSummaryDetail!$E$6:$E$1100,IF($I$7<>"All",$I$7,"*"),PlatformsSummaryDetail!$F$6:$F$1100,IF($I$8<>"All",$I$8,"*"),PlatformsSummaryDetail!$H$6:$H$1100,IF($I$9<>"All",$I$9,"*"),PlatformsSummaryDetail!$C$6:$C$1100,IF($I$10<>"All",$I$10,"*"),PlatformsSummaryDetail!$D$6:$D$1100,IF($I$11<>"All",$I$11,"*")) -> 11.24169501 | L27: =SUMIFS(PlatformsSummaryDetail!P$6:P$1100,PlatformsSummaryDetail!$A$6:$A$1100,PlatformsSummary!$A27,PlatformsSummaryDetail!$B$6:$B$1100,$I$6,PlatformsSummaryDetail!$E$6:$E$1100,IF($I$7<>"All",$I$7,"*"),PlatformsSummaryDetail!$F$6:$F$1100,IF($I$8<>"All",$I$8,"*"),PlatformsSummaryDetail!$H$6:$H$1100,IF($I$9<>"All",$I$9,"*"),PlatformsSummaryDetail!$C$6:$C$1100,IF($I$10<>"All",$I$10,"*"),PlatformsSummaryDetail!$D$6:$D$1100,IF($I$11<>"All",$I$11,"*")) -> 5381.104603
A28: Grace | D28: Yes | E28: =SUMIFS(PlatformsSummaryDetail!I$6:I$1100,PlatformsSummaryDetail!$A$6:$A$1100,PlatformsSummary!$A28,PlatformsSummaryDetail!$B$6:$B$1100,$I$6,PlatformsSummaryDetail!$E$6:$E$1100,IF($I$7<>"All",$I$7,"*"),PlatformsSummaryDetail!$F$6:$F$1100,IF($I$8<>"All",$I$8,"*"),PlatformsSummaryDetail!$H$6:$H$1100,IF($I$9<>"All",$I$9,"*"),PlatformsSummaryDetail!$C$6:$C$1100,IF($I$10<>"All",$I$10,"*"),PlatformsSummaryDetail!$D$6:$D$1100,IF($I$11<>"All",$I$11,"*")) -> 329.7264641 | F28: =SUMIFS(PlatformsSummaryDetail!J$6:J$1100,PlatformsSummaryDetail!$A$6:$A$1100,PlatformsSummary!$A28,PlatformsSummaryDetail!$B$6:$B$1100,$I$6,PlatformsSummaryDetail!$E$6:$E$1100,IF($I$7<>"All",$I$7,"*"),PlatformsSummaryDetail!$F$6:$F$1100,IF($I$8<>"All",$I$8,"*"),PlatformsSummaryDetail!$H$6:$H$1100,IF($I$9<>"All",$I$9,"*"),PlatformsSummaryDetail!$C$6:$C$1100,IF($I$10<>"All",$I$10,"*"),PlatformsSummaryDetail!$D$6:$D$1100,IF($I$11<>"All",$I$11,"*")) -> 26.78999906 | G28: =SUMIFS(PlatformsSummaryDetail!K$6:K$1100,PlatformsSummaryDetail!$A$6:$A$1100,PlatformsSummary!$A28,PlatformsSummaryDetail!$B$6:$B$1100,$I$6,PlatformsSummaryDetail!$E$6:$E$1100,IF($I$7<>"All",$I$7,"*"),PlatformsSummaryDetail!$F$6:$F$1100,IF($I$8<>"All",$I$8,"*"),PlatformsSummaryDetail!$H$6:$H$1100,IF($I$9<>"All",$I$9,"*"),PlatformsSummaryDetail!$C$6:$C$1100,IF($I$10<>"All",$I$10,"*"),PlatformsSummaryDetail!$D$6:$D$1100,IF($I$11<>"All",$I$11,"*")) -> 82.31821998 | H28: =SUMIFS(PlatformsSummaryDetail!L$6:L$1100,PlatformsSummaryDetail!$A$6:$A$1100,PlatformsSummary!$A28,PlatformsSummaryDetail!$B$6:$B$1100,$I$6,PlatformsSummaryDetail!$E$6:$E$1100,IF($I$7<>"All",$I$7,"*"),PlatformsSummaryDetail!$F$6:$F$1100,IF($I$8<>"All",$I$8,"*"),PlatformsSummaryDetail!$H$6:$H$1100,IF($I$9<>"All",$I$9,"*"),PlatformsSummaryDetail!$C$6:$C$1100,IF($I$10<>"All",$I$10,"*"),PlatformsSummaryDetail!$D$6:$D$1100,IF($I$11<>"All",$I$11,"*")) -> 0.1294545992 | I28: =SUMIFS(PlatformsSummaryDetail!M$6:M$1100,PlatformsSummaryDetail!$A$6:$A$1100,PlatformsSummary!$A28,PlatformsSummaryDetail!$B$6:$B$1100,$I$6,PlatformsSummaryDetail!$E$6:$E$1100,IF($I$7<>"All",$I$7,"*"),PlatformsSummaryDetail!$F$6:$F$1100,IF($I$8<>"All",$I$8,"*"),PlatformsSummaryDetail!$H$6:$H$1100,IF($I$9<>"All",$I$9,"*"),PlatformsSummaryDetail!$C$6:$C$1100,IF($I$10<>"All",$I$10,"*"),PlatformsSummaryDetail!$D$6:$D$1100,IF($I$11<>"All",$I$11,"*")) -> 25.4461119 | J28: =SUMIFS(PlatformsSummaryDetail!N$6:N$1100,PlatformsSummaryDetail!$A$6:$A$1100,PlatformsSummary!$A28,PlatformsSummaryDetail!$B$6:$B$1100,$I$6,PlatformsSummaryDetail!$E$6:$E$1100,IF($I$7<>"All",$I$7,"*"),PlatformsSummaryDetail!$F$6:$F$1100,IF($I$8<>"All",$I$8,"*"),PlatformsSummaryDetail!$H$6:$H$1100,IF($I$9<>"All",$I$9,"*"),PlatformsSummaryDetail!$C$6:$C$1100,IF($I$10<>"All",$I$10,"*"),PlatformsSummaryDetail!$D$6:$D$1100,IF($I$11<>"All",$I$11,"*")) -> 25.27356087 | K28: =SUMIFS(PlatformsSummaryDetail!O$6:O$1100,PlatformsSummaryDetail!$A$6:$A$1100,PlatformsSummary!$A28,PlatformsSummaryDetail!$B$6:$B$1100,$I$6,PlatformsSummaryDetail!$E$6:$E$1100,IF($I$7<>"All",$I$7,"*"),PlatformsSummaryDetail!$F$6:$F$1100,IF($I$8<>"All",$I$8,"*"),PlatformsSummaryDetail!$H$6:$H$1100,IF($I$9<>"All",$I$9,"*"),PlatformsSummaryDetail!$C$6:$C$1100,IF($I$10<>"All",$I$10,"*"),PlatformsSummaryDetail!$D$6:$D$1100,IF($I$11<>"All",$I$11,"*")) -> 25.27356087 | L28: =SUMIFS(PlatformsSummaryDetail!P$6:P$1100,PlatformsSummaryDetail!$A$6:$A$1100,PlatformsSummary!$A28,PlatformsSummaryDetail!$B$6:$B$1100,$I$6,PlatformsSummaryDetail!$E$6:$E$1100,IF($I$7<>"All",$I$7,"*"),PlatformsSummaryDetail!$F$6:$F$1100,IF($I$8<>"All",$I$8,"*"),PlatformsSummaryDetail!$H$6:$H$1100,IF($I$9<>"All",$I$9,"*"),PlatformsSummaryDetail!$C$6:$C$1100,IF($I$10<>"All",$I$10,"*"),PlatformsSummaryDetail!$D$6:$D$1100,IF($I$11<>"All",$I$11,"*")) -> 12398.4494
A29: Habitat | D29: Yes | E29: =SUMIFS(PlatformsSummaryDetail!I$6:I$1100,PlatformsSummaryDetail!$A$6:$A$1100,PlatformsSummary!$A29,PlatformsSummaryDetail!$B$6:$B$1100,$I$6,PlatformsSummaryDetail!$E$6:$E$1100,IF($I$7<>"All",$I$7,"*"),PlatformsSummaryDetail!$F$6:$F$1100,IF($I$8<>"All",$I$8,"*"),PlatformsSummaryDetail!$H$6:$H$1100,IF($I$9<>"All",$I$9,"*"),PlatformsSummaryDetail!$C$6:$C$1100,IF($I$10<>"All",$I$10,"*"),PlatformsSummaryDetail!$D$6:$D$1100,IF($I$11<>"All",$I$11,"*")) -> 320.0555841 | F29: =SUMIFS(PlatformsSummaryDetail!J$6:J$1100,PlatformsSummaryDetail!$A$6:$A$1100,PlatformsSummary!$A29,PlatformsSummaryDetail!$B$6:$B$1100,$I$6,PlatformsSummaryDetail!$E$6:$E$1100,IF($I$7<>"All",$I$7,"*"),PlatformsSummaryDetail!$F$6:$F$1100,IF($I$8<>"All",$I$8,"*"),PlatformsSummaryDetail!$H$6:$H$1100,IF($I$9<>"All",$I$9,"*"),PlatformsSummaryDetail!$C$6:$C$1100,IF($I$10<>"All",$I$10,"*"),PlatformsSummaryDetail!$D$6:$D$1100,IF($I$11<>"All",$I$11,"*")) -> 26.40035595 | G29: =SUMIFS(PlatformsSummaryDetail!K$6:K$1100,PlatformsSummaryDetail!$A$6:$A$1100,PlatformsSummary!$A29,PlatformsSummaryDetail!$B$6:$B$1100,$I$6,PlatformsSummaryDetail!$E$6:$E$1100,IF($I$7<>"All",$I$7,"*"),PlatformsSummaryDetail!$F$6:$F$1100,IF($I$8<>"All",$I$8,"*"),PlatformsSummaryDetail!$H$6:$H$1100,IF($I$9<>"All",$I$9,"*"),PlatformsSummaryDetail!$C$6:$C$1100,IF($I$10<>"All",$I$10,"*"),PlatformsSummaryDetail!$D$6:$D$1100,IF($I$11<>"All",$I$11,"*")) -> 85.18320198 | H29: =SUMIFS(PlatformsSummaryDetail!L$6:L$1100,PlatformsSummaryDetail!$A$6:$A$1100,PlatformsSummary!$A29,PlatformsSummaryDetail!$B$6:$B$1100,$I$6,PlatformsSummaryDetail!$E$6:$E$1100,IF($I$7<>"All",$I$7,"*"),PlatformsSummaryDetail!$F$6:$F$1100,IF($I$8<>"All",$I$8,"*"),PlatformsSummaryDetail!$H$6:$H$1100,IF($I$9<>"All",$I$9,"*"),PlatformsSummaryDetail!$C$6:$C$1100,IF($I$10<>"All",$I$10,"*"),PlatformsSummaryDetail!$D$6:$D$1100,IF($I$11<>"All",$I$11,"*")) -> 0.1319299682 | I29: =SUMIFS(PlatformsSummaryDetail!M$6:M$1100,PlatformsSummaryDetail!$A$6:$A$1100,PlatformsSummary!$A29,PlatformsSummaryDetail!$B$6:$B$1100,$I$6,PlatformsSummaryDetail!$E$6:$E$1100,IF($I$7<>"All",$I$7,"*"),PlatformsSummaryDetail!$F$6:$F$1100,IF($I$8<>"All",$I$8,"*"),PlatformsSummaryDetail!$H$6:$H$1100,IF($I$9<>"All",$I$9,"*"),PlatformsSummaryDetail!$C$6:$C$1100,IF($I$10<>"All",$I$10,"*"),PlatformsSummaryDetail!$D$6:$D$1100,IF($I$11<>"All",$I$11,"*")) -> 25.68572643 | J29: =SUMIFS(PlatformsSummaryDetail!N$6:N$1100,PlatformsSummaryDetail!$A$6:$A$1100,PlatformsSummary!$A29,PlatformsSummaryDetail!$B$6:$B$1100,$I$6,PlatformsSummaryDetail!$E$6:$E$1100,IF($I$7<>"All",$I$7,"*"),PlatformsSummaryDetail!$F$6:$F$1100,IF($I$8<>"All",$I$8,"*"),PlatformsSummaryDetail!$H$6:$H$1100,IF($I$9<>"All",$I$9,"*"),PlatformsSummaryDetail!$C$6:$C$1100,IF($I$10<>"All",$I$10,"*"),PlatformsSummaryDetail!$D$6:$D$1100,IF($I$11<>"All",$I$11,"*")) -> 25.4733593 | K29: =SUMIFS(PlatformsSummaryDetail!O$6:O$1100,PlatformsSummaryDetail!$A$6:$A$1100,PlatformsSummary!$A29,PlatformsSummaryDetail!$B$6:$B$1100,$I$6,PlatformsSummaryDetail!$E$6:$E$1100,IF($I$7<>"All",$I$7,"*"),PlatformsSummaryDetail!$F$6:$F$1100,IF($I$8<>"All",$I$8,"*"),PlatformsSummaryDetail!$H$6:$H$1100,IF($I$9<>"All",$I$9,"*"),PlatformsSummaryDetail!$C$6:$C$1100,IF($I$10<>"All",$I$10,"*"),PlatformsSummaryDetail!$D$6:$D$1100,IF($I$11<>"All",$I$11,"*")) -> 25.4733593 | L29: =SUMIFS(PlatformsSummaryDetail!P$6:P$1100,PlatformsSummaryDetail!$A$6:$A$1100,PlatformsSummary!$A29,PlatformsSummaryDetail!$B$6:$B$1100,$I$6,PlatformsSummaryDetail!$E$6:$E$1100,IF($I$7<>"All",$I$7,"*"),PlatformsSummaryDetail!$F$6:$F$1100,IF($I$8<>"All",$I$8,"*"),PlatformsSummaryDetail!$H$6:$H$1100,IF($I$9<>"All",$I$9,"*"),PlatformsSummaryDetail!$C$6:$C$1100,IF($I$10<>"All",$I$10,"*"),PlatformsSummaryDetail!$D$6:$D$1100,IF($I$11<>"All",$I$11,"*")) -> 12697.64989
A30: Harmony | D30: Yes | E30: =SUMIFS(PlatformsSummaryDetail!I$6:I$1100,PlatformsSummaryDetail!$A$6:$A$1100,PlatformsSummary!$A30,PlatformsSummaryDetail!$B$6:$B$1100,$I$6,PlatformsSummaryDetail!$E$6:$E$1100,IF($I$7<>"All",$I$7,"*"),PlatformsSummaryDetail!$F$6:$F$1100,IF($I$8<>"All",$I$8,"*"),PlatformsSummaryDetail!$H$6:$H$1100,IF($I$9<>"All",$I$9,"*"),PlatformsSummaryDetail!$C$6:$C$1100,IF($I$10<>"All",$I$10,"*"),PlatformsSummaryDetail!$D$6:$D$1100,IF($I$11<>"All",$I$11,"*")) -> 1211.435111 | F30: =SUMIFS(PlatformsSummaryDetail!J$6:J$1100,PlatformsSummaryDetail!$A$6:$A$1100,PlatformsSummary!$A30,PlatformsSummaryDetail!$B$6:$B$1100,$I$6,PlatformsSummaryDetail!$E$6:$E$1100,IF($I$7<>"All",$I$7,"*"),PlatformsSummaryDetail!$F$6:$F$1100,IF($I$8<>"All",$I$8,"*"),PlatformsSummaryDetail!$H$6:$H$1100,IF($I$9<>"All",$I$9,"*"),PlatformsSummaryDetail!$C$6:$C$1100,IF($I$10<>"All",$I$10,"*"),PlatformsSummaryDetail!$D$6:$D$1100,IF($I$11<>"All",$I$11,"*")) -> 97.35422379 | G30: =SUMIFS(PlatformsSummaryDetail!K$6:K$1100,PlatformsSummaryDetail!$A$6:$A$1100,PlatformsSummary!$A30,PlatformsSummaryDetail!$B$6:$B$1100,$I$6,PlatformsSummaryDetail!$E$6:$E$1100,IF($I$7<>"All",$I$7,"*"),PlatformsSummaryDetail!$F$6:$F$1100,IF($I$8<>"All",$I$8,"*"),PlatformsSummaryDetail!$H$6:$H$1100,IF($I$9<>"All",$I$9,"*"),PlatformsSummaryDetail!$C$6:$C$1100,IF($I$10<>"All",$I$10,"*"),PlatformsSummaryDetail!$D$6:$D$1100,IF($I$11<>"All",$I$11,"*")) -> 316.0772423 | H30: =SUMIFS(PlatformsSummaryDetail!L$6:L$1100,PlatformsSummaryDetail!$A$6:$A$1100,PlatformsSummary!$A30,PlatformsSummaryDetail!$B$6:$B$1100,$I$6,PlatformsSummaryDetail!$E$6:$E$1100,IF($I$7<>"All",$I$7,"*"),PlatformsSummaryDetail!$F$6:$F$1100,IF($I$8<>"All",$I$8,"*"),PlatformsSummaryDetail!$H$6:$H$1100,IF($I$9<>"All",$I$9,"*"),PlatformsSummaryDetail!$C$6:$C$1100,IF($I$10<>"All",$I$10,"*"),PlatformsSummaryDetail!$D$6:$D$1100,IF($I$11<>"All",$I$11,"*")) -> 0.4933205531 | I30: =SUMIFS(PlatformsSummaryDetail!M$6:M$1100,PlatformsSummaryDetail!$A$6:$A$1100,PlatformsSummary!$A30,PlatformsSummaryDetail!$B$6:$B$1100,$I$6,PlatformsSummaryDetail!$E$6:$E$1100,IF($I$7<>"All",$I$7,"*"),PlatformsSummaryDetail!$F$6:$F$1100,IF($I$8<>"All",$I$8,"*"),PlatformsSummaryDetail!$H$6:$H$1100,IF($I$9<>"All",$I$9,"*"),PlatformsSummaryDetail!$C$6:$C$1100,IF($I$10<>"All",$I$10,"*"),PlatformsSummaryDetail!$D$6:$D$1100,IF($I$11<>"All",$I$11,"*")) -> 95.12050184 | J30: =SUMIFS(PlatformsSummaryDetail!N$6:N$1100,PlatformsSummaryDetail!$A$6:$A$1100,PlatformsSummary!$A30,PlatformsSummaryDetail!$B$6:$B$1100,$I$6,PlatformsSummaryDetail!$E$6:$E$1100,IF($I$7<>"All",$I$7,"*"),PlatformsSummaryDetail!$F$6:$F$1100,IF($I$8<>"All",$I$8,"*"),PlatformsSummaryDetail!$H$6:$H$1100,IF($I$9<>"All",$I$9,"*"),PlatformsSummaryDetail!$C$6:$C$1100,IF($I$10<>"All",$I$10,"*"),PlatformsSummaryDetail!$D$6:$D$1100,IF($I$11<>"All",$I$11,"*")) -> 94.54175346 | K30: =SUMIFS(PlatformsSummaryDetail!O$6:O$1100,PlatformsSummaryDetail!$A$6:$A$1100,PlatformsSummary!$A30,PlatformsSummaryDetail!$B$6:$B$1100,$I$6,PlatformsSummaryDetail!$E$6:$E$1100,IF($I$7<>"All",$I$7,"*"),PlatformsSummaryDetail!$F$6:$F$1100,IF($I$8<>"All",$I$8,"*"),PlatformsSummaryDetail!$H$6:$H$1100,IF($I$9<>"All",$I$9,"*"),PlatformsSummaryDetail!$C$6:$C$1100,IF($I$10<>"All",$I$10,"*"),PlatformsSummaryDetail!$D$6:$D$1100,IF($I$11<>"All",$I$11,"*")) -> 94.54175346 | L30: =SUMIFS(PlatformsSummaryDetail!P$6:P$1100,PlatformsSummaryDetail!$A$6:$A$1100,PlatformsSummary!$A30,PlatformsSummaryDetail!$B$6:$B$1100,$I$6,PlatformsSummaryDetail!$E$6:$E$1100,IF($I$7<>"All",$I$7,"*"),PlatformsSummaryDetail!$F$6:$F$1100,IF($I$8<>"All",$I$8,"*"),PlatformsSummaryDetail!$H$6:$H$1100,IF($I$9<>"All",$I$9,"*"),PlatformsSummaryDetail!$C$6:$C$1100,IF($I$10<>"All",$I$10,"*"),PlatformsSummaryDetail!$D$6:$D$1100,IF($I$11<>"All",$I$11,"*")) -> 47378.94145
A31: Harvest | D31: Yes | E31: =SUMIFS(PlatformsSummaryDetail!I$6:I$1100,PlatformsSummaryDetail!$A$6:$A$1100,PlatformsSummary!$A31,PlatformsSummaryDetail!$B$6:$B$1100,$I$6,PlatformsSummaryDetail!$E$6:$E$1100,IF($I$7<>"All",$I$7,"*"),PlatformsSummaryDetail!$F$6:$F$1100,IF($I$8<>"All",$I$8,"*"),PlatformsSummaryDetail!$H$6:$H$1100,IF($I$9<>"All",$I$9,"*"),PlatformsSummaryDetail!$C$6:$C$1100,IF($I$10<>"All",$I$10,"*"),PlatformsSummaryDetail!$D$6:$D$1100,IF($I$11<>"All",$I$11,"*")) -> 736.8121931 | F31: =SUMIFS(PlatformsSummaryDetail!J$6:J$1100,PlatformsSummaryDetail!$A$6:$A$1100,PlatformsSummary!$A31,PlatformsSummaryDetail!$B$6:$B$1100,$I$6,PlatformsSummaryDetail!$E$6:$E$1100,IF($I$7<>"All",$I$7,"*"),PlatformsSummaryDetail!$F$6:$F$1100,IF($I$8<>"All",$I$8,"*"),PlatformsSummaryDetail!$H$6:$H$1100,IF($I$9<>"All",$I$9,"*"),PlatformsSummaryDetail!$C$6:$C$1100,IF($I$10<>"All",$I$10,"*"),PlatformsSummaryDetail!$D$6:$D$1100,IF($I$11<>"All",$I$11,"*")) -> 59.41471269 | G31: =SUMIFS(PlatformsSummaryDetail!K$6:K$1100,PlatformsSummaryDetail!$A$6:$A$1100,PlatformsSummary!$A31,PlatformsSummaryDetail!$B$6:$B$1100,$I$6,PlatformsSummaryDetail!$E$6:$E$1100,IF($I$7<>"All",$I$7,"*"),PlatformsSummaryDetail!$F$6:$F$1100,IF($I$8<>"All",$I$8,"*"),PlatformsSummaryDetail!$H$6:$H$1100,IF($I$9<>"All",$I$9,"*"),PlatformsSummaryDetail!$C$6:$C$1100,IF($I$10<>"All",$I$10,"*"),PlatformsSummaryDetail!$D$6:$D$1100,IF($I$11<>"All",$I$11,"*")) -> 200.9180407 | H31: =SUMIFS(PlatformsSummaryDetail!L$6:L$1100,PlatformsSummaryDetail!$A$6:$A$1100,PlatformsSummary!$A31,PlatformsSummaryDetail!$B$6:$B$1100,$I$6,PlatformsSummaryDetail!$E$6:$E$1100,IF($I$7<>"All",$I$7,"*"),PlatformsSummaryDetail!$F$6:$F$1100,IF($I$8<>"All",$I$8,"*"),PlatformsSummaryDetail!$H$6:$H$1100,IF($I$9<>"All",$I$9,"*"),PlatformsSummaryDetail!$C$6:$C$1100,IF($I$10<>"All",$I$10,"*"),PlatformsSummaryDetail!$D$6:$D$1100,IF($I$11<>"All",$I$11,"*")) -> 0.3095932627 | I31: =SUMIFS(PlatformsSummaryDetail!M$6:M$1100,PlatformsSummaryDetail!$A$6:$A$1100,PlatformsSummary!$A31,PlatformsSummaryDetail!$B$6:$B$1100,$I$6,PlatformsSummaryDetail!$E$6:$E$1100,IF($I$7<>"All",$I$7,"*"),PlatformsSummaryDetail!$F$6:$F$1100,IF($I$8<>"All",$I$8,"*"),PlatformsSummaryDetail!$H$6:$H$1100,IF($I$9<>"All",$I$9,"*"),PlatformsSummaryDetail!$C$6:$C$1100,IF($I$10<>"All",$I$10,"*"),PlatformsSummaryDetail!$D$6:$D$1100,IF($I$11<>"All",$I$11,"*")) -> 59.27405776 | J31: =SUMIFS(PlatformsSummaryDetail!N$6:N$1100,PlatformsSummaryDetail!$A$6:$A$1100,PlatformsSummary!$A31,PlatformsSummaryDetail!$B$6:$B$1100,$I$6,PlatformsSummaryDetail!$E$6:$E$1100,IF($I$7<>"All",$I$7,"*"),PlatformsSummaryDetail!$F$6:$F$1100,IF($I$8<>"All",$I$8,"*"),PlatformsSummaryDetail!$H$6:$H$1100,IF($I$9<>"All",$I$9,"*"),PlatformsSummaryDetail!$C$6:$C$1100,IF($I$10<>"All",$I$10,"*"),PlatformsSummaryDetail!$D$6:$D$1100,IF($I$11<>"All",$I$11,"*")) -> 58.82404964 | K31: =SUMIFS(PlatformsSummaryDetail!O$6:O$1100,PlatformsSummaryDetail!$A$6:$A$1100,PlatformsSummary!$A31,PlatformsSummaryDetail!$B$6:$B$1100,$I$6,PlatformsSummaryDetail!$E$6:$E$1100,IF($I$7<>"All",$I$7,"*"),PlatformsSummaryDetail!$F$6:$F$1100,IF($I$8<>"All",$I$8,"*"),PlatformsSummaryDetail!$H$6:$H$1100,IF($I$9<>"All",$I$9,"*"),PlatformsSummaryDetail!$C$6:$C$1100,IF($I$10<>"All",$I$10,"*"),PlatformsSummaryDetail!$D$6:$D$1100,IF($I$11<>"All",$I$11,"*")) -> 58.82404964 | L31: =SUMIFS(PlatformsSummaryDetail!P$6:P$1100,PlatformsSummaryDetail!$A$6:$A$1100,PlatformsSummary!$A31,PlatformsSummaryDetail!$B$6:$B$1100,$I$6,PlatformsSummaryDetail!$E$6:$E$1100,IF($I$7<>"All",$I$7,"*"),PlatformsSummaryDetail!$F$6:$F$1100,IF($I$8<>"All",$I$8,"*"),PlatformsSummaryDetail!$H$6:$H$1100,IF($I$9<>"All",$I$9,"*"),PlatformsSummaryDetail!$C$6:$C$1100,IF($I$10<>"All",$I$10,"*"),PlatformsSummaryDetail!$D$6:$D$1100,IF($I$11<>"All",$I$11,"*")) -> 29863.87542
A32: Henry | D32: Yes | E32: =SUMIFS(PlatformsSummaryDetail!I$6:I$1100,PlatformsSummaryDetail!$A$6:$A$1100,PlatformsSummary!$A32,PlatformsSummaryDetail!$B$6:$B$1100,$I$6,PlatformsSummaryDetail!$E$6:$E$1100,IF($I$7<>"All",$I$7,"*"),PlatformsSummaryDetail!$F$6:$F$1100,IF($I$8<>"All",$I$8,"*"),PlatformsSummaryDetail!$H$6:$H$1100,IF($I$9<>"All",$I$9,"*"),PlatformsSummaryDetail!$C$6:$C$1100,IF($I$10<>"All",$I$10,"*"),PlatformsSummaryDetail!$D$6:$D$1100,IF($I$11<>"All",$I$11,"*")) -> 246.2281015 | F32: =SUMIFS(PlatformsSummaryDetail!J$6:J$1100,PlatformsSummaryDetail!$A$6:$A$1100,PlatformsSummary!$A32,PlatformsSummaryDetail!$B$6:$B$1100,$I$6,PlatformsSummaryDetail!$E$6:$E$1100,IF($I$7<>"All",$I$7,"*"),PlatformsSummaryDetail!$F$6:$F$1100,IF($I$8<>"All",$I$8,"*"),PlatformsSummaryDetail!$H$6:$H$1100,IF($I$9<>"All",$I$9,"*"),PlatformsSummaryDetail!$C$6:$C$1100,IF($I$10<>"All",$I$10,"*"),PlatformsSummaryDetail!$D$6:$D$1100,IF($I$11<>"All",$I$11,"*")) -> 19.67362912 | G32: =SUMIFS(PlatformsSummaryDetail!K$6:K$1100,PlatformsSummaryDetail!$A$6:$A$1100,PlatformsSummary!$A32,PlatformsSummaryDetail!$B$6:$B$1100,$I$6,PlatformsSummaryDetail!$E$6:$E$1100,IF($I$7<>"All",$I$7,"*"),PlatformsSummaryDetail!$F$6:$F$1100,IF($I$8<>"All",$I$8,"*"),PlatformsSummaryDetail!$H$6:$H$1100,IF($I$9<>"All",$I$9,"*"),PlatformsSummaryDetail!$C$6:$C$1100,IF($I$10<>"All",$I$10,"*"),PlatformsSummaryDetail!$D$6:$D$1100,IF($I$11<>"All",$I$11,"*")) -> 59.74436809 | H32: =SUMIFS(PlatformsSummaryDetail!L$6:L$1100,PlatformsSummaryDetail!$A$6:$A$1100,PlatformsSummary!$A32,PlatformsSummaryDetail!$B$6:$B$1100,$I$6,PlatformsSummaryDetail!$E$6:$E$1100,IF($I$7<>"All",$I$7,"*"),PlatformsSummaryDetail!$F$6:$F$1100,IF($I$8<>"All",$I$8,"*"),PlatformsSummaryDetail!$H$6:$H$1100,IF($I$9<>"All",$I$9,"*"),PlatformsSummaryDetail!$C$6:$C$1100,IF($I$10<>"All",$I$10,"*"),PlatformsSummaryDetail!$D$6:$D$1100,IF($I$11<>"All",$I$11,"*")) -> 0.09525160273 | I32: =SUMIFS(PlatformsSummaryDetail!M$6:M$1100,PlatformsSummaryDetail!$A$6:$A$1100,PlatformsSummary!$A32,PlatformsSummaryDetail!$B$6:$B$1100,$I$6,PlatformsSummaryDetail!$E$6:$E$1100,IF($I$7<>"All",$I$7,"*"),PlatformsSummaryDetail!$F$6:$F$1100,IF($I$8<>"All",$I$8,"*"),PlatformsSummaryDetail!$H$6:$H$1100,IF($I$9<>"All",$I$9,"*"),PlatformsSummaryDetail!$C$6:$C$1100,IF($I$10<>"All",$I$10,"*"),PlatformsSummaryDetail!$D$6:$D$1100,IF($I$11<>"All",$I$11,"*")) -> 18.62880593 | J32: =SUMIFS(PlatformsSummaryDetail!N$6:N$1100,PlatformsSummaryDetail!$A$6:$A$1100,PlatformsSummary!$A32,PlatformsSummaryDetail!$B$6:$B$1100,$I$6,PlatformsSummaryDetail!$E$6:$E$1100,IF($I$7<>"All",$I$7,"*"),PlatformsSummaryDetail!$F$6:$F$1100,IF($I$8<>"All",$I$8,"*"),PlatformsSummaryDetail!$H$6:$H$1100,IF($I$9<>"All",$I$9,"*"),PlatformsSummaryDetail!$C$6:$C$1100,IF($I$10<>"All",$I$10,"*"),PlatformsSummaryDetail!$D$6:$D$1100,IF($I$11<>"All",$I$11,"*")) -> 18.54639814 | K32: =SUMIFS(PlatformsSummaryDetail!O$6:O$1100,PlatformsSummaryDetail!$A$6:$A$1100,PlatformsSummary!$A32,PlatformsSummaryDetail!$B$6:$B$1100,$I$6,PlatformsSummaryDetail!$E$6:$E$1100,IF($I$7<>"All",$I$7,"*"),PlatformsSummaryDetail!$F$6:$F$1100,IF($I$8<>"All",$I$8,"*"),PlatformsSummaryDetail!$H$6:$H$1100,IF($I$9<>"All",$I$9,"*"),PlatformsSummaryDetail!$C$6:$C$1100,IF($I$10<>"All",$I$10,"*"),PlatformsSummaryDetail!$D$6:$D$1100,IF($I$11<>"All",$I$11,"*")) -> 18.54639814 | L32: =SUMIFS(PlatformsSummaryDetail!P$6:P$1100,PlatformsSummaryDetail!$A$6:$A$1100,PlatformsSummary!$A32,PlatformsSummaryDetail!$B$6:$B$1100,$I$6,PlatformsSummaryDetail!$E$6:$E$1100,IF($I$7<>"All",$I$7,"*"),PlatformsSummaryDetail!$F$6:$F$1100,IF($I$8<>"All",$I$8,"*"),PlatformsSummaryDetail!$H$6:$H$1100,IF($I$9<>"All",$I$9,"*"),PlatformsSummaryDetail!$C$6:$C$1100,IF($I$10<>"All",$I$10,"*"),PlatformsSummaryDetail!$D$6:$D$1100,IF($I$11<>"All",$I$11,"*")) -> 9093.344299
A33: Heritage | D33: Yes | E33: =SUMIFS(PlatformsSummaryDetail!I$6:I$1100,PlatformsSummaryDetail!$A$6:$A$1100,PlatformsSummary!$A33,PlatformsSummaryDetail!$B$6:$B$1100,$I$6,PlatformsSummaryDetail!$E$6:$E$1100,IF($I$7<>"All",$I$7,"*"),PlatformsSummaryDetail!$F$6:$F$1100,IF($I$8<>"All",$I$8,"*"),PlatformsSummaryDetail!$H$6:$H$1100,IF($I$9<>"All",$I$9,"*"),PlatformsSummaryDetail!$C$6:$C$1100,IF($I$10<>"All",$I$10,"*"),PlatformsSummaryDetail!$D$6:$D$1100,IF($I$11<>"All",$I$11,"*")) -> 1259.396056 | F33: =SUMIFS(PlatformsSummaryDetail!J$6:J$1100,PlatformsSummaryDetail!$A$6:$A$1100,PlatformsSummary!$A33,PlatformsSummaryDetail!$B$6:$B$1100,$I$6,PlatformsSummaryDetail!$E$6:$E$1100,IF($I$7<>"All",$I$7,"*"),PlatformsSummaryDetail!$F$6:$F$1100,IF($I$8<>"All",$I$8,"*"),PlatformsSummaryDetail!$H$6:$H$1100,IF($I$9<>"All",$I$9,"*"),PlatformsSummaryDetail!$C$6:$C$1100,IF($I$10<>"All",$I$10,"*"),PlatformsSummaryDetail!$D$6:$D$1100,IF($I$11<>"All",$I$11,"*")) -> 101.8962275 | G33: =SUMIFS(PlatformsSummaryDetail!K$6:K$1100,PlatformsSummaryDetail!$A$6:$A$1100,PlatformsSummary!$A33,PlatformsSummaryDetail!$B$6:$B$1100,$I$6,PlatformsSummaryDetail!$E$6:$E$1100,IF($I$7<>"All",$I$7,"*"),PlatformsSummaryDetail!$F$6:$F$1100,IF($I$8<>"All",$I$8,"*"),PlatformsSummaryDetail!$H$6:$H$1100,IF($I$9<>"All",$I$9,"*"),PlatformsSummaryDetail!$C$6:$C$1100,IF($I$10<>"All",$I$10,"*"),PlatformsSummaryDetail!$D$6:$D$1100,IF($I$11<>"All",$I$11,"*")) -> 349.699981 | H33: =SUMIFS(PlatformsSummaryDetail!L$6:L$1100,PlatformsSummaryDetail!$A$6:$A$1100,PlatformsSummary!$A33,PlatformsSummaryDetail!$B$6:$B$1100,$I$6,PlatformsSummaryDetail!$E$6:$E$1100,IF($I$7<>"All",$I$7,"*"),PlatformsSummaryDetail!$F$6:$F$1100,IF($I$8<>"All",$I$8,"*"),PlatformsSummaryDetail!$H$6:$H$1100,IF($I$9<>"All",$I$9,"*"),PlatformsSummaryDetail!$C$6:$C$1100,IF($I$10<>"All",$I$10,"*"),PlatformsSummaryDetail!$D$6:$D$1100,IF($I$11<>"All",$I$11,"*")) -> 0.5365788263 | I33: =SUMIFS(PlatformsSummaryDetail!M$6:M$1100,PlatformsSummaryDetail!$A$6:$A$1100,PlatformsSummary!$A33,PlatformsSummaryDetail!$B$6:$B$1100,$I$6,PlatformsSummaryDetail!$E$6:$E$1100,IF($I$7<>"All",$I$7,"*"),PlatformsSummaryDetail!$F$6:$F$1100,IF($I$8<>"All",$I$8,"*"),PlatformsSummaryDetail!$H$6:$H$1100,IF($I$9<>"All",$I$9,"*"),PlatformsSummaryDetail!$C$6:$C$1100,IF($I$10<>"All",$I$10,"*"),PlatformsSummaryDetail!$D$6:$D$1100,IF($I$11<>"All",$I$11,"*")) -> 102.4759694 | J33: =SUMIFS(PlatformsSummaryDetail!N$6:N$1100,PlatformsSummaryDetail!$A$6:$A$1100,PlatformsSummary!$A33,PlatformsSummaryDetail!$B$6:$B$1100,$I$6,PlatformsSummaryDetail!$E$6:$E$1100,IF($I$7<>"All",$I$7,"*"),PlatformsSummaryDetail!$F$6:$F$1100,IF($I$8<>"All",$I$8,"*"),PlatformsSummaryDetail!$H$6:$H$1100,IF($I$9<>"All",$I$9,"*"),PlatformsSummaryDetail!$C$6:$C$1100,IF($I$10<>"All",$I$10,"*"),PlatformsSummaryDetail!$D$6:$D$1100,IF($I$11<>"All",$I$11,"*")) -> 101.6465685 | K33: =SUMIFS(PlatformsSummaryDetail!O$6:O$1100,PlatformsSummaryDetail!$A$6:$A$1100,PlatformsSummary!$A33,PlatformsSummaryDetail!$B$6:$B$1100,$I$6,PlatformsSummaryDetail!$E$6:$E$1100,IF($I$7<>"All",$I$7,"*"),PlatformsSummaryDetail!$F$6:$F$1100,IF($I$8<>"All",$I$8,"*"),PlatformsSummaryDetail!$H$6:$H$1100,IF($I$9<>"All",$I$9,"*"),PlatformsSummaryDetail!$C$6:$C$1100,IF($I$10<>"All",$I$10,"*"),PlatformsSummaryDetail!$D$6:$D$1100,IF($I$11<>"All",$I$11,"*")) -> 101.6465685 | L33: =SUMIFS(PlatformsSummaryDetail!P$6:P$1100,PlatformsSummaryDetail!$A$6:$A$1100,PlatformsSummary!$A33,PlatformsSummaryDetail!$B$6:$B$1100,$I$6,PlatformsSummaryDetail!$E$6:$E$1100,IF($I$7<>"All",$I$7,"*"),PlatformsSummaryDetail!$F$6:$F$1100,IF($I$8<>"All",$I$8,"*"),PlatformsSummaryDetail!$H$6:$H$1100,IF($I$9<>"All",$I$9,"*"),PlatformsSummaryDetail!$C$6:$C$1100,IF($I$10<>"All",$I$10,"*"),PlatformsSummaryDetail!$D$6:$D$1100,IF($I$11<>"All",$I$11,"*")) -> 51829.17257
A34: Hermosa | D34: Yes | E34: =SUMIFS(PlatformsSummaryDetail!I$6:I$1100,PlatformsSummaryDetail!$A$6:$A$1100,PlatformsSummary!$A34,PlatformsSummaryDetail!$B$6:$B$1100,$I$6,PlatformsSummaryDetail!$E$6:$E$1100,IF($I$7<>"All",$I$7,"*"),PlatformsSummaryDetail!$F$6:$F$1100,IF($I$8<>"All",$I$8,"*"),PlatformsSummaryDetail!$H$6:$H$1100,IF($I$9<>"All",$I$9,"*"),PlatformsSummaryDetail!$C$6:$C$1100,IF($I$10<>"All",$I$10,"*"),PlatformsSummaryDetail!$D$6:$D$1100,IF($I$11<>"All",$I$11,"*")) -> 672.5500182 | F34: =SUMIFS(PlatformsSummaryDetail!J$6:J$1100,PlatformsSummaryDetail!$A$6:$A$1100,PlatformsSummary!$A34,PlatformsSummaryDetail!$B$6:$B$1100,$I$6,PlatformsSummaryDetail!$E$6:$E$1100,IF($I$7<>"All",$I$7,"*"),PlatformsSummaryDetail!$F$6:$F$1100,IF($I$8<>"All",$I$8,"*"),PlatformsSummaryDetail!$H$6:$H$1100,IF($I$9<>"All",$I$9,"*"),PlatformsSummaryDetail!$C$6:$C$1100,IF($I$10<>"All",$I$10,"*"),PlatformsSummaryDetail!$D$6:$D$1100,IF($I$11<>"All",$I$11,"*")) -> 54.08609494 | G34: =SUMIFS(PlatformsSummaryDetail!K$6:K$1100,PlatformsSummaryDetail!$A$6:$A$1100,PlatformsSummary!$A34,PlatformsSummaryDetail!$B$6:$B$1100,$I$6,PlatformsSummaryDetail!$E$6:$E$1100,IF($I$7<>"All",$I$7,"*"),PlatformsSummaryDetail!$F$6:$F$1100,IF($I$8<>"All",$I$8,"*"),PlatformsSummaryDetail!$H$6:$H$1100,IF($I$9<>"All",$I$9,"*"),PlatformsSummaryDetail!$C$6:$C$1100,IF($I$10<>"All",$I$10,"*"),PlatformsSummaryDetail!$D$6:$D$1100,IF($I$11<>"All",$I$11,"*")) -> 181.3977785 | H34: =SUMIFS(PlatformsSummaryDetail!L$6:L$1100,PlatformsSummaryDetail!$A$6:$A$1100,PlatformsSummary!$A34,PlatformsSummaryDetail!$B$6:$B$1100,$I$6,PlatformsSummaryDetail!$E$6:$E$1100,IF($I$7<>"All",$I$7,"*"),PlatformsSummaryDetail!$F$6:$F$1100,IF($I$8<>"All",$I$8,"*"),PlatformsSummaryDetail!$H$6:$H$1100,IF($I$9<>"All",$I$9,"*"),PlatformsSummaryDetail!$C$6:$C$1100,IF($I$10<>"All",$I$10,"*"),PlatformsSummaryDetail!$D$6:$D$1100,IF($I$11<>"All",$I$11,"*")) -> 0.2801797231 | I34: =SUMIFS(PlatformsSummaryDetail!M$6:M$1100,PlatformsSummaryDetail!$A$6:$A$1100,PlatformsSummary!$A34,PlatformsSummaryDetail!$B$6:$B$1100,$I$6,PlatformsSummaryDetail!$E$6:$E$1100,IF($I$7<>"All",$I$7,"*"),PlatformsSummaryDetail!$F$6:$F$1100,IF($I$8<>"All",$I$8,"*"),PlatformsSummaryDetail!$H$6:$H$1100,IF($I$9<>"All",$I$9,"*"),PlatformsSummaryDetail!$C$6:$C$1100,IF($I$10<>"All",$I$10,"*"),PlatformsSummaryDetail!$D$6:$D$1100,IF($I$11<>"All",$I$11,"*")) -> 53.71326948 | J34: =SUMIFS(PlatformsSummaryDetail!N$6:N$1100,PlatformsSummaryDetail!$A$6:$A$1100,PlatformsSummary!$A34,PlatformsSummaryDetail!$B$6:$B$1100,$I$6,PlatformsSummaryDetail!$E$6:$E$1100,IF($I$7<>"All",$I$7,"*"),PlatformsSummaryDetail!$F$6:$F$1100,IF($I$8<>"All",$I$8,"*"),PlatformsSummaryDetail!$H$6:$H$1100,IF($I$9<>"All",$I$9,"*"),PlatformsSummaryDetail!$C$6:$C$1100,IF($I$10<>"All",$I$10,"*"),PlatformsSummaryDetail!$D$6:$D$1100,IF($I$11<>"All",$I$11,"*")) -> 53.3208429 | K34: =SUMIFS(PlatformsSummaryDetail!O$6:O$1100,PlatformsSummaryDetail!$A$6:$A$1100,PlatformsSummary!$A34,PlatformsSummaryDetail!$B$6:$B$1100,$I$6,PlatformsSummaryDetail!$E$6:$E$1100,IF($I$7<>"All",$I$7,"*"),PlatformsSummaryDetail!$F$6:$F$1100,IF($I$8<>"All",$I$8,"*"),PlatformsSummaryDetail!$H$6:$H$1100,IF($I$9<>"All",$I$9,"*"),PlatformsSummaryDetail!$C$6:$C$1100,IF($I$10<>"All",$I$10,"*"),PlatformsSummaryDetail!$D$6:$D$1100,IF($I$11<>"All",$I$11,"*")) -> 53.3208429 | L34: =SUMIFS(PlatformsSummaryDetail!P$6:P$1100,PlatformsSummaryDetail!$A$6:$A$1100,PlatformsSummary!$A34,PlatformsSummaryDetail!$B$6:$B$1100,$I$6,PlatformsSummaryDetail!$E$6:$E$1100,IF($I$7<>"All",$I$7,"*"),PlatformsSummaryDetail!$F$6:$F$1100,IF($I$8<>"All",$I$8,"*"),PlatformsSummaryDetail!$H$6:$H$1100,IF($I$9<>"All",$I$9,"*"),PlatformsSummaryDetail!$C$6:$C$1100,IF($I$10<>"All",$I$10,"*"),PlatformsSummaryDetail!$D$6:$D$1100,IF($I$11<>"All",$I$11,"*")) -> 27004.69966
A35: Hidalgo | D35: Yes | E35: =SUMIFS(PlatformsSummaryDetail!I$6:I$1100,PlatformsSummaryDetail!$A$6:$A$1100,PlatformsSummary!$A35,PlatformsSummaryDetail!$B$6:$B$1100,$I$6,PlatformsSummaryDetail!$E$6:$E$1100,IF($I$7<>"All",$I$7,"*"),PlatformsSummaryDetail!$F$6:$F$1100,IF($I$8<>"All",$I$8,"*"),PlatformsSummaryDetail!$H$6:$H$1100,IF($I$9<>"All",$I$9,"*"),PlatformsSummaryDetail!$C$6:$C$1100,IF($I$10<>"All",$I$10,"*"),PlatformsSummaryDetail!$D$6:$D$1100,IF($I$11<>"All",$I$11,"*")) -> 549.1969101 | F35: =SUMIFS(PlatformsSummaryDetail!J$6:J$1100,PlatformsSummaryDetail!$A$6:$A$1100,PlatformsSummary!$A35,PlatformsSummaryDetail!$B$6:$B$1100,$I$6,PlatformsSummaryDetail!$E$6:$E$1100,IF($I$7<>"All",$I$7,"*"),PlatformsSummaryDetail!$F$6:$F$1100,IF($I$8<>"All",$I$8,"*"),PlatformsSummaryDetail!$H$6:$H$1100,IF($I$9<>"All",$I$9,"*"),PlatformsSummaryDetail!$C$6:$C$1100,IF($I$10<>"All",$I$10,"*"),PlatformsSummaryDetail!$D$6:$D$1100,IF($I$11<>"All",$I$11,"*")) -> 44.13354425 | G35: =SUMIFS(PlatformsSummaryDetail!K$6:K$1100,PlatformsSummaryDetail!$A$6:$A$1100,PlatformsSummary!$A35,PlatformsSummaryDetail!$B$6:$B$1100,$I$6,PlatformsSummaryDetail!$E$6:$E$1100,IF($I$7<>"All",$I$7,"*"),PlatformsSummaryDetail!$F$6:$F$1100,IF($I$8<>"All",$I$8,"*"),PlatformsSummaryDetail!$H$6:$H$1100,IF($I$9<>"All",$I$9,"*"),PlatformsSummaryDetail!$C$6:$C$1100,IF($I$10<>"All",$I$10,"*"),PlatformsSummaryDetail!$D$6:$D$1100,IF($I$11<>"All",$I$11,"*")) -> 151.1872158 | H35: =SUMIFS(PlatformsSummaryDetail!L$6:L$1100,PlatformsSummaryDetail!$A$6:$A$1100,PlatformsSummary!$A35,PlatformsSummaryDetail!$B$6:$B$1100,$I$6,PlatformsSummaryDetail!$E$6:$E$1100,IF($I$7<>"All",$I$7,"*"),PlatformsSummaryDetail!$F$6:$F$1100,IF($I$8<>"All",$I$8,"*"),PlatformsSummaryDetail!$H$6:$H$1100,IF($I$9<>"All",$I$9,"*"),PlatformsSummaryDetail!$C$6:$C$1100,IF($I$10<>"All",$I$10,"*"),PlatformsSummaryDetail!$D$6:$D$1100,IF($I$11<>"All",$I$11,"*")) -> 0.2322581958 | I35: =SUMIFS(PlatformsSummaryDetail!M$6:M$1100,PlatformsSummaryDetail!$A$6:$A$1100,PlatformsSummary!$A35,PlatformsSummaryDetail!$B$6:$B$1100,$I$6,PlatformsSummaryDetail!$E$6:$E$1100,IF($I$7<>"All",$I$7,"*"),PlatformsSummaryDetail!$F$6:$F$1100,IF($I$8<>"All",$I$8,"*"),PlatformsSummaryDetail!$H$6:$H$1100,IF($I$9<>"All",$I$9,"*"),PlatformsSummaryDetail!$C$6:$C$1100,IF($I$10<>"All",$I$10,"*"),PlatformsSummaryDetail!$D$6:$D$1100,IF($I$11<>"All",$I$11,"*")) -> 44.33197071 | J35: =SUMIFS(PlatformsSummaryDetail!N$6:N$1100,PlatformsSummaryDetail!$A$6:$A$1100,PlatformsSummary!$A35,PlatformsSummaryDetail!$B$6:$B$1100,$I$6,PlatformsSummaryDetail!$E$6:$E$1100,IF($I$7<>"All",$I$7,"*"),PlatformsSummaryDetail!$F$6:$F$1100,IF($I$8<>"All",$I$8,"*"),PlatformsSummaryDetail!$H$6:$H$1100,IF($I$9<>"All",$I$9,"*"),PlatformsSummaryDetail!$C$6:$C$1100,IF($I$10<>"All",$I$10,"*"),PlatformsSummaryDetail!$D$6:$D$1100,IF($I$11<>"All",$I$11,"*")) -> 43.98278008 | K35: =SUMIFS(PlatformsSummaryDetail!O$6:O$1100,PlatformsSummaryDetail!$A$6:$A$1100,PlatformsSummary!$A35,PlatformsSummaryDetail!$B$6:$B$1100,$I$6,PlatformsSummaryDetail!$E$6:$E$1100,IF($I$7<>"All",$I$7,"*"),PlatformsSummaryDetail!$F$6:$F$1100,IF($I$8<>"All",$I$8,"*"),PlatformsSummaryDetail!$H$6:$H$1100,IF($I$9<>"All",$I$9,"*"),PlatformsSummaryDetail!$C$6:$C$1100,IF($I$10<>"All",$I$10,"*"),PlatformsSummaryDetail!$D$6:$D$1100,IF($I$11<>"All",$I$11,"*")) -> 43.98278008 | L35: =SUMIFS(PlatformsSummaryDetail!P$6:P$1100,PlatformsSummaryDetail!$A$6:$A$1100,PlatformsSummary!$A35,PlatformsSummaryDetail!$B$6:$B$1100,$I$6,PlatformsSummaryDetail!$E$6:$E$1100,IF($I$7<>"All",$I$7,"*"),PlatformsSummaryDetail!$F$6:$F$1100,IF($I$8<>"All",$I$8,"*"),PlatformsSummaryDetail!$H$6:$H$1100,IF($I$9<>"All",$I$9,"*"),PlatformsSummaryDetail!$C$6:$C$1100,IF($I$10<>"All",$I$10,"*"),PlatformsSummaryDetail!$D$6:$D$1100,IF($I$11<>"All",$I$11,"*")) -> 22430.83961
A36: Hillhouse | D36: Yes | E36: =SUMIFS(PlatformsSummaryDetail!I$6:I$1100,PlatformsSummaryDetail!$A$6:$A$1100,PlatformsSummary!$A36,PlatformsSummaryDetail!$B$6:$B$1100,$I$6,PlatformsSummaryDetail!$E$6:$E$1100,IF($I$7<>"All",$I$7,"*"),PlatformsSummaryDetail!$F$6:$F$1100,IF($I$8<>"All",$I$8,"*"),PlatformsSummaryDetail!$H$6:$H$1100,IF($I$9<>"All",$I$9,"*"),PlatformsSummaryDetail!$C$6:$C$1100,IF($I$10<>"All",$I$10,"*"),PlatformsSummaryDetail!$D$6:$D$1100,IF($I$11<>"All",$I$11,"*")) -> 270.4966428 | F36: =SUMIFS(PlatformsSummaryDetail!J$6:J$1100,PlatformsSummaryDetail!$A$6:$A$1100,PlatformsSummary!$A36,PlatformsSummaryDetail!$B$6:$B$1100,$I$6,PlatformsSummaryDetail!$E$6:$E$1100,IF($I$7<>"All",$I$7,"*"),PlatformsSummaryDetail!$F$6:$F$1100,IF($I$8<>"All",$I$8,"*"),PlatformsSummaryDetail!$H$6:$H$1100,IF($I$9<>"All",$I$9,"*"),PlatformsSummaryDetail!$C$6:$C$1100,IF($I$10<>"All",$I$10,"*"),PlatformsSummaryDetail!$D$6:$D$1100,IF($I$11<>"All",$I$11,"*")) -> 21.64631522 | G36: =SUMIFS(PlatformsSummaryDetail!K$6:K$1100,PlatformsSummaryDetail!$A$6:$A$1100,PlatformsSummary!$A36,PlatformsSummaryDetail!$B$6:$B$1100,$I$6,PlatformsSummaryDetail!$E$6:$E$1100,IF($I$7<>"All",$I$7,"*"),PlatformsSummaryDetail!$F$6:$F$1100,IF($I$8<>"All",$I$8,"*"),PlatformsSummaryDetail!$H$6:$H$1100,IF($I$9<>"All",$I$9,"*"),PlatformsSummaryDetail!$C$6:$C$1100,IF($I$10<>"All",$I$10,"*"),PlatformsSummaryDetail!$D$6:$D$1100,IF($I$11<>"All",$I$11,"*")) -> 68.50968258 | H36: =SUMIFS(PlatformsSummaryDetail!L$6:L$1100,PlatformsSummaryDetail!$A$6:$A$1100,PlatformsSummary!$A36,PlatformsSummaryDetail!$B$6:$B$1100,$I$6,PlatformsSummaryDetail!$E$6:$E$1100,IF($I$7<>"All",$I$7,"*"),PlatformsSummaryDetail!$F$6:$F$1100,IF($I$8<>"All",$I$8,"*"),PlatformsSummaryDetail!$H$6:$H$1100,IF($I$9<>"All",$I$9,"*"),PlatformsSummaryDetail!$C$6:$C$1100,IF($I$10<>"All",$I$10,"*"),PlatformsSummaryDetail!$D$6:$D$1100,IF($I$11<>"All",$I$11,"*")) -> 0.1076980619 | I36: =SUMIFS(PlatformsSummaryDetail!M$6:M$1100,PlatformsSummaryDetail!$A$6:$A$1100,PlatformsSummary!$A36,PlatformsSummaryDetail!$B$6:$B$1100,$I$6,PlatformsSummaryDetail!$E$6:$E$1100,IF($I$7<>"All",$I$7,"*"),PlatformsSummaryDetail!$F$6:$F$1100,IF($I$8<>"All",$I$8,"*"),PlatformsSummaryDetail!$H$6:$H$1100,IF($I$9<>"All",$I$9,"*"),PlatformsSummaryDetail!$C$6:$C$1100,IF($I$10<>"All",$I$10,"*"),PlatformsSummaryDetail!$D$6:$D$1100,IF($I$11<>"All",$I$11,"*")) -> 20.90720304 | J36: =SUMIFS(PlatformsSummaryDetail!N$6:N$1100,PlatformsSummaryDetail!$A$6:$A$1100,PlatformsSummary!$A36,PlatformsSummaryDetail!$B$6:$B$1100,$I$6,PlatformsSummaryDetail!$E$6:$E$1100,IF($I$7<>"All",$I$7,"*"),PlatformsSummaryDetail!$F$6:$F$1100,IF($I$8<>"All",$I$8,"*"),PlatformsSummaryDetail!$H$6:$H$1100,IF($I$9<>"All",$I$9,"*"),PlatformsSummaryDetail!$C$6:$C$1100,IF($I$10<>"All",$I$10,"*"),PlatformsSummaryDetail!$D$6:$D$1100,IF($I$11<>"All",$I$11,"*")) -> 20.78248873 | K36: =SUMIFS(PlatformsSummaryDetail!O$6:O$1100,PlatformsSummaryDetail!$A$6:$A$1100,PlatformsSummary!$A36,PlatformsSummaryDetail!$B$6:$B$1100,$I$6,PlatformsSummaryDetail!$E$6:$E$1100,IF($I$7<>"All",$I$7,"*"),PlatformsSummaryDetail!$F$6:$F$1100,IF($I$8<>"All",$I$8,"*"),PlatformsSummaryDetail!$H$6:$H$1100,IF($I$9<>"All",$I$9,"*"),PlatformsSummaryDetail!$C$6:$C$1100,IF($I$10<>"All",$I$10,"*"),PlatformsSummaryDetail!$D$6:$D$1100,IF($I$11<>"All",$I$11,"*")) -> 20.78248873 | L36: =SUMIFS(PlatformsSummaryDetail!P$6:P$1100,PlatformsSummaryDetail!$A$6:$A$1100,PlatformsSummary!$A36,PlatformsSummaryDetail!$B$6:$B$1100,$I$6,PlatformsSummaryDetail!$E$6:$E$1100,IF($I$7<>"All",$I$7,"*"),PlatformsSummaryDetail!$F$6:$F$1100,IF($I$8<>"All",$I$8,"*"),PlatformsSummaryDetail!$H$6:$H$1100,IF($I$9<>"All",$I$9,"*"),PlatformsSummaryDetail!$C$6:$C$1100,IF($I$10<>"All",$I$10,"*"),PlatformsSummaryDetail!$D$6:$D$1100,IF($I$11<>"All",$I$11,"*")) -> 10326.76717
A37: Hogan | D37: Yes | E37: =SUMIFS(PlatformsSummaryDetail!I$6:I$1100,PlatformsSummaryDetail!$A$6:$A$1100,PlatformsSummary!$A37,PlatformsSummaryDetail!$B$6:$B$1100,$I$6,PlatformsSummaryDetail!$E$6:$E$1100,IF($I$7<>"All",$I$7,"*"),PlatformsSummaryDetail!$F$6:$F$1100,IF($I$8<>"All",$I$8,"*"),PlatformsSummaryDetail!$H$6:$H$1100,IF($I$9<>"All",$I$9,"*"),PlatformsSummaryDetail!$C$6:$C$1100,IF($I$10<>"All",$I$10,"*"),PlatformsSummaryDetail!$D$6:$D$1100,IF($I$11<>"All",$I$11,"*")) -> 344.7320304 | F37: =SUMIFS(PlatformsSummaryDetail!J$6:J$1100,PlatformsSummaryDetail!$A$6:$A$1100,PlatformsSummary!$A37,PlatformsSummaryDetail!$B$6:$B$1100,$I$6,PlatformsSummaryDetail!$E$6:$E$1100,IF($I$7<>"All",$I$7,"*"),PlatformsSummaryDetail!$F$6:$F$1100,IF($I$8<>"All",$I$8,"*"),PlatformsSummaryDetail!$H$6:$H$1100,IF($I$9<>"All",$I$9,"*"),PlatformsSummaryDetail!$C$6:$C$1100,IF($I$10<>"All",$I$10,"*"),PlatformsSummaryDetail!$D$6:$D$1100,IF($I$11<>"All",$I$11,"*")) -> 27.45439459 | G37: =SUMIFS(PlatformsSummaryDetail!K$6:K$1100,PlatformsSummaryDetail!$A$6:$A$1100,PlatformsSummary!$A37,PlatformsSummaryDetail!$B$6:$B$1100,$I$6,PlatformsSummaryDetail!$E$6:$E$1100,IF($I$7<>"All",$I$7,"*"),PlatformsSummaryDetail!$F$6:$F$1100,IF($I$8<>"All",$I$8,"*"),PlatformsSummaryDetail!$H$6:$H$1100,IF($I$9<>"All",$I$9,"*"),PlatformsSummaryDetail!$C$6:$C$1100,IF($I$10<>"All",$I$10,"*"),PlatformsSummaryDetail!$D$6:$D$1100,IF($I$11<>"All",$I$11,"*")) -> 82.82963528 | H37: =SUMIFS(PlatformsSummaryDetail!L$6:L$1100,PlatformsSummaryDetail!$A$6:$A$1100,PlatformsSummary!$A37,PlatformsSummaryDetail!$B$6:$B$1100,$I$6,PlatformsSummaryDetail!$E$6:$E$1100,IF($I$7<>"All",$I$7,"*"),PlatformsSummaryDetail!$F$6:$F$1100,IF($I$8<>"All",$I$8,"*"),PlatformsSummaryDetail!$H$6:$H$1100,IF($I$9<>"All",$I$9,"*"),PlatformsSummaryDetail!$C$6:$C$1100,IF($I$10<>"All",$I$10,"*"),PlatformsSummaryDetail!$D$6:$D$1100,IF($I$11<>"All",$I$11,"*")) -> 0.1322666865 | I37: =SUMIFS(PlatformsSummaryDetail!M$6:M$1100,PlatformsSummaryDetail!$A$6:$A$1100,PlatformsSummary!$A37,PlatformsSummaryDetail!$B$6:$B$1100,$I$6,PlatformsSummaryDetail!$E$6:$E$1100,IF($I$7<>"All",$I$7,"*"),PlatformsSummaryDetail!$F$6:$F$1100,IF($I$8<>"All",$I$8,"*"),PlatformsSummaryDetail!$H$6:$H$1100,IF($I$9<>"All",$I$9,"*"),PlatformsSummaryDetail!$C$6:$C$1100,IF($I$10<>"All",$I$10,"*"),PlatformsSummaryDetail!$D$6:$D$1100,IF($I$11<>"All",$I$11,"*")) -> 25.87759658 | J37: =SUMIFS(PlatformsSummaryDetail!N$6:N$1100,PlatformsSummaryDetail!$A$6:$A$1100,PlatformsSummary!$A37,PlatformsSummaryDetail!$B$6:$B$1100,$I$6,PlatformsSummaryDetail!$E$6:$E$1100,IF($I$7<>"All",$I$7,"*"),PlatformsSummaryDetail!$F$6:$F$1100,IF($I$8<>"All",$I$8,"*"),PlatformsSummaryDetail!$H$6:$H$1100,IF($I$9<>"All",$I$9,"*"),PlatformsSummaryDetail!$C$6:$C$1100,IF($I$10<>"All",$I$10,"*"),PlatformsSummaryDetail!$D$6:$D$1100,IF($I$11<>"All",$I$11,"*")) -> 25.77321007 | K37: =SUMIFS(PlatformsSummaryDetail!O$6:O$1100,PlatformsSummaryDetail!$A$6:$A$1100,PlatformsSummary!$A37,PlatformsSummaryDetail!$B$6:$B$1100,$I$6,PlatformsSummaryDetail!$E$6:$E$1100,IF($I$7<>"All",$I$7,"*"),PlatformsSummaryDetail!$F$6:$F$1100,IF($I$8<>"All",$I$8,"*"),PlatformsSummaryDetail!$H$6:$H$1100,IF($I$9<>"All",$I$9,"*"),PlatformsSummaryDetail!$C$6:$C$1100,IF($I$10<>"All",$I$10,"*"),PlatformsSummaryDetail!$D$6:$D$1100,IF($I$11<>"All",$I$11,"*")) -> 25.77321007 | L37: =SUMIFS(PlatformsSummaryDetail!P$6:P$1100,PlatformsSummaryDetail!$A$6:$A$1100,PlatformsSummary!$A37,PlatformsSummaryDetail!$B$6:$B$1100,$I$6,PlatformsSummaryDetail!$E$6:$E$1100,IF($I$7<>"All",$I$7,"*"),PlatformsSummaryDetail!$F$6:$F$1100,IF($I$8<>"All",$I$8,"*"),PlatformsSummaryDetail!$H$6:$H$1100,IF($I$9<>"All",$I$9,"*"),PlatformsSummaryDetail!$C$6:$C$1100,IF($I$10<>"All",$I$10,"*"),PlatformsSummaryDetail!$D$6:$D$1100,IF($I$11<>"All",$I$11,"*")) -> 12616.40529
A38: Hondo | D38: Yes | E38: =SUMIFS(PlatformsSummaryDetail!I$6:I$1100,PlatformsSummaryDetail!$A$6:$A$1100,PlatformsSummary!$A38,PlatformsSummaryDetail!$B$6:$B$1100,$I$6,PlatformsSummaryDetail!$E$6:$E$1100,IF($I$7<>"All",$I$7,"*"),PlatformsSummaryDetail!$F$6:$F$1100,IF($I$8<>"All",$I$8,"*"),PlatformsSummaryDetail!$H$6:$H$1100,IF($I$9<>"All",$I$9,"*"),PlatformsSummaryDetail!$C$6:$C$1100,IF($I$10<>"All",$I$10,"*"),PlatformsSummaryDetail!$D$6:$D$1100,IF($I$11<>"All",$I$11,"*")) -> 622.3348994 | F38: =SUMIFS(PlatformsSummaryDetail!J$6:J$1100,PlatformsSummaryDetail!$A$6:$A$1100,PlatformsSummary!$A38,PlatformsSummaryDetail!$B$6:$B$1100,$I$6,PlatformsSummaryDetail!$E$6:$E$1100,IF($I$7<>"All",$I$7,"*"),PlatformsSummaryDetail!$F$6:$F$1100,IF($I$8<>"All",$I$8,"*"),PlatformsSummaryDetail!$H$6:$H$1100,IF($I$9<>"All",$I$9,"*"),PlatformsSummaryDetail!$C$6:$C$1100,IF($I$10<>"All",$I$10,"*"),PlatformsSummaryDetail!$D$6:$D$1100,IF($I$11<>"All",$I$11,"*")) -> 49.35045163 | G38: =SUMIFS(PlatformsSummaryDetail!K$6:K$1100,PlatformsSummaryDetail!$A$6:$A$1100,PlatformsSummary!$A38,PlatformsSummaryDetail!$B$6:$B$1100,$I$6,PlatformsSummaryDetail!$E$6:$E$1100,IF($I$7<>"All",$I$7,"*"),PlatformsSummaryDetail!$F$6:$F$1100,IF($I$8<>"All",$I$8,"*"),PlatformsSummaryDetail!$H$6:$H$1100,IF($I$9<>"All",$I$9,"*"),PlatformsSummaryDetail!$C$6:$C$1100,IF($I$10<>"All",$I$10,"*"),PlatformsSummaryDetail!$D$6:$D$1100,IF($I$11<>"All",$I$11,"*")) -> 163.8335298 | H38: =SUMIFS(PlatformsSummaryDetail!L$6:L$1100,PlatformsSummaryDetail!$A$6:$A$1100,PlatformsSummary!$A38,PlatformsSummaryDetail!$B$6:$B$1100,$I$6,PlatformsSummaryDetail!$E$6:$E$1100,IF($I$7<>"All",$I$7,"*"),PlatformsSummaryDetail!$F$6:$F$1100,IF($I$8<>"All",$I$8,"*"),PlatformsSummaryDetail!$H$6:$H$1100,IF($I$9<>"All",$I$9,"*"),PlatformsSummaryDetail!$C$6:$C$1100,IF($I$10<>"All",$I$10,"*"),PlatformsSummaryDetail!$D$6:$D$1100,IF($I$11<>"All",$I$11,"*")) -> 0.2545673018 | I38: =SUMIFS(PlatformsSummaryDetail!M$6:M$1100,PlatformsSummaryDetail!$A$6:$A$1100,PlatformsSummary!$A38,PlatformsSummaryDetail!$B$6:$B$1100,$I$6,PlatformsSummaryDetail!$E$6:$E$1100,IF($I$7<>"All",$I$7,"*"),PlatformsSummaryDetail!$F$6:$F$1100,IF($I$8<>"All",$I$8,"*"),PlatformsSummaryDetail!$H$6:$H$1100,IF($I$9<>"All",$I$9,"*"),PlatformsSummaryDetail!$C$6:$C$1100,IF($I$10<>"All",$I$10,"*"),PlatformsSummaryDetail!$D$6:$D$1100,IF($I$11<>"All",$I$11,"*")) -> 48.78305471 | J38: =SUMIFS(PlatformsSummaryDetail!N$6:N$1100,PlatformsSummaryDetail!$A$6:$A$1100,PlatformsSummary!$A38,PlatformsSummaryDetail!$B$6:$B$1100,$I$6,PlatformsSummaryDetail!$E$6:$E$1100,IF($I$7<>"All",$I$7,"*"),PlatformsSummaryDetail!$F$6:$F$1100,IF($I$8<>"All",$I$8,"*"),PlatformsSummaryDetail!$H$6:$H$1100,IF($I$9<>"All",$I$9,"*"),PlatformsSummaryDetail!$C$6:$C$1100,IF($I$10<>"All",$I$10,"*"),PlatformsSummaryDetail!$D$6:$D$1100,IF($I$11<>"All",$I$11,"*")) -> 48.46882313 | K38: =SUMIFS(PlatformsSummaryDetail!O$6:O$1100,PlatformsSummaryDetail!$A$6:$A$1100,PlatformsSummary!$A38,PlatformsSummaryDetail!$B$6:$B$1100,$I$6,PlatformsSummaryDetail!$E$6:$E$1100,IF($I$7<>"All",$I$7,"*"),PlatformsSummaryDetail!$F$6:$F$1100,IF($I$8<>"All",$I$8,"*"),PlatformsSummaryDetail!$H$6:$H$1100,IF($I$9<>"All",$I$9,"*"),PlatformsSummaryDetail!$C$6:$C$1100,IF($I$10<>"All",$I$10,"*"),PlatformsSummaryDetail!$D$6:$D$1100,IF($I$11<>"All",$I$11,"*")) -> 48.46882313 | L38: =SUMIFS(PlatformsSummaryDetail!P$6:P$1100,PlatformsSummaryDetail!$A$6:$A$1100,PlatformsSummary!$A38,PlatformsSummaryDetail!$B$6:$B$1100,$I$6,PlatformsSummaryDetail!$E$6:$E$1100,IF($I$7<>"All",$I$7,"*"),PlatformsSummaryDetail!$F$6:$F$1100,IF($I$8<>"All",$I$8,"*"),PlatformsSummaryDetail!$H$6:$H$1100,IF($I$9<>"All",$I$9,"*"),PlatformsSummaryDetail!$C$6:$C$1100,IF($I$10<>"All",$I$10,"*"),PlatformsSummaryDetail!$D$6:$D$1100,IF($I$11<>"All",$I$11,"*")) -> 24498.23557
A39: Houchin | D39: Yes | E39: =SUMIFS(PlatformsSummaryDetail!I$6:I$1100,PlatformsSummaryDetail!$A$6:$A$1100,PlatformsSummary!$A39,PlatformsSummaryDetail!$B$6:$B$1100,$I$6,PlatformsSummaryDetail!$E$6:$E$1100,IF($I$7<>"All",$I$7,"*"),PlatformsSummaryDetail!$F$6:$F$1100,IF($I$8<>"All",$I$8,"*"),PlatformsSummaryDetail!$H$6:$H$1100,IF($I$9<>"All",$I$9,"*"),PlatformsSummaryDetail!$C$6:$C$1100,IF($I$10<>"All",$I$10,"*"),PlatformsSummaryDetail!$D$6:$D$1100,IF($I$11<>"All",$I$11,"*")) -> 307.6761705 | F39: =SUMIFS(PlatformsSummaryDetail!J$6:J$1100,PlatformsSummaryDetail!$A$6:$A$1100,PlatformsSummary!$A39,PlatformsSummaryDetail!$B$6:$B$1100,$I$6,PlatformsSummaryDetail!$E$6:$E$1100,IF($I$7<>"All",$I$7,"*"),PlatformsSummaryDetail!$F$6:$F$1100,IF($I$8<>"All",$I$8,"*"),PlatformsSummaryDetail!$H$6:$H$1100,IF($I$9<>"All",$I$9,"*"),PlatformsSummaryDetail!$C$6:$C$1100,IF($I$10<>"All",$I$10,"*"),PlatformsSummaryDetail!$D$6:$D$1100,IF($I$11<>"All",$I$11,"*")) -> 24.47102682 | G39: =SUMIFS(PlatformsSummaryDetail!K$6:K$1100,PlatformsSummaryDetail!$A$6:$A$1100,PlatformsSummary!$A39,PlatformsSummaryDetail!$B$6:$B$1100,$I$6,PlatformsSummaryDetail!$E$6:$E$1100,IF($I$7<>"All",$I$7,"*"),PlatformsSummaryDetail!$F$6:$F$1100,IF($I$8<>"All",$I$8,"*"),PlatformsSummaryDetail!$H$6:$H$1100,IF($I$9<>"All",$I$9,"*"),PlatformsSummaryDetail!$C$6:$C$1100,IF($I$10<>"All",$I$10,"*"),PlatformsSummaryDetail!$D$6:$D$1100,IF($I$11<>"All",$I$11,"*")) -> 74.13735525 | H39: =SUMIFS(PlatformsSummaryDetail!L$6:L$1100,PlatformsSummaryDetail!$A$6:$A$1100,PlatformsSummary!$A39,PlatformsSummaryDetail!$B$6:$B$1100,$I$6,PlatformsSummaryDetail!$E$6:$E$1100,IF($I$7<>"All",$I$7,"*"),PlatformsSummaryDetail!$F$6:$F$1100,IF($I$8<>"All",$I$8,"*"),PlatformsSummaryDetail!$H$6:$H$1100,IF($I$9<>"All",$I$9,"*"),PlatformsSummaryDetail!$C$6:$C$1100,IF($I$10<>"All",$I$10,"*"),PlatformsSummaryDetail!$D$6:$D$1100,IF($I$11<>"All",$I$11,"*")) -> 0.1182616608 | I39: =SUMIFS(PlatformsSummaryDetail!M$6:M$1100,PlatformsSummaryDetail!$A$6:$A$1100,PlatformsSummary!$A39,PlatformsSummaryDetail!$B$6:$B$1100,$I$6,PlatformsSummaryDetail!$E$6:$E$1100,IF($I$7<>"All",$I$7,"*"),PlatformsSummaryDetail!$F$6:$F$1100,IF($I$8<>"All",$I$8,"*"),PlatformsSummaryDetail!$H$6:$H$1100,IF($I$9<>"All",$I$9,"*"),PlatformsSummaryDetail!$C$6:$C$1100,IF($I$10<>"All",$I$10,"*"),PlatformsSummaryDetail!$D$6:$D$1100,IF($I$11<>"All",$I$11,"*")) -> 23.11877191 | J39: =SUMIFS(PlatformsSummaryDetail!N$6:N$1100,PlatformsSummaryDetail!$A$6:$A$1100,PlatformsSummary!$A39,PlatformsSummaryDetail!$B$6:$B$1100,$I$6,PlatformsSummaryDetail!$E$6:$E$1100,IF($I$7<>"All",$I$7,"*"),PlatformsSummaryDetail!$F$6:$F$1100,IF($I$8<>"All",$I$8,"*"),PlatformsSummaryDetail!$H$6:$H$1100,IF($I$9<>"All",$I$9,"*"),PlatformsSummaryDetail!$C$6:$C$1100,IF($I$10<>"All",$I$10,"*"),PlatformsSummaryDetail!$D$6:$D$1100,IF($I$11<>"All",$I$11,"*")) -> 23.02176268 | K39: =SUMIFS(PlatformsSummaryDetail!O$6:O$1100,PlatformsSummaryDetail!$A$6:$A$1100,PlatformsSummary!$A39,PlatformsSummaryDetail!$B$6:$B$1100,$I$6,PlatformsSummaryDetail!$E$6:$E$1100,IF($I$7<>"All",$I$7,"*"),PlatformsSummaryDetail!$F$6:$F$1100,IF($I$8<>"All",$I$8,"*"),PlatformsSummaryDetail!$H$6:$H$1100,IF($I$9<>"All",$I$9,"*"),PlatformsSummaryDetail!$C$6:$C$1100,IF($I$10<>"All",$I$10,"*"),PlatformsSummaryDetail!$D$6:$D$1100,IF($I$11<>"All",$I$11,"*")) -> 23.02176268 | L39: =SUMIFS(PlatformsSummaryDetail!P$6:P$1100,PlatformsSummaryDetail!$A$6:$A$1100,PlatformsSummary!$A39,PlatformsSummaryDetail!$B$6:$B$1100,$I$6,PlatformsSummaryDetail!$E$6:$E$1100,IF($I$7<>"All",$I$7,"*"),PlatformsSummaryDetail!$F$6:$F$1100,IF($I$8<>"All",$I$8,"*"),PlatformsSummaryDetail!$H$6:$H$1100,IF($I$9<>"All",$I$9,"*"),PlatformsSummaryDetail!$C$6:$C$1100,IF($I$10<>"All",$I$10,"*"),PlatformsSummaryDetail!$D$6:$D$1100,IF($I$11<>"All",$I$11,"*")) -> 11285.885
